Workbook

Sheet pro-rec
A2: S. No. | B2: Head | C2: Outlay Proposed | F2: Approved Outlay | J2: Outlay approved in 2016-17 | K2: Outlay Recommended for 2017-18 | L2: Increase in Outlay for 2017-18 | M2: %
C3: Spill Over | D3: Fresh | E3: Total | F3: Spill Over | G3: Fresh | H3: Total | J3: =Odisha!F523 -> 221584.0174 | K3: =Odisha!AF523 -> 242535.8361 | L3: =K3-J3 -> 20951.81875 | M3: =L3/J3*100 -> 9.455473818
A4: 1 | B4: SSA | C4: =Odisha!P410 -> 14673.69225 | D4: =Odisha!U410 -> 301798.5704 | E4: =C4+D4 -> 316472.2626 | F4: =Odisha!Y410 -> 14295.89825 | G4: =Odisha!AD410 -> 220953.6775 | H4: =SUM(F4:G4) -> 235249.5757
A5: 2 | B5: KGBV | C5: =Odisha!P522 -> 804.43043 | D5: =Odisha!U522 -> 7106.446 | E5: =C5+D5 -> 7910.87643 | F5: =Odisha!Y522 -> 804.43043 | G5: =Odisha!AD522 -> 6481.83 | H5: =SUM(F5:G5) -> 7286.26043
B6: Total | C6: =C4+C5 -> 15478.12268 | D6: =D4+D5 -> 308905.0164 | E6: =E4+E5 -> 324383.1391 | F6: =F4+F5 -> 15100.32868 | G6: 227435.5075 | H6: 242535.8361
E8: =Odisha!W523 -> 324383.1391 | H8: =Odisha!AF523 -> 242535.8361

Sheet Provision
A2: Outlay approved | B2: Capital Head (all civil works under SSA & KGBV) | C2: General Head | D2: GOI Share (60% )
D3: Capital Head | E3: General Head | F3: Total
A4: =Odisha!AF523 -> 242535.8361 | B4: =Odisha!AF391+Odisha!Y487+Odisha!Y488 -> 28882.25131 | C4: =A4-B4 -> 213653.5848 | D4: =B4*60/100 -> 17329.35079 | E4: =C4*60/100 -> 128192.1509 | F4: =+E4+D4 -> 145521.5017

Sheet Annexure-III-SFD
A2: State/UT Name: Odisha | AC2: (Rs. in lakh)
A3: Sl.No | B3: Name of the districts | C3: SOCIAL CATEGORY GROUP | J3: Physical items Approved | AC3: Total financial outlay of SSA | AD3: KGBV Outlay | AE3: Total Outlay
C4: SCHEDULED TRIBES (25% and above) | D4: SCHEDULED CASTES (25% and above) | E4: 121 PMO's Minority Districts | F4: Muslim Concentration (20% and above) | H4: LWE Districts | J4: Civil Works (Fresh) | V4: Teachers | AB4: No. of KGBV
G5: Naxalite Affected Districts | I5: LWE worst affected Districts | J5: New PS Buildings | K5: New UPS Buildings | L5: ACR | M5: ACR in lieu of upgraded Primary School | N5: ACR in lieu of upgraded Upper Primary School | O5: All Toilets (including girls toilets) | P5: Girls Toilets | Q5: PS | R5: Upgradation of PS to UPS | S5: Residential schools | T5: Residential hostel | U5: Integration of Class VIII with UPS | V5: New teachers for new schools | W5: Additional teach. Against excess enrolment | X5: Part Time Instructors | Y5: Teachers Training | Z5: Uniforms | AA5: Text books
A6: 1 | B6: Bolangir | C6: 1 | G6: 1 | H6: 1 | J6: =Bolangir!$AC$353+Bolangir!$AC$354 -> 0 | K6: =Bolangir!$AC$355+Bolangir!$AC$356 -> 0 | L6: =Bolangir!$AC$357+Bolangir!$AC$358+Bolangir!$AC$359+Bolangir!$AC$360+Bolangir!$AC$361+Bolangir!$AC$382 -> 57 | N6: =Bolangir!$AC$357 -> 0 | O6: =Bolangir!$AC$362+Bolangir!$AC$363+Bolangir!$AC$364 -> 206 | P6: =Bolangir!$AC$363 -> 85 | Q6: =Bolangir!$AC$10 -> 0 | R6: =Bolangir!$AC$11 -> 0 | S6: =Bolangir!$AC$13 -> 0 | T6: =Bolangir!$AC$14 -> 0 | U6: =Bolangir!$AC$16 -> 0 | V6: =Bolangir!$AC$241 -> 0 | X6: =Bolangir!$AC$258+Bolangir!$AC$259+Bolangir!$AC$260 -> 368 | Y6: =Bolangir!$AC$286 -> 9840 | Z6: =Bolangir!$AC$215 -> 210620 | AA6: =Bolangir!$AC$209 -> 176453 | AB6: =Bolangir!$AC$522 -> 13 | AC6: =Bolangir!$AF$410 -> 12212.51426 | AD6: =Bolangir!$AF$522 -> 555.86 | AE6: =AC6+AD6 -> 12768.37426
A7: 2 | B7: Bargarh | H7: 1 | J7: =Bargarh!$AC$353+Bargarh!$AC$354 -> 0 | K7: =Bargarh!$AC$355+Bargarh!$AC$356 -> 0 | L7: =Bargarh!$AC$357+Bargarh!$AC$358+Bargarh!$AC$359+Bargarh!$AC$360+Bargarh!$AC$361+Bargarh!$AC$382 -> 18 | N7: =Bargarh!$AC$357 -> 0 | O7: =Bargarh!$AC$362+Bargarh!$AC$363+Bargarh!$AC$364 -> 94 | P7: =Bargarh!$AC$363 -> 42 | Q7: =Bargarh!$AC$10 -> 0 | R7: =Bargarh!$AC$11 -> 0 | S7: =Bargarh!$AC$13 -> 0 | T7: =Bargarh!$AC$14 -> 0 | U7: =Bargarh!$AC$16 -> 0 | V7: =Bargarh!$AC$241 -> 0 | X7: =Bargarh!$AC$258+Bargarh!$AC$259+Bargarh!$AC$260 -> 386 | Y7: =Bargarh!$AC$286 -> 7357 | Z7: =Bargarh!$AC$215 -> 145584 | AA7: =Bargarh!$AC$209 -> 122050 | AB7: =Bargarh!$AC$522 -> 4 | AC7: =Bargarh!$AF$410 -> 6388.175902 | AD7: =Bargarh!$AF$522 -> 143.195 | AE7: =AC7+AD7 -> 6531.370902
A8: 3 | B8: Debgarh | C8: 1 | G8: 1 | H8: 1 | J8: =Deogarh!$AC$353+Deogarh!$AC$354 -> 0 | K8: =Deogarh!$AC$355+Deogarh!$AC$356 -> 0 | L8: =Deogarh!$AC$357+Deogarh!$AC$358+Deogarh!$AC$359+Deogarh!$AC$360+Deogarh!$AC$361+Deogarh!$AC$382 -> 0 | N8: =Deogarh!$AC$357 -> 0 | O8: =Deogarh!$AC$362+Deogarh!$AC$363+Deogarh!$AC$364 -> 12 | P8: =Deogarh!$AC$363 -> 6 | Q8: =Deogarh!$AC$10 -> 0 | R8: =Deogarh!$AC$11 -> 0 | S8: =Deogarh!$AC$13 -> 0 | T8: =Deogarh!$AC$14 -> 0 | U8: =Deogarh!$AC$16 -> 0 | V8: =Deogarh!$AC$241 -> 0 | X8: =Deogarh!$AC$258+Deogarh!$AC$259+Deogarh!$AC$260 -> 64 | Y8: =Deogarh!$AC$286 -> 2504 | Z8: =Deogarh!$AC$215 -> 35036 | AA8: =Deogarh!$AC$209 -> 32267 | AB8: =Deogarh!$AC$522 -> 2 | AC8: =Deogarh!$AF$410 -> 2452.267872 | AD8: =Deogarh!$AF$522 -> 83.2 | AE8: 2535.467872
A9: 4 | B9: Dhenkanal | H9: 1 | J9: =Dhenkanal!$AC$353+Dhenkanal!$AC$354 -> 0 | K9: =Dhenkanal!$AC$355+Dhenkanal!$AC$356 -> 0 | L9: =Dhenkanal!$AC$357+Dhenkanal!$AC$358+Dhenkanal!$AC$359+Dhenkanal!$AC$360+Dhenkanal!$AC$361+Dhenkanal!$AC$382 -> 9 | N9: =Dhenkanal!$AC$357 -> 0 | O9: =Dhenkanal!$AC$362+Dhenkanal!$AC$363+Dhenkanal!$AC$364 -> 56 | P9: =Dhenkanal!$AC$363 -> 19 | Q9: =Dhenkanal!$AC$10 -> 0 | R9: =Dhenkanal!$AC$11 -> 0 | S9: =Dhenkanal!$AC$13 -> 0 | T9: =Dhenkanal!$AC$14 -> 0 | U9: =Dhenkanal!$AC$16 -> 0 | V9: =Dhenkanal!$AC$241 -> 0 | X9: =Dhenkanal!$AC$258+Dhenkanal!$AC$259+Dhenkanal!$AC$260 -> 270 | Y9: =Dhenkanal!$AC$286 -> 6689 | Z9: =Dhenkanal!$AC$215 -> 121369 | AA9: =Dhenkanal!$AC$209 -> 101678 | AB9: =Dhenkanal!$AC$522 -> 1 | AC9: =Dhenkanal!$AF$410 -> 5303.985609 | AD9: =Dhenkanal!$AF$522 -> 35.25 | AE9: 5339.235609
A10: 5 | B10: Gajapati | C10: 1 | E10: 1 | G10: 1 | H10: 1 | J10: =Gajapati!$AC$353+Gajapati!$AC$354 -> 0 | K10: =Gajapati!$AC$355+Gajapati!$AC$356 -> 0 | L10: =Gajapati!$AC$357+Gajapati!$AC$358+Gajapati!$AC$359+Gajapati!$AC$360+Gajapati!$AC$361+Gajapati!$AC$382 -> 7 | N10: =Gajapati!$AC$357 -> 0 | O10: =Gajapati!$AC$362+Gajapati!$AC$363+Gajapati!$AC$364 -> 77 | P10: =Gajapati!$AC$363 -> 29 | Q10: =Gajapati!$AC$10 -> 0 | R10: =Gajapati!$AC$11 -> 0 | S10: =Gajapati!$AC$13 -> 0 | T10: =Gajapati!$AC$14 -> 0 | U10: =Gajapati!$AC$16 -> 0 | V10: =Gajapati!$AC$241 -> 0 | X10: =Gajapati!$AC$258+Gajapati!$AC$259+Gajapati!$AC$260 -> 106 | Y10: =Gajapati!$AC$286 -> 4986 | Z10: =Gajapati!$AC$215 -> 81597 | AA10: =Gajapati!$AC$209 -> 79772 | AB10: =Gajapati!$AC$522 -> 7 | AC10: =Gajapati!$AF$410 -> 5364.382052 | AD10: =Gajapati!$AF$522 -> 255.07 | AE10: 5619.452052
A11: 6 | B11: GANJAM | H11: 1 | J11: =Ganjam!$AC$353+Ganjam!$AC$354 -> 0 | K11: =Ganjam!$AC$355+Ganjam!$AC$356 -> 0 | L11: =Ganjam!$AC$357+Ganjam!$AC$358+Ganjam!$AC$359+Ganjam!$AC$360+Ganjam!$AC$361+Ganjam!$AC$382 -> 48 | N11: =Ganjam!$AC$357 -> 0 | O11: =Ganjam!$AC$362+Ganjam!$AC$363+Ganjam!$AC$364 -> 294 | P11: =Ganjam!$AC$363 -> 114 | Q11: =Ganjam!$AC$10 -> 0 | R11: =Ganjam!$AC$11 -> 0 | S11: =Ganjam!$AC$13 -> 0 | T11: =Ganjam!$AC$14 -> 0 | U11: =Ganjam!$AC$16 -> 0 | V11: =Ganjam!$AC$241 -> 0 | X11: =Ganjam!$AC$258+Ganjam!$AC$259+Ganjam!$AC$260 -> 982 | Y11: =Ganjam!$AC$286 -> 16504 | Z11: =Ganjam!$AC$215 -> 331867 | AA11: =Ganjam!$AC$209 -> 278882 | AB11: =Ganjam!$AC$522 -> 17 | AC11: =Ganjam!$AF$410 -> 16289.17033 | AD11: =Ganjam!$AF$522 -> 634.36263 | AE11: 16923.53296
A12: 7 | B12: Kalahandi | C12: 1 | G12: 1 | H12: 1 | J12: =Kalahandi!$AC$353+Kalahandi!$AC$354 -> 0 | K12: =Kalahandi!$AC$355+Kalahandi!$AC$356 -> 0 | L12: =Kalahandi!$AC$357+Kalahandi!$AC$358+Kalahandi!$AC$359+Kalahandi!$AC$360+Kalahandi!$AC$361+Kalahandi!$AC$382 -> 25 | N12: =Kalahandi!$AC$357 -> 0 | O12: =Kalahandi!$AC$362+Kalahandi!$AC$363+Kalahandi!$AC$364 -> 199 | P12: =Kalahandi!$AC$363 -> 86 | Q12: =Kalahandi!$AC$10 -> 0 | R12: =Kalahandi!$AC$11 -> 0 | S12: =Kalahandi!$AC$13 -> 0 | T12: =Kalahandi!$AC$14 -> 0 | U12: =Kalahandi!$AC$16 -> 0 | V12: =Kalahandi!$AC$241 -> 0 | X12: =Kalahandi!$AC$258+Kalahandi!$AC$259+Kalahandi!$AC$260 -> 364 | Y12: =Kalahandi!$AC$286 -> 9832 | Z12: =Kalahandi!$AC$215 -> 214335 | AA12: =Kalahandi!$AC$209 -> 188916 | AB12: =Kalahandi!$AC$522 -> 13 | AC12: =Kalahandi!$AF$410 -> 10818.33547 | AD12: =Kalahandi!$AF$522 -> 546.054 | AE12: 11364.38947
A13: 8 | B13: Kandhamal | C13: 1 | G13: 1 | H13: 1 | J13: =Kandhamal!$AC$353+Kandhamal!$AC$354 -> 0 | K13: =Kandhamal!$AC$355+Kandhamal!$AC$356 -> 0 | L13: =Kandhamal!$AC$357+Kandhamal!$AC$358+Kandhamal!$AC$359+Kandhamal!$AC$360+Kandhamal!$AC$361+Kandhamal!$AC$382 -> 14 | N13: =Kandhamal!$AC$357 -> 0 | O13: =Kandhamal!$AC$362+Kandhamal!$AC$363+Kandhamal!$AC$364 -> 47 | P13: =Kandhamal!$AC$363 -> 21 | Q13: =Kandhamal!$AC$10 -> 0 | R13: =Kandhamal!$AC$11 -> 0 | S13: =Kandhamal!$AC$13 -> 0 | T13: =Kandhamal!$AC$14 -> 0 | U13: =Kandhamal!$AC$16 -> 0 | V13: =Kandhamal!$AC$241 -> 0 | X13: =Kandhamal!$AC$258+Kandhamal!$AC$259+Kandhamal!$AC$260 -> 144 | Y13: =Kandhamal!$AC$286 -> 7363 | Z13: =Kandhamal!$AC$215 -> 126086 | AA13: =Kandhamal!$AC$209 -> 121820 | AB13: =Kandhamal!$AC$522 -> 14 | AC13: =Kandhamal!$AF$410 -> 6640.691426 | AD13: =Kandhamal!$AF$522 -> 475.78186 | AE13: 7116.473286
A14: 9 | B14: Keonjhar | C14: 1 | G14: 1 | H14: 1 | J14: =Keonjhar!$AC$353+Keonjhar!$AC$354 -> 0 | K14: =Keonjhar!$AC$355+Keonjhar!$AC$356 -> 0 | L14: =Keonjhar!$AC$357+Keonjhar!$AC$358+Keonjhar!$AC$359+Keonjhar!$AC$360+Keonjhar!$AC$361+Keonjhar!$AC$382 -> 44 | N14: =Keonjhar!$AC$357 -> 0 | O14: =Keonjhar!$AC$362+Keonjhar!$AC$363+Keonjhar!$AC$364 -> 120 | P14: =Keonjhar!$AC$363 -> 54 | Q14: =Keonjhar!$AC$10 -> 0 | R14: =Keonjhar!$AC$11 -> 0 | S14: =Keonjhar!$AC$13 -> 0 | T14: =Keonjhar!$AC$14 -> 0 | U14: =Keonjhar!$AC$16 -> 0 | V14: =Keonjhar!$AC$241 -> 0 | X14: =Keonjhar!$AC$258+Keonjhar!$AC$259+Keonjhar!$AC$260 -> 276 | Y14: =Keonjhar!$AC$286 -> 11581 | Z14: =Keonjhar!$AC$215 -> 232088 | AA14: =Keonjhar!$AC$209 -> 221171 | AB14: =Keonjhar!$AC$522 -> 12 | AC14: =Keonjhar!$AF$410 -> 12098.22285 | AD14: =Keonjhar!$AF$522 -> 397.74234 | AE14: 12495.96519
A15: 10 | B15: Koraput | C15: 1 | G15: 1 | H15: 1 | I15: 1 | J15: =Koraput!$AC$353+Koraput!$AC$354 -> 0 | K15: =Koraput!$AC$355+Koraput!$AC$356 -> 0 | L15: =Koraput!$AC$357+Koraput!$AC$358+Koraput!$AC$359+Koraput!$AC$360+Koraput!$AC$361+Koraput!$AC$382 -> 14 | N15: =Koraput!$AC$357 -> 0 | O15: =Koraput!$AC$362+Koraput!$AC$363+Koraput!$AC$364 -> 149 | P15: =Koraput!$AC$363 -> 67 | Q15: =Koraput!$AC$10 -> 0 | R15: =Koraput!$AC$11 -> 0 | S15: =Koraput!$AC$13 -> 0 | T15: =Koraput!$AC$14 -> 0 | U15: =Koraput!$AC$16 -> 0 | V15: =Koraput!$AC$241 -> 0 | X15: =Koraput!$AC$258+Koraput!$AC$259+Koraput!$AC$260 -> 168 | Y15: =Koraput!$AC$286 -> 9702 | Z15: =Koraput!$AC$215 -> 209147 | AA15: =Koraput!$AC$209 -> 193303 | AB15: =Koraput!$AC$522 -> 14 | AC15: =Koraput!$AF$410 -> 11192.96763 | AD15: =Koraput!$AF$522 -> 539.046 | AE15: 11732.01363
A16: 11 | B16: JAJPUR | H16: 1 | J16: =Jajpur!$AC$353+Jajpur!$AC$354 -> 0 | K16: =Jajpur!$AC$355+Jajpur!$AC$356 -> 0 | L16: =Jajpur!$AC$357+Jajpur!$AC$358+Jajpur!$AC$359+Jajpur!$AC$360+Jajpur!$AC$361+Jajpur!$AC$382 -> 29 | N16: =Jajpur!$AC$357 -> 0 | O16: =Jajpur!$AC$362+Jajpur!$AC$363+Jajpur!$AC$364 -> 178 | P16: =Jajpur!$AC$363 -> 67 | Q16: =Jajpur!$AC$10 -> 0 | R16: =Jajpur!$AC$11 -> 0 | S16: =Jajpur!$AC$13 -> 0 | T16: =Jajpur!$AC$14 -> 0 | U16: =Jajpur!$AC$16 -> 0 | V16: =Jajpur!$AC$241 -> 0 | X16: =Jajpur!$AC$258+Jajpur!$AC$259+Jajpur!$AC$260 -> 428 | Y16: =Jajpur!$AC$286 -> 10087 | Z16: =Jajpur!$AC$215 -> 197275 | AA16: =Jajpur!$AC$209 -> 171048 | AB16: =Jajpur!$AC$522 -> 2 | AC16: =Jajpur!$AF$410 -> 8099.034869 | AD16: =Jajpur!$AF$522 -> 70.5 | AE16: 8169.534869
A17: 12 | B17: Malkangiri | C17: 1 | G17: 1 | H17: 1 | I17: 1 | J17: =Malkangiri!$AC$353+Malkangiri!$AC$354 -> 0 | K17: =Malkangiri!$AC$355+Malkangiri!$AC$356 -> 0 | L17: =Malkangiri!$AC$357+Malkangiri!$AC$358+Malkangiri!$AC$359+Malkangiri!$AC$360+Malkangiri!$AC$361+Malkangiri!$AC$382 -> 13 | N17: =Malkangiri!$AC$357 -> 0 | O17: =Malkangiri!$AC$362+Malkangiri!$AC$363+Malkangiri!$AC$364 -> 50 | P17: =Malkangiri!$AC$363 -> 11 | Q17: =Malkangiri!$AC$10 -> 0 | R17: =Malkangiri!$AC$11 -> 0 | S17: =Malkangiri!$AC$13 -> 0 | T17: =Malkangiri!$AC$14 -> 0 | U17: =Malkangiri!$AC$16 -> 0 | V17: =Malkangiri!$AC$241 -> 0 | X17: =Malkangiri!$AC$258+Malkangiri!$AC$259+Malkangiri!$AC$260 -> 76 | Y17: =Malkangiri!$AC$286 -> 5328 | Z17: =Malkangiri!$AC$215 -> 114973 | AA17: =Malkangiri!$AC$209 -> 112388 | AB17: =Malkangiri!$AC$522 -> 13 | AC17: =Malkangiri!$AF$410 -> 6727.592404 | AD17: =Malkangiri!$AF$522 -> 304.689 | AE17: 7032.281404
A18: 13 | B18: Mayurbhanj | C18: 1 | G18: 1 | H18: 1 | J18: =Mayurbhanj!$AC$353+Mayurbhanj!$AC$354 -> 0 | K18: =Mayurbhanj!$AC$355+Mayurbhanj!$AC$356 -> 0 | L18: =Mayurbhanj!$AC$357+Mayurbhanj!$AC$358+Mayurbhanj!$AC$359+Mayurbhanj!$AC$360+Mayurbhanj!$AC$361+Mayurbhanj!$AC$382 -> 35 | N18: =Mayurbhanj!$AC$357 -> 0 | O18: =Mayurbhanj!$AC$362+Mayurbhanj!$AC$363+Mayurbhanj!$AC$364 -> 144 | P18: =Mayurbhanj!$AC$363 -> 55 | Q18: =Mayurbhanj!$AC$10 -> 0 | R18: =Mayurbhanj!$AC$11 -> 0 | S18: =Mayurbhanj!$AC$13 -> 0 | T18: =Mayurbhanj!$AC$14 -> 0 | U18: =Mayurbhanj!$AC$16 -> 0 | V18: =Mayurbhanj!$AC$241 -> 0 | X18: =Mayurbhanj!$AC$258+Mayurbhanj!$AC$259+Mayurbhanj!$AC$260 -> 456 | Y18: =Mayurbhanj!$AC$286 -> 16955 | Z18: =Mayurbhanj!$AC$215 -> 350869 | AA18: =Mayurbhanj!$AC$209 -> 344254 | AB18: =Mayurbhanj!$AC$522 -> 26 | AC18: =Mayurbhanj!$AF$410 -> 17663.7435 | AD18: =Mayurbhanj!$AF$522 -> 1017.86856 | AE18: 18681.61206
A19: 14 | B19: Nawarangpur | C19: 1 | G19: 1 | H19: 1 | J19: =Nabarangapur!$AC$353+Nabarangapur!$AC$354 -> 0 | K19: =Nabarangapur!$AC$355+Nabarangapur!$AC$356 -> 0 | L19: =Nabarangapur!$AC$357+Nabarangapur!$AC$358+Nabarangapur!$AC$359+Nabarangapur!$AC$360+Nabarangapur!$AC$361+Nabarangapur!$AC$382 -> 36 | N19: =Nabarangapur!$AC$357 -> 0 | O19: =Nabarangapur!$AC$362+Nabarangapur!$AC$363+Nabarangapur!$AC$364 -> 125 | P19: =Nabarangapur!$AC$363 -> 42 | Q19: =Nabarangapur!$AC$10 -> 0 | R19: =Nabarangapur!$AC$11 -> 0 | S19: =Nabarangapur!$AC$13 -> 0 | T19: =Nabarangapur!$AC$14 -> 0 | U19: =Nabarangapur!$AC$16 -> 0 | V19: =Nabarangapur!$AC$241 -> 0 | X19: =Nabarangapur!$AC$258+Nabarangapur!$AC$259+Nabarangapur!$AC$260 -> 206 | Y19: =Nabarangapur!$AC$286 -> 8142 | Z19: =Nabarangapur!$AC$215 -> 214839 | AA19: =Nabarangapur!$AC$209 -> 197396 | AB19: =Nabarangapur!$AC$522 -> 11 | AC19: =Nabarangapur!$AF$410 -> 11032.21275 | AD19: =Nabarangapur!$AF$522 -> 499.338 | AE19: 11531.55075
A20: 15 | B20: Nuapada | C20: 1 | G20: 1 | H20: 1 | J20: =Nuapada!$AC$353+Nuapada!$AC$354 -> 0 | K20: =Nuapada!$AC$355+Nuapada!$AC$356 -> 0 | L20: =Nuapada!$AC$357+Nuapada!$AC$358+Nuapada!$AC$359+Nuapada!$AC$360+Nuapada!$AC$361+Nuapada!$AC$382 -> 10 | N20: =Nuapada!$AC$357 -> 0 | O20: =Nuapada!$AC$362+Nuapada!$AC$363+Nuapada!$AC$364 -> 59 | P20: =Nuapada!$AC$363 -> 21 | Q20: =Nuapada!$AC$10 -> 0 | R20: =Nuapada!$AC$11 -> 0 | S20: =Nuapada!$AC$13 -> 0 | T20: =Nuapada!$AC$14 -> 0 | U20: =Nuapada!$AC$16 -> 0 | V20: =Nuapada!$AC$241 -> 0 | X20: =Nuapada!$AC$258+Nuapada!$AC$259+Nuapada!$AC$260 -> 126 | Y20: =Nuapada!$AC$286 -> 4562 | Z20: =Nuapada!$AC$215 -> 90894 | AA20: =Nuapada!$AC$209 -> 80987 | AB20: =Nuapada!$AC$522 -> 5 | AC20: =Nuapada!$AF$410 -> 5047.675656 | AD20: =Nuapada!$AF$522 -> 193.18687 | AE20: 5240.862526
A21: 16 | B21: NAYAGARH | H21: 1 | J21: =Nayagarh!$AC$353+Nayagarh!$AC$354 -> 0 | K21: =Nayagarh!$AC$355+Nayagarh!$AC$356 -> 0 | L21: =Nayagarh!$AC$357+Nayagarh!$AC$358+Nayagarh!$AC$359+Nayagarh!$AC$360+Nayagarh!$AC$361+Nayagarh!$AC$382 -> 8 | N21: =Nayagarh!$AC$357 -> 0 | O21: =Nayagarh!$AC$362+Nayagarh!$AC$363+Nayagarh!$AC$364 -> 57 | P21: =Nayagarh!$AC$363 -> 17 | Q21: =Nayagarh!$AC$10 -> 0 | R21: =Nayagarh!$AC$11 -> 0 | S21: =Nayagarh!$AC$13 -> 0 | T21: =Nayagarh!$AC$14 -> 0 | U21: =Nayagarh!$AC$16 -> 0 | V21: =Nayagarh!$AC$241 -> 0 | X21: =Nayagarh!$AC$258+Nayagarh!$AC$259+Nayagarh!$AC$260 -> 246 | Y21: =Nayagarh!$AC$286 -> 5351 | Z21: =Nayagarh!$AC$215 -> 89037 | AA21: =Nayagarh!$AC$209 -> 68712 | AB21: =Nayagarh!$AC$522 -> 0 | AC21: =Nayagarh!$AF$410 -> 4532.429241 | AD21: =Nayagarh!$AF$522 -> 0 | AE21: 4532.429241
A22: 17 | B22: Rayagada | C22: 1 | G22: 1 | H22: 1 | J22: =Rayagada!$AC$353+Rayagada!$AC$354 -> 0 | K22: =Rayagada!$AC$355+Rayagada!$AC$356 -> 0 | L22: =Rayagada!$AC$357+Rayagada!$AC$358+Rayagada!$AC$359+Rayagada!$AC$360+Rayagada!$AC$361+Rayagada!$AC$382 -> 7 | N22: =Rayagada!$AC$357 -> 0 | O22: =Rayagada!$AC$362+Rayagada!$AC$363+Rayagada!$AC$364 -> 74 | P22: =Rayagada!$AC$363 -> 26 | Q22: =Rayagada!$AC$10 -> 0 | R22: =Rayagada!$AC$11 -> 0 | S22: =Rayagada!$AC$13 -> 0 | T22: =Rayagada!$AC$14 -> 0 | U22: =Rayagada!$AC$16 -> 0 | V22: =Rayagada!$AC$241 -> 0 | X22: =Rayagada!$AC$258+Rayagada!$AC$259+Rayagada!$AC$260 -> 130 | Y22: =Rayagada!$AC$286 -> 7254 | Z22: =Rayagada!$AC$215 -> 147902 | AA22: =Rayagada!$AC$209 -> 141687 | AB22: =Rayagada!$AC$522 -> 11 | AC22: =Rayagada!$AF$410 -> 8733.914199 | AD22: =Rayagada!$AF$522 -> 432.72 | AE22: 9166.634199
A23: 18 | B23: Sambalpur | G23: 1 | H23: 1 | J23: =Sambalpur!$AC$353+Sambalpur!$AC$354 -> 0 | K23: =Sambalpur!$AC$355+Sambalpur!$AC$356 -> 0 | L23: =Sambalpur!$AC$357+Sambalpur!$AC$358+Sambalpur!$AC$359+Sambalpur!$AC$360+Sambalpur!$AC$361+Sambalpur!$AC$382 -> 4 | N23: =Sambalpur!$AC$357 -> 0 | O23: =Sambalpur!$AC$362+Sambalpur!$AC$363+Sambalpur!$AC$364 -> 47 | P23: =Sambalpur!$AC$363 -> 15 | Q23: =Sambalpur!$AC$10 -> 0 | R23: =Sambalpur!$AC$11 -> 0 | S23: =Sambalpur!$AC$13 -> 0 | T23: =Sambalpur!$AC$14 -> 0 | U23: =Sambalpur!$AC$16 -> 0 | V23: =Sambalpur!$AC$241 -> 0 | X23: =Sambalpur!$AC$258+Sambalpur!$AC$259+Sambalpur!$AC$260 -> 214 | Y23: =Sambalpur!$AC$286 -> 5425 | Z23: =Sambalpur!$AC$215 -> 97275 | AA23: =Sambalpur!$AC$209 -> 92729 | AB23: =Sambalpur!$AC$522 -> 3 | AC23: =Sambalpur!$AF$410 -> 4796.852993 | AD23: =Sambalpur!$AF$522 -> 105.7504 | AE23: 4902.603393
A24: 19 | B24: Sonapur | G24: 1 | J24: =Sonepur!$AC$353+Sonepur!$AC$354 -> 0 | K24: =Sonepur!$AC$355+Sonepur!$AC$356 -> 0 | L24: =Sonepur!$AC$357+Sonepur!$AC$358+Sonepur!$AC$359+Sonepur!$AC$360+Sonepur!$AC$361+Sonepur!$AC$382 -> 1 | N24: =Sonepur!$AC$357 -> 0 | O24: =Sonepur!$AC$362+Sonepur!$AC$363+Sonepur!$AC$364 -> 37 | P24: =Sonepur!$AC$363 -> 19 | Q24: =Sonepur!$AC$10 -> 0 | R24: =Sonepur!$AC$11 -> 0 | S24: =Sonepur!$AC$13 -> 0 | T24: =Sonepur!$AC$14 -> 0 | U24: =Sonepur!$AC$16 -> 0 | V24: =Sonepur!$AC$241 -> 0 | X24: =Sonepur!$AC$258+Sonepur!$AC$259+Sonepur!$AC$260 -> 176 | Y24: =Sonepur!$AC$286 -> 3744 | Z24: =Sonepur!$AC$215 -> 65322 | AA24: =Sonepur!$AC$209 -> 53848 | AB24: =Sonepur!$AC$522 -> 6 | AC24: =Sonepur!$AF$410 -> 3410.090875 | AD24: =Sonepur!$AF$522 -> 221.815 | AE24: 3631.905875
A25: 20 | B25: Sundergarh | C25: 1 | G25: 1 | H25: 1 | J25: =Sundargarh!$AC$353+Sundargarh!$AC$354 -> 0 | K25: =Sundargarh!$AC$355+Sundargarh!$AC$356 -> 0 | L25: =Sundargarh!$AC$357+Sundargarh!$AC$358+Sundargarh!$AC$359+Sundargarh!$AC$360+Sundargarh!$AC$361+Sundargarh!$AC$382 -> 48 | N25: =Sundargarh!$AC$357 -> 0 | O25: =Sundargarh!$AC$362+Sundargarh!$AC$363+Sundargarh!$AC$364 -> 147 | P25: =Sundargarh!$AC$363 -> 57 | Q25: =Sundargarh!$AC$10 -> 0 | R25: =Sundargarh!$AC$11 -> 0 | S25: =Sundargarh!$AC$13 -> 0 | T25: =Sundargarh!$AC$14 -> 0 | U25: =Sundargarh!$AC$16 -> 0 | V25: =Sundargarh!$AC$241 -> 0 | X25: =Sundargarh!$AC$258+Sundargarh!$AC$259+Sundargarh!$AC$260 -> 412 | Y25: =Sundargarh!$AC$286 -> 10470 | Z25: =Sundargarh!$AC$215 -> 204396 | AA25: =Sundargarh!$AC$209 -> 210181 | AB25: =Sundargarh!$AC$522 -> 10 | AC25: =Sundargarh!$AF$410 -> 9879.18316 | AD25: =Sundargarh!$AF$522 -> 420.82343 | AE25: 10300.00659
B26: Total No.of Categorywise SFDs | C26: =SUM(C6:C25) -> 13 | D26: =SUM(D6:D25) -> 0 | E26: 1 | F26: 0 | G26: 15 | H26: 19 | I26: 2 | J26: =SUM(J6:J25) -> 0 | K26: =SUM(K6:K25) -> 0 | L26: =SUM(L6:L25) -> 427 | M26: 0 | N26: 0 | O26: 2172 | P26: 853 | Q26: 0 | R26: 0 | S26: 0 | T26: 0 | U26: 0 | V26: 0 | W26: 0 | X26: 5598 | Y26: 163676 | Z26: 3280511 | AA26: 2989542 | AB26: 184 | AC26: 168683.443 | AD26: =SUM(AD6:AD25) -> 6932.25309 | AE26: 175615.6961
A27: State total | J27: =Odisha!$AC$353+Odisha!$AC$354 -> 0 | K27: =Odisha!$AC$355+Odisha!$AC$356 -> 0 | L27: =Odisha!$AC$357+Odisha!$AC$358+Odisha!$AC$359+Odisha!$AC$360+Odisha!$AC$361+Odisha!$AC$382 -> 719 | N27: =Odisha!$AC$357 -> 6 | O27: =Odisha!$AC$362+Odisha!$AC$363+Odisha!$AC$364 -> 2971 | P27: =Odisha!$AC$363 -> 1194 | Q27: =Odisha!$AC$10 -> 0 | R27: =Odisha!$AC$11 -> 0 | S27: =Odisha!$AC$13 -> 0 | T27: =Odisha!$AC$14 -> 0 | U27: =Odisha!$AC$16 -> 0 | V27: =Odisha!$AC$241 -> 0 | X27: =Odisha!$AC$258+Odisha!$AC$259+Odisha!$AC$260 -> 8866 | Y27: =Odisha!$AC$286 -> 238132 | Z27: =Odisha!$AC$215 -> 4648333 | AA27: =Odisha!$AC$209 -> 4131487 | AB27: =Odisha!$AC$522 -> 195 | AC27: =Odisha!$AF$410 -> 235249.5757 | AD27: =Odisha!$AF$522 -> 7286.26043 | AE27: =AC27+AD27 -> 242535.8361 | AF27: =Odisha!AF523 -> 242535.8361
A28: % w.r.t Approvals for the whole state | J28: =Odisha!$AC$353+Odisha!$AC$354 -> 0 | K28: =Odisha!$AC$355+Odisha!$AC$356 -> 0 | L28: =Odisha!$AC$357+Odisha!$AC$358+Odisha!$AC$359+Odisha!$AC$360+Odisha!$AC$361+Odisha!$AC$382 -> 719 | N28: =Odisha!$AC$357 -> 6 | O28: =Odisha!$AC$362+Odisha!$AC$363+Odisha!$AC$364 -> 2971 | P28: =Odisha!$AC$363 -> 1194 | Q28: =Odisha!$AC$10 -> 0 | R28: =Odisha!$AC$11 -> 0 | S28: =Odisha!$AC$13 -> 0 | T28: =Odisha!$AC$14 -> 0 | U28: =Odisha!$AC$16 -> 0 | V28: =Odisha!$AC$241 -> 0 | W28: =IF(W27>0, W26/W$27," ") ->  | X28: 0.6314008572 | Y28: 0.6873330758 | Z28: 0.7057392403 | AA28: 0.7235995176 | AB28: 0.9435897436 | AC28: 0.717040371 | AD28: 0.9514143993 | AE28: 0.7240814344
F29: Categorywise Total and % against State Allocation | H29: ST (25% and above) | J29: =SUMIF($D$6:$D$25, "1", J6:J25) -> 0 | K29: =SUMIF($D$6:$D$25, "1", K6:K25) -> 0 | L29: 0 | M29: 0 | N29: 0 | O29: 0 | P29: 0 | Q29: 0 | R29: 0 | S29: 0 | T29: 0 | U29: 0 | V29: 0 | W29: 0 | X29: 0 | Y29: 0 | Z29: 0 | AA29: 0 | AB29: 0 | AC29: 0 | AD29: 0 | AE29: 0
H30: % ST Allocation | J30: =IF(J29>0, J29/J$26," ") -> 
H31: SC (25% and above) | J31: =SUMIF($D$6:$D$25, "1", J6:J25) -> 0 | K31: 0 | L31: 0 | M31: 0 | N31: 0 | O31: 0 | P31: 0 | Q31: 0 | R31: 0 | S31: 0 | T31: 0 | U31: 0 | V31: 0 | W31: 0 | X31: 0 | Y31: 0 | Z31: 0 | AA31: 0 | AB31: 0 | AC31: 0 | AD31: 0 | AE31: 0
H32: % SC Allocation | J32: =IF(J31>0, J31/J$26," ") -> 
H33: PMO's 121 Minority Districts | J33: =SUMIF($E$6:$E$25, "1", J$6:J$25) -> 0 | K33: 0 | L33: 7 | M33: 0 | N33: 0 | O33: 77 | P33: 29 | Q33: 0 | R33: 0 | S33: 0 | T33: 0 | U33: 0 | V33: 0 | W33: 0 | X33: 106 | Y33: 4986 | Z33: 81597 | AA33: 79772 | AB33: 7 | AC33: 5364.382052 | AD33: 255.07 | AE33: 5619.452052
H34: % PMO's 121 Minority Allocation | J34: =IF(J33>0, J33/J$26," ") ->  | K34: =IF(K33>0, K33/K$26," ") ->  | L34: 0.01639344262 | O34: 0.03545119705 | P34: 0.03399765533 | X34: 0.01893533405 | Y34: 0.03046262128 | Z34: 0.02487325907 | AA34: 0.026683686 | AB34: 0.03804347826 | AC34: 0.03180147355 | AD34: 0.03679467508 | AE34: 0.03199857516
H35: Muslim Concentration (20% and above) | J35: =SUMIF($C$6:$C$25, "1", J6:J25) -> 0 | K35: 0 | L35: 310 | M35: 0 | N35: 0 | O35: 1409 | P35: 560 | Q35: 0 | R35: 0 | S35: 0 | T35: 0 | U35: 0 | V35: 0 | W35: 0 | X35: 2896 | Y35: 108519 | Z35: 2232782 | AA35: 2100595 | AB35: 151 | AC35: 119863.7032 | AD35: 5721.38006 | AE35: 125585.0833
H36: % Muslim Allocation | J36: =IF(J35>0, J35/J$26," ") ->  | K36: =IF(K35>0, K35/K$26," ") ->  | L36: 0.7259953162 | O36: 0.6487108656 | P36: 0.6565064478 | X36: 0.517327617 | Y36: 0.6630110707 | Z36: 0.6806201839 | AA36: 0.7026477634 | AB36: 0.8206521739 | AC36: 0.7105836889 | AD36: 0.8253276367 | AE36: 0.715113091
H37: Naxalite Affected Districts | J37: =SUMIF($G$6:$G$25, "1", J6:J25) -> 0 | K37: 0 | L37: 315 | M37: 0 | N37: 0 | O37: 1493 | P37: 594 | Q37: 0 | R37: 0 | S37: 0 | T37: 0 | U37: 0 | V37: 0 | W37: 0 | X37: 3286 | Y37: 117688 | Z37: 2395379 | AA37: 2247172 | AB37: 160 | AC37: 128070.6471 | AD37: 6048.94546 | AE37: 134119.5925
H38: % Naxalite Affected Districts | J38: =IF(J37>0, J37/J$26," ") ->  | K38: =IF(K37>0, K37/K$26," ") ->  | L38: 0.737704918 | O38: 0.6873848987 | P38: 0.6963657679 | X38: 0.5869953555 | Y38: 0.7190302793 | Z38: 0.7301847182 | AA38: 0.7516776817 | AB38: 0.8695652174 | AC38: 0.7592366197 | AD38: 0.8725800085 | AE38: 0.763710736
H39: LWE Affected Districts (20% and above) | J39: =SUMIF($H$6:$H$25, "1", J6:J25) -> 0 | K39: =SUMIF($H$15:$H$25, "1", K15:K25) -> 0 | L39: 204 | M39: 0 | N39: 0 | O39: 1030 | P39: 378 | Q39: 0 | R39: 0 | S39: 0 | T39: 0 | U39: 0 | V39: 0 | W39: 0 | X39: 2462 | Y39: 83276 | Z39: 1716607 | AA39: 1612685 | AB39: 95 | AC39: 87705.60639 | AD39: 3583.92226 | AE39: 91289.52865
H40: % LWE Affected Districts Allocation | J40: =IF(J39>0, J39/J$26," ") ->  | K40: =IF(K39>0, K39/K$26," ") ->  | L40: 0.4777517564 | O40: 0.4742173112 | P40: 0.4431418523 | X40: 0.4397999285 | Y40: 0.5087856497 | Z40: 0.5232742704 | AA40: 0.539442162 | AB40: 0.5163043478 | AC40: 0.519941998 | AD40: 0.5169924141 | AE40: 0.5198255661
D303: Academic Support through Block Resource Centre/ BRC
W415: =SUM(W410:W414) -> 0
W416: =SUM(W409,W415) -> 0
W417: =SUM(W208,W232,W335,W354,W369,W402,W416) -> 0

Sheet Tentative
A1: AWP&B 2017-18 Intervention wise Tentetive Recommendation
A2: (Rs. in lakhs)
A3: State : Orissa | C3: Proposed by State for FY 2017-18 | H3: Recommendation for FY 2017-18
A4: S.No. | B4: Intervention | C4: Spill over | D4: Fresh Proposal | F4: Total | H4: Spill over | I4: Fresh Proposal | K4: Total | M4: %
C5: Fin. | D5: Phy. | E5: Fin | F5: Phy. | G5: Fin | H5: Fin. | I5: PhAC. | J5: Fin | K5: Phy. | L5: Fin
A6: Category-1
A7: 1 | B7: Reimbursement under Section 12(1)(c) | D7: =Odisha!T152 -> 560 | E7: =Odisha!U152 -> 35.1166 | F7: =D7 -> 560 | G7: =C7+E7 -> 35.1166 | I7: =Odisha!AC152 -> 560 | J7: =Odisha!AD152 -> 35.1166 | K7: =I7 -> 560 | L7: =H7+J7 -> 35.1166 | M7: =L7/$L$90*100 -> 0.0144789325 | N7: =L7-G7 -> 0
A8: 2 | B8: Free Text Books | F8: =D8 -> 0 | G8: =C8+E8 -> 0 | K8: =I8 -> 0 | L8: =H8+J8 -> 0 | M8: =L8/$L$90*100 -> 0 | N8: =L8-G8 -> 0
B9: a | D9: =Odisha!T200+Odisha!T203 -> 2515736 | E9: =Odisha!U200+Odisha!U203 -> 3773.604 | F9: 2515736 | G9: 3773.604 | I9: =Odisha!AC200+Odisha!AC203 -> 2515736 | J9: =Odisha!AD200+Odisha!AD203 -> 3773.604 | K9: 2515736 | L9: 3773.604 | M9: 1.555895434 | N9: 0
B10: b. Upper PrimarAy | D10: =Odisha!T206 -> 1606034 | E10: =Odisha!U206 -> 4015.085 | F10: 1606034 | G10: 4015.085 | I10: =Odisha!AC206 -> 1606034 | J10: =Odisha!AD206 -> 4015.085 | K10: 1606034 | L10: 4015.085 | M10: 1.655460514 | N10: 0
B11: c. Large Print Book | D11: =Odisha!T202+Odisha!T205+Odisha!T208 -> 7427 | E11: =Odisha!U202+Odisha!U205+Odisha!U208 -> 14.6985 | F11: 7427 | G11: 14.6985 | I11: =Odisha!AC202+Odisha!AC205+Odisha!AC208 -> 7427 | J11: =Odisha!AD202+Odisha!AD205+Odisha!AD208 -> 14.6985 | K11: 7427 | L11: 14.6985 | M11: 0.006060341529 | N11: 0
B12: d. Braille Book | D12: =Odisha!T201+Odisha!T204+Odisha!T207 -> 2290 | E12: =Odisha!U201+Odisha!U204+Odisha!U207 -> 4.446 | F12: 2290 | G12: 4.446 | I12: =Odisha!AC201+Odisha!AC204+Odisha!AC207 -> 2290 | J12: =Odisha!AD201+Odisha!AD204+Odisha!AD207 -> 4.446 | K12: 2290 | L12: 4.446 | M12: 0.001833131166 | N12: 0
A13: 3 | B13: Free Uniform | D13: =Odisha!T215 -> 4648333 | E13: =Odisha!U215 -> 18593.332 | F13: 4648333 | G13: 18593.332 | I13: =Odisha!AC215 -> 4648333 | J13: =Odisha!AD215 -> 18593.332 | K13: 4648333 | L13: 18593.332 | M13: 7.666220504 | N13: 0
A14: 4 | B14: Residential School/ Hostel | C14: =Odisha!P146 -> 25.26 | D14: =Odisha!T146 -> 288 | E14: =Odisha!U146 -> 441.7 | F14: 288 | G14: =C14+E14 -> 466.96 | I14: =Odisha!AC146 -> 272 | J14: =Odisha!AD146 -> 401.7 | K14: 272 | L14: 401.7 | M14: 0.1656250088 | N14: -65.26
A15: 5 | B15: KGBV | C15: =Odisha!P522 -> 804.43043 | D15: =Odisha!T522 -> 19101 | E15: =Odisha!U522 -> 7106.446 | F15: 19101 | G15: =C15+E15 -> 7910.87643 | H15: =Odisha!Y522 -> 804.43043 | I15: =Odisha!AC522 -> 195 | J15: =Odisha!AD522 -> 6481.83 | K15: 195 | L15: 7286.26043 | M15: 3.004199522 | N15: -624.616
A16: 6 | B16: IE | D16: =Odisha!T340 -> 93620 | E16: =Odisha!U340 -> 2808.6 | F16: 93620 | G16: 2808.6 | I16: =Odisha!AC340 -> 91416 | J16: =Odisha!AD340 -> 2742.48 | K16: 91416 | L16: 2742.48 | M16: 1.130752487 | N16: -66.12
A17: 7 | B17: School Grant | D17: =Odisha!T329 -> 74589 | E17: =Odisha!U329 -> 4183.03 | F17: 74589 | G17: 4183.03 | I17: =Odisha!AC329 -> 74589 | J17: =Odisha!AD329 -> 4183.03 | K17: 74589 | L17: 4183.03 | M17: 1.724705951 | N17: 0
A18: 8 | B18: Maintenance Grant | D18: =Odisha!T336 -> 72485 | E18: =Odisha!U336 -> 5291.225 | F18: 72485 | G18: 5291.225 | I18: =Odisha!AC336 -> 72485 | J18: =Odisha!AD336 -> 5291.225 | K18: 72485 | L18: 5291.225 | M18: 2.181626058 | N18: 0
A19: 9 | B19: Major repair (P+UP) | D19: =Odisha!T374+Odisha!T375 -> 1126 | E19: =Odisha!U374+Odisha!U375 -> 1645.97 | F19: 1126 | G19: 1645.97 | I19: =Odisha!AC374+Odisha!AC375 -> 557 | J19: =Odisha!AD374+Odisha!AD375 -> 809.58263 | K19: 557 | L19: 809.58263 | M19: 0.3337991791 | N19: -836.38737
A20: 10 | B20: a. Project Management | E20: =Odisha!U398+Odisha!U407 -> 11304.08088 | F20: 0 | G20: 11304.08088 | J20: =Odisha!AD398+Odisha!AD407 -> 8714.329359 | K20: 0 | L20: 8714.329359 | M20: 3.593006913 | N20: -2589.75152
B21: b. Finance | C21: Covered Under Project Management and Overall allocation | M21: 0 | N21: 0
A22: Sub Total | C22: =SUM(C7:C20) -> 829.69043 | D22: =SUM(D7:D20) -> 9041589 | E22: =SUM(E7:E20) -> 59217.33398 | F22: 9041589 | G22: =SUM(G7:G20) -> 60047.02441 | H22: 804.43043 | I22: 9019894 | J22: =SUM(J7:J20) -> 55060.45909 | K22: 9019894 | L22: =SUM(L7:L20) -> 55864.88952 | M22: 23.03366398 | N22: -4182.13489
A23: Category-2 | N23: 0
A24: 11 | B24: Transport / Escort facility | D24: =Odisha!T150 -> 4804 | E24: =Odisha!U150 -> 144.12 | F24: =D24 -> 4804 | G24: =C24+E24 -> 144.12 | I24: =Odisha!AC148 -> 4804 | J24: =Odisha!AD148 -> 144.12 | K24: =I24 -> 4804 | L24: =H24+J24 -> 144.12 | M24: 0.05942214656 | N24: 0
A25: 12 | B25: Special Training for Age appropriate addmission of OoSC | F25: =D25 -> 0 | G25: =C25+E25 -> 0 | K25: 0 | L25: 0 | M25: 0 | N25: 0
B26: Residential (Fresh) | F26: =D26 -> 0 | G26: =C26+E26 -> 0 | K26: 0 | L26: 0 | M26: 0 | N26: 0
B27: (a) 12 months | F27: 0 | G27: 0 | K27: 0 | L27: 0 | M27: 0 | N27: 0
B28: (b) 9 months | D28: =Odisha!T156 -> 504 | E28: =Odisha!U156 -> 75.6 | F28: 504 | G28: 75.6 | I28: =Odisha!AC156 -> 504 | J28: =Odisha!AD156 -> 75.6 | K28: 504 | L28: 75.6 | M28: 0.0311706514 | N28: 0
B29: (c) 6 months | D29: =Odisha!T157 -> 3477 | E29: =Odisha!U157 -> 347.7 | F29: 3477 | G29: 347.7 | I29: =Odisha!AC157 -> 3477 | J29: =Odisha!AD157 -> 347.7 | K29: 3477 | L29: 347.7 | M29: 0.1433602578 | N29: 0
B30: (d) 3 months | F30: 0 | G30: 0 | K30: 0 | L30: 0 | M30: 0 | N30: 0
B31: Residential continuing from previous year | F31: 0 | G31: 0 | K31: 0 | L31: 0 | M31: 0 | N31: 0
B32: (a) 9 months | D32: =Odisha!T162 -> 648 | E32: =Odisha!U162 -> 97.2 | F32: 648 | G32: 97.2 | I32: =Odisha!AC162 -> 648 | J32: =Odisha!AD162 -> 97.2 | K32: 648 | L32: 97.2 | M32: 0.0400765518 | N32: 0
B33: (b) 6 months | D33: =Odisha!T163 -> 76 | E33: =Odisha!U163 -> 7.6 | F33: 76 | G33: 7.6 | I33: =Odisha!AC163 -> 76 | J33: =Odisha!AD163 -> 7.6 | K33: 76 | L33: 7.6 | M33: 0.003133557548 | N33: 0
B34: Non Residential (Fresh) | F34: 0 | G34: 0 | K34: 0 | L34: 0 | M34: 0 | N34: 0
B35: (a) 12 months | F35: 0 | G35: 0 | K35: 0 | L35: 0 | M35: 0 | N35: 0
B36: (b) 9 months | F36: 0 | G36: 0 | K36: 0 | L36: 0 | M36: 0 | N36: 0
B37: (c) 6 months | D37: =Odisha!T169 -> 9003 | E37: =Odisha!U169 -> 270.09 | F37: 9003 | G37: 270.09 | I37: =Odisha!AC169 -> 9003 | J37: =Odisha!AD169 -> 270.09 | K37: 9003 | L37: 270.09 | M37: =L37/$L$90*100 -> 0.1113608629 | N37: 0
B38: (d) 3 months | D38: =Odisha!T170 -> 6315 | E38: =Odisha!U170 -> 94.725 | F38: 6315 | G38: 94.725 | I38: =Odisha!AC170 -> 6315 | J38: =Odisha!AD170 -> 94.725 | K38: 6315 | L38: 94.725 | M38: =L38/$L$90*100 -> 0.03905608405 | N38: 0
B39: NonResidential continuing from previous year | F39: 0 | G39: 0 | K39: 0 | L39: 0 | M39: 0 | N39: 0
B40: (a) 12 months | F40: 0 | G40: 0 | K40: 0 | L40: 0 | M40: 0 | N40: 0
B41: (b) 9 months | F41: 0 | G41: 0 | K41: 0 | L41: 0 | M41: 0 | N41: 0
B42: (c) 6 months | F42: 0 | G42: 0 | K42: 0 | L42: 0 | M42: 0 | N42: 0
B43: (d) 3 months | F43: 0 | G43: 0 | K43: 0 | L43: 0 | M43: 0 | N43: 0
B44: Madarasa/Maktab | F44: 0 | G44: 0 | K44: 0 | L44: 0 | M44: 0 | N44: 0
B45: 12 months | F45: 0 | G45: 0 | K45: 0 | L45: 0 | M45: 0 | N45: 0
B46: 12 months (veda path sala) | F46: 0 | G46: 0 | K46: 0 | L46: 0 | M46: 0 | N46: 0
B47: Seasonal Hostel (Residential) | F47: 0 | G47: 0 | K47: 0 | L47: 0 | M47: 0 | N47: 0
B48: (c) 6 month | D48: =Odisha!T187 -> 8737 | E48: =Odisha!U187 -> 873.7 | F48: 8737 | G48: 873.7 | I48: =Odisha!AC187 -> 8737 | J48: =Odisha!AD187 -> 873.7 | K48: 8737 | L48: 873.7 | M48: 0.360235425 | N48: 0
B49: (d) 3 months | D49: =Odisha!T188 -> 3254 | E49: =Odisha!U188 -> 162.7 | F49: 3254 | G49: 162.7 | I49: =Odisha!AC188 -> 3254 | J49: =Odisha!AD188 -> 162.7 | K49: 3254 | L49: 162.7 | M49: 0.06708287014 | N49: 0
B50: Migration (Non Residential) | F50: 0 | G50: 0 | K50: 0 | L50: 0 | M50: 0 | N50: 0
B51: (a) 6 months | D51: =Odisha!T193 -> 425 | E51: =Odisha!U193 -> 12.75 | F51: 425 | G51: 12.75 | I51: =Odisha!AC193 -> 425 | J51: =Odisha!AD193 -> 12.75 | K51: 425 | L51: 12.75 | M51: 0.005256955097 | N51: 0
A52: 13 | B52: Teacher Training | D52: =Odisha!T286 -> 238282 | E52: =Odisha!U286 -> 7021.76 | F52: 238282 | G52: 7021.76 | I52: =Odisha!AC286 -> 238132 | J52: =Odisha!AD286 -> 4744.64 | K52: 238132 | L52: 4744.64 | M52: 1.956263485 | N52: -2277.12
A53: 14 | B53: Academic Support through BRC/CRC | F53: 0 | G53: 0 | K53: 0 | L53: 0 | M53: 0 | N53: 0
B54: a) BRC | D54: =Odisha!T300 -> 316 | E54: =Odisha!U300 -> 6900.2392 | F54: 316 | G54: 6900.2392 | I54: =Odisha!AC300 -> 316 | J54: =Odisha!AD300 -> 6837.0392 | K54: 316 | L54: 6837.0392 | M54: 2.818981025 | N54: -63.2
B55: b) CRC | D55: =Odisha!T309 -> 4806 | E55: =Odisha!U309 -> 7141.92 | F55: 4806 | G55: 7141.92 | I55: =Odisha!AC309 -> 4806 | J55: =Odisha!AD309 -> 6901.62 | K55: 4806 | L55: 6901.62 | M55: 2.845608348 | N55: -240.3
A56: 15 | B56: Learning Enhancement Programme (LEP) | E56: =Odisha!U400+Odisha!U401+Odisha!U402 -> 8225.17784 | F56: 0 | G56: 8225.17784 | J56: =Odisha!AD400+Odisha!AD401+Odisha!AD402 -> 4567.59816 | L56: 4567.59816 | M56: 1.883267328 | N56: -3657.57968
A57: 16 | B57: a. Innovation fund for CAL | D57: =Odisha!T314 -> 30 | E57: =Odisha!U314 -> 1500 | F57: =D57 -> 30 | G57: =C57+E57 -> 1500 | I57: =Odisha!AC314 -> 30 | J57: =Odisha!AD314 -> 1500 | K57: 30 | L57: 1500 | M57: 0.6184653055 | N57: 0
B58: b. Rashtriya Avishkar Abhiyan (RAA) | C58: This acitvity is support under CAL | M58: 0 | N58: 0
A59: 17 | B59: Library | F59: =D59 -> 0 | G59: =C59+E59 -> 0 | I59: =[22]State!AC315 -> 0 | J59: =[22]State!AD315 -> 0 | K59: =I59 -> 0 | L59: =H59+J59 -> 0 | M59: 0 | N59: 0
A60: 18 | B60: Teacher Grant | D60: =Odisha!T325 -> 231912 | E60: =Odisha!U325 -> 1159.56 | F60: 231912 | G60: 1159.56 | I60: =Odisha!AC325 -> 231912 | J60: =Odisha!AD325 -> 1159.56 | K60: 231912 | L60: 1159.56 | M60: 0.4780984198 | N60: 0
A61: =A60+1 -> 19 | B61: TLE for New Schools | F61: 0 | G61: 0 | K61: 0 | L61: 0 | M61: 0 | N61: 0
A62: 20 | B62: REMS | D62: =Odisha!T336 -> 72485 | E62: =Odisha!U333+Odisha!U408 -> 2093.185 | F62: 72485 | G62: 2093.185 | I62: =Odisha!AC408 -> 0 | J62: =Odisha!AD408 -> 1118.83 | K62: 0 | L62: 1118.83 | M62: 0.4613050252 | N62: -974.355
A63: =A62+1 -> 21 | B63: a. Innovation | D63: =Odisha!T346 -> 30 | E63: =Odisha!U346 -> 1500 | F63: 30 | G63: 1500 | I63: =Odisha!AC346 -> 30 | J63: =Odisha!AD346 -> 1500 | K63: 30 | L63: 1500 | M63: 0.6184653055 | N63: 0
B64: b. Pade Bharat Bade Bharat (PBBB) | F64: 0 | G64: 0 | K64: 0 | L64: 0 | M64: 0 | N64: 0 | O64: =M22+M67 -> 36.45430683
A65: =A63+1 -> 22 | B65: Community Mobilization (0.5%) | E65: =Odisha!U403 -> 1659.085372 | F65: 0 | G65: 1659.085372 | J65: =Odisha!AD403 -> 1148.5 | K65: 0 | L65: 1148.5 | M65: 0.4735382689 | N65: -510.585372 | P65: =N64*60% -> 0
A66: 23 | B66: SMC Training | D66: =Odisha!T350 -> 328632 | E66: =Odisha!U350 -> 985.896 | F66: 328632 | G66: 985.896 | I66: =Odisha!AC350 -> 328632 | J66: =Odisha!AD350 -> 985.896 | K66: 328632 | L66: 985.896 | M66: 0.4064949806 | N66: 0
A67: Total | C67: =SUM(C24:C66) -> 0 | D67: 913736 | E67: 40273.00841 | F67: 913736 | G67: =SUM(G24:G66) -> 40273.00841 | H67: 0 | I67: 841101 | J67: =SUM(J24:J66) -> 32549.86836 | K67: 841101 | L67: 32549.86836 | M67: 13.42064285 | N67: -7723.140052
A68: Category-3 | N68: 0
A69: 24 | B69: Teacher Salary | D69: =Odisha!T263 -> 101203 | E69: =Odisha!U263 -> 126822.59 | F69: =D69 -> 101203 | G69: =C69+E69 -> 126822.59 | I69: =Odisha!AC263 -> 101203 | J69: =Odisha!AD263 -> 126822.59 | K69: =I69 -> 101203 | L69: =H69+J69 -> 126822.59 | M69: 52.29024792 | N69: 0
A70: 25 | B70: New Schools (Building) | C70: =Odisha!P353+Odisha!P355 -> 3444.58515 | F70: =D70 -> 0 | G70: 3444.58515 | H70: =Odisha!Y353+Odisha!Y355 -> 3444.58515 | K70: 0 | L70: 3444.58515 | M70: 1.420237605 | N70: 0
A71: =A70+1 -> 26 | B71: Additional Classrooms (ACR) | C71: =Odisha!P357+Odisha!P358+Odisha!P382 -> 7110.92422 | D71: =Odisha!T357+Odisha!T358 -> 8558 | E71: =Odisha!U357+Odisha!U358 -> 52631.7 | F71: =D71 -> 8558 | G71: 59742.62422 | H71: =Odisha!Y357+Odisha!Y358+Odisha!Y382 -> 7110.92422 | I71: =Odisha!AC357+Odisha!AC358 -> 719 | J71: =Odisha!AD357+Odisha!AD358 -> 4421.85 | K71: 719 | L71: 11532.77422 | M71: 4.755080488 | N71: -48209.85
A72: 27 | B72: Block Resource Centers | F72: =D72 -> 0 | G72: 0 | K72: 0 | L72: 0 | M72: =L72/$L$90*100 -> 0 | N72: =L72-G72 -> 0
A73: 28 | B73: Cluster Resource Centers | F73: 0 | G73: 0 | K73: 0 | L73: 0 | M73: 0 | N73: 0
A74: 29 | B74: Residential Schools (Building) | F74: 0 | G74: 0 | K74: 0 | L74: 0 | M74: 0 | N74: 0
A75: 30 | B75: Toilets & Drinking Water | C75: =Odisha!P362+Odisha!P363+Odisha!P365 -> 3245.27728 | D75: =Odisha!T362+Odisha!T363+Odisha!T364+Odisha!T365 -> 7357 | E75: =Odisha!U362+Odisha!U363+Odisha!U364+Odisha!U365 -> 11106.16 | F75: 7357 | G75: 14351.43728 | H75: =Odisha!Y362+Odisha!Y363+Odisha!Y365 -> 3245.27728 | I75: =Odisha!AC362+Odisha!AC363+Odisha!AC364+Odisha!AC365 -> 2971 | J75: =Odisha!AD362+Odisha!AD363+Odisha!AD364+Odisha!AD365 -> 4896.66 | K75: 2971 | L75: 8141.93728 | M75: 3.357003818 | N75: -6209.5
A76: 31 | B76: Furniture | F76: 0 | G76: 0 | K76: 0 | L76: 0 | M76: 0 | N76: 0
A77: 32 | B77: Civil Works | F77: 0 | G77: 0 | K77: 0 | L77: 0 | M77: 0 | N77: 0
B78: a. Boundary Walls | D78: =Odisha!T366 -> 83744 | E78: =Odisha!U366 -> 3014.784 | F78: 83744 | G78: 3014.784 | I78: =Odisha!AC366 -> 0 | J78: =Odisha!AD366 -> 0 | K78: 0 | L78: 0 | M78: 0 | N78: -3014.784
B79: b. Ramps | C79: =Odisha!P371 -> 48.3116 | D79: =Odisha!T371 -> 13734 | E79: =Odisha!U371 -> 2884.14 | F79: 13734 | G79: 2932.4516 | H79: =Odisha!Y371 -> 48.3116 | I79: =Odisha!AC371 -> 2038 | J79: =Odisha!AD371 -> 427.98 | K79: 2038 | L79: 476.2916 | M79: 0.1963798866 | N79: -2456.16
B80: c. Other | C80: =Odisha!P383+Odisha!P384+Odisha!P385 -> 794.834 | D80: =Odisha!T367+Odisha!T381+Odisha!T383+Odisha!T384+Odisha!T385+Odisha!T388+Odisha!T389+Odisha!T390 -> 11541 | E80: =Odisha!U367+Odisha!U381+Odisha!U383+Odisha!U384+Odisha!U385+Odisha!U388+Odisha!U389+Odisha!U390 -> 12795.4 | F80: 11541 | G80: 13590.234 | H80: =Odisha!Y383+Odisha!Y384+Odisha!Y385 -> 442.3 | I80: =Odisha!AC381+Odisha!AC383+Odisha!AC384+Odisha!AC385+Odisha!AC388+Odisha!AC389+Odisha!AC390 -> 210 | J80: =Odisha!AD381+Odisha!AD383+Odisha!AD384+Odisha!AD385+Odisha!AD388+Odisha!AD389+Odisha!AD390 -> 3096.2 | K80: 210 | L80: 3538.5 | M80: 1.458959656 | N80: -10051.734
A81: =A77+1 -> 33 | B81: Repairs to School Buildings | C81: =Odisha!P378 -> 4.5 | D81: =Odisha!T378 -> 26 | E81: =Odisha!U378 -> 159.9 | F81: 26 | G81: 164.4 | H81: =Odisha!Y378 -> 4.5 | I81: =Odisha!AC378 -> 26 | J81: =Odisha!AD378 -> 159.9 | K81: 26 | L81: 164.4 | M81: 0.06778379749 | N81: 0
A82: =A81+1 -> 34 | B82: Swacchh Vidyalaya | C82: Covered under School Maintenance grant | H82: Covered Ynder School Maintenance grant | M82: 0 | N82: 0
A83: =A82+1 -> 35 | B83: School and Social Mapping: | F83: =D83 -> 0 | G83: 0 | K83: =I83 -> 0 | L83: =H83+J83 -> 0 | M83: 0 | N83: 0
A84: 36 | B84: Opening new Primary Schools: | F84: 0 | G84: 0 | K84: 0 | L84: 0 | M84: 0 | N84: 0
A85: 37 | B85: Opening Upper Primary Schools/Sections: | F85: 0 | G85: 0 | K85: 0 | L85: 0 | M85: 0 | N85: 0
A86: 38 | B86: Conversion of EGS Centres into schools: | C86: All EGS already converted in Schools | M86: 0 | N86: 0
A87: 39 | B87: SIEMAT | C87: One time grant | M87: 0 | N87: 0
A88: 40 | B88: NPGEL | C88: Activity Closed | M88: 0 | N88: 0
B89: Total | C89: =SUM(C69:C88) -> 14648.43225 | D89: =SUM(D69:D88) -> 226163 | E89: =SUM(E69:E88) -> 209414.674 | F89: 226163 | G89: 224063.1063 | H89: =SUM(H69:H88) -> 14295.89825 | I89: =SUM(I69:I88) -> 107167 | J89: =SUM(J69:J88) -> 139825.18 | K89: =SUM(K69:K88) -> 107167 | L89: =SUM(L69:L88) -> 154121.0783 | M89: 63.54569317 | N89: -69942.028
B90: Grand Total | C90: =C22+C67+C89 -> 15478.12268 | D90: =D22+D67+D89 -> 10181488 | E90: 308905.0164 | F90: 10181488 | G90: 324383.1391 | H90: 15100.32868 | I90: 9968162 | J90: 227435.5075 | K90: 9968162 | L90: 242535.8361 | M90: 100 | N90: -81847.30294
C92: =Odisha!P523 -> 15478.12268 | E92: =Odisha!U523 -> 308905.0164 | G92: =Odisha!W523 -> 324383.1391 | H92: =Odisha!Y523 -> 15100.32868 | J92: =Odisha!AD523 -> 227435.5075 | L92: =Odisha!AF523 -> 242535.8361
C94: =C90-C92 -> 0 | L94: =L90-L92 -> 0
D98: CW | E98: =E19+E70+E71+E75+E78+E79+E80+E81 -> 84238.054 | J98: =J19+J70+J71+J75+J79+J80+J81 -> 13812.17263
E99: =Odisha!U391 -> 84238.054 | J99: =Odisha!AD391 -> 13812.17263
E100: =E98-E99 -> 0

Sheet Odisha
A1: Costing sheet for AWP & B 2017-18
A2: Name of the state: Odisha
R3: ( Rs in lakhs)
A4: S.No. | B4: Activity | C4: Sanction | G4: Achievement ( as on 31st Dec, 2016) | I4: Anticipated Acheivement ( as on 31st March , 2017) | M4: Savings | O4: Proposal for 2017-18 | X4: Outlay Recommendation for 2017-18 | AG4: Remarks
O5: Spill Over | Q5: Deferred laibility of 2016-17 | S5: Fresh | V5: Total | X5: Spill Over | Z5: Deferred laibility of 2014-15 | AB5: Fresh | AE5: Total
C6: Phy. | D6: Fin | E6: Spill over ( In Lakhs) | F6: Fin | G6: Phy. | H6: Fin | I6: Phy. | J6: Fin | K6: Phy. (%) | L6: Fin. (%) | M6: Phy. | N6: Fin. | O6: Phy. | P6: Fin. | Q6: Phy. | R6: Fin. | S6: Unit Cost | T6: Phy. | U6: Fin. | V6: Phy. | W6: Fin. | X6: Phy. | Y6: Fin. | Z6: Phy. | AA6: Fin. | AB6: Unit Cost | AC6: Phy. | AD6: Fin. | AE6: Phy. | AF6: Fin.
A7: I | B7: ACCESS
B8: SSA
A9: 1 | B9: Opening of New Schools
A10: 1.01 | B10: New Primary School | C10: =SUM(Angul:Sundargarh!C10) -> 0 | D10: =SUM(Angul:Sundargarh!D10) -> 0 | E10: =SUM(Angul:Sundargarh!E10) -> 0 | F10: =SUM(Angul:Sundargarh!F10) -> 0 | G10: =SUM(Angul:Sundargarh!G10) -> 0 | H10: =SUM(Angul:Sundargarh!H10) -> 0 | I10: =SUM(Angul:Sundargarh!I10) -> 0 | J10: =SUM(Angul:Sundargarh!J10) -> 0 | K10: =I10/C10 ->  | L10: =J10/F10*100 ->  | M10: =C10-I10 -> 0 | N10: =F10-J10 -> 0 | O10: =SUM(Angul:Sundargarh!O10) -> 0 | P10: =SUM(Angul:Sundargarh!P10) -> 0 | Q10: =SUM(Angul:Sundargarh!Q10) -> 0 | R10: =SUM(Angul:Sundargarh!R10) -> 0 | T10: =SUM(Angul:Sundargarh!T10) -> 0 | U10: =SUM(Angul:Sundargarh!U10) -> 0 | V10: =SUM(Angul:Sundargarh!V10) -> 0 | W10: =SUM(Angul:Sundargarh!W10) -> 0 | X10: =SUM(Angul:Sundargarh!X10) -> 0 | Y10: =SUM(Angul:Sundargarh!Y10) -> 0 | Z10: =SUM(Angul:Sundargarh!Z10) -> 0 | AA10: =SUM(Angul:Sundargarh!AA10) -> 0 | AC10: =SUM(Angul:Sundargarh!AC10) -> 0 | AD10: =SUM(Angul:Sundargarh!AD10) -> 0 | AE10: =SUM(Angul:Sundargarh!AE10) -> 0 | AF10: =SUM(Angul:Sundargarh!AF10) -> 0
A11: 1.02 | B11: Upgradation of PS to UPS | C11: =SUM(Angul:Sundargarh!C11) -> 0 | D11: =SUM(Angul:Sundargarh!D11) -> 0 | E11: =SUM(Angul:Sundargarh!E11) -> 0 | F11: =SUM(Angul:Sundargarh!F11) -> 0 | G11: =SUM(Angul:Sundargarh!G11) -> 0 | H11: =SUM(Angul:Sundargarh!H11) -> 0 | I11: =SUM(Angul:Sundargarh!I11) -> 0 | J11: =SUM(Angul:Sundargarh!J11) -> 0 | M11: 0 | N11: 0 | O11: =SUM(Angul:Sundargarh!O11) -> 0 | P11: =SUM(Angul:Sundargarh!P11) -> 0 | Q11: =SUM(Angul:Sundargarh!Q11) -> 0 | R11: =SUM(Angul:Sundargarh!R11) -> 0 | T11: =SUM(Angul:Sundargarh!T11) -> 0 | U11: =SUM(Angul:Sundargarh!U11) -> 0 | V11: =SUM(Angul:Sundargarh!V11) -> 0 | W11: =SUM(Angul:Sundargarh!W11) -> 0 | X11: =SUM(Angul:Sundargarh!X11) -> 0 | Y11: =SUM(Angul:Sundargarh!Y11) -> 0 | Z11: =SUM(Angul:Sundargarh!Z11) -> 0 | AA11: =SUM(Angul:Sundargarh!AA11) -> 0 | AC11: =SUM(Angul:Sundargarh!AC11) -> 0 | AD11: =SUM(Angul:Sundargarh!AD11) -> 0 | AE11: =SUM(Angul:Sundargarh!AE11) -> 0 | AF11: =SUM(Angul:Sundargarh!AF11) -> 0
A12: 1.03 | B12: Composite Schools | C12: =SUM(Angul:Sundargarh!C12) -> 0 | D12: =SUM(Angul:Sundargarh!D12) -> 0 | E12: =SUM(Angul:Sundargarh!E12) -> 0 | F12: =SUM(Angul:Sundargarh!F12) -> 0 | G12: =SUM(Angul:Sundargarh!G12) -> 0 | H12: =SUM(Angul:Sundargarh!H12) -> 0 | I12: =SUM(Angul:Sundargarh!I12) -> 0 | J12: =SUM(Angul:Sundargarh!J12) -> 0 | M12: 0 | N12: 0 | O12: =SUM(Angul:Sundargarh!O12) -> 0 | P12: =SUM(Angul:Sundargarh!P12) -> 0 | Q12: =SUM(Angul:Sundargarh!Q12) -> 0 | R12: =SUM(Angul:Sundargarh!R12) -> 0 | T12: =SUM(Angul:Sundargarh!T12) -> 0 | U12: =SUM(Angul:Sundargarh!U12) -> 0 | V12: =SUM(Angul:Sundargarh!V12) -> 0 | W12: =SUM(Angul:Sundargarh!W12) -> 0 | X12: =SUM(Angul:Sundargarh!X12) -> 0 | Y12: =SUM(Angul:Sundargarh!Y12) -> 0 | Z12: =SUM(Angul:Sundargarh!Z12) -> 0 | AA12: =SUM(Angul:Sundargarh!AA12) -> 0 | AC12: =SUM(Angul:Sundargarh!AC12) -> 0 | AD12: =SUM(Angul:Sundargarh!AD12) -> 0 | AE12: =SUM(Angul:Sundargarh!AE12) -> 0 | AF12: =SUM(Angul:Sundargarh!AF12) -> 0
A13: 1.04 | B13: Residential schools for specific category of children | C13: =SUM(Angul:Sundargarh!C13) -> 0 | D13: =SUM(Angul:Sundargarh!D13) -> 0 | E13: =SUM(Angul:Sundargarh!E13) -> 0 | F13: =SUM(Angul:Sundargarh!F13) -> 0 | G13: =SUM(Angul:Sundargarh!G13) -> 0 | H13: =SUM(Angul:Sundargarh!H13) -> 0 | I13: =SUM(Angul:Sundargarh!I13) -> 0 | J13: =SUM(Angul:Sundargarh!J13) -> 0 | M13: 0 | N13: 0 | O13: =SUM(Angul:Sundargarh!O13) -> 0 | P13: =SUM(Angul:Sundargarh!P13) -> 0 | Q13: =SUM(Angul:Sundargarh!Q13) -> 0 | R13: =SUM(Angul:Sundargarh!R13) -> 0 | T13: =SUM(Angul:Sundargarh!T13) -> 0 | U13: =SUM(Angul:Sundargarh!U13) -> 0 | V13: =SUM(Angul:Sundargarh!V13) -> 0 | W13: =SUM(Angul:Sundargarh!W13) -> 0 | X13: =SUM(Angul:Sundargarh!X13) -> 0 | Y13: =SUM(Angul:Sundargarh!Y13) -> 0 | Z13: =SUM(Angul:Sundargarh!Z13) -> 0 | AA13: =SUM(Angul:Sundargarh!AA13) -> 0 | AC13: =SUM(Angul:Sundargarh!AC13) -> 0 | AD13: =SUM(Angul:Sundargarh!AD13) -> 0 | AE13: =SUM(Angul:Sundargarh!AE13) -> 0 | AF13: =SUM(Angul:Sundargarh!AF13) -> 0
A14: 1.05 | B14: Primary | C14: =SUM(Angul:Sundargarh!C14) -> 8 | D14: =SUM(Angul:Sundargarh!D14) -> 0 | E14: =SUM(Angul:Sundargarh!E14) -> 0 | F14: =SUM(Angul:Sundargarh!F14) -> 0 | G14: =SUM(Angul:Sundargarh!G14) -> 8 | H14: =SUM(Angul:Sundargarh!H14) -> 0 | I14: =SUM(Angul:Sundargarh!I14) -> 8 | J14: =SUM(Angul:Sundargarh!J14) -> 0 | K14: 1 | M14: 0 | N14: 0 | O14: =SUM(Angul:Sundargarh!O14) -> 0 | P14: =SUM(Angul:Sundargarh!P14) -> 0 | Q14: =SUM(Angul:Sundargarh!Q14) -> 0 | R14: =SUM(Angul:Sundargarh!R14) -> 0 | T14: =SUM(Angul:Sundargarh!T14) -> 0 | U14: =SUM(Angul:Sundargarh!U14) -> 0 | V14: =SUM(Angul:Sundargarh!V14) -> 0 | W14: =SUM(Angul:Sundargarh!W14) -> 0 | X14: =SUM(Angul:Sundargarh!X14) -> 0 | Y14: =SUM(Angul:Sundargarh!Y14) -> 0 | Z14: =SUM(Angul:Sundargarh!Z14) -> 0 | AA14: =SUM(Angul:Sundargarh!AA14) -> 0 | AC14: =SUM(Angul:Sundargarh!AC14) -> 0 | AD14: =SUM(Angul:Sundargarh!AD14) -> 0 | AE14: =SUM(Angul:Sundargarh!AE14) -> 0 | AF14: =SUM(Angul:Sundargarh!AF14) -> 0
A15: 1.06 | B15: Integration of Class V with primary schools | C15: =SUM(Angul:Sundargarh!C15) -> 0 | D15: =SUM(Angul:Sundargarh!D15) -> 0 | E15: =SUM(Angul:Sundargarh!E15) -> 0 | F15: =SUM(Angul:Sundargarh!F15) -> 0 | G15: =SUM(Angul:Sundargarh!G15) -> 0 | H15: =SUM(Angul:Sundargarh!H15) -> 0 | I15: =SUM(Angul:Sundargarh!I15) -> 0 | J15: =SUM(Angul:Sundargarh!J15) -> 0 | M15: 0 | N15: 0 | O15: =SUM(Angul:Sundargarh!O15) -> 0 | P15: =SUM(Angul:Sundargarh!P15) -> 0 | Q15: =SUM(Angul:Sundargarh!Q15) -> 0 | R15: =SUM(Angul:Sundargarh!R15) -> 0 | T15: =SUM(Angul:Sundargarh!T15) -> 0 | U15: =SUM(Angul:Sundargarh!U15) -> 0 | V15: =SUM(Angul:Sundargarh!V15) -> 0 | W15: =SUM(Angul:Sundargarh!W15) -> 0 | X15: =SUM(Angul:Sundargarh!X15) -> 0 | Y15: =SUM(Angul:Sundargarh!Y15) -> 0 | Z15: =SUM(Angul:Sundargarh!Z15) -> 0 | AA15: =SUM(Angul:Sundargarh!AA15) -> 0 | AC15: =SUM(Angul:Sundargarh!AC15) -> 0 | AD15: =SUM(Angul:Sundargarh!AD15) -> 0 | AE15: =SUM(Angul:Sundargarh!AE15) -> 0 | AF15: =SUM(Angul:Sundargarh!AF15) -> 0
A16: 1.07 | B16: Integration of Class VIII with upper primary schools | C16: =SUM(Angul:Sundargarh!C16) -> 0 | D16: =SUM(Angul:Sundargarh!D16) -> 0 | E16: =SUM(Angul:Sundargarh!E16) -> 0 | F16: =SUM(Angul:Sundargarh!F16) -> 0 | G16: =SUM(Angul:Sundargarh!G16) -> 0 | H16: =SUM(Angul:Sundargarh!H16) -> 0 | I16: =SUM(Angul:Sundargarh!I16) -> 0 | J16: =SUM(Angul:Sundargarh!J16) -> 0 | M16: 0 | N16: 0 | O16: =SUM(Angul:Sundargarh!O16) -> 0 | P16: =SUM(Angul:Sundargarh!P16) -> 0 | Q16: =SUM(Angul:Sundargarh!Q16) -> 0 | R16: =SUM(Angul:Sundargarh!R16) -> 0 | T16: =SUM(Angul:Sundargarh!T16) -> 0 | U16: =SUM(Angul:Sundargarh!U16) -> 0 | V16: =SUM(Angul:Sundargarh!V16) -> 0 | W16: =SUM(Angul:Sundargarh!W16) -> 0 | X16: =SUM(Angul:Sundargarh!X16) -> 0 | Y16: =SUM(Angul:Sundargarh!Y16) -> 0 | Z16: =SUM(Angul:Sundargarh!Z16) -> 0 | AA16: =SUM(Angul:Sundargarh!AA16) -> 0 | AC16: =SUM(Angul:Sundargarh!AC16) -> 0 | AD16: =SUM(Angul:Sundargarh!AD16) -> 0 | AE16: =SUM(Angul:Sundargarh!AE16) -> 0 | AF16: =SUM(Angul:Sundargarh!AF16) -> 0
A17: 2 | B17: Residential Schools for specific category of children | C17: =SUM(Angul:Sundargarh!C17) -> 0 | D17: =SUM(Angul:Sundargarh!D17) -> 0 | E17: =SUM(Angul:Sundargarh!E17) -> 0 | F17: =SUM(Angul:Sundargarh!F17) -> 0 | G17: =SUM(Angul:Sundargarh!G17) -> 0 | H17: =SUM(Angul:Sundargarh!H17) -> 0 | I17: =SUM(Angul:Sundargarh!I17) -> 0 | J17: =SUM(Angul:Sundargarh!J17) -> 0 | O17: =SUM(Angul:Sundargarh!O17) -> 0 | P17: =SUM(Angul:Sundargarh!P17) -> 0 | Q17: =SUM(Angul:Sundargarh!Q17) -> 0 | R17: =SUM(Angul:Sundargarh!R17) -> 0 | T17: =SUM(Angul:Sundargarh!T17) -> 0 | U17: =SUM(Angul:Sundargarh!U17) -> 0 | V17: =SUM(Angul:Sundargarh!V17) -> 0 | W17: =SUM(Angul:Sundargarh!W17) -> 0 | X17: =SUM(Angul:Sundargarh!X17) -> 0 | Y17: =SUM(Angul:Sundargarh!Y17) -> 0 | Z17: =SUM(Angul:Sundargarh!Z17) -> 0 | AA17: =SUM(Angul:Sundargarh!AA17) -> 0 | AC17: =SUM(Angul:Sundargarh!AC17) -> 0 | AD17: =SUM(Angul:Sundargarh!AD17) -> 0 | AE17: =SUM(Angul:Sundargarh!AE17) -> 0 | AF17: =SUM(Angul:Sundargarh!AF17) -> 0
B18: 50 children | C18: =SUM(Angul:Sundargarh!C18) -> 0 | D18: =SUM(Angul:Sundargarh!D18) -> 0 | E18: =SUM(Angul:Sundargarh!E18) -> 0 | F18: =SUM(Angul:Sundargarh!F18) -> 0 | G18: =SUM(Angul:Sundargarh!G18) -> 0 | H18: =SUM(Angul:Sundargarh!H18) -> 0 | I18: =SUM(Angul:Sundargarh!I18) -> 0 | J18: =SUM(Angul:Sundargarh!J18) -> 0 | O18: =SUM(Angul:Sundargarh!O18) -> 0 | P18: =SUM(Angul:Sundargarh!P18) -> 0 | Q18: =SUM(Angul:Sundargarh!Q18) -> 0 | R18: =SUM(Angul:Sundargarh!R18) -> 0 | T18: =SUM(Angul:Sundargarh!T18) -> 0 | U18: =SUM(Angul:Sundargarh!U18) -> 0 | V18: =SUM(Angul:Sundargarh!V18) -> 0 | W18: =SUM(Angul:Sundargarh!W18) -> 0 | X18: =SUM(Angul:Sundargarh!X18) -> 0 | Y18: =SUM(Angul:Sundargarh!Y18) -> 0 | Z18: =SUM(Angul:Sundargarh!Z18) -> 0 | AA18: =SUM(Angul:Sundargarh!AA18) -> 0 | AC18: =SUM(Angul:Sundargarh!AC18) -> 0 | AD18: =SUM(Angul:Sundargarh!AD18) -> 0 | AE18: =SUM(Angul:Sundargarh!AE18) -> 0 | AF18: =SUM(Angul:Sundargarh!AF18) -> 0
B19: Non-recurring (one time grant) | C19: =SUM(Angul:Sundargarh!C19) -> 0 | D19: =SUM(Angul:Sundargarh!D19) -> 0 | E19: =SUM(Angul:Sundargarh!E19) -> 0 | F19: =SUM(Angul:Sundargarh!F19) -> 0 | G19: =SUM(Angul:Sundargarh!G19) -> 0 | H19: =SUM(Angul:Sundargarh!H19) -> 0 | I19: =SUM(Angul:Sundargarh!I19) -> 0 | J19: =SUM(Angul:Sundargarh!J19) -> 0 | O19: =SUM(Angul:Sundargarh!O19) -> 0 | P19: =SUM(Angul:Sundargarh!P19) -> 0 | Q19: =SUM(Angul:Sundargarh!Q19) -> 0 | R19: =SUM(Angul:Sundargarh!R19) -> 0 | T19: =SUM(Angul:Sundargarh!T19) -> 0 | U19: =SUM(Angul:Sundargarh!U19) -> 0 | V19: =SUM(Angul:Sundargarh!V19) -> 0 | W19: =SUM(Angul:Sundargarh!W19) -> 0 | X19: =SUM(Angul:Sundargarh!X19) -> 0 | Y19: =SUM(Angul:Sundargarh!Y19) -> 0 | Z19: =SUM(Angul:Sundargarh!Z19) -> 0 | AA19: =SUM(Angul:Sundargarh!AA19) -> 0 | AC19: =SUM(Angul:Sundargarh!AC19) -> 0 | AD19: =SUM(Angul:Sundargarh!AD19) -> 0 | AE19: =SUM(Angul:Sundargarh!AE19) -> 0 | AF19: =SUM(Angul:Sundargarh!AF19) -> 0
A20: 2.01 | B20: Furniture/ Equipment (including kitchen) | C20: =SUM(Angul:Sundargarh!C20) -> 0 | D20: =SUM(Angul:Sundargarh!D20) -> 0 | E20: =SUM(Angul:Sundargarh!E20) -> 0 | F20: =SUM(Angul:Sundargarh!F20) -> 0 | G20: =SUM(Angul:Sundargarh!G20) -> 0 | H20: =SUM(Angul:Sundargarh!H20) -> 0 | I20: =SUM(Angul:Sundargarh!I20) -> 0 | J20: =SUM(Angul:Sundargarh!J20) -> 0 | M20: 0 | N20: 0 | O20: =SUM(Angul:Sundargarh!O20) -> 0 | P20: =SUM(Angul:Sundargarh!P20) -> 0 | Q20: =SUM(Angul:Sundargarh!Q20) -> 0 | R20: =SUM(Angul:Sundargarh!R20) -> 0 | S20: 2 | T20: =SUM(Angul:Sundargarh!T20) -> 0 | U20: =SUM(Angul:Sundargarh!U20) -> 0 | V20: =SUM(Angul:Sundargarh!V20) -> 0 | W20: =SUM(Angul:Sundargarh!W20) -> 0 | X20: =SUM(Angul:Sundargarh!X20) -> 0 | Y20: =SUM(Angul:Sundargarh!Y20) -> 0 | Z20: =SUM(Angul:Sundargarh!Z20) -> 0 | AA20: =SUM(Angul:Sundargarh!AA20) -> 0 | AC20: =SUM(Angul:Sundargarh!AC20) -> 0 | AD20: =SUM(Angul:Sundargarh!AD20) -> 0 | AE20: =SUM(Angul:Sundargarh!AE20) -> 0 | AF20: =SUM(Angul:Sundargarh!AF20) -> 0
A21: 2.02 | B21: TLM and equipment including library books | C21: =SUM(Angul:Sundargarh!C21) -> 0 | D21: =SUM(Angul:Sundargarh!D21) -> 0 | E21: =SUM(Angul:Sundargarh!E21) -> 0 | F21: =SUM(Angul:Sundargarh!F21) -> 0 | G21: =SUM(Angul:Sundargarh!G21) -> 0 | H21: =SUM(Angul:Sundargarh!H21) -> 0 | I21: =SUM(Angul:Sundargarh!I21) -> 0 | J21: =SUM(Angul:Sundargarh!J21) -> 0 | M21: 0 | N21: 0 | O21: =SUM(Angul:Sundargarh!O21) -> 0 | P21: =SUM(Angul:Sundargarh!P21) -> 0 | Q21: =SUM(Angul:Sundargarh!Q21) -> 0 | R21: =SUM(Angul:Sundargarh!R21) -> 0 | S21: 3 | T21: =SUM(Angul:Sundargarh!T21) -> 0 | U21: =SUM(Angul:Sundargarh!U21) -> 0 | V21: =SUM(Angul:Sundargarh!V21) -> 0 | W21: =SUM(Angul:Sundargarh!W21) -> 0 | X21: =SUM(Angul:Sundargarh!X21) -> 0 | Y21: =SUM(Angul:Sundargarh!Y21) -> 0 | Z21: =SUM(Angul:Sundargarh!Z21) -> 0 | AA21: =SUM(Angul:Sundargarh!AA21) -> 0 | AC21: =SUM(Angul:Sundargarh!AC21) -> 0 | AD21: =SUM(Angul:Sundargarh!AD21) -> 0 | AE21: =SUM(Angul:Sundargarh!AE21) -> 0 | AF21: =SUM(Angul:Sundargarh!AF21) -> 0
A22: 2.03 | B22: Bedding (new) | C22: =SUM(Angul:Sundargarh!C22) -> 0 | D22: =SUM(Angul:Sundargarh!D22) -> 0 | E22: =SUM(Angul:Sundargarh!E22) -> 0 | F22: =SUM(Angul:Sundargarh!F22) -> 0 | G22: =SUM(Angul:Sundargarh!G22) -> 0 | H22: =SUM(Angul:Sundargarh!H22) -> 0 | I22: =SUM(Angul:Sundargarh!I22) -> 0 | J22: =SUM(Angul:Sundargarh!J22) -> 0 | M22: 0 | N22: 0 | O22: =SUM(Angul:Sundargarh!O22) -> 0 | P22: =SUM(Angul:Sundargarh!P22) -> 0 | Q22: =SUM(Angul:Sundargarh!Q22) -> 0 | R22: =SUM(Angul:Sundargarh!R22) -> 0 | S22: 0.375 | T22: =SUM(Angul:Sundargarh!T22) -> 0 | U22: =SUM(Angul:Sundargarh!U22) -> 0 | V22: =SUM(Angul:Sundargarh!V22) -> 0 | W22: =SUM(Angul:Sundargarh!W22) -> 0 | X22: =SUM(Angul:Sundargarh!X22) -> 0 | Y22: =SUM(Angul:Sundargarh!Y22) -> 0 | Z22: =SUM(Angul:Sundargarh!Z22) -> 0 | AA22: =SUM(Angul:Sundargarh!AA22) -> 0 | AC22: =SUM(Angul:Sundargarh!AC22) -> 0 | AD22: =SUM(Angul:Sundargarh!AD22) -> 0 | AE22: =SUM(Angul:Sundargarh!AE22) -> 0 | AF22: =SUM(Angul:Sundargarh!AF22) -> 0
A23: 2.04 | B23: Replacement of bedding (once in 3 years) | C23: =SUM(Angul:Sundargarh!C23) -> 0 | D23: =SUM(Angul:Sundargarh!D23) -> 0 | E23: =SUM(Angul:Sundargarh!E23) -> 0 | F23: =SUM(Angul:Sundargarh!F23) -> 0 | G23: =SUM(Angul:Sundargarh!G23) -> 0 | H23: =SUM(Angul:Sundargarh!H23) -> 0 | I23: =SUM(Angul:Sundargarh!I23) -> 0 | J23: =SUM(Angul:Sundargarh!J23) -> 0 | M23: 0 | N23: 0 | O23: =SUM(Angul:Sundargarh!O23) -> 0 | P23: =SUM(Angul:Sundargarh!P23) -> 0 | Q23: =SUM(Angul:Sundargarh!Q23) -> 0 | R23: =SUM(Angul:Sundargarh!R23) -> 0 | T23: =SUM(Angul:Sundargarh!T23) -> 0 | U23: =SUM(Angul:Sundargarh!U23) -> 0 | V23: =SUM(Angul:Sundargarh!V23) -> 0 | W23: =SUM(Angul:Sundargarh!W23) -> 0 | X23: =SUM(Angul:Sundargarh!X23) -> 0 | Y23: =SUM(Angul:Sundargarh!Y23) -> 0 | Z23: =SUM(Angul:Sundargarh!Z23) -> 0 | AA23: =SUM(Angul:Sundargarh!AA23) -> 0 | AC23: =SUM(Angul:Sundargarh!AC23) -> 0 | AD23: =SUM(Angul:Sundargarh!AD23) -> 0 | AE23: =SUM(Angul:Sundargarh!AE23) -> 0 | AF23: =SUM(Angul:Sundargarh!AF23) -> 0
B24: Sub Total (Non Recurring) | C24: =SUM(Angul:Sundargarh!C24) -> 0 | D24: =SUM(Angul:Sundargarh!D24) -> 0 | E24: =SUM(Angul:Sundargarh!E24) -> 0 | F24: =SUM(Angul:Sundargarh!F24) -> 0 | G24: =SUM(Angul:Sundargarh!G24) -> 0 | H24: =SUM(Angul:Sundargarh!H24) -> 0 | I24: =SUM(Angul:Sundargarh!I24) -> 0 | J24: =SUM(Angul:Sundargarh!J24) -> 0 | M24: 0 | N24: 0 | O24: =SUM(Angul:Sundargarh!O24) -> 0 | P24: =SUM(Angul:Sundargarh!P24) -> 0 | Q24: =SUM(Angul:Sundargarh!Q24) -> 0 | R24: =SUM(Angul:Sundargarh!R24) -> 0 | T24: =SUM(Angul:Sundargarh!T24) -> 0 | U24: =SUM(Angul:Sundargarh!U24) -> 0 | V24: =SUM(Angul:Sundargarh!V24) -> 0 | W24: =SUM(Angul:Sundargarh!W24) -> 0 | X24: =SUM(Angul:Sundargarh!X24) -> 0 | Y24: =SUM(Angul:Sundargarh!Y24) -> 0 | Z24: =SUM(Angul:Sundargarh!Z24) -> 0 | AA24: =SUM(Angul:Sundargarh!AA24) -> 0 | AC24: =SUM(Angul:Sundargarh!AC24) -> 0 | AD24: =SUM(Angul:Sundargarh!AD24) -> 0 | AE24: =SUM(Angul:Sundargarh!AE24) -> 0 | AF24: =SUM(Angul:Sundargarh!AF24) -> 0
B25: Recurring (50 children) | C25: =SUM(Angul:Sundargarh!C25) -> 0 | D25: =SUM(Angul:Sundargarh!D25) -> 0 | E25: =SUM(Angul:Sundargarh!E25) -> 0 | F25: =SUM(Angul:Sundargarh!F25) -> 0 | G25: =SUM(Angul:Sundargarh!G25) -> 0 | H25: =SUM(Angul:Sundargarh!H25) -> 0 | I25: =SUM(Angul:Sundargarh!I25) -> 0 | J25: =SUM(Angul:Sundargarh!J25) -> 0 | O25: =SUM(Angul:Sundargarh!O25) -> 0 | P25: =SUM(Angul:Sundargarh!P25) -> 0 | Q25: =SUM(Angul:Sundargarh!Q25) -> 0 | R25: =SUM(Angul:Sundargarh!R25) -> 0 | T25: =SUM(Angul:Sundargarh!T25) -> 0 | U25: =SUM(Angul:Sundargarh!U25) -> 0 | V25: =SUM(Angul:Sundargarh!V25) -> 0 | W25: =SUM(Angul:Sundargarh!W25) -> 0 | X25: =SUM(Angul:Sundargarh!X25) -> 0 | Y25: =SUM(Angul:Sundargarh!Y25) -> 0 | Z25: =SUM(Angul:Sundargarh!Z25) -> 0 | AA25: =SUM(Angul:Sundargarh!AA25) -> 0 | AC25: =SUM(Angul:Sundargarh!AC25) -> 0 | AD25: =SUM(Angul:Sundargarh!AD25) -> 0 | AE25: =SUM(Angul:Sundargarh!AE25) -> 0 | AF25: =SUM(Angul:Sundargarh!AF25) -> 0
A26: 2.05 | B26: Maintenance per child Per month @ Rs.1500/- | C26: =SUM(Angul:Sundargarh!C26) -> 0 | D26: =SUM(Angul:Sundargarh!D26) -> 0 | E26: =SUM(Angul:Sundargarh!E26) -> 0 | F26: =SUM(Angul:Sundargarh!F26) -> 0 | G26: =SUM(Angul:Sundargarh!G26) -> 0 | H26: =SUM(Angul:Sundargarh!H26) -> 0 | I26: =SUM(Angul:Sundargarh!I26) -> 0 | J26: =SUM(Angul:Sundargarh!J26) -> 0 | M26: 0 | N26: 0 | O26: =SUM(Angul:Sundargarh!O26) -> 0 | P26: =SUM(Angul:Sundargarh!P26) -> 0 | Q26: =SUM(Angul:Sundargarh!Q26) -> 0 | R26: =SUM(Angul:Sundargarh!R26) -> 0 | S26: 9 | T26: =SUM(Angul:Sundargarh!T26) -> 0 | U26: =SUM(Angul:Sundargarh!U26) -> 0 | V26: =SUM(Angul:Sundargarh!V26) -> 0 | W26: =SUM(Angul:Sundargarh!W26) -> 0 | X26: =SUM(Angul:Sundargarh!X26) -> 0 | Y26: =SUM(Angul:Sundargarh!Y26) -> 0 | Z26: =SUM(Angul:Sundargarh!Z26) -> 0 | AA26: =SUM(Angul:Sundargarh!AA26) -> 0 | AC26: =SUM(Angul:Sundargarh!AC26) -> 0 | AD26: =SUM(Angul:Sundargarh!AD26) -> 0 | AE26: =SUM(Angul:Sundargarh!AE26) -> 0 | AF26: =SUM(Angul:Sundargarh!AF26) -> 0
A27: 2.06 | B27: Stipend per child per month @ Rs.100/- | C27: =SUM(Angul:Sundargarh!C27) -> 0 | D27: =SUM(Angul:Sundargarh!D27) -> 0 | E27: =SUM(Angul:Sundargarh!E27) -> 0 | F27: =SUM(Angul:Sundargarh!F27) -> 0 | G27: =SUM(Angul:Sundargarh!G27) -> 0 | H27: =SUM(Angul:Sundargarh!H27) -> 0 | I27: =SUM(Angul:Sundargarh!I27) -> 0 | J27: =SUM(Angul:Sundargarh!J27) -> 0 | M27: 0 | N27: 0 | O27: =SUM(Angul:Sundargarh!O27) -> 0 | P27: =SUM(Angul:Sundargarh!P27) -> 0 | Q27: =SUM(Angul:Sundargarh!Q27) -> 0 | R27: =SUM(Angul:Sundargarh!R27) -> 0 | S27: 0.6 | T27: =SUM(Angul:Sundargarh!T27) -> 0 | U27: =SUM(Angul:Sundargarh!U27) -> 0 | V27: =SUM(Angul:Sundargarh!V27) -> 0 | W27: =SUM(Angul:Sundargarh!W27) -> 0 | X27: =SUM(Angul:Sundargarh!X27) -> 0 | Y27: =SUM(Angul:Sundargarh!Y27) -> 0 | Z27: =SUM(Angul:Sundargarh!Z27) -> 0 | AA27: =SUM(Angul:Sundargarh!AA27) -> 0 | AC27: =SUM(Angul:Sundargarh!AC27) -> 0 | AD27: =SUM(Angul:Sundargarh!AD27) -> 0 | AE27: =SUM(Angul:Sundargarh!AE27) -> 0 | AF27: =SUM(Angul:Sundargarh!AF27) -> 0
A28: 2.07 | B28: Supplementary TLM, Stationery and other educational material @Rs.1000/- per child per annum | C28: =SUM(Angul:Sundargarh!C28) -> 0 | D28: =SUM(Angul:Sundargarh!D28) -> 0 | E28: =SUM(Angul:Sundargarh!E28) -> 0 | F28: =SUM(Angul:Sundargarh!F28) -> 0 | G28: =SUM(Angul:Sundargarh!G28) -> 0 | H28: =SUM(Angul:Sundargarh!H28) -> 0 | I28: =SUM(Angul:Sundargarh!I28) -> 0 | J28: =SUM(Angul:Sundargarh!J28) -> 0 | M28: 0 | N28: 0 | O28: =SUM(Angul:Sundargarh!O28) -> 0 | P28: =SUM(Angul:Sundargarh!P28) -> 0 | Q28: =SUM(Angul:Sundargarh!Q28) -> 0 | R28: =SUM(Angul:Sundargarh!R28) -> 0 | S28: 0.5 | T28: =SUM(Angul:Sundargarh!T28) -> 0 | U28: =SUM(Angul:Sundargarh!U28) -> 0 | V28: =SUM(Angul:Sundargarh!V28) -> 0 | W28: =SUM(Angul:Sundargarh!W28) -> 0 | X28: =SUM(Angul:Sundargarh!X28) -> 0 | Y28: =SUM(Angul:Sundargarh!Y28) -> 0 | Z28: =SUM(Angul:Sundargarh!Z28) -> 0 | AA28: =SUM(Angul:Sundargarh!AA28) -> 0 | AC28: =SUM(Angul:Sundargarh!AC28) -> 0 | AD28: =SUM(Angul:Sundargarh!AD28) -> 0 | AE28: =SUM(Angul:Sundargarh!AE28) -> 0 | AF28: =SUM(Angul:Sundargarh!AF28) -> 0
A29: 2.08 | B29: Salaries | C29: =SUM(Angul:Sundargarh!C29) -> 0 | D29: =SUM(Angul:Sundargarh!D29) -> 0 | E29: =SUM(Angul:Sundargarh!E29) -> 0 | F29: =SUM(Angul:Sundargarh!F29) -> 0 | G29: =SUM(Angul:Sundargarh!G29) -> 0 | H29: =SUM(Angul:Sundargarh!H29) -> 0 | I29: =SUM(Angul:Sundargarh!I29) -> 0 | J29: =SUM(Angul:Sundargarh!J29) -> 0 | M29: 0 | N29: 0 | O29: =SUM(Angul:Sundargarh!O29) -> 0 | P29: =SUM(Angul:Sundargarh!P29) -> 0 | Q29: =SUM(Angul:Sundargarh!Q29) -> 0 | R29: =SUM(Angul:Sundargarh!R29) -> 0 | T29: =SUM(Angul:Sundargarh!T29) -> 0 | U29: =SUM(Angul:Sundargarh!U29) -> 0 | V29: =SUM(Angul:Sundargarh!V29) -> 0 | W29: =SUM(Angul:Sundargarh!W29) -> 0 | X29: =SUM(Angul:Sundargarh!X29) -> 0 | Y29: =SUM(Angul:Sundargarh!Y29) -> 0 | Z29: =SUM(Angul:Sundargarh!Z29) -> 0 | AA29: =SUM(Angul:Sundargarh!AA29) -> 0 | AC29: =SUM(Angul:Sundargarh!AC29) -> 0 | AD29: =SUM(Angul:Sundargarh!AD29) -> 0 | AE29: =SUM(Angul:Sundargarh!AE29) -> 0 | AF29: =SUM(Angul:Sundargarh!AF29) -> 0
A30: 2.08.a | B30: 1 Warden @ Rs.25000/- per month | C30: =SUM(Angul:Sundargarh!C30) -> 0 | D30: =SUM(Angul:Sundargarh!D30) -> 0 | E30: =SUM(Angul:Sundargarh!E30) -> 0 | F30: =SUM(Angul:Sundargarh!F30) -> 0 | G30: =SUM(Angul:Sundargarh!G30) -> 0 | H30: =SUM(Angul:Sundargarh!H30) -> 0 | I30: =SUM(Angul:Sundargarh!I30) -> 0 | J30: =SUM(Angul:Sundargarh!J30) -> 0 | M30: 0 | N30: 0 | O30: =SUM(Angul:Sundargarh!O30) -> 0 | P30: =SUM(Angul:Sundargarh!P30) -> 0 | Q30: =SUM(Angul:Sundargarh!Q30) -> 0 | R30: =SUM(Angul:Sundargarh!R30) -> 0 | S30: 3 | T30: =SUM(Angul:Sundargarh!T30) -> 0 | U30: =SUM(Angul:Sundargarh!U30) -> 0 | V30: =SUM(Angul:Sundargarh!V30) -> 0 | W30: =SUM(Angul:Sundargarh!W30) -> 0 | X30: =SUM(Angul:Sundargarh!X30) -> 0 | Y30: =SUM(Angul:Sundargarh!Y30) -> 0 | Z30: =SUM(Angul:Sundargarh!Z30) -> 0 | AA30: =SUM(Angul:Sundargarh!AA30) -> 0 | AC30: =SUM(Angul:Sundargarh!AC30) -> 0 | AD30: =SUM(Angul:Sundargarh!AD30) -> 0 | AE30: =SUM(Angul:Sundargarh!AE30) -> 0 | AF30: =SUM(Angul:Sundargarh!AF30) -> 0
A31: 2.08.b | B31: 4 Fulltime teachers as per RTE Norms @ Rs. 20,000/- per month per teacher | C31: =SUM(Angul:Sundargarh!C31) -> 0 | D31: =SUM(Angul:Sundargarh!D31) -> 0 | E31: =SUM(Angul:Sundargarh!E31) -> 0 | F31: =SUM(Angul:Sundargarh!F31) -> 0 | G31: =SUM(Angul:Sundargarh!G31) -> 0 | H31: =SUM(Angul:Sundargarh!H31) -> 0 | I31: =SUM(Angul:Sundargarh!I31) -> 0 | J31: =SUM(Angul:Sundargarh!J31) -> 0 | M31: 0 | N31: 0 | O31: =SUM(Angul:Sundargarh!O31) -> 0 | P31: =SUM(Angul:Sundargarh!P31) -> 0 | Q31: =SUM(Angul:Sundargarh!Q31) -> 0 | R31: =SUM(Angul:Sundargarh!R31) -> 0 | S31: 9.6 | T31: =SUM(Angul:Sundargarh!T31) -> 0 | U31: =SUM(Angul:Sundargarh!U31) -> 0 | V31: =SUM(Angul:Sundargarh!V31) -> 0 | W31: =SUM(Angul:Sundargarh!W31) -> 0 | X31: =SUM(Angul:Sundargarh!X31) -> 0 | Y31: =SUM(Angul:Sundargarh!Y31) -> 0 | Z31: =SUM(Angul:Sundargarh!Z31) -> 0 | AA31: =SUM(Angul:Sundargarh!AA31) -> 0 | AC31: =SUM(Angul:Sundargarh!AC31) -> 0 | AD31: =SUM(Angul:Sundargarh!AD31) -> 0 | AE31: =SUM(Angul:Sundargarh!AE31) -> 0 | AF31: =SUM(Angul:Sundargarh!AF31) -> 0
A32: 2.08.c | B32: 2 Urdu Teachers (only for Blocks with muslim population above 20% and select urban areas) @ Rs.12,000/- per month per teacher. | C32: =SUM(Angul:Sundargarh!C32) -> 0 | D32: =SUM(Angul:Sundargarh!D32) -> 0 | E32: =SUM(Angul:Sundargarh!E32) -> 0 | F32: =SUM(Angul:Sundargarh!F32) -> 0 | G32: =SUM(Angul:Sundargarh!G32) -> 0 | H32: =SUM(Angul:Sundargarh!H32) -> 0 | I32: =SUM(Angul:Sundargarh!I32) -> 0 | J32: =SUM(Angul:Sundargarh!J32) -> 0 | M32: 0 | N32: 0 | O32: =SUM(Angul:Sundargarh!O32) -> 0 | P32: =SUM(Angul:Sundargarh!P32) -> 0 | Q32: =SUM(Angul:Sundargarh!Q32) -> 0 | R32: =SUM(Angul:Sundargarh!R32) -> 0 | S32: 2.88 | T32: =SUM(Angul:Sundargarh!T32) -> 0 | U32: =SUM(Angul:Sundargarh!U32) -> 0 | V32: =SUM(Angul:Sundargarh!V32) -> 0 | W32: =SUM(Angul:Sundargarh!W32) -> 0 | X32: =SUM(Angul:Sundargarh!X32) -> 0 | Y32: =SUM(Angul:Sundargarh!Y32) -> 0 | Z32: =SUM(Angul:Sundargarh!Z32) -> 0 | AA32: =SUM(Angul:Sundargarh!AA32) -> 0 | AC32: =SUM(Angul:Sundargarh!AC32) -> 0 | AD32: =SUM(Angul:Sundargarh!AD32) -> 0 | AE32: =SUM(Angul:Sundargarh!AE32) -> 0 | AF32: =SUM(Angul:Sundargarh!AF32) -> 0
A33: 2.08.d | B33: 3 Part time teachers @ Rs.5,000/- per month per teacher | C33: =SUM(Angul:Sundargarh!C33) -> 0 | D33: =SUM(Angul:Sundargarh!D33) -> 0 | E33: =SUM(Angul:Sundargarh!E33) -> 0 | F33: =SUM(Angul:Sundargarh!F33) -> 0 | G33: =SUM(Angul:Sundargarh!G33) -> 0 | H33: =SUM(Angul:Sundargarh!H33) -> 0 | I33: =SUM(Angul:Sundargarh!I33) -> 0 | J33: =SUM(Angul:Sundargarh!J33) -> 0 | M33: 0 | N33: 0 | O33: =SUM(Angul:Sundargarh!O33) -> 0 | P33: =SUM(Angul:Sundargarh!P33) -> 0 | Q33: =SUM(Angul:Sundargarh!Q33) -> 0 | R33: =SUM(Angul:Sundargarh!R33) -> 0 | S33: 1.5 | T33: =SUM(Angul:Sundargarh!T33) -> 0 | U33: =SUM(Angul:Sundargarh!U33) -> 0 | V33: =SUM(Angul:Sundargarh!V33) -> 0 | W33: =SUM(Angul:Sundargarh!W33) -> 0 | X33: =SUM(Angul:Sundargarh!X33) -> 0 | Y33: =SUM(Angul:Sundargarh!Y33) -> 0 | Z33: =SUM(Angul:Sundargarh!Z33) -> 0 | AA33: =SUM(Angul:Sundargarh!AA33) -> 0 | AC33: =SUM(Angul:Sundargarh!AC33) -> 0 | AD33: =SUM(Angul:Sundargarh!AD33) -> 0 | AE33: =SUM(Angul:Sundargarh!AE33) -> 0 | AF33: =SUM(Angul:Sundargarh!AF33) -> 0
A34: 2.08.e | B34: 1 Full time Accountant @ Rs. 10,000/- per month | C34: =SUM(Angul:Sundargarh!C34) -> 0 | D34: =SUM(Angul:Sundargarh!D34) -> 0 | E34: =SUM(Angul:Sundargarh!E34) -> 0 | F34: =SUM(Angul:Sundargarh!F34) -> 0 | G34: =SUM(Angul:Sundargarh!G34) -> 0 | H34: =SUM(Angul:Sundargarh!H34) -> 0 | I34: =SUM(Angul:Sundargarh!I34) -> 0 | J34: =SUM(Angul:Sundargarh!J34) -> 0 | M34: 0 | N34: 0 | O34: =SUM(Angul:Sundargarh!O34) -> 0 | P34: =SUM(Angul:Sundargarh!P34) -> 0 | Q34: =SUM(Angul:Sundargarh!Q34) -> 0 | R34: =SUM(Angul:Sundargarh!R34) -> 0 | S34: 1.2 | T34: =SUM(Angul:Sundargarh!T34) -> 0 | U34: =SUM(Angul:Sundargarh!U34) -> 0 | V34: =SUM(Angul:Sundargarh!V34) -> 0 | W34: =SUM(Angul:Sundargarh!W34) -> 0 | X34: =SUM(Angul:Sundargarh!X34) -> 0 | Y34: =SUM(Angul:Sundargarh!Y34) -> 0 | Z34: =SUM(Angul:Sundargarh!Z34) -> 0 | AA34: =SUM(Angul:Sundargarh!AA34) -> 0 | AC34: =SUM(Angul:Sundargarh!AC34) -> 0 | AD34: =SUM(Angul:Sundargarh!AD34) -> 0 | AE34: =SUM(Angul:Sundargarh!AE34) -> 0 | AF34: =SUM(Angul:Sundargarh!AF34) -> 0
A35: 2.08.f | B35: 2 Support staff - (Accountant/Assistant, Peon, Chowkidar) @ Rs. 5,000/- per month per staff | C35: =SUM(Angul:Sundargarh!C35) -> 0 | D35: =SUM(Angul:Sundargarh!D35) -> 0 | E35: =SUM(Angul:Sundargarh!E35) -> 0 | F35: =SUM(Angul:Sundargarh!F35) -> 0 | G35: =SUM(Angul:Sundargarh!G35) -> 0 | H35: =SUM(Angul:Sundargarh!H35) -> 0 | I35: =SUM(Angul:Sundargarh!I35) -> 0 | J35: =SUM(Angul:Sundargarh!J35) -> 0 | M35: 0 | N35: 0 | O35: =SUM(Angul:Sundargarh!O35) -> 0 | P35: =SUM(Angul:Sundargarh!P35) -> 0 | Q35: =SUM(Angul:Sundargarh!Q35) -> 0 | R35: =SUM(Angul:Sundargarh!R35) -> 0 | S35: 1.2 | T35: =SUM(Angul:Sundargarh!T35) -> 0 | U35: =SUM(Angul:Sundargarh!U35) -> 0 | V35: =SUM(Angul:Sundargarh!V35) -> 0 | W35: =SUM(Angul:Sundargarh!W35) -> 0 | X35: =SUM(Angul:Sundargarh!X35) -> 0 | Y35: =SUM(Angul:Sundargarh!Y35) -> 0 | Z35: =SUM(Angul:Sundargarh!Z35) -> 0 | AA35: =SUM(Angul:Sundargarh!AA35) -> 0 | AC35: =SUM(Angul:Sundargarh!AC35) -> 0 | AD35: =SUM(Angul:Sundargarh!AD35) -> 0 | AE35: =SUM(Angul:Sundargarh!AE35) -> 0 | AF35: =SUM(Angul:Sundargarh!AF35) -> 0
A36: 2.08.g | B36: 1 Head Cook @ Rs. 6,000/- per month and upto 2 Asstt. Cooks @ Rs. 4,500/- per month per cook | C36: =SUM(Angul:Sundargarh!C36) -> 0 | D36: =SUM(Angul:Sundargarh!D36) -> 0 | E36: =SUM(Angul:Sundargarh!E36) -> 0 | F36: =SUM(Angul:Sundargarh!F36) -> 0 | G36: =SUM(Angul:Sundargarh!G36) -> 0 | H36: =SUM(Angul:Sundargarh!H36) -> 0 | I36: =SUM(Angul:Sundargarh!I36) -> 0 | J36: =SUM(Angul:Sundargarh!J36) -> 0 | M36: 0 | N36: 0 | O36: =SUM(Angul:Sundargarh!O36) -> 0 | P36: =SUM(Angul:Sundargarh!P36) -> 0 | Q36: =SUM(Angul:Sundargarh!Q36) -> 0 | R36: =SUM(Angul:Sundargarh!R36) -> 0 | S36: 1.8 | T36: =SUM(Angul:Sundargarh!T36) -> 0 | U36: =SUM(Angul:Sundargarh!U36) -> 0 | V36: =SUM(Angul:Sundargarh!V36) -> 0 | W36: =SUM(Angul:Sundargarh!W36) -> 0 | X36: =SUM(Angul:Sundargarh!X36) -> 0 | Y36: =SUM(Angul:Sundargarh!Y36) -> 0 | Z36: =SUM(Angul:Sundargarh!Z36) -> 0 | AA36: =SUM(Angul:Sundargarh!AA36) -> 0 | AC36: =SUM(Angul:Sundargarh!AC36) -> 0 | AD36: =SUM(Angul:Sundargarh!AD36) -> 0 | AE36: =SUM(Angul:Sundargarh!AE36) -> 0 | AF36: =SUM(Angul:Sundargarh!AF36) -> 0
A37: 2.09 | B37: Specific Skill training @ Rs.1000/- per annum per child | C37: =SUM(Angul:Sundargarh!C37) -> 0 | D37: =SUM(Angul:Sundargarh!D37) -> 0 | E37: =SUM(Angul:Sundargarh!E37) -> 0 | F37: =SUM(Angul:Sundargarh!F37) -> 0 | G37: =SUM(Angul:Sundargarh!G37) -> 0 | H37: =SUM(Angul:Sundargarh!H37) -> 0 | I37: =SUM(Angul:Sundargarh!I37) -> 0 | J37: =SUM(Angul:Sundargarh!J37) -> 0 | M37: 0 | N37: 0 | O37: =SUM(Angul:Sundargarh!O37) -> 0 | P37: =SUM(Angul:Sundargarh!P37) -> 0 | Q37: =SUM(Angul:Sundargarh!Q37) -> 0 | R37: =SUM(Angul:Sundargarh!R37) -> 0 | S37: 0.5 | T37: =SUM(Angul:Sundargarh!T37) -> 0 | U37: =SUM(Angul:Sundargarh!U37) -> 0 | V37: =SUM(Angul:Sundargarh!V37) -> 0 | W37: =SUM(Angul:Sundargarh!W37) -> 0 | X37: =SUM(Angul:Sundargarh!X37) -> 0 | Y37: =SUM(Angul:Sundargarh!Y37) -> 0 | Z37: =SUM(Angul:Sundargarh!Z37) -> 0 | AA37: =SUM(Angul:Sundargarh!AA37) -> 0 | AC37: =SUM(Angul:Sundargarh!AC37) -> 0 | AD37: =SUM(Angul:Sundargarh!AD37) -> 0 | AE37: =SUM(Angul:Sundargarh!AE37) -> 0 | AF37: =SUM(Angul:Sundargarh!AF37) -> 0
A38: 2.1 | B38: Electricity / water charges @ Rs. 1000/- per annum per child | C38: =SUM(Angul:Sundargarh!C38) -> 0 | D38: =SUM(Angul:Sundargarh!D38) -> 0 | E38: =SUM(Angul:Sundargarh!E38) -> 0 | F38: =SUM(Angul:Sundargarh!F38) -> 0 | G38: =SUM(Angul:Sundargarh!G38) -> 0 | H38: =SUM(Angul:Sundargarh!H38) -> 0 | I38: =SUM(Angul:Sundargarh!I38) -> 0 | J38: =SUM(Angul:Sundargarh!J38) -> 0 | M38: 0 | N38: 0 | O38: =SUM(Angul:Sundargarh!O38) -> 0 | P38: =SUM(Angul:Sundargarh!P38) -> 0 | Q38: =SUM(Angul:Sundargarh!Q38) -> 0 | R38: =SUM(Angul:Sundargarh!R38) -> 0 | S38: 0.5 | T38: =SUM(Angul:Sundargarh!T38) -> 0 | U38: =SUM(Angul:Sundargarh!U38) -> 0 | V38: =SUM(Angul:Sundargarh!V38) -> 0 | W38: =SUM(Angul:Sundargarh!W38) -> 0 | X38: =SUM(Angul:Sundargarh!X38) -> 0 | Y38: =SUM(Angul:Sundargarh!Y38) -> 0 | Z38: =SUM(Angul:Sundargarh!Z38) -> 0 | AA38: =SUM(Angul:Sundargarh!AA38) -> 0 | AC38: =SUM(Angul:Sundargarh!AC38) -> 0 | AD38: =SUM(Angul:Sundargarh!AD38) -> 0 | AE38: =SUM(Angul:Sundargarh!AE38) -> 0 | AF38: =SUM(Angul:Sundargarh!AF38) -> 0
A39: =+A38+0.01 -> 2.11 | B39: Medical care/contingencies @ Rs.1250/- per annum per child | C39: =SUM(Angul:Sundargarh!C39) -> 0 | D39: =SUM(Angul:Sundargarh!D39) -> 0 | E39: =SUM(Angul:Sundargarh!E39) -> 0 | F39: =SUM(Angul:Sundargarh!F39) -> 0 | G39: =SUM(Angul:Sundargarh!G39) -> 0 | H39: =SUM(Angul:Sundargarh!H39) -> 0 | I39: =SUM(Angul:Sundargarh!I39) -> 0 | J39: =SUM(Angul:Sundargarh!J39) -> 0 | M39: 0 | N39: 0 | O39: =SUM(Angul:Sundargarh!O39) -> 0 | P39: =SUM(Angul:Sundargarh!P39) -> 0 | Q39: =SUM(Angul:Sundargarh!Q39) -> 0 | R39: =SUM(Angul:Sundargarh!R39) -> 0 | S39: 0.625 | T39: =SUM(Angul:Sundargarh!T39) -> 0 | U39: =SUM(Angul:Sundargarh!U39) -> 0 | V39: =SUM(Angul:Sundargarh!V39) -> 0 | W39: =SUM(Angul:Sundargarh!W39) -> 0 | X39: =SUM(Angul:Sundargarh!X39) -> 0 | Y39: =SUM(Angul:Sundargarh!Y39) -> 0 | Z39: =SUM(Angul:Sundargarh!Z39) -> 0 | AA39: =SUM(Angul:Sundargarh!AA39) -> 0 | AC39: =SUM(Angul:Sundargarh!AC39) -> 0 | AD39: =SUM(Angul:Sundargarh!AD39) -> 0 | AE39: =SUM(Angul:Sundargarh!AE39) -> 0 | AF39: =SUM(Angul:Sundargarh!AF39) -> 0
A40: =+A39+0.01 -> 2.12 | B40: Maintenance @ Rs. 750/- per child per annum | C40: =SUM(Angul:Sundargarh!C40) -> 0 | D40: =SUM(Angul:Sundargarh!D40) -> 0 | E40: =SUM(Angul:Sundargarh!E40) -> 0 | F40: =SUM(Angul:Sundargarh!F40) -> 0 | G40: =SUM(Angul:Sundargarh!G40) -> 0 | H40: =SUM(Angul:Sundargarh!H40) -> 0 | I40: =SUM(Angul:Sundargarh!I40) -> 0 | J40: =SUM(Angul:Sundargarh!J40) -> 0 | M40: 0 | N40: 0 | O40: =SUM(Angul:Sundargarh!O40) -> 0 | P40: =SUM(Angul:Sundargarh!P40) -> 0 | Q40: =SUM(Angul:Sundargarh!Q40) -> 0 | R40: =SUM(Angul:Sundargarh!R40) -> 0 | S40: 0.375 | T40: =SUM(Angul:Sundargarh!T40) -> 0 | U40: =SUM(Angul:Sundargarh!U40) -> 0 | V40: =SUM(Angul:Sundargarh!V40) -> 0 | W40: =SUM(Angul:Sundargarh!W40) -> 0 | X40: =SUM(Angul:Sundargarh!X40) -> 0 | Y40: =SUM(Angul:Sundargarh!Y40) -> 0 | Z40: =SUM(Angul:Sundargarh!Z40) -> 0 | AA40: =SUM(Angul:Sundargarh!AA40) -> 0 | AC40: =SUM(Angul:Sundargarh!AC40) -> 0 | AD40: =SUM(Angul:Sundargarh!AD40) -> 0 | AE40: =SUM(Angul:Sundargarh!AE40) -> 0 | AF40: =SUM(Angul:Sundargarh!AF40) -> 0
A41: 2.13 | B41: Miscellaneous @ Rs. 750/- per child per annum | C41: =SUM(Angul:Sundargarh!C41) -> 0 | D41: =SUM(Angul:Sundargarh!D41) -> 0 | E41: =SUM(Angul:Sundargarh!E41) -> 0 | F41: =SUM(Angul:Sundargarh!F41) -> 0 | G41: =SUM(Angul:Sundargarh!G41) -> 0 | H41: =SUM(Angul:Sundargarh!H41) -> 0 | I41: =SUM(Angul:Sundargarh!I41) -> 0 | J41: =SUM(Angul:Sundargarh!J41) -> 0 | M41: 0 | N41: 0 | O41: =SUM(Angul:Sundargarh!O41) -> 0 | P41: =SUM(Angul:Sundargarh!P41) -> 0 | Q41: =SUM(Angul:Sundargarh!Q41) -> 0 | R41: =SUM(Angul:Sundargarh!R41) -> 0 | S41: 0.375 | T41: =SUM(Angul:Sundargarh!T41) -> 0 | U41: =SUM(Angul:Sundargarh!U41) -> 0 | V41: =SUM(Angul:Sundargarh!V41) -> 0 | W41: =SUM(Angul:Sundargarh!W41) -> 0 | X41: =SUM(Angul:Sundargarh!X41) -> 0 | Y41: =SUM(Angul:Sundargarh!Y41) -> 0 | Z41: =SUM(Angul:Sundargarh!Z41) -> 0 | AA41: =SUM(Angul:Sundargarh!AA41) -> 0 | AC41: =SUM(Angul:Sundargarh!AC41) -> 0 | AD41: =SUM(Angul:Sundargarh!AD41) -> 0 | AE41: =SUM(Angul:Sundargarh!AE41) -> 0 | AF41: =SUM(Angul:Sundargarh!AF41) -> 0
A42: 2.14 | B42: Preparatory camps @ Rs. 300/- per child per annum | C42: =SUM(Angul:Sundargarh!C42) -> 0 | D42: =SUM(Angul:Sundargarh!D42) -> 0 | E42: =SUM(Angul:Sundargarh!E42) -> 0 | F42: =SUM(Angul:Sundargarh!F42) -> 0 | G42: =SUM(Angul:Sundargarh!G42) -> 0 | H42: =SUM(Angul:Sundargarh!H42) -> 0 | I42: =SUM(Angul:Sundargarh!I42) -> 0 | J42: =SUM(Angul:Sundargarh!J42) -> 0 | M42: 0 | N42: 0 | O42: =SUM(Angul:Sundargarh!O42) -> 0 | P42: =SUM(Angul:Sundargarh!P42) -> 0 | Q42: =SUM(Angul:Sundargarh!Q42) -> 0 | R42: =SUM(Angul:Sundargarh!R42) -> 0 | S42: 0.15 | T42: =SUM(Angul:Sundargarh!T42) -> 0 | U42: =SUM(Angul:Sundargarh!U42) -> 0 | V42: =SUM(Angul:Sundargarh!V42) -> 0 | W42: =SUM(Angul:Sundargarh!W42) -> 0 | X42: =SUM(Angul:Sundargarh!X42) -> 0 | Y42: =SUM(Angul:Sundargarh!Y42) -> 0 | Z42: =SUM(Angul:Sundargarh!Z42) -> 0 | AA42: =SUM(Angul:Sundargarh!AA42) -> 0 | AC42: =SUM(Angul:Sundargarh!AC42) -> 0 | AD42: =SUM(Angul:Sundargarh!AD42) -> 0 | AE42: =SUM(Angul:Sundargarh!AE42) -> 0 | AF42: =SUM(Angul:Sundargarh!AF42) -> 0
A43: 2.15 | B43: P.T.A / school functions @ Rs. 300/- per child per annum | C43: =SUM(Angul:Sundargarh!C43) -> 0 | D43: =SUM(Angul:Sundargarh!D43) -> 0 | E43: =SUM(Angul:Sundargarh!E43) -> 0 | F43: =SUM(Angul:Sundargarh!F43) -> 0 | G43: =SUM(Angul:Sundargarh!G43) -> 0 | H43: =SUM(Angul:Sundargarh!H43) -> 0 | I43: =SUM(Angul:Sundargarh!I43) -> 0 | J43: =SUM(Angul:Sundargarh!J43) -> 0 | M43: 0 | N43: 0 | O43: =SUM(Angul:Sundargarh!O43) -> 0 | P43: =SUM(Angul:Sundargarh!P43) -> 0 | Q43: =SUM(Angul:Sundargarh!Q43) -> 0 | R43: =SUM(Angul:Sundargarh!R43) -> 0 | S43: 0.15 | T43: =SUM(Angul:Sundargarh!T43) -> 0 | U43: =SUM(Angul:Sundargarh!U43) -> 0 | V43: =SUM(Angul:Sundargarh!V43) -> 0 | W43: =SUM(Angul:Sundargarh!W43) -> 0 | X43: =SUM(Angul:Sundargarh!X43) -> 0 | Y43: =SUM(Angul:Sundargarh!Y43) -> 0 | Z43: =SUM(Angul:Sundargarh!Z43) -> 0 | AA43: =SUM(Angul:Sundargarh!AA43) -> 0 | AC43: =SUM(Angul:Sundargarh!AC43) -> 0 | AD43: =SUM(Angul:Sundargarh!AD43) -> 0 | AE43: =SUM(Angul:Sundargarh!AE43) -> 0 | AF43: =SUM(Angul:Sundargarh!AF43) -> 0
A44: 2.16 | B44: Provision of Rent @ Rs. 10,000/- per child per annum | C44: =SUM(Angul:Sundargarh!C44) -> 0 | D44: =SUM(Angul:Sundargarh!D44) -> 0 | E44: =SUM(Angul:Sundargarh!E44) -> 0 | F44: =SUM(Angul:Sundargarh!F44) -> 0 | G44: =SUM(Angul:Sundargarh!G44) -> 0 | H44: =SUM(Angul:Sundargarh!H44) -> 0 | I44: =SUM(Angul:Sundargarh!I44) -> 0 | J44: =SUM(Angul:Sundargarh!J44) -> 0 | M44: 0 | N44: 0 | O44: =SUM(Angul:Sundargarh!O44) -> 0 | P44: =SUM(Angul:Sundargarh!P44) -> 0 | Q44: =SUM(Angul:Sundargarh!Q44) -> 0 | R44: =SUM(Angul:Sundargarh!R44) -> 0 | T44: =SUM(Angul:Sundargarh!T44) -> 0 | U44: =SUM(Angul:Sundargarh!U44) -> 0 | V44: =SUM(Angul:Sundargarh!V44) -> 0 | W44: =SUM(Angul:Sundargarh!W44) -> 0 | X44: =SUM(Angul:Sundargarh!X44) -> 0 | Y44: =SUM(Angul:Sundargarh!Y44) -> 0 | Z44: =SUM(Angul:Sundargarh!Z44) -> 0 | AA44: =SUM(Angul:Sundargarh!AA44) -> 0 | AC44: =SUM(Angul:Sundargarh!AC44) -> 0 | AD44: =SUM(Angul:Sundargarh!AD44) -> 0 | AE44: =SUM(Angul:Sundargarh!AE44) -> 0 | AF44: =SUM(Angul:Sundargarh!AF44) -> 0
A45: 2.17 | B45: Capacity Building @ Rs. 500/- per child per annum | C45: =SUM(Angul:Sundargarh!C45) -> 0 | D45: =SUM(Angul:Sundargarh!D45) -> 0 | E45: =SUM(Angul:Sundargarh!E45) -> 0 | F45: =SUM(Angul:Sundargarh!F45) -> 0 | G45: =SUM(Angul:Sundargarh!G45) -> 0 | H45: =SUM(Angul:Sundargarh!H45) -> 0 | I45: =SUM(Angul:Sundargarh!I45) -> 0 | J45: =SUM(Angul:Sundargarh!J45) -> 0 | M45: 0 | N45: 0 | O45: =SUM(Angul:Sundargarh!O45) -> 0 | P45: =SUM(Angul:Sundargarh!P45) -> 0 | Q45: =SUM(Angul:Sundargarh!Q45) -> 0 | R45: =SUM(Angul:Sundargarh!R45) -> 0 | S45: 0.25 | T45: =SUM(Angul:Sundargarh!T45) -> 0 | U45: =SUM(Angul:Sundargarh!U45) -> 0 | V45: =SUM(Angul:Sundargarh!V45) -> 0 | W45: =SUM(Angul:Sundargarh!W45) -> 0 | X45: =SUM(Angul:Sundargarh!X45) -> 0 | Y45: =SUM(Angul:Sundargarh!Y45) -> 0 | Z45: =SUM(Angul:Sundargarh!Z45) -> 0 | AA45: =SUM(Angul:Sundargarh!AA45) -> 0 | AC45: =SUM(Angul:Sundargarh!AC45) -> 0 | AD45: =SUM(Angul:Sundargarh!AD45) -> 0 | AE45: =SUM(Angul:Sundargarh!AE45) -> 0 | AF45: =SUM(Angul:Sundargarh!AF45) -> 0
A46: 2.18 | B46: Physical / Self Defence Training @ Rs.200/- per child per annum | C46: =SUM(Angul:Sundargarh!C46) -> 0 | D46: =SUM(Angul:Sundargarh!D46) -> 0 | E46: =SUM(Angul:Sundargarh!E46) -> 0 | F46: =SUM(Angul:Sundargarh!F46) -> 0 | G46: =SUM(Angul:Sundargarh!G46) -> 0 | H46: =SUM(Angul:Sundargarh!H46) -> 0 | I46: =SUM(Angul:Sundargarh!I46) -> 0 | J46: =SUM(Angul:Sundargarh!J46) -> 0 | M46: 0 | N46: 0 | O46: =SUM(Angul:Sundargarh!O46) -> 0 | P46: =SUM(Angul:Sundargarh!P46) -> 0 | Q46: =SUM(Angul:Sundargarh!Q46) -> 0 | R46: =SUM(Angul:Sundargarh!R46) -> 0 | S46: 0.1 | T46: =SUM(Angul:Sundargarh!T46) -> 0 | U46: =SUM(Angul:Sundargarh!U46) -> 0 | V46: =SUM(Angul:Sundargarh!V46) -> 0 | W46: =SUM(Angul:Sundargarh!W46) -> 0 | X46: =SUM(Angul:Sundargarh!X46) -> 0 | Y46: =SUM(Angul:Sundargarh!Y46) -> 0 | Z46: =SUM(Angul:Sundargarh!Z46) -> 0 | AA46: =SUM(Angul:Sundargarh!AA46) -> 0 | AC46: =SUM(Angul:Sundargarh!AC46) -> 0 | AD46: =SUM(Angul:Sundargarh!AD46) -> 0 | AE46: =SUM(Angul:Sundargarh!AE46) -> 0 | AF46: =SUM(Angul:Sundargarh!AF46) -> 0
B47: Sub Total (Recurring) | C47: =SUM(Angul:Sundargarh!C47) -> 0 | D47: =SUM(Angul:Sundargarh!D47) -> 0 | E47: =SUM(Angul:Sundargarh!E47) -> 0 | F47: =SUM(Angul:Sundargarh!F47) -> 0 | G47: =SUM(Angul:Sundargarh!G47) -> 0 | H47: =SUM(Angul:Sundargarh!H47) -> 0 | I47: =SUM(Angul:Sundargarh!I47) -> 0 | J47: =SUM(Angul:Sundargarh!J47) -> 0 | M47: 0 | N47: 0 | O47: =SUM(Angul:Sundargarh!O47) -> 0 | P47: =SUM(Angul:Sundargarh!P47) -> 0 | Q47: =SUM(Angul:Sundargarh!Q47) -> 0 | R47: =SUM(Angul:Sundargarh!R47) -> 0 | T47: =SUM(Angul:Sundargarh!T47) -> 0 | U47: =SUM(Angul:Sundargarh!U47) -> 0 | V47: =SUM(Angul:Sundargarh!V47) -> 0 | W47: =SUM(Angul:Sundargarh!W47) -> 0 | X47: =SUM(Angul:Sundargarh!X47) -> 0 | Y47: =SUM(Angul:Sundargarh!Y47) -> 0 | Z47: =SUM(Angul:Sundargarh!Z47) -> 0 | AA47: =SUM(Angul:Sundargarh!AA47) -> 0 | AC47: =SUM(Angul:Sundargarh!AC47) -> 0 | AD47: =SUM(Angul:Sundargarh!AD47) -> 0 | AE47: =SUM(Angul:Sundargarh!AE47) -> 0 | AF47: =SUM(Angul:Sundargarh!AF47) -> 0
B48: Total (Non Recurring + Recurring) | C48: =SUM(Angul:Sundargarh!C48) -> 0 | D48: =SUM(Angul:Sundargarh!D48) -> 0 | E48: =SUM(Angul:Sundargarh!E48) -> 0 | F48: =SUM(Angul:Sundargarh!F48) -> 0 | G48: =SUM(Angul:Sundargarh!G48) -> 0 | H48: =SUM(Angul:Sundargarh!H48) -> 0 | I48: =SUM(Angul:Sundargarh!I48) -> 0 | J48: =SUM(Angul:Sundargarh!J48) -> 0 | M48: 0 | N48: 0 | O48: =SUM(Angul:Sundargarh!O48) -> 0 | P48: =SUM(Angul:Sundargarh!P48) -> 0 | Q48: =SUM(Angul:Sundargarh!Q48) -> 0 | R48: =SUM(Angul:Sundargarh!R48) -> 0 | T48: =SUM(Angul:Sundargarh!T48) -> 0 | U48: =SUM(Angul:Sundargarh!U48) -> 0 | V48: =SUM(Angul:Sundargarh!V48) -> 0 | W48: =SUM(Angul:Sundargarh!W48) -> 0 | X48: =SUM(Angul:Sundargarh!X48) -> 0 | Y48: =SUM(Angul:Sundargarh!Y48) -> 0 | Z48: =SUM(Angul:Sundargarh!Z48) -> 0 | AA48: =SUM(Angul:Sundargarh!AA48) -> 0 | AC48: =SUM(Angul:Sundargarh!AC48) -> 0 | AD48: =SUM(Angul:Sundargarh!AD48) -> 0 | AE48: =SUM(Angul:Sundargarh!AE48) -> 0 | AF48: =SUM(Angul:Sundargarh!AF48) -> 0
B49: 100 children | C49: =SUM(Angul:Sundargarh!C49) -> 0 | D49: =SUM(Angul:Sundargarh!D49) -> 0 | E49: =SUM(Angul:Sundargarh!E49) -> 0 | F49: =SUM(Angul:Sundargarh!F49) -> 0 | G49: =SUM(Angul:Sundargarh!G49) -> 0 | H49: =SUM(Angul:Sundargarh!H49) -> 0 | I49: =SUM(Angul:Sundargarh!I49) -> 0 | J49: =SUM(Angul:Sundargarh!J49) -> 0 | O49: =SUM(Angul:Sundargarh!O49) -> 0 | P49: =SUM(Angul:Sundargarh!P49) -> 0 | Q49: =SUM(Angul:Sundargarh!Q49) -> 0 | R49: =SUM(Angul:Sundargarh!R49) -> 0 | T49: =SUM(Angul:Sundargarh!T49) -> 0 | U49: =SUM(Angul:Sundargarh!U49) -> 0 | V49: =SUM(Angul:Sundargarh!V49) -> 0 | W49: =SUM(Angul:Sundargarh!W49) -> 0 | X49: =SUM(Angul:Sundargarh!X49) -> 0 | Y49: =SUM(Angul:Sundargarh!Y49) -> 0 | Z49: =SUM(Angul:Sundargarh!Z49) -> 0 | AA49: =SUM(Angul:Sundargarh!AA49) -> 0 | AC49: =SUM(Angul:Sundargarh!AC49) -> 0 | AD49: =SUM(Angul:Sundargarh!AD49) -> 0 | AE49: =SUM(Angul:Sundargarh!AE49) -> 0 | AF49: =SUM(Angul:Sundargarh!AF49) -> 0
B50: Non-recurring (one time grant) | C50: =SUM(Angul:Sundargarh!C50) -> 0 | D50: =SUM(Angul:Sundargarh!D50) -> 0 | E50: =SUM(Angul:Sundargarh!E50) -> 0 | F50: =SUM(Angul:Sundargarh!F50) -> 0 | G50: =SUM(Angul:Sundargarh!G50) -> 0 | H50: =SUM(Angul:Sundargarh!H50) -> 0 | I50: =SUM(Angul:Sundargarh!I50) -> 0 | J50: =SUM(Angul:Sundargarh!J50) -> 0 | O50: =SUM(Angul:Sundargarh!O50) -> 0 | P50: =SUM(Angul:Sundargarh!P50) -> 0 | Q50: =SUM(Angul:Sundargarh!Q50) -> 0 | R50: =SUM(Angul:Sundargarh!R50) -> 0 | T50: =SUM(Angul:Sundargarh!T50) -> 0 | U50: =SUM(Angul:Sundargarh!U50) -> 0 | V50: =SUM(Angul:Sundargarh!V50) -> 0 | W50: =SUM(Angul:Sundargarh!W50) -> 0 | X50: =SUM(Angul:Sundargarh!X50) -> 0 | Y50: =SUM(Angul:Sundargarh!Y50) -> 0 | Z50: =SUM(Angul:Sundargarh!Z50) -> 0 | AA50: =SUM(Angul:Sundargarh!AA50) -> 0 | AC50: =SUM(Angul:Sundargarh!AC50) -> 0 | AD50: =SUM(Angul:Sundargarh!AD50) -> 0 | AE50: =SUM(Angul:Sundargarh!AE50) -> 0 | AF50: =SUM(Angul:Sundargarh!AF50) -> 0
A51: 2.19 | B51: Furniture / Equipment (including kitchen equipment) | C51: =SUM(Angul:Sundargarh!C51) -> 0 | D51: =SUM(Angul:Sundargarh!D51) -> 0 | E51: =SUM(Angul:Sundargarh!E51) -> 0 | F51: =SUM(Angul:Sundargarh!F51) -> 0 | G51: =SUM(Angul:Sundargarh!G51) -> 0 | H51: =SUM(Angul:Sundargarh!H51) -> 0 | I51: =SUM(Angul:Sundargarh!I51) -> 0 | J51: =SUM(Angul:Sundargarh!J51) -> 0 | M51: 0 | N51: 0 | O51: =SUM(Angul:Sundargarh!O51) -> 0 | P51: =SUM(Angul:Sundargarh!P51) -> 0 | Q51: =SUM(Angul:Sundargarh!Q51) -> 0 | R51: =SUM(Angul:Sundargarh!R51) -> 0 | S51: 3 | T51: =SUM(Angul:Sundargarh!T51) -> 0 | U51: =SUM(Angul:Sundargarh!U51) -> 0 | V51: =SUM(Angul:Sundargarh!V51) -> 0 | W51: =SUM(Angul:Sundargarh!W51) -> 0 | X51: =SUM(Angul:Sundargarh!X51) -> 0 | Y51: =SUM(Angul:Sundargarh!Y51) -> 0 | Z51: =SUM(Angul:Sundargarh!Z51) -> 0 | AA51: =SUM(Angul:Sundargarh!AA51) -> 0 | AC51: =SUM(Angul:Sundargarh!AC51) -> 0 | AD51: =SUM(Angul:Sundargarh!AD51) -> 0 | AE51: =SUM(Angul:Sundargarh!AE51) -> 0 | AF51: =SUM(Angul:Sundargarh!AF51) -> 0
A52: =+A51+0.01 -> 2.2 | B52: TLM and equipment including library books (New) | C52: =SUM(Angul:Sundargarh!C52) -> 0 | D52: =SUM(Angul:Sundargarh!D52) -> 0 | E52: =SUM(Angul:Sundargarh!E52) -> 0 | F52: =SUM(Angul:Sundargarh!F52) -> 0 | G52: =SUM(Angul:Sundargarh!G52) -> 0 | H52: =SUM(Angul:Sundargarh!H52) -> 0 | I52: =SUM(Angul:Sundargarh!I52) -> 0 | J52: =SUM(Angul:Sundargarh!J52) -> 0 | M52: 0 | N52: 0 | O52: =SUM(Angul:Sundargarh!O52) -> 0 | P52: =SUM(Angul:Sundargarh!P52) -> 0 | Q52: =SUM(Angul:Sundargarh!Q52) -> 0 | R52: =SUM(Angul:Sundargarh!R52) -> 0 | S52: 3.5 | T52: =SUM(Angul:Sundargarh!T52) -> 0 | U52: =SUM(Angul:Sundargarh!U52) -> 0 | V52: =SUM(Angul:Sundargarh!V52) -> 0 | W52: =SUM(Angul:Sundargarh!W52) -> 0 | X52: =SUM(Angul:Sundargarh!X52) -> 0 | Y52: =SUM(Angul:Sundargarh!Y52) -> 0 | Z52: =SUM(Angul:Sundargarh!Z52) -> 0 | AA52: =SUM(Angul:Sundargarh!AA52) -> 0 | AC52: =SUM(Angul:Sundargarh!AC52) -> 0 | AD52: =SUM(Angul:Sundargarh!AD52) -> 0 | AE52: =SUM(Angul:Sundargarh!AE52) -> 0 | AF52: =SUM(Angul:Sundargarh!AF52) -> 0
A53: =+A52+0.01 -> 2.21 | B53: Bedding (New) | C53: =SUM(Angul:Sundargarh!C53) -> 0 | D53: =SUM(Angul:Sundargarh!D53) -> 0 | E53: =SUM(Angul:Sundargarh!E53) -> 0 | F53: =SUM(Angul:Sundargarh!F53) -> 0 | G53: =SUM(Angul:Sundargarh!G53) -> 0 | H53: =SUM(Angul:Sundargarh!H53) -> 0 | I53: =SUM(Angul:Sundargarh!I53) -> 0 | J53: =SUM(Angul:Sundargarh!J53) -> 0 | M53: 0 | N53: 0 | O53: =SUM(Angul:Sundargarh!O53) -> 0 | P53: =SUM(Angul:Sundargarh!P53) -> 0 | Q53: =SUM(Angul:Sundargarh!Q53) -> 0 | R53: =SUM(Angul:Sundargarh!R53) -> 0 | S53: 0.75 | T53: =SUM(Angul:Sundargarh!T53) -> 0 | U53: =SUM(Angul:Sundargarh!U53) -> 0 | V53: =SUM(Angul:Sundargarh!V53) -> 0 | W53: =SUM(Angul:Sundargarh!W53) -> 0 | X53: =SUM(Angul:Sundargarh!X53) -> 0 | Y53: =SUM(Angul:Sundargarh!Y53) -> 0 | Z53: =SUM(Angul:Sundargarh!Z53) -> 0 | AA53: =SUM(Angul:Sundargarh!AA53) -> 0 | AC53: =SUM(Angul:Sundargarh!AC53) -> 0 | AD53: =SUM(Angul:Sundargarh!AD53) -> 0 | AE53: =SUM(Angul:Sundargarh!AE53) -> 0 | AF53: =SUM(Angul:Sundargarh!AF53) -> 0
A54: =+A53+0.01 -> 2.22 | B54: Replacement of bedding (once in 3 years) | C54: =SUM(Angul:Sundargarh!C54) -> 0 | D54: =SUM(Angul:Sundargarh!D54) -> 0 | E54: =SUM(Angul:Sundargarh!E54) -> 0 | F54: =SUM(Angul:Sundargarh!F54) -> 0 | G54: =SUM(Angul:Sundargarh!G54) -> 0 | H54: =SUM(Angul:Sundargarh!H54) -> 0 | I54: =SUM(Angul:Sundargarh!I54) -> 0 | J54: =SUM(Angul:Sundargarh!J54) -> 0 | M54: 0 | N54: 0 | O54: =SUM(Angul:Sundargarh!O54) -> 0 | P54: =SUM(Angul:Sundargarh!P54) -> 0 | Q54: =SUM(Angul:Sundargarh!Q54) -> 0 | R54: =SUM(Angul:Sundargarh!R54) -> 0 | T54: =SUM(Angul:Sundargarh!T54) -> 0 | U54: =SUM(Angul:Sundargarh!U54) -> 0 | V54: =SUM(Angul:Sundargarh!V54) -> 0 | W54: =SUM(Angul:Sundargarh!W54) -> 0 | X54: =SUM(Angul:Sundargarh!X54) -> 0 | Y54: =SUM(Angul:Sundargarh!Y54) -> 0 | Z54: =SUM(Angul:Sundargarh!Z54) -> 0 | AA54: =SUM(Angul:Sundargarh!AA54) -> 0 | AC54: =SUM(Angul:Sundargarh!AC54) -> 0 | AD54: =SUM(Angul:Sundargarh!AD54) -> 0 | AE54: =SUM(Angul:Sundargarh!AE54) -> 0 | AF54: =SUM(Angul:Sundargarh!AF54) -> 0
B55: Sub Total Non-recurring | C55: =SUM(Angul:Sundargarh!C55) -> 0 | D55: =SUM(Angul:Sundargarh!D55) -> 0 | E55: =SUM(Angul:Sundargarh!E55) -> 0 | F55: =SUM(Angul:Sundargarh!F55) -> 0 | G55: =SUM(Angul:Sundargarh!G55) -> 0 | H55: =SUM(Angul:Sundargarh!H55) -> 0 | I55: =SUM(Angul:Sundargarh!I55) -> 0 | J55: =SUM(Angul:Sundargarh!J55) -> 0 | M55: 0 | N55: 0 | O55: =SUM(Angul:Sundargarh!O55) -> 0 | P55: =SUM(Angul:Sundargarh!P55) -> 0 | Q55: =SUM(Angul:Sundargarh!Q55) -> 0 | R55: =SUM(Angul:Sundargarh!R55) -> 0 | T55: =SUM(Angul:Sundargarh!T55) -> 0 | U55: =SUM(Angul:Sundargarh!U55) -> 0 | V55: =SUM(Angul:Sundargarh!V55) -> 0 | W55: =SUM(Angul:Sundargarh!W55) -> 0 | X55: =SUM(Angul:Sundargarh!X55) -> 0 | Y55: =SUM(Angul:Sundargarh!Y55) -> 0 | Z55: =SUM(Angul:Sundargarh!Z55) -> 0 | AA55: =SUM(Angul:Sundargarh!AA55) -> 0 | AC55: =SUM(Angul:Sundargarh!AC55) -> 0 | AD55: =SUM(Angul:Sundargarh!AD55) -> 0 | AE55: =SUM(Angul:Sundargarh!AE55) -> 0 | AF55: =SUM(Angul:Sundargarh!AF55) -> 0
B56: Recurring | C56: =SUM(Angul:Sundargarh!C56) -> 0 | D56: =SUM(Angul:Sundargarh!D56) -> 0 | E56: =SUM(Angul:Sundargarh!E56) -> 0 | F56: =SUM(Angul:Sundargarh!F56) -> 0 | G56: =SUM(Angul:Sundargarh!G56) -> 0 | H56: =SUM(Angul:Sundargarh!H56) -> 0 | I56: =SUM(Angul:Sundargarh!I56) -> 0 | J56: =SUM(Angul:Sundargarh!J56) -> 0 | O56: =SUM(Angul:Sundargarh!O56) -> 0 | P56: =SUM(Angul:Sundargarh!P56) -> 0 | Q56: =SUM(Angul:Sundargarh!Q56) -> 0 | R56: =SUM(Angul:Sundargarh!R56) -> 0 | T56: =SUM(Angul:Sundargarh!T56) -> 0 | U56: =SUM(Angul:Sundargarh!U56) -> 0 | V56: =SUM(Angul:Sundargarh!V56) -> 0 | W56: =SUM(Angul:Sundargarh!W56) -> 0 | X56: =SUM(Angul:Sundargarh!X56) -> 0 | Y56: =SUM(Angul:Sundargarh!Y56) -> 0 | Z56: =SUM(Angul:Sundargarh!Z56) -> 0 | AA56: =SUM(Angul:Sundargarh!AA56) -> 0 | AC56: =SUM(Angul:Sundargarh!AC56) -> 0 | AD56: =SUM(Angul:Sundargarh!AD56) -> 0 | AE56: =SUM(Angul:Sundargarh!AE56) -> 0 | AF56: =SUM(Angul:Sundargarh!AF56) -> 0
A57: 2.23 | B57: Maintenance per child per month @ Rs. 1500/- | C57: =SUM(Angul:Sundargarh!C57) -> 0 | D57: =SUM(Angul:Sundargarh!D57) -> 0 | E57: =SUM(Angul:Sundargarh!E57) -> 0 | F57: =SUM(Angul:Sundargarh!F57) -> 0 | G57: =SUM(Angul:Sundargarh!G57) -> 0 | H57: =SUM(Angul:Sundargarh!H57) -> 0 | I57: =SUM(Angul:Sundargarh!I57) -> 0 | J57: =SUM(Angul:Sundargarh!J57) -> 0 | M57: 0 | N57: 0 | O57: =SUM(Angul:Sundargarh!O57) -> 0 | P57: =SUM(Angul:Sundargarh!P57) -> 0 | Q57: =SUM(Angul:Sundargarh!Q57) -> 0 | R57: =SUM(Angul:Sundargarh!R57) -> 0 | S57: 18 | T57: =SUM(Angul:Sundargarh!T57) -> 0 | U57: =SUM(Angul:Sundargarh!U57) -> 0 | V57: =SUM(Angul:Sundargarh!V57) -> 0 | W57: =SUM(Angul:Sundargarh!W57) -> 0 | X57: =SUM(Angul:Sundargarh!X57) -> 0 | Y57: =SUM(Angul:Sundargarh!Y57) -> 0 | Z57: =SUM(Angul:Sundargarh!Z57) -> 0 | AA57: =SUM(Angul:Sundargarh!AA57) -> 0 | AC57: =SUM(Angul:Sundargarh!AC57) -> 0 | AD57: =SUM(Angul:Sundargarh!AD57) -> 0 | AE57: =SUM(Angul:Sundargarh!AE57) -> 0 | AF57: =SUM(Angul:Sundargarh!AF57) -> 0
A58: =+A57+0.01 -> 2.24 | B58: Stipend per child per month @ Rs.100/- | C58: =SUM(Angul:Sundargarh!C58) -> 0 | D58: =SUM(Angul:Sundargarh!D58) -> 0 | E58: =SUM(Angul:Sundargarh!E58) -> 0 | F58: =SUM(Angul:Sundargarh!F58) -> 0 | G58: =SUM(Angul:Sundargarh!G58) -> 0 | H58: =SUM(Angul:Sundargarh!H58) -> 0 | I58: =SUM(Angul:Sundargarh!I58) -> 0 | J58: =SUM(Angul:Sundargarh!J58) -> 0 | M58: 0 | N58: 0 | O58: =SUM(Angul:Sundargarh!O58) -> 0 | P58: =SUM(Angul:Sundargarh!P58) -> 0 | Q58: =SUM(Angul:Sundargarh!Q58) -> 0 | R58: =SUM(Angul:Sundargarh!R58) -> 0 | S58: 1.2 | T58: =SUM(Angul:Sundargarh!T58) -> 0 | U58: =SUM(Angul:Sundargarh!U58) -> 0 | V58: =SUM(Angul:Sundargarh!V58) -> 0 | W58: =SUM(Angul:Sundargarh!W58) -> 0 | X58: =SUM(Angul:Sundargarh!X58) -> 0 | Y58: =SUM(Angul:Sundargarh!Y58) -> 0 | Z58: =SUM(Angul:Sundargarh!Z58) -> 0 | AA58: =SUM(Angul:Sundargarh!AA58) -> 0 | AC58: =SUM(Angul:Sundargarh!AC58) -> 0 | AD58: =SUM(Angul:Sundargarh!AD58) -> 0 | AE58: =SUM(Angul:Sundargarh!AE58) -> 0 | AF58: =SUM(Angul:Sundargarh!AF58) -> 0
A59: 2.25 | B59: Supplementary TLM, Stationery and other educational material per child @1000/- per annum | C59: =SUM(Angul:Sundargarh!C59) -> 0 | D59: =SUM(Angul:Sundargarh!D59) -> 0 | E59: =SUM(Angul:Sundargarh!E59) -> 0 | F59: =SUM(Angul:Sundargarh!F59) -> 0 | G59: =SUM(Angul:Sundargarh!G59) -> 0 | H59: =SUM(Angul:Sundargarh!H59) -> 0 | I59: =SUM(Angul:Sundargarh!I59) -> 0 | J59: =SUM(Angul:Sundargarh!J59) -> 0 | M59: 0 | N59: 0 | O59: =SUM(Angul:Sundargarh!O59) -> 0 | P59: =SUM(Angul:Sundargarh!P59) -> 0 | Q59: =SUM(Angul:Sundargarh!Q59) -> 0 | R59: =SUM(Angul:Sundargarh!R59) -> 0 | S59: 1 | T59: =SUM(Angul:Sundargarh!T59) -> 0 | U59: =SUM(Angul:Sundargarh!U59) -> 0 | V59: =SUM(Angul:Sundargarh!V59) -> 0 | W59: =SUM(Angul:Sundargarh!W59) -> 0 | X59: =SUM(Angul:Sundargarh!X59) -> 0 | Y59: =SUM(Angul:Sundargarh!Y59) -> 0 | Z59: =SUM(Angul:Sundargarh!Z59) -> 0 | AA59: =SUM(Angul:Sundargarh!AA59) -> 0 | AC59: =SUM(Angul:Sundargarh!AC59) -> 0 | AD59: =SUM(Angul:Sundargarh!AD59) -> 0 | AE59: =SUM(Angul:Sundargarh!AE59) -> 0 | AF59: =SUM(Angul:Sundargarh!AF59) -> 0
A60: 2.26 | B60: Salaries | C60: =SUM(Angul:Sundargarh!C60) -> 0 | D60: =SUM(Angul:Sundargarh!D60) -> 0 | E60: =SUM(Angul:Sundargarh!E60) -> 0 | F60: =SUM(Angul:Sundargarh!F60) -> 0 | G60: =SUM(Angul:Sundargarh!G60) -> 0 | H60: =SUM(Angul:Sundargarh!H60) -> 0 | I60: =SUM(Angul:Sundargarh!I60) -> 0 | J60: =SUM(Angul:Sundargarh!J60) -> 0 | M60: 0 | N60: 0 | O60: =SUM(Angul:Sundargarh!O60) -> 0 | P60: =SUM(Angul:Sundargarh!P60) -> 0 | Q60: =SUM(Angul:Sundargarh!Q60) -> 0 | R60: =SUM(Angul:Sundargarh!R60) -> 0 | T60: =SUM(Angul:Sundargarh!T60) -> 0 | U60: =SUM(Angul:Sundargarh!U60) -> 0 | V60: =SUM(Angul:Sundargarh!V60) -> 0 | W60: =SUM(Angul:Sundargarh!W60) -> 0 | X60: =SUM(Angul:Sundargarh!X60) -> 0 | Y60: =SUM(Angul:Sundargarh!Y60) -> 0 | Z60: =SUM(Angul:Sundargarh!Z60) -> 0 | AA60: =SUM(Angul:Sundargarh!AA60) -> 0 | AC60: =SUM(Angul:Sundargarh!AC60) -> 0 | AD60: =SUM(Angul:Sundargarh!AD60) -> 0 | AE60: =SUM(Angul:Sundargarh!AE60) -> 0 | AF60: =SUM(Angul:Sundargarh!AF60) -> 0
A61: 2.26.a | B61: 1 Warden @ Rs. 25,000/- per month | C61: =SUM(Angul:Sundargarh!C61) -> 0 | D61: =SUM(Angul:Sundargarh!D61) -> 0 | E61: =SUM(Angul:Sundargarh!E61) -> 0 | F61: =SUM(Angul:Sundargarh!F61) -> 0 | G61: =SUM(Angul:Sundargarh!G61) -> 0 | H61: =SUM(Angul:Sundargarh!H61) -> 0 | I61: =SUM(Angul:Sundargarh!I61) -> 0 | J61: =SUM(Angul:Sundargarh!J61) -> 0 | M61: 0 | N61: 0 | O61: =SUM(Angul:Sundargarh!O61) -> 0 | P61: =SUM(Angul:Sundargarh!P61) -> 0 | Q61: =SUM(Angul:Sundargarh!Q61) -> 0 | R61: =SUM(Angul:Sundargarh!R61) -> 0 | S61: 3 | T61: =SUM(Angul:Sundargarh!T61) -> 0 | U61: =SUM(Angul:Sundargarh!U61) -> 0 | V61: =SUM(Angul:Sundargarh!V61) -> 0 | W61: =SUM(Angul:Sundargarh!W61) -> 0 | X61: =SUM(Angul:Sundargarh!X61) -> 0 | Y61: =SUM(Angul:Sundargarh!Y61) -> 0 | Z61: =SUM(Angul:Sundargarh!Z61) -> 0 | AA61: =SUM(Angul:Sundargarh!AA61) -> 0 | AC61: =SUM(Angul:Sundargarh!AC61) -> 0 | AD61: =SUM(Angul:Sundargarh!AD61) -> 0 | AE61: =SUM(Angul:Sundargarh!AE61) -> 0 | AF61: =SUM(Angul:Sundargarh!AF61) -> 0
A62: 2.26.b | B62: 4 - 5 Full time teachers as per RTE norms @ Rs. 20,000/- per month per teacher | C62: =SUM(Angul:Sundargarh!C62) -> 0 | D62: =SUM(Angul:Sundargarh!D62) -> 0 | E62: =SUM(Angul:Sundargarh!E62) -> 0 | F62: =SUM(Angul:Sundargarh!F62) -> 0 | G62: =SUM(Angul:Sundargarh!G62) -> 0 | H62: =SUM(Angul:Sundargarh!H62) -> 0 | I62: =SUM(Angul:Sundargarh!I62) -> 0 | J62: =SUM(Angul:Sundargarh!J62) -> 0 | M62: 0 | N62: 0 | O62: =SUM(Angul:Sundargarh!O62) -> 0 | P62: =SUM(Angul:Sundargarh!P62) -> 0 | Q62: =SUM(Angul:Sundargarh!Q62) -> 0 | R62: =SUM(Angul:Sundargarh!R62) -> 0 | S62: 9.6 | T62: =SUM(Angul:Sundargarh!T62) -> 0 | U62: =SUM(Angul:Sundargarh!U62) -> 0 | V62: =SUM(Angul:Sundargarh!V62) -> 0 | W62: =SUM(Angul:Sundargarh!W62) -> 0 | X62: =SUM(Angul:Sundargarh!X62) -> 0 | Y62: =SUM(Angul:Sundargarh!Y62) -> 0 | Z62: =SUM(Angul:Sundargarh!Z62) -> 0 | AA62: =SUM(Angul:Sundargarh!AA62) -> 0 | AC62: =SUM(Angul:Sundargarh!AC62) -> 0 | AD62: =SUM(Angul:Sundargarh!AD62) -> 0 | AE62: =SUM(Angul:Sundargarh!AE62) -> 0 | AF62: =SUM(Angul:Sundargarh!AF62) -> 0
A63: 2.26.c | B63: 2 Urdu Teachers (only for blocks with muslim population above 20% and select urban areas), if required @ Rs. 12,000/- per month per teacher | C63: =SUM(Angul:Sundargarh!C63) -> 0 | D63: =SUM(Angul:Sundargarh!D63) -> 0 | E63: =SUM(Angul:Sundargarh!E63) -> 0 | F63: =SUM(Angul:Sundargarh!F63) -> 0 | G63: =SUM(Angul:Sundargarh!G63) -> 0 | H63: =SUM(Angul:Sundargarh!H63) -> 0 | I63: =SUM(Angul:Sundargarh!I63) -> 0 | J63: =SUM(Angul:Sundargarh!J63) -> 0 | M63: 0 | N63: 0 | O63: =SUM(Angul:Sundargarh!O63) -> 0 | P63: =SUM(Angul:Sundargarh!P63) -> 0 | Q63: =SUM(Angul:Sundargarh!Q63) -> 0 | R63: =SUM(Angul:Sundargarh!R63) -> 0 | S63: 2.88 | T63: =SUM(Angul:Sundargarh!T63) -> 0 | U63: =SUM(Angul:Sundargarh!U63) -> 0 | V63: =SUM(Angul:Sundargarh!V63) -> 0 | W63: =SUM(Angul:Sundargarh!W63) -> 0 | X63: =SUM(Angul:Sundargarh!X63) -> 0 | Y63: =SUM(Angul:Sundargarh!Y63) -> 0 | Z63: =SUM(Angul:Sundargarh!Z63) -> 0 | AA63: =SUM(Angul:Sundargarh!AA63) -> 0 | AC63: =SUM(Angul:Sundargarh!AC63) -> 0 | AD63: =SUM(Angul:Sundargarh!AD63) -> 0 | AE63: =SUM(Angul:Sundargarh!AE63) -> 0 | AF63: =SUM(Angul:Sundargarh!AF63) -> 0
A64: 2.26.d | B64: 3 part time teachers @ Rs. 5,000/- per month per teacher | C64: =SUM(Angul:Sundargarh!C64) -> 0 | D64: =SUM(Angul:Sundargarh!D64) -> 0 | E64: =SUM(Angul:Sundargarh!E64) -> 0 | F64: =SUM(Angul:Sundargarh!F64) -> 0 | G64: =SUM(Angul:Sundargarh!G64) -> 0 | H64: =SUM(Angul:Sundargarh!H64) -> 0 | I64: =SUM(Angul:Sundargarh!I64) -> 0 | J64: =SUM(Angul:Sundargarh!J64) -> 0 | M64: 0 | N64: 0 | O64: =SUM(Angul:Sundargarh!O64) -> 0 | P64: =SUM(Angul:Sundargarh!P64) -> 0 | Q64: =SUM(Angul:Sundargarh!Q64) -> 0 | R64: =SUM(Angul:Sundargarh!R64) -> 0 | S64: 1.5 | T64: =SUM(Angul:Sundargarh!T64) -> 0 | U64: =SUM(Angul:Sundargarh!U64) -> 0 | V64: =SUM(Angul:Sundargarh!V64) -> 0 | W64: =SUM(Angul:Sundargarh!W64) -> 0 | X64: =SUM(Angul:Sundargarh!X64) -> 0 | Y64: =SUM(Angul:Sundargarh!Y64) -> 0 | Z64: =SUM(Angul:Sundargarh!Z64) -> 0 | AA64: =SUM(Angul:Sundargarh!AA64) -> 0 | AC64: =SUM(Angul:Sundargarh!AC64) -> 0 | AD64: =SUM(Angul:Sundargarh!AD64) -> 0 | AE64: =SUM(Angul:Sundargarh!AE64) -> 0 | AF64: =SUM(Angul:Sundargarh!AF64) -> 0
A65: 2.26.e | B65: 1 Full time Accountant @ Rs. 10,000/- per month | C65: =SUM(Angul:Sundargarh!C65) -> 0 | D65: =SUM(Angul:Sundargarh!D65) -> 0 | E65: =SUM(Angul:Sundargarh!E65) -> 0 | F65: =SUM(Angul:Sundargarh!F65) -> 0 | G65: =SUM(Angul:Sundargarh!G65) -> 0 | H65: =SUM(Angul:Sundargarh!H65) -> 0 | I65: =SUM(Angul:Sundargarh!I65) -> 0 | J65: =SUM(Angul:Sundargarh!J65) -> 0 | M65: 0 | N65: 0 | O65: =SUM(Angul:Sundargarh!O65) -> 0 | P65: =SUM(Angul:Sundargarh!P65) -> 0 | Q65: =SUM(Angul:Sundargarh!Q65) -> 0 | R65: =SUM(Angul:Sundargarh!R65) -> 0 | S65: 1.2 | T65: =SUM(Angul:Sundargarh!T65) -> 0 | U65: =SUM(Angul:Sundargarh!U65) -> 0 | V65: =SUM(Angul:Sundargarh!V65) -> 0 | W65: =SUM(Angul:Sundargarh!W65) -> 0 | X65: =SUM(Angul:Sundargarh!X65) -> 0 | Y65: =SUM(Angul:Sundargarh!Y65) -> 0 | Z65: =SUM(Angul:Sundargarh!Z65) -> 0 | AA65: =SUM(Angul:Sundargarh!AA65) -> 0 | AC65: =SUM(Angul:Sundargarh!AC65) -> 0 | AD65: =SUM(Angul:Sundargarh!AD65) -> 0 | AE65: =SUM(Angul:Sundargarh!AE65) -> 0 | AF65: =SUM(Angul:Sundargarh!AF65) -> 0
A66: 2.26.f | B66: 2 Support Staff – (Accountant/ Assistant, Peon, Chowkidar) @ Rs. 5,000/- per month per staff | C66: =SUM(Angul:Sundargarh!C66) -> 0 | D66: =SUM(Angul:Sundargarh!D66) -> 0 | E66: =SUM(Angul:Sundargarh!E66) -> 0 | F66: =SUM(Angul:Sundargarh!F66) -> 0 | G66: =SUM(Angul:Sundargarh!G66) -> 0 | H66: =SUM(Angul:Sundargarh!H66) -> 0 | I66: =SUM(Angul:Sundargarh!I66) -> 0 | J66: =SUM(Angul:Sundargarh!J66) -> 0 | M66: 0 | N66: 0 | O66: =SUM(Angul:Sundargarh!O66) -> 0 | P66: =SUM(Angul:Sundargarh!P66) -> 0 | Q66: =SUM(Angul:Sundargarh!Q66) -> 0 | R66: =SUM(Angul:Sundargarh!R66) -> 0 | S66: 1.2 | T66: =SUM(Angul:Sundargarh!T66) -> 0 | U66: =SUM(Angul:Sundargarh!U66) -> 0 | V66: =SUM(Angul:Sundargarh!V66) -> 0 | W66: =SUM(Angul:Sundargarh!W66) -> 0 | X66: =SUM(Angul:Sundargarh!X66) -> 0 | Y66: =SUM(Angul:Sundargarh!Y66) -> 0 | Z66: =SUM(Angul:Sundargarh!Z66) -> 0 | AA66: =SUM(Angul:Sundargarh!AA66) -> 0 | AC66: =SUM(Angul:Sundargarh!AC66) -> 0 | AD66: =SUM(Angul:Sundargarh!AD66) -> 0 | AE66: =SUM(Angul:Sundargarh!AE66) -> 0 | AF66: =SUM(Angul:Sundargarh!AF66) -> 0
A67: 2.26.g | B67: 1 Head cook @ Rs. 6,000/- per month and upto 2 Asstt. Cooks @ Rs. 4,500/- per month per cook | C67: =SUM(Angul:Sundargarh!C67) -> 0 | D67: =SUM(Angul:Sundargarh!D67) -> 0 | E67: =SUM(Angul:Sundargarh!E67) -> 0 | F67: =SUM(Angul:Sundargarh!F67) -> 0 | G67: =SUM(Angul:Sundargarh!G67) -> 0 | H67: =SUM(Angul:Sundargarh!H67) -> 0 | I67: =SUM(Angul:Sundargarh!I67) -> 0 | J67: =SUM(Angul:Sundargarh!J67) -> 0 | M67: 0 | N67: 0 | O67: =SUM(Angul:Sundargarh!O67) -> 0 | P67: =SUM(Angul:Sundargarh!P67) -> 0 | Q67: =SUM(Angul:Sundargarh!Q67) -> 0 | R67: =SUM(Angul:Sundargarh!R67) -> 0 | S67: 1.8 | T67: =SUM(Angul:Sundargarh!T67) -> 0 | U67: =SUM(Angul:Sundargarh!U67) -> 0 | V67: =SUM(Angul:Sundargarh!V67) -> 0 | W67: =SUM(Angul:Sundargarh!W67) -> 0 | X67: =SUM(Angul:Sundargarh!X67) -> 0 | Y67: =SUM(Angul:Sundargarh!Y67) -> 0 | Z67: =SUM(Angul:Sundargarh!Z67) -> 0 | AA67: =SUM(Angul:Sundargarh!AA67) -> 0 | AC67: =SUM(Angul:Sundargarh!AC67) -> 0 | AD67: =SUM(Angul:Sundargarh!AD67) -> 0 | AE67: =SUM(Angul:Sundargarh!AE67) -> 0 | AF67: =SUM(Angul:Sundargarh!AF67) -> 0
A68: 2.26h | B68: 1 head teacher @ Rs. 25,000/- per month in case the enrollment exceeds 100 | C68: =SUM(Angul:Sundargarh!C68) -> 0 | D68: =SUM(Angul:Sundargarh!D68) -> 0 | E68: =SUM(Angul:Sundargarh!E68) -> 0 | F68: =SUM(Angul:Sundargarh!F68) -> 0 | G68: =SUM(Angul:Sundargarh!G68) -> 0 | H68: =SUM(Angul:Sundargarh!H68) -> 0 | I68: =SUM(Angul:Sundargarh!I68) -> 0 | J68: =SUM(Angul:Sundargarh!J68) -> 0 | O68: =SUM(Angul:Sundargarh!O68) -> 0 | P68: =SUM(Angul:Sundargarh!P68) -> 0 | Q68: =SUM(Angul:Sundargarh!Q68) -> 0 | R68: =SUM(Angul:Sundargarh!R68) -> 0 | T68: =SUM(Angul:Sundargarh!T68) -> 0 | U68: =SUM(Angul:Sundargarh!U68) -> 0 | V68: =SUM(Angul:Sundargarh!V68) -> 0 | W68: =SUM(Angul:Sundargarh!W68) -> 0 | X68: =SUM(Angul:Sundargarh!X68) -> 0 | Y68: =SUM(Angul:Sundargarh!Y68) -> 0 | Z68: =SUM(Angul:Sundargarh!Z68) -> 0 | AA68: =SUM(Angul:Sundargarh!AA68) -> 0 | AC68: =SUM(Angul:Sundargarh!AC68) -> 0 | AD68: =SUM(Angul:Sundargarh!AD68) -> 0 | AE68: =SUM(Angul:Sundargarh!AE68) -> 0 | AF68: =SUM(Angul:Sundargarh!AF68) -> 0
A69: 2.27 | B69: Specific skill training per child @ Rs.1000/- per annum | C69: =SUM(Angul:Sundargarh!C69) -> 0 | D69: =SUM(Angul:Sundargarh!D69) -> 0 | E69: =SUM(Angul:Sundargarh!E69) -> 0 | F69: =SUM(Angul:Sundargarh!F69) -> 0 | G69: =SUM(Angul:Sundargarh!G69) -> 0 | H69: =SUM(Angul:Sundargarh!H69) -> 0 | I69: =SUM(Angul:Sundargarh!I69) -> 0 | J69: =SUM(Angul:Sundargarh!J69) -> 0 | M69: 0 | N69: 0 | O69: =SUM(Angul:Sundargarh!O69) -> 0 | P69: =SUM(Angul:Sundargarh!P69) -> 0 | Q69: =SUM(Angul:Sundargarh!Q69) -> 0 | R69: =SUM(Angul:Sundargarh!R69) -> 0 | S69: 1 | T69: =SUM(Angul:Sundargarh!T69) -> 0 | U69: =SUM(Angul:Sundargarh!U69) -> 0 | V69: =SUM(Angul:Sundargarh!V69) -> 0 | W69: =SUM(Angul:Sundargarh!W69) -> 0 | X69: =SUM(Angul:Sundargarh!X69) -> 0 | Y69: =SUM(Angul:Sundargarh!Y69) -> 0 | Z69: =SUM(Angul:Sundargarh!Z69) -> 0 | AA69: =SUM(Angul:Sundargarh!AA69) -> 0 | AC69: =SUM(Angul:Sundargarh!AC69) -> 0 | AD69: =SUM(Angul:Sundargarh!AD69) -> 0 | AE69: =SUM(Angul:Sundargarh!AE69) -> 0 | AF69: =SUM(Angul:Sundargarh!AF69) -> 0
A70: 2.28 | B70: Electricity / water charges per child @Rs.1000/- per annum | C70: =SUM(Angul:Sundargarh!C70) -> 0 | D70: =SUM(Angul:Sundargarh!D70) -> 0 | E70: =SUM(Angul:Sundargarh!E70) -> 0 | F70: =SUM(Angul:Sundargarh!F70) -> 0 | G70: =SUM(Angul:Sundargarh!G70) -> 0 | H70: =SUM(Angul:Sundargarh!H70) -> 0 | I70: =SUM(Angul:Sundargarh!I70) -> 0 | J70: =SUM(Angul:Sundargarh!J70) -> 0 | M70: 0 | N70: 0 | O70: =SUM(Angul:Sundargarh!O70) -> 0 | P70: =SUM(Angul:Sundargarh!P70) -> 0 | Q70: =SUM(Angul:Sundargarh!Q70) -> 0 | R70: =SUM(Angul:Sundargarh!R70) -> 0 | S70: 1 | T70: =SUM(Angul:Sundargarh!T70) -> 0 | U70: =SUM(Angul:Sundargarh!U70) -> 0 | V70: =SUM(Angul:Sundargarh!V70) -> 0 | W70: =SUM(Angul:Sundargarh!W70) -> 0 | X70: =SUM(Angul:Sundargarh!X70) -> 0 | Y70: =SUM(Angul:Sundargarh!Y70) -> 0 | Z70: =SUM(Angul:Sundargarh!Z70) -> 0 | AA70: =SUM(Angul:Sundargarh!AA70) -> 0 | AC70: =SUM(Angul:Sundargarh!AC70) -> 0 | AD70: =SUM(Angul:Sundargarh!AD70) -> 0 | AE70: =SUM(Angul:Sundargarh!AE70) -> 0 | AF70: =SUM(Angul:Sundargarh!AF70) -> 0
A71: 2.29 | B71: Medical care/contingencies @ Rs.1250/- per child per annum | C71: =SUM(Angul:Sundargarh!C71) -> 0 | D71: =SUM(Angul:Sundargarh!D71) -> 0 | E71: =SUM(Angul:Sundargarh!E71) -> 0 | F71: =SUM(Angul:Sundargarh!F71) -> 0 | G71: =SUM(Angul:Sundargarh!G71) -> 0 | H71: =SUM(Angul:Sundargarh!H71) -> 0 | I71: =SUM(Angul:Sundargarh!I71) -> 0 | J71: =SUM(Angul:Sundargarh!J71) -> 0 | M71: 0 | N71: 0 | O71: =SUM(Angul:Sundargarh!O71) -> 0 | P71: =SUM(Angul:Sundargarh!P71) -> 0 | Q71: =SUM(Angul:Sundargarh!Q71) -> 0 | R71: =SUM(Angul:Sundargarh!R71) -> 0 | S71: 1.25 | T71: =SUM(Angul:Sundargarh!T71) -> 0 | U71: =SUM(Angul:Sundargarh!U71) -> 0 | V71: =SUM(Angul:Sundargarh!V71) -> 0 | W71: =SUM(Angul:Sundargarh!W71) -> 0 | X71: =SUM(Angul:Sundargarh!X71) -> 0 | Y71: =SUM(Angul:Sundargarh!Y71) -> 0 | Z71: =SUM(Angul:Sundargarh!Z71) -> 0 | AA71: =SUM(Angul:Sundargarh!AA71) -> 0 | AC71: =SUM(Angul:Sundargarh!AC71) -> 0 | AD71: =SUM(Angul:Sundargarh!AD71) -> 0 | AE71: =SUM(Angul:Sundargarh!AE71) -> 0 | AF71: =SUM(Angul:Sundargarh!AF71) -> 0
A72: 2.3 | B72: Maintenance @ Rs.750/- per child per annum | C72: =SUM(Angul:Sundargarh!C72) -> 0 | D72: =SUM(Angul:Sundargarh!D72) -> 0 | E72: =SUM(Angul:Sundargarh!E72) -> 0 | F72: =SUM(Angul:Sundargarh!F72) -> 0 | G72: =SUM(Angul:Sundargarh!G72) -> 0 | H72: =SUM(Angul:Sundargarh!H72) -> 0 | I72: =SUM(Angul:Sundargarh!I72) -> 0 | J72: =SUM(Angul:Sundargarh!J72) -> 0 | K72: =I72/C72 ->  | L72: =J72/F72*100 ->  | M72: =C72-I72 -> 0 | N72: =F72-J72 -> 0 | O72: =SUM(Angul:Sundargarh!O72) -> 0 | P72: =SUM(Angul:Sundargarh!P72) -> 0 | Q72: =SUM(Angul:Sundargarh!Q72) -> 0 | R72: =SUM(Angul:Sundargarh!R72) -> 0 | S72: 0.75 | T72: =SUM(Angul:Sundargarh!T72) -> 0 | U72: =SUM(Angul:Sundargarh!U72) -> 0 | V72: =SUM(Angul:Sundargarh!V72) -> 0 | W72: =SUM(Angul:Sundargarh!W72) -> 0 | X72: =SUM(Angul:Sundargarh!X72) -> 0 | Y72: =SUM(Angul:Sundargarh!Y72) -> 0 | Z72: =SUM(Angul:Sundargarh!Z72) -> 0 | AA72: =SUM(Angul:Sundargarh!AA72) -> 0 | AC72: =SUM(Angul:Sundargarh!AC72) -> 0 | AD72: =SUM(Angul:Sundargarh!AD72) -> 0 | AE72: =SUM(Angul:Sundargarh!AE72) -> 0 | AF72: =SUM(Angul:Sundargarh!AF72) -> 0
A73: 2.31 | B73: Miscellaneous @ Rs.750/- per child per annum | C73: =SUM(Angul:Sundargarh!C73) -> 0 | D73: =SUM(Angul:Sundargarh!D73) -> 0 | E73: =SUM(Angul:Sundargarh!E73) -> 0 | F73: =SUM(Angul:Sundargarh!F73) -> 0 | G73: =SUM(Angul:Sundargarh!G73) -> 0 | H73: =SUM(Angul:Sundargarh!H73) -> 0 | I73: =SUM(Angul:Sundargarh!I73) -> 0 | J73: =SUM(Angul:Sundargarh!J73) -> 0 | M73: 0 | N73: 0 | O73: =SUM(Angul:Sundargarh!O73) -> 0 | P73: =SUM(Angul:Sundargarh!P73) -> 0 | Q73: =SUM(Angul:Sundargarh!Q73) -> 0 | R73: =SUM(Angul:Sundargarh!R73) -> 0 | S73: 0.75 | T73: =SUM(Angul:Sundargarh!T73) -> 0 | U73: =SUM(Angul:Sundargarh!U73) -> 0 | V73: =SUM(Angul:Sundargarh!V73) -> 0 | W73: =SUM(Angul:Sundargarh!W73) -> 0 | X73: =SUM(Angul:Sundargarh!X73) -> 0 | Y73: =SUM(Angul:Sundargarh!Y73) -> 0 | Z73: =SUM(Angul:Sundargarh!Z73) -> 0 | AA73: =SUM(Angul:Sundargarh!AA73) -> 0 | AC73: =SUM(Angul:Sundargarh!AC73) -> 0 | AD73: =SUM(Angul:Sundargarh!AD73) -> 0 | AE73: =SUM(Angul:Sundargarh!AE73) -> 0 | AF73: =SUM(Angul:Sundargarh!AF73) -> 0
A74: 2.32 | B74: Preparatory camps @ Rs.200/- per child per annum | C74: =SUM(Angul:Sundargarh!C74) -> 0 | D74: =SUM(Angul:Sundargarh!D74) -> 0 | E74: =SUM(Angul:Sundargarh!E74) -> 0 | F74: =SUM(Angul:Sundargarh!F74) -> 0 | G74: =SUM(Angul:Sundargarh!G74) -> 0 | H74: =SUM(Angul:Sundargarh!H74) -> 0 | I74: =SUM(Angul:Sundargarh!I74) -> 0 | J74: =SUM(Angul:Sundargarh!J74) -> 0 | M74: 0 | N74: 0 | O74: =SUM(Angul:Sundargarh!O74) -> 0 | P74: =SUM(Angul:Sundargarh!P74) -> 0 | Q74: =SUM(Angul:Sundargarh!Q74) -> 0 | R74: =SUM(Angul:Sundargarh!R74) -> 0 | S74: 0.2 | T74: =SUM(Angul:Sundargarh!T74) -> 0 | U74: =SUM(Angul:Sundargarh!U74) -> 0 | V74: =SUM(Angul:Sundargarh!V74) -> 0 | W74: =SUM(Angul:Sundargarh!W74) -> 0 | X74: =SUM(Angul:Sundargarh!X74) -> 0 | Y74: =SUM(Angul:Sundargarh!Y74) -> 0 | Z74: =SUM(Angul:Sundargarh!Z74) -> 0 | AA74: =SUM(Angul:Sundargarh!AA74) -> 0 | AC74: =SUM(Angul:Sundargarh!AC74) -> 0 | AD74: =SUM(Angul:Sundargarh!AD74) -> 0 | AE74: =SUM(Angul:Sundargarh!AE74) -> 0 | AF74: =SUM(Angul:Sundargarh!AF74) -> 0
A75: 2.33 | B75: P.T.A / school functions @ Rs.200/- per child per annum | C75: =SUM(Angul:Sundargarh!C75) -> 0 | D75: =SUM(Angul:Sundargarh!D75) -> 0 | E75: =SUM(Angul:Sundargarh!E75) -> 0 | F75: =SUM(Angul:Sundargarh!F75) -> 0 | G75: =SUM(Angul:Sundargarh!G75) -> 0 | H75: =SUM(Angul:Sundargarh!H75) -> 0 | I75: =SUM(Angul:Sundargarh!I75) -> 0 | J75: =SUM(Angul:Sundargarh!J75) -> 0 | M75: 0 | N75: 0 | O75: =SUM(Angul:Sundargarh!O75) -> 0 | P75: =SUM(Angul:Sundargarh!P75) -> 0 | Q75: =SUM(Angul:Sundargarh!Q75) -> 0 | R75: =SUM(Angul:Sundargarh!R75) -> 0 | S75: 0.2 | T75: =SUM(Angul:Sundargarh!T75) -> 0 | U75: =SUM(Angul:Sundargarh!U75) -> 0 | V75: =SUM(Angul:Sundargarh!V75) -> 0 | W75: =SUM(Angul:Sundargarh!W75) -> 0 | X75: =SUM(Angul:Sundargarh!X75) -> 0 | Y75: =SUM(Angul:Sundargarh!Y75) -> 0 | Z75: =SUM(Angul:Sundargarh!Z75) -> 0 | AA75: =SUM(Angul:Sundargarh!AA75) -> 0 | AC75: =SUM(Angul:Sundargarh!AC75) -> 0 | AD75: =SUM(Angul:Sundargarh!AD75) -> 0 | AE75: =SUM(Angul:Sundargarh!AE75) -> 0 | AF75: =SUM(Angul:Sundargarh!AF75) -> 0
A76: 2.34 | B76: Provision of Rent @ Rs. 6000/- per child per annum | C76: =SUM(Angul:Sundargarh!C76) -> 0 | D76: =SUM(Angul:Sundargarh!D76) -> 0 | E76: =SUM(Angul:Sundargarh!E76) -> 0 | F76: =SUM(Angul:Sundargarh!F76) -> 0 | G76: =SUM(Angul:Sundargarh!G76) -> 0 | H76: =SUM(Angul:Sundargarh!H76) -> 0 | I76: =SUM(Angul:Sundargarh!I76) -> 0 | J76: =SUM(Angul:Sundargarh!J76) -> 0 | M76: 0 | N76: 0 | O76: =SUM(Angul:Sundargarh!O76) -> 0 | P76: =SUM(Angul:Sundargarh!P76) -> 0 | Q76: =SUM(Angul:Sundargarh!Q76) -> 0 | R76: =SUM(Angul:Sundargarh!R76) -> 0 | T76: =SUM(Angul:Sundargarh!T76) -> 0 | U76: =SUM(Angul:Sundargarh!U76) -> 0 | V76: =SUM(Angul:Sundargarh!V76) -> 0 | W76: =SUM(Angul:Sundargarh!W76) -> 0 | X76: =SUM(Angul:Sundargarh!X76) -> 0 | Y76: =SUM(Angul:Sundargarh!Y76) -> 0 | Z76: =SUM(Angul:Sundargarh!Z76) -> 0 | AA76: =SUM(Angul:Sundargarh!AA76) -> 0 | AC76: =SUM(Angul:Sundargarh!AC76) -> 0 | AD76: =SUM(Angul:Sundargarh!AD76) -> 0 | AE76: =SUM(Angul:Sundargarh!AE76) -> 0 | AF76: =SUM(Angul:Sundargarh!AF76) -> 0
A77: 2.35 | B77: Capacity Building @ Rs.500/- per child per annum | C77: =SUM(Angul:Sundargarh!C77) -> 0 | D77: =SUM(Angul:Sundargarh!D77) -> 0 | E77: =SUM(Angul:Sundargarh!E77) -> 0 | F77: =SUM(Angul:Sundargarh!F77) -> 0 | G77: =SUM(Angul:Sundargarh!G77) -> 0 | H77: =SUM(Angul:Sundargarh!H77) -> 0 | I77: =SUM(Angul:Sundargarh!I77) -> 0 | J77: =SUM(Angul:Sundargarh!J77) -> 0 | M77: 0 | N77: 0 | O77: =SUM(Angul:Sundargarh!O77) -> 0 | P77: =SUM(Angul:Sundargarh!P77) -> 0 | Q77: =SUM(Angul:Sundargarh!Q77) -> 0 | R77: =SUM(Angul:Sundargarh!R77) -> 0 | S77: 0.5 | T77: =SUM(Angul:Sundargarh!T77) -> 0 | U77: =SUM(Angul:Sundargarh!U77) -> 0 | V77: =SUM(Angul:Sundargarh!V77) -> 0 | W77: =SUM(Angul:Sundargarh!W77) -> 0 | X77: =SUM(Angul:Sundargarh!X77) -> 0 | Y77: =SUM(Angul:Sundargarh!Y77) -> 0 | Z77: =SUM(Angul:Sundargarh!Z77) -> 0 | AA77: =SUM(Angul:Sundargarh!AA77) -> 0 | AC77: =SUM(Angul:Sundargarh!AC77) -> 0 | AD77: =SUM(Angul:Sundargarh!AD77) -> 0 | AE77: =SUM(Angul:Sundargarh!AE77) -> 0 | AF77: =SUM(Angul:Sundargarh!AF77) -> 0
A78: 2.36 | B78: Physical / Self Defence training @ Rs. 200/- per child per annum. | C78: =SUM(Angul:Sundargarh!C78) -> 0 | D78: =SUM(Angul:Sundargarh!D78) -> 0 | E78: =SUM(Angul:Sundargarh!E78) -> 0 | F78: =SUM(Angul:Sundargarh!F78) -> 0 | G78: =SUM(Angul:Sundargarh!G78) -> 0 | H78: =SUM(Angul:Sundargarh!H78) -> 0 | I78: =SUM(Angul:Sundargarh!I78) -> 0 | J78: =SUM(Angul:Sundargarh!J78) -> 0 | M78: 0 | N78: 0 | O78: =SUM(Angul:Sundargarh!O78) -> 0 | P78: =SUM(Angul:Sundargarh!P78) -> 0 | Q78: =SUM(Angul:Sundargarh!Q78) -> 0 | R78: =SUM(Angul:Sundargarh!R78) -> 0 | S78: 0.2 | T78: =SUM(Angul:Sundargarh!T78) -> 0 | U78: =SUM(Angul:Sundargarh!U78) -> 0 | V78: =SUM(Angul:Sundargarh!V78) -> 0 | W78: =SUM(Angul:Sundargarh!W78) -> 0 | X78: =SUM(Angul:Sundargarh!X78) -> 0 | Y78: =SUM(Angul:Sundargarh!Y78) -> 0 | Z78: =SUM(Angul:Sundargarh!Z78) -> 0 | AA78: =SUM(Angul:Sundargarh!AA78) -> 0 | AC78: =SUM(Angul:Sundargarh!AC78) -> 0 | AD78: =SUM(Angul:Sundargarh!AD78) -> 0 | AE78: =SUM(Angul:Sundargarh!AE78) -> 0 | AF78: =SUM(Angul:Sundargarh!AF78) -> 0
B79: Sub Total (Recurring) | C79: =SUM(Angul:Sundargarh!C79) -> 0 | D79: =SUM(Angul:Sundargarh!D79) -> 0 | E79: =SUM(Angul:Sundargarh!E79) -> 0 | F79: =SUM(Angul:Sundargarh!F79) -> 0 | G79: =SUM(Angul:Sundargarh!G79) -> 0 | H79: =SUM(Angul:Sundargarh!H79) -> 0 | I79: =SUM(Angul:Sundargarh!I79) -> 0 | J79: =SUM(Angul:Sundargarh!J79) -> 0 | M79: 0 | N79: 0 | O79: =SUM(Angul:Sundargarh!O79) -> 0 | P79: =SUM(Angul:Sundargarh!P79) -> 0 | Q79: =SUM(Angul:Sundargarh!Q79) -> 0 | R79: =SUM(Angul:Sundargarh!R79) -> 0 | T79: =SUM(Angul:Sundargarh!T79) -> 0 | U79: =SUM(Angul:Sundargarh!U79) -> 0 | V79: =SUM(Angul:Sundargarh!V79) -> 0 | W79: =SUM(Angul:Sundargarh!W79) -> 0 | X79: =SUM(Angul:Sundargarh!X79) -> 0 | Y79: =SUM(Angul:Sundargarh!Y79) -> 0 | Z79: =SUM(Angul:Sundargarh!Z79) -> 0 | AA79: =SUM(Angul:Sundargarh!AA79) -> 0 | AC79: =SUM(Angul:Sundargarh!AC79) -> 0 | AD79: =SUM(Angul:Sundargarh!AD79) -> 0 | AE79: =SUM(Angul:Sundargarh!AE79) -> 0 | AF79: =SUM(Angul:Sundargarh!AF79) -> 0
B80: Total (Recurring + Non Recurring) | C80: =SUM(Angul:Sundargarh!C80) -> 0 | D80: =SUM(Angul:Sundargarh!D80) -> 0 | E80: =SUM(Angul:Sundargarh!E80) -> 0 | F80: =SUM(Angul:Sundargarh!F80) -> 0 | G80: =SUM(Angul:Sundargarh!G80) -> 0 | H80: =SUM(Angul:Sundargarh!H80) -> 0 | I80: =SUM(Angul:Sundargarh!I80) -> 0 | J80: =SUM(Angul:Sundargarh!J80) -> 0 | M80: 0 | N80: 0 | O80: =SUM(Angul:Sundargarh!O80) -> 0 | P80: =SUM(Angul:Sundargarh!P80) -> 0 | Q80: =SUM(Angul:Sundargarh!Q80) -> 0 | R80: =SUM(Angul:Sundargarh!R80) -> 0 | T80: =SUM(Angul:Sundargarh!T80) -> 0 | U80: =SUM(Angul:Sundargarh!U80) -> 0 | V80: =SUM(Angul:Sundargarh!V80) -> 0 | W80: =SUM(Angul:Sundargarh!W80) -> 0 | X80: =SUM(Angul:Sundargarh!X80) -> 0 | Y80: =SUM(Angul:Sundargarh!Y80) -> 0 | Z80: =SUM(Angul:Sundargarh!Z80) -> 0 | AA80: =SUM(Angul:Sundargarh!AA80) -> 0 | AC80: =SUM(Angul:Sundargarh!AC80) -> 0 | AD80: =SUM(Angul:Sundargarh!AD80) -> 0 | AE80: =SUM(Angul:Sundargarh!AE80) -> 0 | AF80: =SUM(Angul:Sundargarh!AF80) -> 0
B81: Total (50 + 100 children) | C81: =SUM(Angul:Sundargarh!C81) -> 0 | D81: =SUM(Angul:Sundargarh!D81) -> 0 | E81: =SUM(Angul:Sundargarh!E81) -> 0 | F81: =SUM(Angul:Sundargarh!F81) -> 0 | G81: =SUM(Angul:Sundargarh!G81) -> 0 | H81: =SUM(Angul:Sundargarh!H81) -> 0 | I81: =SUM(Angul:Sundargarh!I81) -> 0 | J81: =SUM(Angul:Sundargarh!J81) -> 0 | M81: 0 | N81: 0 | O81: =SUM(Angul:Sundargarh!O81) -> 0 | P81: =SUM(Angul:Sundargarh!P81) -> 0 | Q81: =SUM(Angul:Sundargarh!Q81) -> 0 | R81: =SUM(Angul:Sundargarh!R81) -> 0 | T81: =SUM(Angul:Sundargarh!T81) -> 0 | U81: =SUM(Angul:Sundargarh!U81) -> 0 | V81: =SUM(Angul:Sundargarh!V81) -> 0 | W81: =SUM(Angul:Sundargarh!W81) -> 0 | X81: =SUM(Angul:Sundargarh!X81) -> 0 | Y81: =SUM(Angul:Sundargarh!Y81) -> 0 | Z81: =SUM(Angul:Sundargarh!Z81) -> 0 | AA81: =SUM(Angul:Sundargarh!AA81) -> 0 | AC81: =SUM(Angul:Sundargarh!AC81) -> 0 | AD81: =SUM(Angul:Sundargarh!AD81) -> 0 | AE81: =SUM(Angul:Sundargarh!AE81) -> 0 | AF81: =SUM(Angul:Sundargarh!AF81) -> 0
A82: 3 | B82: Residential Hostel for specific category of children | C82: =SUM(Angul:Sundargarh!C82) -> 0 | D82: =SUM(Angul:Sundargarh!D82) -> 0 | E82: =SUM(Angul:Sundargarh!E82) -> 0 | F82: =SUM(Angul:Sundargarh!F82) -> 0 | G82: =SUM(Angul:Sundargarh!G82) -> 0 | H82: =SUM(Angul:Sundargarh!H82) -> 0 | I82: =SUM(Angul:Sundargarh!I82) -> 0 | J82: =SUM(Angul:Sundargarh!J82) -> 0 | O82: =SUM(Angul:Sundargarh!O82) -> 0 | P82: =SUM(Angul:Sundargarh!P82) -> 0 | Q82: =SUM(Angul:Sundargarh!Q82) -> 0 | R82: =SUM(Angul:Sundargarh!R82) -> 0 | T82: =SUM(Angul:Sundargarh!T82) -> 0 | U82: =SUM(Angul:Sundargarh!U82) -> 0 | V82: =SUM(Angul:Sundargarh!V82) -> 0 | W82: =SUM(Angul:Sundargarh!W82) -> 0 | X82: =SUM(Angul:Sundargarh!X82) -> 0 | Y82: =SUM(Angul:Sundargarh!Y82) -> 0 | Z82: =SUM(Angul:Sundargarh!Z82) -> 0 | AA82: =SUM(Angul:Sundargarh!AA82) -> 0 | AC82: =SUM(Angul:Sundargarh!AC82) -> 0 | AD82: =SUM(Angul:Sundargarh!AD82) -> 0 | AE82: =SUM(Angul:Sundargarh!AE82) -> 0 | AF82: =SUM(Angul:Sundargarh!AF82) -> 0
A83: (A) | B83: 50 children | C83: =SUM(Angul:Sundargarh!C83) -> 0 | D83: =SUM(Angul:Sundargarh!D83) -> 0 | E83: =SUM(Angul:Sundargarh!E83) -> 0 | F83: =SUM(Angul:Sundargarh!F83) -> 0 | G83: =SUM(Angul:Sundargarh!G83) -> 0 | H83: =SUM(Angul:Sundargarh!H83) -> 0 | I83: =SUM(Angul:Sundargarh!I83) -> 0 | J83: =SUM(Angul:Sundargarh!J83) -> 0 | O83: =SUM(Angul:Sundargarh!O83) -> 0 | P83: =SUM(Angul:Sundargarh!P83) -> 0 | Q83: =SUM(Angul:Sundargarh!Q83) -> 0 | R83: =SUM(Angul:Sundargarh!R83) -> 0 | T83: =SUM(Angul:Sundargarh!T83) -> 0 | U83: =SUM(Angul:Sundargarh!U83) -> 0 | V83: =SUM(Angul:Sundargarh!V83) -> 0 | W83: =SUM(Angul:Sundargarh!W83) -> 0 | X83: =SUM(Angul:Sundargarh!X83) -> 0 | Y83: =SUM(Angul:Sundargarh!Y83) -> 0 | Z83: =SUM(Angul:Sundargarh!Z83) -> 0 | AA83: =SUM(Angul:Sundargarh!AA83) -> 0 | AC83: =SUM(Angul:Sundargarh!AC83) -> 0 | AD83: =SUM(Angul:Sundargarh!AD83) -> 0 | AE83: =SUM(Angul:Sundargarh!AE83) -> 0 | AF83: =SUM(Angul:Sundargarh!AF83) -> 0
B84: Non-recurring (one time grant) | C84: =SUM(Angul:Sundargarh!C84) -> 0 | D84: =SUM(Angul:Sundargarh!D84) -> 0 | E84: =SUM(Angul:Sundargarh!E84) -> 0 | F84: =SUM(Angul:Sundargarh!F84) -> 0 | G84: =SUM(Angul:Sundargarh!G84) -> 0 | H84: =SUM(Angul:Sundargarh!H84) -> 0 | I84: =SUM(Angul:Sundargarh!I84) -> 0 | J84: =SUM(Angul:Sundargarh!J84) -> 0 | O84: =SUM(Angul:Sundargarh!O84) -> 0 | P84: =SUM(Angul:Sundargarh!P84) -> 0 | Q84: =SUM(Angul:Sundargarh!Q84) -> 0 | R84: =SUM(Angul:Sundargarh!R84) -> 0 | T84: =SUM(Angul:Sundargarh!T84) -> 0 | U84: =SUM(Angul:Sundargarh!U84) -> 0 | V84: =SUM(Angul:Sundargarh!V84) -> 0 | W84: =SUM(Angul:Sundargarh!W84) -> 0 | X84: =SUM(Angul:Sundargarh!X84) -> 0 | Y84: =SUM(Angul:Sundargarh!Y84) -> 0 | Z84: =SUM(Angul:Sundargarh!Z84) -> 0 | AA84: =SUM(Angul:Sundargarh!AA84) -> 0 | AC84: =SUM(Angul:Sundargarh!AC84) -> 0 | AD84: =SUM(Angul:Sundargarh!AD84) -> 0 | AE84: =SUM(Angul:Sundargarh!AE84) -> 0 | AF84: =SUM(Angul:Sundargarh!AF84) -> 0
A85: 3.01 | B85: Furniture/ Equipment (including kitchen) | C85: =SUM(Angul:Sundargarh!C85) -> 8 | D85: =SUM(Angul:Sundargarh!D85) -> 16 | E85: =SUM(Angul:Sundargarh!E85) -> 0 | F85: =SUM(Angul:Sundargarh!F85) -> 16 | G85: =SUM(Angul:Sundargarh!G85) -> 8 | H85: =SUM(Angul:Sundargarh!H85) -> 8 | I85: =SUM(Angul:Sundargarh!I85) -> 8 | J85: =SUM(Angul:Sundargarh!J85) -> 8 | K85: 1 | L85: 50 | M85: 0 | N85: 8 | O85: =SUM(Angul:Sundargarh!O85) -> 0 | P85: =SUM(Angul:Sundargarh!P85) -> 8 | Q85: =SUM(Angul:Sundargarh!Q85) -> 0 | R85: =SUM(Angul:Sundargarh!R85) -> 0 | S85: 2 | T85: =SUM(Angul:Sundargarh!T85) -> 4 | U85: =SUM(Angul:Sundargarh!U85) -> 8 | V85: =SUM(Angul:Sundargarh!V85) -> 4 | W85: =SUM(Angul:Sundargarh!W85) -> 16 | X85: =SUM(Angul:Sundargarh!X85) -> 0 | Y85: =SUM(Angul:Sundargarh!Y85) -> 0 | Z85: =SUM(Angul:Sundargarh!Z85) -> 0 | AA85: =SUM(Angul:Sundargarh!AA85) -> 0 | AC85: =SUM(Angul:Sundargarh!AC85) -> 0 | AD85: =SUM(Angul:Sundargarh!AD85) -> 0 | AE85: =SUM(Angul:Sundargarh!AE85) -> 0 | AF85: =SUM(Angul:Sundargarh!AF85) -> 0 | AG85: Not recommended
A86: =+A85+0.01 -> 3.02 | B86: TLM and equipment including library books | C86: =SUM(Angul:Sundargarh!C86) -> 8 | D86: =SUM(Angul:Sundargarh!D86) -> 24 | E86: =SUM(Angul:Sundargarh!E86) -> 0 | F86: =SUM(Angul:Sundargarh!F86) -> 24 | G86: =SUM(Angul:Sundargarh!G86) -> 8 | H86: =SUM(Angul:Sundargarh!H86) -> 9 | I86: =SUM(Angul:Sundargarh!I86) -> 8 | J86: =SUM(Angul:Sundargarh!J86) -> 9 | K86: 1 | L86: 37.5 | M86: 0 | N86: 15 | O86: =SUM(Angul:Sundargarh!O86) -> 0 | P86: =SUM(Angul:Sundargarh!P86) -> 15 | Q86: =SUM(Angul:Sundargarh!Q86) -> 0 | R86: =SUM(Angul:Sundargarh!R86) -> 0 | S86: 3 | T86: =SUM(Angul:Sundargarh!T86) -> 4 | U86: =SUM(Angul:Sundargarh!U86) -> 12 | V86: =SUM(Angul:Sundargarh!V86) -> 4 | W86: =SUM(Angul:Sundargarh!W86) -> 27 | X86: =SUM(Angul:Sundargarh!X86) -> 0 | Y86: =SUM(Angul:Sundargarh!Y86) -> 0 | Z86: =SUM(Angul:Sundargarh!Z86) -> 0 | AA86: =SUM(Angul:Sundargarh!AA86) -> 0 | AC86: =SUM(Angul:Sundargarh!AC86) -> 0 | AD86: =SUM(Angul:Sundargarh!AD86) -> 0 | AE86: =SUM(Angul:Sundargarh!AE86) -> 0 | AF86: =SUM(Angul:Sundargarh!AF86) -> 0
A87: =+A86+0.01 -> 3.03 | B87: Bedding (new) | C87: =SUM(Angul:Sundargarh!C87) -> 8 | D87: =SUM(Angul:Sundargarh!D87) -> 3 | E87: =SUM(Angul:Sundargarh!E87) -> 0 | F87: =SUM(Angul:Sundargarh!F87) -> 3 | G87: =SUM(Angul:Sundargarh!G87) -> 8 | H87: =SUM(Angul:Sundargarh!H87) -> 1.49 | I87: =SUM(Angul:Sundargarh!I87) -> 8 | J87: =SUM(Angul:Sundargarh!J87) -> 1.49 | K87: 1 | L87: 49.66666667 | M87: 0 | N87: 1.51 | O87: =SUM(Angul:Sundargarh!O87) -> 0 | P87: =SUM(Angul:Sundargarh!P87) -> 1.51 | Q87: =SUM(Angul:Sundargarh!Q87) -> 0 | R87: =SUM(Angul:Sundargarh!R87) -> 0 | S87: 0.375 | T87: =SUM(Angul:Sundargarh!T87) -> 0 | U87: =SUM(Angul:Sundargarh!U87) -> 0 | V87: =SUM(Angul:Sundargarh!V87) -> 0 | W87: =SUM(Angul:Sundargarh!W87) -> 1.51 | X87: =SUM(Angul:Sundargarh!X87) -> 0 | Y87: =SUM(Angul:Sundargarh!Y87) -> 0 | Z87: =SUM(Angul:Sundargarh!Z87) -> 0 | AA87: =SUM(Angul:Sundargarh!AA87) -> 0 | AC87: =SUM(Angul:Sundargarh!AC87) -> 0 | AD87: =SUM(Angul:Sundargarh!AD87) -> 0 | AE87: =SUM(Angul:Sundargarh!AE87) -> 0 | AF87: =SUM(Angul:Sundargarh!AF87) -> 0
A88: =+A87+0.01 -> 3.04 | B88: Replacement of bedding (once in 3 years) | C88: =SUM(Angul:Sundargarh!C88) -> 4 | D88: =SUM(Angul:Sundargarh!D88) -> 1.5 | E88: =SUM(Angul:Sundargarh!E88) -> 0 | F88: =SUM(Angul:Sundargarh!F88) -> 1.5 | G88: =SUM(Angul:Sundargarh!G88) -> 4 | H88: =SUM(Angul:Sundargarh!H88) -> 1.5 | I88: =SUM(Angul:Sundargarh!I88) -> 4 | J88: =SUM(Angul:Sundargarh!J88) -> 1.5 | K88: 1 | L88: 100 | M88: 0 | N88: 0 | O88: =SUM(Angul:Sundargarh!O88) -> 0 | P88: =SUM(Angul:Sundargarh!P88) -> 0 | Q88: =SUM(Angul:Sundargarh!Q88) -> 0 | R88: =SUM(Angul:Sundargarh!R88) -> 0 | S88: 0.375 | T88: =SUM(Angul:Sundargarh!T88) -> 0 | U88: =SUM(Angul:Sundargarh!U88) -> 0 | V88: =SUM(Angul:Sundargarh!V88) -> 0 | W88: =SUM(Angul:Sundargarh!W88) -> 0 | X88: =SUM(Angul:Sundargarh!X88) -> 0 | Y88: =SUM(Angul:Sundargarh!Y88) -> 0 | Z88: =SUM(Angul:Sundargarh!Z88) -> 0 | AA88: =SUM(Angul:Sundargarh!AA88) -> 0 | AC88: =SUM(Angul:Sundargarh!AC88) -> 0 | AD88: =SUM(Angul:Sundargarh!AD88) -> 0 | AE88: =SUM(Angul:Sundargarh!AE88) -> 0 | AF88: =SUM(Angul:Sundargarh!AF88) -> 0
B89: Sub Total (Non Recurring) | C89: =SUM(Angul:Sundargarh!C89) -> 28 | D89: =SUM(Angul:Sundargarh!D89) -> 44.5 | E89: =SUM(Angul:Sundargarh!E89) -> 0 | F89: =SUM(Angul:Sundargarh!F89) -> 44.5 | G89: =SUM(Angul:Sundargarh!G89) -> 28 | H89: =SUM(Angul:Sundargarh!H89) -> 19.99 | I89: =SUM(Angul:Sundargarh!I89) -> 28 | J89: =SUM(Angul:Sundargarh!J89) -> 19.99 | K89: 1 | L89: 44.92134831 | M89: 0 | N89: 24.51 | O89: =SUM(Angul:Sundargarh!O89) -> 0 | P89: =SUM(Angul:Sundargarh!P89) -> 24.51 | Q89: =SUM(Angul:Sundargarh!Q89) -> 0 | R89: =SUM(Angul:Sundargarh!R89) -> 0 | T89: =SUM(Angul:Sundargarh!T89) -> 8 | U89: =SUM(Angul:Sundargarh!U89) -> 20 | V89: =SUM(Angul:Sundargarh!V89) -> 8 | W89: =SUM(Angul:Sundargarh!W89) -> 44.51 | X89: =SUM(Angul:Sundargarh!X89) -> 0 | Y89: =SUM(Angul:Sundargarh!Y89) -> 0 | Z89: =SUM(Angul:Sundargarh!Z89) -> 0 | AA89: =SUM(Angul:Sundargarh!AA89) -> 0 | AC89: =SUM(Angul:Sundargarh!AC89) -> 0 | AD89: =SUM(Angul:Sundargarh!AD89) -> 0 | AE89: =SUM(Angul:Sundargarh!AE89) -> 0 | AF89: =SUM(Angul:Sundargarh!AF89) -> 0
B90: Recurring (50 children) | C90: =SUM(Angul:Sundargarh!C90) -> 0 | D90: =SUM(Angul:Sundargarh!D90) -> 0 | E90: =SUM(Angul:Sundargarh!E90) -> 0 | F90: =SUM(Angul:Sundargarh!F90) -> 0 | G90: =SUM(Angul:Sundargarh!G90) -> 0 | H90: =SUM(Angul:Sundargarh!H90) -> 0 | I90: =SUM(Angul:Sundargarh!I90) -> 0 | J90: =SUM(Angul:Sundargarh!J90) -> 0 | O90: =SUM(Angul:Sundargarh!O90) -> 0 | P90: =SUM(Angul:Sundargarh!P90) -> 0 | Q90: =SUM(Angul:Sundargarh!Q90) -> 0 | R90: =SUM(Angul:Sundargarh!R90) -> 0 | T90: =SUM(Angul:Sundargarh!T90) -> 0 | U90: =SUM(Angul:Sundargarh!U90) -> 0 | V90: =SUM(Angul:Sundargarh!V90) -> 0 | W90: =SUM(Angul:Sundargarh!W90) -> 0 | X90: =SUM(Angul:Sundargarh!X90) -> 0 | Y90: =SUM(Angul:Sundargarh!Y90) -> 0 | Z90: =SUM(Angul:Sundargarh!Z90) -> 0 | AA90: =SUM(Angul:Sundargarh!AA90) -> 0 | AC90: =SUM(Angul:Sundargarh!AC90) -> 0 | AD90: =SUM(Angul:Sundargarh!AD90) -> 0 | AE90: =SUM(Angul:Sundargarh!AE90) -> 0 | AF90: =SUM(Angul:Sundargarh!AF90) -> 0
A91: 3.05 | B91: Maintenance per child Per month @ Rs.1500/- | C91: =SUM(Angul:Sundargarh!C91) -> 12 | D91: =SUM(Angul:Sundargarh!D91) -> 108 | E91: =SUM(Angul:Sundargarh!E91) -> 0 | F91: =SUM(Angul:Sundargarh!F91) -> 108 | G91: =SUM(Angul:Sundargarh!G91) -> 12 | H91: =SUM(Angul:Sundargarh!H91) -> 24.11 | I91: =SUM(Angul:Sundargarh!I91) -> 12 | J91: =SUM(Angul:Sundargarh!J91) -> 42.11 | K91: 1 | L91: 38.99074074 | M91: 0 | N91: 65.89 | O91: =SUM(Angul:Sundargarh!O91) -> 0 | P91: =SUM(Angul:Sundargarh!P91) -> 0 | Q91: =SUM(Angul:Sundargarh!Q91) -> 0 | R91: =SUM(Angul:Sundargarh!R91) -> 0 | S91: 9 | T91: =SUM(Angul:Sundargarh!T91) -> 12 | U91: =SUM(Angul:Sundargarh!U91) -> 108 | V91: =SUM(Angul:Sundargarh!V91) -> 12 | W91: =SUM(Angul:Sundargarh!W91) -> 108 | X91: =SUM(Angul:Sundargarh!X91) -> 0 | Y91: =SUM(Angul:Sundargarh!Y91) -> 0 | Z91: =SUM(Angul:Sundargarh!Z91) -> 0 | AA91: =SUM(Angul:Sundargarh!AA91) -> 0 | AB91: 9 | AC91: =SUM(Angul:Sundargarh!AC91) -> 12 | AD91: =SUM(Angul:Sundargarh!AD91) -> 108 | AE91: =SUM(Angul:Sundargarh!AE91) -> 12 | AF91: =SUM(Angul:Sundargarh!AF91) -> 108 | AG91: Recommended as proposed
A92: =+A91+0.01 -> 3.06 | B92: Stipend per child per month @ Rs.100/- | C92: =SUM(Angul:Sundargarh!C92) -> 12 | D92: =SUM(Angul:Sundargarh!D92) -> 7.2 | E92: =SUM(Angul:Sundargarh!E92) -> 0 | F92: =SUM(Angul:Sundargarh!F92) -> 7.2 | G92: =SUM(Angul:Sundargarh!G92) -> 12 | H92: =SUM(Angul:Sundargarh!H92) -> 0.453 | I92: =SUM(Angul:Sundargarh!I92) -> 12 | J92: =SUM(Angul:Sundargarh!J92) -> 1.653 | K92: 1 | L92: 22.95833333 | M92: 0 | N92: 5.547 | O92: =SUM(Angul:Sundargarh!O92) -> 0 | P92: =SUM(Angul:Sundargarh!P92) -> 0 | Q92: =SUM(Angul:Sundargarh!Q92) -> 0 | R92: =SUM(Angul:Sundargarh!R92) -> 0 | S92: 0.6 | T92: =SUM(Angul:Sundargarh!T92) -> 12 | U92: =SUM(Angul:Sundargarh!U92) -> 7.2 | V92: =SUM(Angul:Sundargarh!V92) -> 12 | W92: =SUM(Angul:Sundargarh!W92) -> 7.2 | X92: =SUM(Angul:Sundargarh!X92) -> 0 | Y92: =SUM(Angul:Sundargarh!Y92) -> 0 | Z92: =SUM(Angul:Sundargarh!Z92) -> 0 | AA92: =SUM(Angul:Sundargarh!AA92) -> 0 | AB92: 0.6 | AC92: =SUM(Angul:Sundargarh!AC92) -> 12 | AD92: =SUM(Angul:Sundargarh!AD92) -> 7.2 | AE92: =SUM(Angul:Sundargarh!AE92) -> 12 | AF92: =SUM(Angul:Sundargarh!AF92) -> 7.2
A93: =+A92+0.01 -> 3.07 | B93: Supplementary TLM, Stationery and other educational material @Rs.1000/- per child per annum | C93: =SUM(Angul:Sundargarh!C93) -> 0 | D93: =SUM(Angul:Sundargarh!D93) -> 0 | E93: =SUM(Angul:Sundargarh!E93) -> 0 | F93: =SUM(Angul:Sundargarh!F93) -> 0 | G93: =SUM(Angul:Sundargarh!G93) -> 0 | H93: =SUM(Angul:Sundargarh!H93) -> 0 | I93: =SUM(Angul:Sundargarh!I93) -> 0 | J93: =SUM(Angul:Sundargarh!J93) -> 0 | M93: 0 | N93: 0 | O93: =SUM(Angul:Sundargarh!O93) -> 0 | P93: =SUM(Angul:Sundargarh!P93) -> 0 | Q93: =SUM(Angul:Sundargarh!Q93) -> 0 | R93: =SUM(Angul:Sundargarh!R93) -> 0 | S93: 0.5 | T93: =SUM(Angul:Sundargarh!T93) -> 12 | U93: =SUM(Angul:Sundargarh!U93) -> 6 | V93: =SUM(Angul:Sundargarh!V93) -> 12 | W93: =SUM(Angul:Sundargarh!W93) -> 6 | X93: =SUM(Angul:Sundargarh!X93) -> 0 | Y93: =SUM(Angul:Sundargarh!Y93) -> 0 | Z93: =SUM(Angul:Sundargarh!Z93) -> 0 | AA93: =SUM(Angul:Sundargarh!AA93) -> 0 | AB93: 0.5 | AC93: =SUM(Angul:Sundargarh!AC93) -> 12 | AD93: =SUM(Angul:Sundargarh!AD93) -> 6 | AE93: =SUM(Angul:Sundargarh!AE93) -> 12 | AF93: =SUM(Angul:Sundargarh!AF93) -> 6
A94: 3.08 | B94: Salaries | C94: =SUM(Angul:Sundargarh!C94) -> 0 | D94: =SUM(Angul:Sundargarh!D94) -> 0 | E94: =SUM(Angul:Sundargarh!E94) -> 0 | F94: =SUM(Angul:Sundargarh!F94) -> 0 | G94: =SUM(Angul:Sundargarh!G94) -> 0 | H94: =SUM(Angul:Sundargarh!H94) -> 0 | I94: =SUM(Angul:Sundargarh!I94) -> 0 | J94: =SUM(Angul:Sundargarh!J94) -> 0 | M94: 0 | N94: 0 | O94: =SUM(Angul:Sundargarh!O94) -> 0 | P94: =SUM(Angul:Sundargarh!P94) -> 0 | Q94: =SUM(Angul:Sundargarh!Q94) -> 0 | R94: =SUM(Angul:Sundargarh!R94) -> 0 | T94: =SUM(Angul:Sundargarh!T94) -> 0 | U94: =SUM(Angul:Sundargarh!U94) -> 0 | V94: =SUM(Angul:Sundargarh!V94) -> 0 | W94: =SUM(Angul:Sundargarh!W94) -> 0 | X94: =SUM(Angul:Sundargarh!X94) -> 0 | Y94: =SUM(Angul:Sundargarh!Y94) -> 0 | Z94: =SUM(Angul:Sundargarh!Z94) -> 0 | AA94: =SUM(Angul:Sundargarh!AA94) -> 0 | AC94: =SUM(Angul:Sundargarh!AC94) -> 0 | AD94: =SUM(Angul:Sundargarh!AD94) -> 0 | AE94: =SUM(Angul:Sundargarh!AE94) -> 0 | AF94: =SUM(Angul:Sundargarh!AF94) -> 0
A95: (a) | B95: 1 Warden @ Rs.25000/- per month | C95: =SUM(Angul:Sundargarh!C95) -> 12 | D95: =SUM(Angul:Sundargarh!D95) -> 36 | E95: =SUM(Angul:Sundargarh!E95) -> 0 | F95: =SUM(Angul:Sundargarh!F95) -> 36 | G95: =SUM(Angul:Sundargarh!G95) -> 12 | H95: =SUM(Angul:Sundargarh!H95) -> 2.356 | I95: =SUM(Angul:Sundargarh!I95) -> 12 | J95: =SUM(Angul:Sundargarh!J95) -> 8.356 | K95: 1 | L95: 23.21111111 | M95: 0 | N95: 27.644 | O95: =SUM(Angul:Sundargarh!O95) -> 0 | P95: =SUM(Angul:Sundargarh!P95) -> 0 | Q95: =SUM(Angul:Sundargarh!Q95) -> 0 | R95: =SUM(Angul:Sundargarh!R95) -> 0 | S95: 3 | T95: =SUM(Angul:Sundargarh!T95) -> 12 | U95: =SUM(Angul:Sundargarh!U95) -> 36 | V95: =SUM(Angul:Sundargarh!V95) -> 12 | W95: =SUM(Angul:Sundargarh!W95) -> 36 | X95: =SUM(Angul:Sundargarh!X95) -> 0 | Y95: =SUM(Angul:Sundargarh!Y95) -> 0 | Z95: =SUM(Angul:Sundargarh!Z95) -> 0 | AA95: =SUM(Angul:Sundargarh!AA95) -> 0 | AB95: 3 | AC95: =SUM(Angul:Sundargarh!AC95) -> 12 | AD95: =SUM(Angul:Sundargarh!AD95) -> 36 | AE95: =SUM(Angul:Sundargarh!AE95) -> 12 | AF95: =SUM(Angul:Sundargarh!AF95) -> 36 | AG95: Recommended as proposed
A96: (b) | B96: 4 Fulltime teachers as per RTE Norms @ Rs. 20,000/- per month per teacher | C96: =SUM(Angul:Sundargarh!C96) -> 0 | D96: =SUM(Angul:Sundargarh!D96) -> 0 | E96: =SUM(Angul:Sundargarh!E96) -> 0 | F96: =SUM(Angul:Sundargarh!F96) -> 0 | G96: =SUM(Angul:Sundargarh!G96) -> 0 | H96: =SUM(Angul:Sundargarh!H96) -> 0 | I96: =SUM(Angul:Sundargarh!I96) -> 0 | J96: =SUM(Angul:Sundargarh!J96) -> 0 | M96: 0 | N96: 0 | O96: =SUM(Angul:Sundargarh!O96) -> 0 | P96: =SUM(Angul:Sundargarh!P96) -> 0 | Q96: =SUM(Angul:Sundargarh!Q96) -> 0 | R96: =SUM(Angul:Sundargarh!R96) -> 0 | S96: 9.6 | T96: =SUM(Angul:Sundargarh!T96) -> 0 | U96: =SUM(Angul:Sundargarh!U96) -> 0 | V96: =SUM(Angul:Sundargarh!V96) -> 0 | W96: =SUM(Angul:Sundargarh!W96) -> 0 | X96: =SUM(Angul:Sundargarh!X96) -> 0 | Y96: =SUM(Angul:Sundargarh!Y96) -> 0 | Z96: =SUM(Angul:Sundargarh!Z96) -> 0 | AA96: =SUM(Angul:Sundargarh!AA96) -> 0 | AB96: 9.6 | AC96: =SUM(Angul:Sundargarh!AC96) -> 0 | AD96: =SUM(Angul:Sundargarh!AD96) -> 0 | AE96: =SUM(Angul:Sundargarh!AE96) -> 0 | AF96: =SUM(Angul:Sundargarh!AF96) -> 0
A97: (c) | B97: 2 Urdu Teachers (only for Blocks with muslim population above 20% and select urban areas) @ Rs.12,000/- per month per teacher. | C97: =SUM(Angul:Sundargarh!C97) -> 0 | D97: =SUM(Angul:Sundargarh!D97) -> 0 | E97: =SUM(Angul:Sundargarh!E97) -> 0 | F97: =SUM(Angul:Sundargarh!F97) -> 0 | G97: =SUM(Angul:Sundargarh!G97) -> 0 | H97: =SUM(Angul:Sundargarh!H97) -> 0 | I97: =SUM(Angul:Sundargarh!I97) -> 0 | J97: =SUM(Angul:Sundargarh!J97) -> 0 | M97: 0 | N97: 0 | O97: =SUM(Angul:Sundargarh!O97) -> 0 | P97: =SUM(Angul:Sundargarh!P97) -> 0 | Q97: =SUM(Angul:Sundargarh!Q97) -> 0 | R97: =SUM(Angul:Sundargarh!R97) -> 0 | T97: =SUM(Angul:Sundargarh!T97) -> 0 | U97: =SUM(Angul:Sundargarh!U97) -> 0 | V97: =SUM(Angul:Sundargarh!V97) -> 0 | W97: =SUM(Angul:Sundargarh!W97) -> 0 | X97: =SUM(Angul:Sundargarh!X97) -> 0 | Y97: =SUM(Angul:Sundargarh!Y97) -> 0 | Z97: =SUM(Angul:Sundargarh!Z97) -> 0 | AA97: =SUM(Angul:Sundargarh!AA97) -> 0 | AC97: =SUM(Angul:Sundargarh!AC97) -> 0 | AD97: =SUM(Angul:Sundargarh!AD97) -> 0 | AE97: =SUM(Angul:Sundargarh!AE97) -> 0 | AF97: =SUM(Angul:Sundargarh!AF97) -> 0
A98: (d) | B98: 3 Part time teachers @ Rs.5,000/- per month per teacher | C98: =SUM(Angul:Sundargarh!C98) -> 12 | D98: =SUM(Angul:Sundargarh!D98) -> 18 | E98: =SUM(Angul:Sundargarh!E98) -> 0 | F98: =SUM(Angul:Sundargarh!F98) -> 18 | G98: =SUM(Angul:Sundargarh!G98) -> 12 | H98: =SUM(Angul:Sundargarh!H98) -> 2.738 | I98: =SUM(Angul:Sundargarh!I98) -> 12 | J98: =SUM(Angul:Sundargarh!J98) -> 5.738 | K98: 1 | L98: 31.87777778 | M98: 0 | N98: 12.262 | O98: =SUM(Angul:Sundargarh!O98) -> 0 | P98: =SUM(Angul:Sundargarh!P98) -> 0 | Q98: =SUM(Angul:Sundargarh!Q98) -> 0 | R98: =SUM(Angul:Sundargarh!R98) -> 0 | S98: 1.5 | T98: =SUM(Angul:Sundargarh!T98) -> 12 | U98: =SUM(Angul:Sundargarh!U98) -> 18 | V98: =SUM(Angul:Sundargarh!V98) -> 12 | W98: =SUM(Angul:Sundargarh!W98) -> 18 | X98: =SUM(Angul:Sundargarh!X98) -> 0 | Y98: =SUM(Angul:Sundargarh!Y98) -> 0 | Z98: =SUM(Angul:Sundargarh!Z98) -> 0 | AA98: =SUM(Angul:Sundargarh!AA98) -> 0 | AB98: 1.5 | AC98: =SUM(Angul:Sundargarh!AC98) -> 12 | AD98: =SUM(Angul:Sundargarh!AD98) -> 18 | AE98: =SUM(Angul:Sundargarh!AE98) -> 12 | AF98: =SUM(Angul:Sundargarh!AF98) -> 18 | AG98: Recommended as proposed
A99: (e) | B99: 1 Full time Accountant @ Rs. 10,000/- per month | C99: =SUM(Angul:Sundargarh!C99) -> 12 | D99: =SUM(Angul:Sundargarh!D99) -> 14.4 | E99: =SUM(Angul:Sundargarh!E99) -> 0 | F99: =SUM(Angul:Sundargarh!F99) -> 14.4 | G99: =SUM(Angul:Sundargarh!G99) -> 12 | H99: =SUM(Angul:Sundargarh!H99) -> 1.38 | I99: =SUM(Angul:Sundargarh!I99) -> 12 | J99: =SUM(Angul:Sundargarh!J99) -> 3.78 | K99: 1 | L99: 26.25 | M99: 0 | N99: 10.62 | O99: =SUM(Angul:Sundargarh!O99) -> 0 | P99: =SUM(Angul:Sundargarh!P99) -> 0 | Q99: =SUM(Angul:Sundargarh!Q99) -> 0 | R99: =SUM(Angul:Sundargarh!R99) -> 0 | S99: 1.2 | T99: =SUM(Angul:Sundargarh!T99) -> 12 | U99: =SUM(Angul:Sundargarh!U99) -> 14.4 | V99: =SUM(Angul:Sundargarh!V99) -> 12 | W99: =SUM(Angul:Sundargarh!W99) -> 14.4 | X99: =SUM(Angul:Sundargarh!X99) -> 0 | Y99: =SUM(Angul:Sundargarh!Y99) -> 0 | Z99: =SUM(Angul:Sundargarh!Z99) -> 0 | AA99: =SUM(Angul:Sundargarh!AA99) -> 0 | AB99: 1.2 | AC99: =SUM(Angul:Sundargarh!AC99) -> 12 | AD99: =SUM(Angul:Sundargarh!AD99) -> 14.4 | AE99: =SUM(Angul:Sundargarh!AE99) -> 12 | AF99: =SUM(Angul:Sundargarh!AF99) -> 14.4
A100: (f) | B100: 2 Support staff - (Accountant/Assistant, Peon, Chowkidar) @ Rs. 5,000/- per month per staff | C100: =SUM(Angul:Sundargarh!C100) -> 12 | D100: =SUM(Angul:Sundargarh!D100) -> 14.4 | E100: =SUM(Angul:Sundargarh!E100) -> 0 | F100: =SUM(Angul:Sundargarh!F100) -> 14.4 | G100: =SUM(Angul:Sundargarh!G100) -> 12 | H100: =SUM(Angul:Sundargarh!H100) -> 2.428 | I100: =SUM(Angul:Sundargarh!I100) -> 12 | J100: =SUM(Angul:Sundargarh!J100) -> 4.828 | K100: 1 | L100: 33.52777778 | M100: 0 | N100: 9.572 | O100: =SUM(Angul:Sundargarh!O100) -> 0 | P100: =SUM(Angul:Sundargarh!P100) -> 0 | Q100: =SUM(Angul:Sundargarh!Q100) -> 0 | R100: =SUM(Angul:Sundargarh!R100) -> 0 | S100: 1.2 | T100: =SUM(Angul:Sundargarh!T100) -> 12 | U100: =SUM(Angul:Sundargarh!U100) -> 14.4 | V100: =SUM(Angul:Sundargarh!V100) -> 12 | W100: =SUM(Angul:Sundargarh!W100) -> 14.4 | X100: =SUM(Angul:Sundargarh!X100) -> 0 | Y100: =SUM(Angul:Sundargarh!Y100) -> 0 | Z100: =SUM(Angul:Sundargarh!Z100) -> 0 | AA100: =SUM(Angul:Sundargarh!AA100) -> 0 | AB100: 1.2 | AC100: =SUM(Angul:Sundargarh!AC100) -> 12 | AD100: =SUM(Angul:Sundargarh!AD100) -> 14.4 | AE100: =SUM(Angul:Sundargarh!AE100) -> 12 | AF100: =SUM(Angul:Sundargarh!AF100) -> 14.4
A101: (g) | B101: 1 Head Cook @ Rs. 6,000/- per month and upto 2 Asstt. Cooks @ Rs. 4,500/- per month per cook | C101: =SUM(Angul:Sundargarh!C101) -> 12 | D101: =SUM(Angul:Sundargarh!D101) -> 21.6 | E101: =SUM(Angul:Sundargarh!E101) -> 0 | F101: =SUM(Angul:Sundargarh!F101) -> 21.6 | G101: =SUM(Angul:Sundargarh!G101) -> 12 | H101: =SUM(Angul:Sundargarh!H101) -> 2.778 | I101: =SUM(Angul:Sundargarh!I101) -> 12 | J101: =SUM(Angul:Sundargarh!J101) -> 6.378 | K101: 1 | L101: 29.52777778 | M101: 0 | N101: 15.222 | O101: =SUM(Angul:Sundargarh!O101) -> 0 | P101: =SUM(Angul:Sundargarh!P101) -> 0 | Q101: =SUM(Angul:Sundargarh!Q101) -> 0 | R101: =SUM(Angul:Sundargarh!R101) -> 0 | S101: 1.8 | T101: =SUM(Angul:Sundargarh!T101) -> 12 | U101: =SUM(Angul:Sundargarh!U101) -> 21.6 | V101: =SUM(Angul:Sundargarh!V101) -> 12 | W101: =SUM(Angul:Sundargarh!W101) -> 21.6 | X101: =SUM(Angul:Sundargarh!X101) -> 0 | Y101: =SUM(Angul:Sundargarh!Y101) -> 0 | Z101: =SUM(Angul:Sundargarh!Z101) -> 0 | AA101: =SUM(Angul:Sundargarh!AA101) -> 0 | AB101: 1.8 | AC101: =SUM(Angul:Sundargarh!AC101) -> 12 | AD101: =SUM(Angul:Sundargarh!AD101) -> 21.6 | AE101: =SUM(Angul:Sundargarh!AE101) -> 12 | AF101: =SUM(Angul:Sundargarh!AF101) -> 21.6
A102: 3.09 | B102: Specific Skill training @ Rs.1000/- per annum per child | C102: =SUM(Angul:Sundargarh!C102) -> 12 | D102: =SUM(Angul:Sundargarh!D102) -> 6 | E102: =SUM(Angul:Sundargarh!E102) -> 0 | F102: =SUM(Angul:Sundargarh!F102) -> 6 | G102: =SUM(Angul:Sundargarh!G102) -> 12 | H102: =SUM(Angul:Sundargarh!H102) -> 1.48 | I102: =SUM(Angul:Sundargarh!I102) -> 12 | J102: =SUM(Angul:Sundargarh!J102) -> 2.48 | K102: 1 | L102: 41.33333333 | M102: 0 | N102: 3.52 | O102: =SUM(Angul:Sundargarh!O102) -> 0 | P102: =SUM(Angul:Sundargarh!P102) -> 0 | Q102: =SUM(Angul:Sundargarh!Q102) -> 0 | R102: =SUM(Angul:Sundargarh!R102) -> 0 | S102: 0.5 | T102: =SUM(Angul:Sundargarh!T102) -> 12 | U102: =SUM(Angul:Sundargarh!U102) -> 6 | V102: =SUM(Angul:Sundargarh!V102) -> 12 | W102: =SUM(Angul:Sundargarh!W102) -> 6 | X102: =SUM(Angul:Sundargarh!X102) -> 0 | Y102: =SUM(Angul:Sundargarh!Y102) -> 0 | Z102: =SUM(Angul:Sundargarh!Z102) -> 0 | AA102: =SUM(Angul:Sundargarh!AA102) -> 0 | AB102: 0.5 | AC102: =SUM(Angul:Sundargarh!AC102) -> 12 | AD102: =SUM(Angul:Sundargarh!AD102) -> 6 | AE102: =SUM(Angul:Sundargarh!AE102) -> 12 | AF102: =SUM(Angul:Sundargarh!AF102) -> 6
A103: =+A102+0.01 -> 3.1 | B103: Electricity / water charges @ Rs. 1000/- per annum per child | C103: =SUM(Angul:Sundargarh!C103) -> 12 | D103: =SUM(Angul:Sundargarh!D103) -> 6 | E103: =SUM(Angul:Sundargarh!E103) -> 0 | F103: =SUM(Angul:Sundargarh!F103) -> 6 | G103: =SUM(Angul:Sundargarh!G103) -> 12 | H103: =SUM(Angul:Sundargarh!H103) -> 1.65 | I103: =SUM(Angul:Sundargarh!I103) -> 12 | J103: =SUM(Angul:Sundargarh!J103) -> 2.65 | K103: 1 | L103: 44.16666667 | M103: 0 | N103: 3.35 | O103: =SUM(Angul:Sundargarh!O103) -> 0 | P103: =SUM(Angul:Sundargarh!P103) -> 0 | Q103: =SUM(Angul:Sundargarh!Q103) -> 0 | R103: =SUM(Angul:Sundargarh!R103) -> 0 | S103: 0.5 | T103: =SUM(Angul:Sundargarh!T103) -> 12 | U103: =SUM(Angul:Sundargarh!U103) -> 6 | V103: =SUM(Angul:Sundargarh!V103) -> 12 | W103: =SUM(Angul:Sundargarh!W103) -> 6 | X103: =SUM(Angul:Sundargarh!X103) -> 0 | Y103: =SUM(Angul:Sundargarh!Y103) -> 0 | Z103: =SUM(Angul:Sundargarh!Z103) -> 0 | AA103: =SUM(Angul:Sundargarh!AA103) -> 0 | AB103: 0.5 | AC103: =SUM(Angul:Sundargarh!AC103) -> 12 | AD103: =SUM(Angul:Sundargarh!AD103) -> 6 | AE103: =SUM(Angul:Sundargarh!AE103) -> 12 | AF103: =SUM(Angul:Sundargarh!AF103) -> 6
A104: 3.11 | B104: Medical care/contingencies @ Rs.1250/- per annum per child | C104: =SUM(Angul:Sundargarh!C104) -> 12 | D104: =SUM(Angul:Sundargarh!D104) -> 7.5 | E104: =SUM(Angul:Sundargarh!E104) -> 0 | F104: =SUM(Angul:Sundargarh!F104) -> 7.5 | G104: =SUM(Angul:Sundargarh!G104) -> 12 | H104: =SUM(Angul:Sundargarh!H104) -> 1.8475 | I104: =SUM(Angul:Sundargarh!I104) -> 12 | J104: =SUM(Angul:Sundargarh!J104) -> 3.0975 | K104: 1 | L104: 41.3 | M104: 0 | N104: 4.4025 | O104: =SUM(Angul:Sundargarh!O104) -> 0 | P104: =SUM(Angul:Sundargarh!P104) -> 0 | Q104: =SUM(Angul:Sundargarh!Q104) -> 0 | R104: =SUM(Angul:Sundargarh!R104) -> 0 | S104: 0.625 | T104: =SUM(Angul:Sundargarh!T104) -> 12 | U104: =SUM(Angul:Sundargarh!U104) -> 7.5 | V104: =SUM(Angul:Sundargarh!V104) -> 12 | W104: =SUM(Angul:Sundargarh!W104) -> 7.5 | X104: =SUM(Angul:Sundargarh!X104) -> 0 | Y104: =SUM(Angul:Sundargarh!Y104) -> 0 | Z104: =SUM(Angul:Sundargarh!Z104) -> 0 | AA104: =SUM(Angul:Sundargarh!AA104) -> 0 | AB104: 0.625 | AC104: =SUM(Angul:Sundargarh!AC104) -> 12 | AD104: =SUM(Angul:Sundargarh!AD104) -> 7.5 | AE104: =SUM(Angul:Sundargarh!AE104) -> 12 | AF104: =SUM(Angul:Sundargarh!AF104) -> 7.5
A105: 3.12 | B105: Maintenance @ Rs. 750/- per child per annum | C105: =SUM(Angul:Sundargarh!C105) -> 12 | D105: =SUM(Angul:Sundargarh!D105) -> 4.5 | E105: =SUM(Angul:Sundargarh!E105) -> 0 | F105: =SUM(Angul:Sundargarh!F105) -> 4.5 | G105: =SUM(Angul:Sundargarh!G105) -> 12 | H105: =SUM(Angul:Sundargarh!H105) -> 1.2325 | I105: =SUM(Angul:Sundargarh!I105) -> 12 | J105: =SUM(Angul:Sundargarh!J105) -> 1.9825 | K105: 1 | L105: 44.05555556 | M105: 0 | N105: 2.5175 | O105: =SUM(Angul:Sundargarh!O105) -> 0 | P105: =SUM(Angul:Sundargarh!P105) -> 0 | Q105: =SUM(Angul:Sundargarh!Q105) -> 0 | R105: =SUM(Angul:Sundargarh!R105) -> 0 | S105: 0.375 | T105: =SUM(Angul:Sundargarh!T105) -> 12 | U105: =SUM(Angul:Sundargarh!U105) -> 4.5 | V105: =SUM(Angul:Sundargarh!V105) -> 12 | W105: =SUM(Angul:Sundargarh!W105) -> 4.5 | X105: =SUM(Angul:Sundargarh!X105) -> 0 | Y105: =SUM(Angul:Sundargarh!Y105) -> 0 | Z105: =SUM(Angul:Sundargarh!Z105) -> 0 | AA105: =SUM(Angul:Sundargarh!AA105) -> 0 | AB105: 0.375 | AC105: =SUM(Angul:Sundargarh!AC105) -> 12 | AD105: =SUM(Angul:Sundargarh!AD105) -> 4.5 | AE105: =SUM(Angul:Sundargarh!AE105) -> 12 | AF105: =SUM(Angul:Sundargarh!AF105) -> 4.5
A106: 3.13 | B106: Miscellaneous @ Rs. 750/- per child per annum | C106: =SUM(Angul:Sundargarh!C106) -> 12 | D106: =SUM(Angul:Sundargarh!D106) -> 4.5 | E106: =SUM(Angul:Sundargarh!E106) -> 0 | F106: =SUM(Angul:Sundargarh!F106) -> 4.5 | G106: =SUM(Angul:Sundargarh!G106) -> 12 | H106: =SUM(Angul:Sundargarh!H106) -> 1.22251 | I106: =SUM(Angul:Sundargarh!I106) -> 12 | J106: =SUM(Angul:Sundargarh!J106) -> 1.97251 | K106: 1 | L106: 43.83355556 | M106: 0 | N106: 2.52749 | O106: =SUM(Angul:Sundargarh!O106) -> 0 | P106: =SUM(Angul:Sundargarh!P106) -> 0 | Q106: =SUM(Angul:Sundargarh!Q106) -> 0 | R106: =SUM(Angul:Sundargarh!R106) -> 0 | S106: 0.375 | T106: =SUM(Angul:Sundargarh!T106) -> 12 | U106: =SUM(Angul:Sundargarh!U106) -> 4.5 | V106: =SUM(Angul:Sundargarh!V106) -> 12 | W106: =SUM(Angul:Sundargarh!W106) -> 4.5 | X106: =SUM(Angul:Sundargarh!X106) -> 0 | Y106: =SUM(Angul:Sundargarh!Y106) -> 0 | Z106: =SUM(Angul:Sundargarh!Z106) -> 0 | AA106: =SUM(Angul:Sundargarh!AA106) -> 0 | AB106: 0.375 | AC106: =SUM(Angul:Sundargarh!AC106) -> 12 | AD106: =SUM(Angul:Sundargarh!AD106) -> 4.5 | AE106: =SUM(Angul:Sundargarh!AE106) -> 12 | AF106: =SUM(Angul:Sundargarh!AF106) -> 4.5
A107: 3.14 | B107: Preparatory camps @ Rs. 300/- per child per annum | C107: =SUM(Angul:Sundargarh!C107) -> 0 | D107: =SUM(Angul:Sundargarh!D107) -> 0 | E107: =SUM(Angul:Sundargarh!E107) -> 0 | F107: =SUM(Angul:Sundargarh!F107) -> 0 | G107: =SUM(Angul:Sundargarh!G107) -> 0 | H107: =SUM(Angul:Sundargarh!H107) -> 0 | I107: =SUM(Angul:Sundargarh!I107) -> 0 | J107: =SUM(Angul:Sundargarh!J107) -> 0 | M107: 0 | N107: 0 | O107: =SUM(Angul:Sundargarh!O107) -> 0 | P107: =SUM(Angul:Sundargarh!P107) -> 0 | Q107: =SUM(Angul:Sundargarh!Q107) -> 0 | R107: =SUM(Angul:Sundargarh!R107) -> 0 | S107: 0.15 | T107: =SUM(Angul:Sundargarh!T107) -> 12 | U107: =SUM(Angul:Sundargarh!U107) -> 1.8 | V107: =SUM(Angul:Sundargarh!V107) -> 12 | W107: =SUM(Angul:Sundargarh!W107) -> 1.8 | X107: =SUM(Angul:Sundargarh!X107) -> 0 | Y107: =SUM(Angul:Sundargarh!Y107) -> 0 | Z107: =SUM(Angul:Sundargarh!Z107) -> 0 | AA107: =SUM(Angul:Sundargarh!AA107) -> 0 | AB107: 0.15 | AC107: =SUM(Angul:Sundargarh!AC107) -> 12 | AD107: =SUM(Angul:Sundargarh!AD107) -> 1.8 | AE107: =SUM(Angul:Sundargarh!AE107) -> 12 | AF107: =SUM(Angul:Sundargarh!AF107) -> 1.8
A108: 3.15 | B108: P.T.A / school functions @ Rs. 300/- per child per annum | C108: =SUM(Angul:Sundargarh!C108) -> 12 | D108: =SUM(Angul:Sundargarh!D108) -> 1.8 | E108: =SUM(Angul:Sundargarh!E108) -> 0 | F108: =SUM(Angul:Sundargarh!F108) -> 1.8 | G108: =SUM(Angul:Sundargarh!G108) -> 12 | H108: =SUM(Angul:Sundargarh!H108) -> 0.591 | I108: =SUM(Angul:Sundargarh!I108) -> 12 | J108: =SUM(Angul:Sundargarh!J108) -> 0.891 | K108: 1 | L108: 49.5 | M108: 0 | N108: 0.909 | O108: =SUM(Angul:Sundargarh!O108) -> 0 | P108: =SUM(Angul:Sundargarh!P108) -> 0 | Q108: =SUM(Angul:Sundargarh!Q108) -> 0 | R108: =SUM(Angul:Sundargarh!R108) -> 0 | S108: 0.15 | T108: =SUM(Angul:Sundargarh!T108) -> 12 | U108: =SUM(Angul:Sundargarh!U108) -> 1.8 | V108: =SUM(Angul:Sundargarh!V108) -> 12 | W108: =SUM(Angul:Sundargarh!W108) -> 1.8 | X108: =SUM(Angul:Sundargarh!X108) -> 0 | Y108: =SUM(Angul:Sundargarh!Y108) -> 0 | Z108: =SUM(Angul:Sundargarh!Z108) -> 0 | AA108: =SUM(Angul:Sundargarh!AA108) -> 0 | AB108: 0.15 | AC108: =SUM(Angul:Sundargarh!AC108) -> 12 | AD108: =SUM(Angul:Sundargarh!AD108) -> 1.8 | AE108: =SUM(Angul:Sundargarh!AE108) -> 12 | AF108: =SUM(Angul:Sundargarh!AF108) -> 1.8
A109: 3.16 | B109: Provision of Rent @ Rs. 10,000/- per child per annum | C109: =SUM(Angul:Sundargarh!C109) -> 0 | D109: =SUM(Angul:Sundargarh!D109) -> 0 | E109: =SUM(Angul:Sundargarh!E109) -> 0 | F109: =SUM(Angul:Sundargarh!F109) -> 0 | G109: =SUM(Angul:Sundargarh!G109) -> 0 | H109: =SUM(Angul:Sundargarh!H109) -> 0 | I109: =SUM(Angul:Sundargarh!I109) -> 0 | J109: =SUM(Angul:Sundargarh!J109) -> 0 | M109: 0 | N109: 0 | O109: =SUM(Angul:Sundargarh!O109) -> 0 | P109: =SUM(Angul:Sundargarh!P109) -> 0 | Q109: =SUM(Angul:Sundargarh!Q109) -> 0 | R109: =SUM(Angul:Sundargarh!R109) -> 0 | T109: =SUM(Angul:Sundargarh!T109) -> 0 | U109: =SUM(Angul:Sundargarh!U109) -> 0 | V109: =SUM(Angul:Sundargarh!V109) -> 0 | W109: =SUM(Angul:Sundargarh!W109) -> 0 | X109: =SUM(Angul:Sundargarh!X109) -> 0 | Y109: =SUM(Angul:Sundargarh!Y109) -> 0 | Z109: =SUM(Angul:Sundargarh!Z109) -> 0 | AA109: =SUM(Angul:Sundargarh!AA109) -> 0 | AC109: =SUM(Angul:Sundargarh!AC109) -> 0 | AD109: =SUM(Angul:Sundargarh!AD109) -> 0 | AE109: =SUM(Angul:Sundargarh!AE109) -> 0 | AF109: =SUM(Angul:Sundargarh!AF109) -> 0
A110: 3.17 | B110: Capacity Building @ Rs. 500/- per child per annum | C110: =SUM(Angul:Sundargarh!C110) -> 12 | D110: =SUM(Angul:Sundargarh!D110) -> 3 | E110: =SUM(Angul:Sundargarh!E110) -> 0 | F110: =SUM(Angul:Sundargarh!F110) -> 3 | G110: =SUM(Angul:Sundargarh!G110) -> 12 | H110: =SUM(Angul:Sundargarh!H110) -> 0.635 | I110: =SUM(Angul:Sundargarh!I110) -> 12 | J110: =SUM(Angul:Sundargarh!J110) -> 1.135 | K110: 1 | L110: 37.83333333 | M110: 0 | N110: 1.865 | O110: =SUM(Angul:Sundargarh!O110) -> 0 | P110: =SUM(Angul:Sundargarh!P110) -> 0 | Q110: =SUM(Angul:Sundargarh!Q110) -> 0 | R110: =SUM(Angul:Sundargarh!R110) -> 0 | S110: 0.25 | T110: =SUM(Angul:Sundargarh!T110) -> 12 | U110: =SUM(Angul:Sundargarh!U110) -> 3 | V110: =SUM(Angul:Sundargarh!V110) -> 12 | W110: =SUM(Angul:Sundargarh!W110) -> 3 | X110: =SUM(Angul:Sundargarh!X110) -> 0 | Y110: =SUM(Angul:Sundargarh!Y110) -> 0 | Z110: =SUM(Angul:Sundargarh!Z110) -> 0 | AA110: =SUM(Angul:Sundargarh!AA110) -> 0 | AB110: 0.25 | AC110: =SUM(Angul:Sundargarh!AC110) -> 12 | AD110: =SUM(Angul:Sundargarh!AD110) -> 3 | AE110: =SUM(Angul:Sundargarh!AE110) -> 12 | AF110: =SUM(Angul:Sundargarh!AF110) -> 3 | AG110: Recommended as proposed
A111: 3.18 | B111: Physical / Self Defence Training @ Rs.200/- per child per annum | C111: =SUM(Angul:Sundargarh!C111) -> 0 | D111: =SUM(Angul:Sundargarh!D111) -> 0 | E111: =SUM(Angul:Sundargarh!E111) -> 0 | F111: =SUM(Angul:Sundargarh!F111) -> 0 | G111: =SUM(Angul:Sundargarh!G111) -> 0 | H111: =SUM(Angul:Sundargarh!H111) -> 0 | I111: =SUM(Angul:Sundargarh!I111) -> 0 | J111: =SUM(Angul:Sundargarh!J111) -> 0 | M111: 0 | N111: 0 | O111: =SUM(Angul:Sundargarh!O111) -> 0 | P111: =SUM(Angul:Sundargarh!P111) -> 0 | Q111: =SUM(Angul:Sundargarh!Q111) -> 0 | R111: =SUM(Angul:Sundargarh!R111) -> 0 | S111: 0.1 | T111: =SUM(Angul:Sundargarh!T111) -> 12 | U111: =SUM(Angul:Sundargarh!U111) -> 1.2 | V111: =SUM(Angul:Sundargarh!V111) -> 12 | W111: =SUM(Angul:Sundargarh!W111) -> 1.2 | X111: =SUM(Angul:Sundargarh!X111) -> 0 | Y111: =SUM(Angul:Sundargarh!Y111) -> 0 | Z111: =SUM(Angul:Sundargarh!Z111) -> 0 | AA111: =SUM(Angul:Sundargarh!AA111) -> 0 | AB111: 0.1 | AC111: =SUM(Angul:Sundargarh!AC111) -> 12 | AD111: =SUM(Angul:Sundargarh!AD111) -> 1.2 | AE111: =SUM(Angul:Sundargarh!AE111) -> 12 | AF111: =SUM(Angul:Sundargarh!AF111) -> 1.2
B112: Sub Total (Recurring) | C112: =SUM(Angul:Sundargarh!C112) -> 168 | D112: =SUM(Angul:Sundargarh!D112) -> 252.9 | E112: =SUM(Angul:Sundargarh!E112) -> 0 | F112: =SUM(Angul:Sundargarh!F112) -> 252.9 | G112: =SUM(Angul:Sundargarh!G112) -> 168 | H112: =SUM(Angul:Sundargarh!H112) -> 44.90151 | I112: =SUM(Angul:Sundargarh!I112) -> 168 | J112: =SUM(Angul:Sundargarh!J112) -> 87.05151 | K112: 1 | L112: 34.42131673 | M112: 0 | N112: 165.84849 | O112: =SUM(Angul:Sundargarh!O112) -> 0 | P112: =SUM(Angul:Sundargarh!P112) -> 0 | Q112: =SUM(Angul:Sundargarh!Q112) -> 0 | R112: =SUM(Angul:Sundargarh!R112) -> 0 | T112: =SUM(Angul:Sundargarh!T112) -> 204 | U112: =SUM(Angul:Sundargarh!U112) -> 261.9 | V112: =SUM(Angul:Sundargarh!V112) -> 204 | W112: =SUM(Angul:Sundargarh!W112) -> 261.9 | X112: =SUM(Angul:Sundargarh!X112) -> 0 | Y112: =SUM(Angul:Sundargarh!Y112) -> 0 | Z112: =SUM(Angul:Sundargarh!Z112) -> 0 | AA112: =SUM(Angul:Sundargarh!AA112) -> 0 | AC112: =SUM(Angul:Sundargarh!AC112) -> 204 | AD112: =SUM(Angul:Sundargarh!AD112) -> 261.9 | AE112: =SUM(Angul:Sundargarh!AE112) -> 204 | AF112: =SUM(Angul:Sundargarh!AF112) -> 261.9
B113: Total (Non Recurring + Recurring) | C113: =SUM(Angul:Sundargarh!C113) -> 196 | D113: =SUM(Angul:Sundargarh!D113) -> 297.4 | E113: =SUM(Angul:Sundargarh!E113) -> 0 | F113: =SUM(Angul:Sundargarh!F113) -> 297.4 | G113: =SUM(Angul:Sundargarh!G113) -> 196 | H113: =SUM(Angul:Sundargarh!H113) -> 64.89151 | I113: =SUM(Angul:Sundargarh!I113) -> 196 | J113: =SUM(Angul:Sundargarh!J113) -> 107.04151 | K113: 1 | L113: 35.99243779 | M113: 0 | N113: 190.35849 | O113: =SUM(Angul:Sundargarh!O113) -> 0 | P113: =SUM(Angul:Sundargarh!P113) -> 24.51 | Q113: =SUM(Angul:Sundargarh!Q113) -> 0 | R113: =SUM(Angul:Sundargarh!R113) -> 0 | T113: =SUM(Angul:Sundargarh!T113) -> 212 | U113: =SUM(Angul:Sundargarh!U113) -> 281.9 | V113: =SUM(Angul:Sundargarh!V113) -> 212 | W113: =SUM(Angul:Sundargarh!W113) -> 306.41 | X113: =SUM(Angul:Sundargarh!X113) -> 0 | Y113: =SUM(Angul:Sundargarh!Y113) -> 0 | Z113: =SUM(Angul:Sundargarh!Z113) -> 0 | AA113: =SUM(Angul:Sundargarh!AA113) -> 0 | AC113: =SUM(Angul:Sundargarh!AC113) -> 204 | AD113: =SUM(Angul:Sundargarh!AD113) -> 261.9 | AE113: =SUM(Angul:Sundargarh!AE113) -> 204 | AF113: =SUM(Angul:Sundargarh!AF113) -> 261.9
A114: (B) | B114: 100 Children | C114: =SUM(Angul:Sundargarh!C114) -> 0 | D114: =SUM(Angul:Sundargarh!D114) -> 0 | E114: =SUM(Angul:Sundargarh!E114) -> 0 | F114: =SUM(Angul:Sundargarh!F114) -> 0 | G114: =SUM(Angul:Sundargarh!G114) -> 0 | H114: =SUM(Angul:Sundargarh!H114) -> 0 | I114: =SUM(Angul:Sundargarh!I114) -> 0 | J114: =SUM(Angul:Sundargarh!J114) -> 0 | O114: =SUM(Angul:Sundargarh!O114) -> 0 | P114: =SUM(Angul:Sundargarh!P114) -> 0 | Q114: =SUM(Angul:Sundargarh!Q114) -> 0 | R114: =SUM(Angul:Sundargarh!R114) -> 0 | T114: =SUM(Angul:Sundargarh!T114) -> 0 | U114: =SUM(Angul:Sundargarh!U114) -> 0 | V114: =SUM(Angul:Sundargarh!V114) -> 0 | W114: =SUM(Angul:Sundargarh!W114) -> 0 | X114: =SUM(Angul:Sundargarh!X114) -> 0 | Y114: =SUM(Angul:Sundargarh!Y114) -> 0 | Z114: =SUM(Angul:Sundargarh!Z114) -> 0 | AA114: =SUM(Angul:Sundargarh!AA114) -> 0 | AC114: =SUM(Angul:Sundargarh!AC114) -> 0 | AD114: =SUM(Angul:Sundargarh!AD114) -> 0 | AE114: =SUM(Angul:Sundargarh!AE114) -> 0 | AF114: =SUM(Angul:Sundargarh!AF114) -> 0
B115: Non-recurring (one time grant) | C115: =SUM(Angul:Sundargarh!C115) -> 0 | D115: =SUM(Angul:Sundargarh!D115) -> 0 | E115: =SUM(Angul:Sundargarh!E115) -> 0 | F115: =SUM(Angul:Sundargarh!F115) -> 0 | G115: =SUM(Angul:Sundargarh!G115) -> 0 | H115: =SUM(Angul:Sundargarh!H115) -> 0 | I115: =SUM(Angul:Sundargarh!I115) -> 0 | J115: =SUM(Angul:Sundargarh!J115) -> 0 | O115: =SUM(Angul:Sundargarh!O115) -> 0 | P115: =SUM(Angul:Sundargarh!P115) -> 0 | Q115: =SUM(Angul:Sundargarh!Q115) -> 0 | R115: =SUM(Angul:Sundargarh!R115) -> 0 | T115: =SUM(Angul:Sundargarh!T115) -> 0 | U115: =SUM(Angul:Sundargarh!U115) -> 0 | V115: =SUM(Angul:Sundargarh!V115) -> 0 | W115: =SUM(Angul:Sundargarh!W115) -> 0 | X115: =SUM(Angul:Sundargarh!X115) -> 0 | Y115: =SUM(Angul:Sundargarh!Y115) -> 0 | Z115: =SUM(Angul:Sundargarh!Z115) -> 0 | AA115: =SUM(Angul:Sundargarh!AA115) -> 0 | AC115: =SUM(Angul:Sundargarh!AC115) -> 0 | AD115: =SUM(Angul:Sundargarh!AD115) -> 0 | AE115: =SUM(Angul:Sundargarh!AE115) -> 0 | AF115: =SUM(Angul:Sundargarh!AF115) -> 0
A116: 3.19 | B116: Furniture / Equipment (including kitchen equipment) | C116: =SUM(Angul:Sundargarh!C116) -> 0 | D116: =SUM(Angul:Sundargarh!D116) -> 0 | E116: =SUM(Angul:Sundargarh!E116) -> 0 | F116: =SUM(Angul:Sundargarh!F116) -> 0 | G116: =SUM(Angul:Sundargarh!G116) -> 0 | H116: =SUM(Angul:Sundargarh!H116) -> 0 | I116: =SUM(Angul:Sundargarh!I116) -> 0 | J116: =SUM(Angul:Sundargarh!J116) -> 0 | M116: 0 | N116: 0 | O116: =SUM(Angul:Sundargarh!O116) -> 0 | P116: =SUM(Angul:Sundargarh!P116) -> 0 | Q116: =SUM(Angul:Sundargarh!Q116) -> 0 | R116: =SUM(Angul:Sundargarh!R116) -> 0 | S116: 2 | T116: =SUM(Angul:Sundargarh!T116) -> 4 | U116: =SUM(Angul:Sundargarh!U116) -> 8 | V116: =SUM(Angul:Sundargarh!V116) -> 4 | W116: =SUM(Angul:Sundargarh!W116) -> 8 | X116: =SUM(Angul:Sundargarh!X116) -> 0 | Y116: =SUM(Angul:Sundargarh!Y116) -> 0 | Z116: =SUM(Angul:Sundargarh!Z116) -> 0 | AA116: =SUM(Angul:Sundargarh!AA116) -> 0 | AC116: =SUM(Angul:Sundargarh!AC116) -> 0 | AD116: =SUM(Angul:Sundargarh!AD116) -> 0 | AE116: =SUM(Angul:Sundargarh!AE116) -> 0 | AF116: =SUM(Angul:Sundargarh!AF116) -> 0 | AG116: Not recommended
A117: =+A116+0.01 -> 3.2 | B117: TLM and equipment including library books (New) | C117: =SUM(Angul:Sundargarh!C117) -> 0 | D117: =SUM(Angul:Sundargarh!D117) -> 0 | E117: =SUM(Angul:Sundargarh!E117) -> 0 | F117: =SUM(Angul:Sundargarh!F117) -> 0 | G117: =SUM(Angul:Sundargarh!G117) -> 0 | H117: =SUM(Angul:Sundargarh!H117) -> 0 | I117: =SUM(Angul:Sundargarh!I117) -> 0 | J117: =SUM(Angul:Sundargarh!J117) -> 0 | M117: 0 | N117: 0 | O117: =SUM(Angul:Sundargarh!O117) -> 0 | P117: =SUM(Angul:Sundargarh!P117) -> 0 | Q117: =SUM(Angul:Sundargarh!Q117) -> 0 | R117: =SUM(Angul:Sundargarh!R117) -> 0 | S117: 3 | T117: =SUM(Angul:Sundargarh!T117) -> 4 | U117: =SUM(Angul:Sundargarh!U117) -> 12 | V117: =SUM(Angul:Sundargarh!V117) -> 4 | W117: =SUM(Angul:Sundargarh!W117) -> 12 | X117: =SUM(Angul:Sundargarh!X117) -> 0 | Y117: =SUM(Angul:Sundargarh!Y117) -> 0 | Z117: =SUM(Angul:Sundargarh!Z117) -> 0 | AA117: =SUM(Angul:Sundargarh!AA117) -> 0 | AC117: =SUM(Angul:Sundargarh!AC117) -> 0 | AD117: =SUM(Angul:Sundargarh!AD117) -> 0 | AE117: =SUM(Angul:Sundargarh!AE117) -> 0 | AF117: =SUM(Angul:Sundargarh!AF117) -> 0
A118: 3.21 | B118: Bedding (New) | C118: =SUM(Angul:Sundargarh!C118) -> 4 | D118: =SUM(Angul:Sundargarh!D118) -> 2.25 | E118: =SUM(Angul:Sundargarh!E118) -> 0 | F118: =SUM(Angul:Sundargarh!F118) -> 2.25 | G118: =SUM(Angul:Sundargarh!G118) -> 0 | H118: =SUM(Angul:Sundargarh!H118) -> 1.5 | I118: =SUM(Angul:Sundargarh!I118) -> 0 | J118: =SUM(Angul:Sundargarh!J118) -> 1.5 | K118: 0 | L118: 66.66666667 | M118: 4 | N118: 0.75 | O118: =SUM(Angul:Sundargarh!O118) -> 0 | P118: =SUM(Angul:Sundargarh!P118) -> 0.75 | Q118: =SUM(Angul:Sundargarh!Q118) -> 0 | R118: =SUM(Angul:Sundargarh!R118) -> 0 | T118: =SUM(Angul:Sundargarh!T118) -> 0 | U118: =SUM(Angul:Sundargarh!U118) -> 0 | V118: =SUM(Angul:Sundargarh!V118) -> 0 | W118: =SUM(Angul:Sundargarh!W118) -> 0.75 | X118: =SUM(Angul:Sundargarh!X118) -> 0 | Y118: =SUM(Angul:Sundargarh!Y118) -> 0 | Z118: =SUM(Angul:Sundargarh!Z118) -> 0 | AA118: =SUM(Angul:Sundargarh!AA118) -> 0 | AC118: =SUM(Angul:Sundargarh!AC118) -> 0 | AD118: =SUM(Angul:Sundargarh!AD118) -> 0 | AE118: =SUM(Angul:Sundargarh!AE118) -> 0 | AF118: =SUM(Angul:Sundargarh!AF118) -> 0
A119: =+A118+0.01 -> 3.22 | B119: Replacement of bedding (once in 3 years) | C119: =SUM(Angul:Sundargarh!C119) -> 0 | D119: =SUM(Angul:Sundargarh!D119) -> 0 | E119: =SUM(Angul:Sundargarh!E119) -> 0 | F119: =SUM(Angul:Sundargarh!F119) -> 0 | G119: =SUM(Angul:Sundargarh!G119) -> 0 | H119: =SUM(Angul:Sundargarh!H119) -> 0 | I119: =SUM(Angul:Sundargarh!I119) -> 0 | J119: =SUM(Angul:Sundargarh!J119) -> 0 | M119: 0 | N119: 0 | O119: =SUM(Angul:Sundargarh!O119) -> 0 | P119: =SUM(Angul:Sundargarh!P119) -> 0 | Q119: =SUM(Angul:Sundargarh!Q119) -> 0 | R119: =SUM(Angul:Sundargarh!R119) -> 0 | T119: =SUM(Angul:Sundargarh!T119) -> 0 | U119: =SUM(Angul:Sundargarh!U119) -> 0 | V119: =SUM(Angul:Sundargarh!V119) -> 0 | W119: =SUM(Angul:Sundargarh!W119) -> 0 | X119: =SUM(Angul:Sundargarh!X119) -> 0 | Y119: =SUM(Angul:Sundargarh!Y119) -> 0 | Z119: =SUM(Angul:Sundargarh!Z119) -> 0 | AA119: =SUM(Angul:Sundargarh!AA119) -> 0 | AC119: =SUM(Angul:Sundargarh!AC119) -> 0 | AD119: =SUM(Angul:Sundargarh!AD119) -> 0 | AE119: =SUM(Angul:Sundargarh!AE119) -> 0 | AF119: =SUM(Angul:Sundargarh!AF119) -> 0
B120: Sub Total Non-recurring | C120: =SUM(Angul:Sundargarh!C120) -> 4 | D120: =SUM(Angul:Sundargarh!D120) -> 2.25 | E120: =SUM(Angul:Sundargarh!E120) -> 0 | F120: =SUM(Angul:Sundargarh!F120) -> 2.25 | G120: =SUM(Angul:Sundargarh!G120) -> 0 | H120: =SUM(Angul:Sundargarh!H120) -> 1.5 | I120: =SUM(Angul:Sundargarh!I120) -> 0 | J120: =SUM(Angul:Sundargarh!J120) -> 1.5 | K120: 0 | L120: 66.66666667 | M120: 4 | N120: 0.75 | O120: =SUM(Angul:Sundargarh!O120) -> 0 | P120: =SUM(Angul:Sundargarh!P120) -> 0.75 | Q120: =SUM(Angul:Sundargarh!Q120) -> 0 | R120: =SUM(Angul:Sundargarh!R120) -> 0 | T120: =SUM(Angul:Sundargarh!T120) -> 8 | U120: =SUM(Angul:Sundargarh!U120) -> 20 | V120: =SUM(Angul:Sundargarh!V120) -> 8 | W120: =SUM(Angul:Sundargarh!W120) -> 20.75 | X120: =SUM(Angul:Sundargarh!X120) -> 0 | Y120: =SUM(Angul:Sundargarh!Y120) -> 0 | Z120: =SUM(Angul:Sundargarh!Z120) -> 0 | AA120: =SUM(Angul:Sundargarh!AA120) -> 0 | AC120: =SUM(Angul:Sundargarh!AC120) -> 0 | AD120: =SUM(Angul:Sundargarh!AD120) -> 0 | AE120: =SUM(Angul:Sundargarh!AE120) -> 0 | AF120: =SUM(Angul:Sundargarh!AF120) -> 0
B121: Recurring | C121: =SUM(Angul:Sundargarh!C121) -> 0 | D121: =SUM(Angul:Sundargarh!D121) -> 0 | E121: =SUM(Angul:Sundargarh!E121) -> 0 | F121: =SUM(Angul:Sundargarh!F121) -> 0 | G121: =SUM(Angul:Sundargarh!G121) -> 0 | H121: =SUM(Angul:Sundargarh!H121) -> 0 | I121: =SUM(Angul:Sundargarh!I121) -> 0 | J121: =SUM(Angul:Sundargarh!J121) -> 0 | O121: =SUM(Angul:Sundargarh!O121) -> 0 | P121: =SUM(Angul:Sundargarh!P121) -> 0 | Q121: =SUM(Angul:Sundargarh!Q121) -> 0 | R121: =SUM(Angul:Sundargarh!R121) -> 0 | T121: =SUM(Angul:Sundargarh!T121) -> 0 | U121: =SUM(Angul:Sundargarh!U121) -> 0 | V121: =SUM(Angul:Sundargarh!V121) -> 0 | W121: =SUM(Angul:Sundargarh!W121) -> 0 | X121: =SUM(Angul:Sundargarh!X121) -> 0 | Y121: =SUM(Angul:Sundargarh!Y121) -> 0 | Z121: =SUM(Angul:Sundargarh!Z121) -> 0 | AA121: =SUM(Angul:Sundargarh!AA121) -> 0 | AC121: =SUM(Angul:Sundargarh!AC121) -> 0 | AD121: =SUM(Angul:Sundargarh!AD121) -> 0 | AE121: =SUM(Angul:Sundargarh!AE121) -> 0 | AF121: =SUM(Angul:Sundargarh!AF121) -> 0
A122: 3..23 | B122: Maintenance per child per month @ Rs. 1500/- | C122: =SUM(Angul:Sundargarh!C122) -> 4 | D122: =SUM(Angul:Sundargarh!D122) -> 72 | E122: =SUM(Angul:Sundargarh!E122) -> 0 | F122: =SUM(Angul:Sundargarh!F122) -> 72 | G122: =SUM(Angul:Sundargarh!G122) -> 0 | H122: =SUM(Angul:Sundargarh!H122) -> 34.2565 | I122: =SUM(Angul:Sundargarh!I122) -> 4 | J122: =SUM(Angul:Sundargarh!J122) -> 34.2565 | K122: 1 | L122: 47.57847222 | M122: 0 | N122: 37.7435 | O122: =SUM(Angul:Sundargarh!O122) -> 0 | P122: =SUM(Angul:Sundargarh!P122) -> 0 | Q122: =SUM(Angul:Sundargarh!Q122) -> 0 | R122: =SUM(Angul:Sundargarh!R122) -> 0 | S122: 18 | T122: =SUM(Angul:Sundargarh!T122) -> 4 | U122: =SUM(Angul:Sundargarh!U122) -> 72 | V122: =SUM(Angul:Sundargarh!V122) -> 4 | W122: =SUM(Angul:Sundargarh!W122) -> 72 | X122: =SUM(Angul:Sundargarh!X122) -> 0 | Y122: =SUM(Angul:Sundargarh!Y122) -> 0 | Z122: =SUM(Angul:Sundargarh!Z122) -> 0 | AA122: =SUM(Angul:Sundargarh!AA122) -> 0 | AB122: 18 | AC122: =SUM(Angul:Sundargarh!AC122) -> 4 | AD122: =SUM(Angul:Sundargarh!AD122) -> 72 | AE122: =SUM(Angul:Sundargarh!AE122) -> 4 | AF122: =SUM(Angul:Sundargarh!AF122) -> 72 | AG122: Recommended as proposed
A123: 3.24 | B123: Stipend per child per month @ Rs.100/- | C123: =SUM(Angul:Sundargarh!C123) -> 4 | D123: =SUM(Angul:Sundargarh!D123) -> 4.8 | E123: =SUM(Angul:Sundargarh!E123) -> 0 | F123: =SUM(Angul:Sundargarh!F123) -> 4.8 | G123: =SUM(Angul:Sundargarh!G123) -> 0 | H123: =SUM(Angul:Sundargarh!H123) -> 2 | I123: =SUM(Angul:Sundargarh!I123) -> 4 | J123: =SUM(Angul:Sundargarh!J123) -> 2 | K123: 1 | L123: 41.66666667 | M123: 0 | N123: 2.8 | O123: =SUM(Angul:Sundargarh!O123) -> 0 | P123: =SUM(Angul:Sundargarh!P123) -> 0 | Q123: =SUM(Angul:Sundargarh!Q123) -> 0 | R123: =SUM(Angul:Sundargarh!R123) -> 0 | S123: 1.2 | T123: =SUM(Angul:Sundargarh!T123) -> 4 | U123: =SUM(Angul:Sundargarh!U123) -> 4.8 | V123: =SUM(Angul:Sundargarh!V123) -> 4 | W123: =SUM(Angul:Sundargarh!W123) -> 4.8 | X123: =SUM(Angul:Sundargarh!X123) -> 0 | Y123: =SUM(Angul:Sundargarh!Y123) -> 0 | Z123: =SUM(Angul:Sundargarh!Z123) -> 0 | AA123: =SUM(Angul:Sundargarh!AA123) -> 0 | AB123: 1.2 | AC123: =SUM(Angul:Sundargarh!AC123) -> 4 | AD123: =SUM(Angul:Sundargarh!AD123) -> 4.8 | AE123: =SUM(Angul:Sundargarh!AE123) -> 4 | AF123: =SUM(Angul:Sundargarh!AF123) -> 4.8
A124: =+A123+0.01 -> 3.25 | B124: Supplementary TLM, Stationery and other educational material per child @1000/- per annum | C124: =SUM(Angul:Sundargarh!C124) -> 4 | D124: =SUM(Angul:Sundargarh!D124) -> 4 | E124: =SUM(Angul:Sundargarh!E124) -> 0 | F124: =SUM(Angul:Sundargarh!F124) -> 4 | G124: =SUM(Angul:Sundargarh!G124) -> 0 | H124: =SUM(Angul:Sundargarh!H124) -> 4 | I124: =SUM(Angul:Sundargarh!I124) -> 4 | J124: =SUM(Angul:Sundargarh!J124) -> 4 | K124: 1 | L124: 100 | M124: 0 | N124: 0 | O124: =SUM(Angul:Sundargarh!O124) -> 0 | P124: =SUM(Angul:Sundargarh!P124) -> 0 | Q124: =SUM(Angul:Sundargarh!Q124) -> 0 | R124: =SUM(Angul:Sundargarh!R124) -> 0 | S124: 1 | T124: =SUM(Angul:Sundargarh!T124) -> 4 | U124: =SUM(Angul:Sundargarh!U124) -> 4 | V124: =SUM(Angul:Sundargarh!V124) -> 4 | W124: =SUM(Angul:Sundargarh!W124) -> 4 | X124: =SUM(Angul:Sundargarh!X124) -> 0 | Y124: =SUM(Angul:Sundargarh!Y124) -> 0 | Z124: =SUM(Angul:Sundargarh!Z124) -> 0 | AA124: =SUM(Angul:Sundargarh!AA124) -> 0 | AB124: 1 | AC124: =SUM(Angul:Sundargarh!AC124) -> 4 | AD124: =SUM(Angul:Sundargarh!AD124) -> 4 | AE124: =SUM(Angul:Sundargarh!AE124) -> 4 | AF124: =SUM(Angul:Sundargarh!AF124) -> 4
A125: 3.26 | B125: Salaries | C125: =SUM(Angul:Sundargarh!C125) -> 0 | D125: =SUM(Angul:Sundargarh!D125) -> 0 | E125: =SUM(Angul:Sundargarh!E125) -> 0 | F125: =SUM(Angul:Sundargarh!F125) -> 0 | G125: =SUM(Angul:Sundargarh!G125) -> 0 | H125: =SUM(Angul:Sundargarh!H125) -> 0 | I125: =SUM(Angul:Sundargarh!I125) -> 0 | J125: =SUM(Angul:Sundargarh!J125) -> 0 | M125: 0 | N125: 0 | O125: =SUM(Angul:Sundargarh!O125) -> 0 | P125: =SUM(Angul:Sundargarh!P125) -> 0 | Q125: =SUM(Angul:Sundargarh!Q125) -> 0 | R125: =SUM(Angul:Sundargarh!R125) -> 0 | T125: =SUM(Angul:Sundargarh!T125) -> 0 | U125: =SUM(Angul:Sundargarh!U125) -> 0 | V125: =SUM(Angul:Sundargarh!V125) -> 0 | W125: =SUM(Angul:Sundargarh!W125) -> 0 | X125: =SUM(Angul:Sundargarh!X125) -> 0 | Y125: =SUM(Angul:Sundargarh!Y125) -> 0 | Z125: =SUM(Angul:Sundargarh!Z125) -> 0 | AA125: =SUM(Angul:Sundargarh!AA125) -> 0 | AC125: =SUM(Angul:Sundargarh!AC125) -> 0 | AD125: =SUM(Angul:Sundargarh!AD125) -> 0 | AE125: =SUM(Angul:Sundargarh!AE125) -> 0 | AF125: =SUM(Angul:Sundargarh!AF125) -> 0
A126: (a) | B126: 1 Warden @ Rs. 25,000/- per month | C126: =SUM(Angul:Sundargarh!C126) -> 4 | D126: =SUM(Angul:Sundargarh!D126) -> 12 | E126: =SUM(Angul:Sundargarh!E126) -> 0 | F126: =SUM(Angul:Sundargarh!F126) -> 12 | G126: =SUM(Angul:Sundargarh!G126) -> 0 | H126: =SUM(Angul:Sundargarh!H126) -> 7.26205 | I126: =SUM(Angul:Sundargarh!I126) -> 4 | J126: =SUM(Angul:Sundargarh!J126) -> 7.26205 | K126: 1 | L126: 60.51708333 | M126: 0 | N126: 4.73795 | O126: =SUM(Angul:Sundargarh!O126) -> 0 | P126: =SUM(Angul:Sundargarh!P126) -> 0 | Q126: =SUM(Angul:Sundargarh!Q126) -> 0 | R126: =SUM(Angul:Sundargarh!R126) -> 0 | S126: 3 | T126: =SUM(Angul:Sundargarh!T126) -> 4 | U126: =SUM(Angul:Sundargarh!U126) -> 12 | V126: =SUM(Angul:Sundargarh!V126) -> 4 | W126: =SUM(Angul:Sundargarh!W126) -> 12 | X126: =SUM(Angul:Sundargarh!X126) -> 0 | Y126: =SUM(Angul:Sundargarh!Y126) -> 0 | Z126: =SUM(Angul:Sundargarh!Z126) -> 0 | AA126: =SUM(Angul:Sundargarh!AA126) -> 0 | AB126: 3 | AC126: =SUM(Angul:Sundargarh!AC126) -> 4 | AD126: =SUM(Angul:Sundargarh!AD126) -> 12 | AE126: =SUM(Angul:Sundargarh!AE126) -> 4 | AF126: =SUM(Angul:Sundargarh!AF126) -> 12 | AG126: Recommended as proposed
A127: (b) | B127: 1 head teacher @ Rs. 25,000/- per month in case the enrollment exceeds 100 | C127: =SUM(Angul:Sundargarh!C127) -> 0 | D127: =SUM(Angul:Sundargarh!D127) -> 0 | E127: =SUM(Angul:Sundargarh!E127) -> 0 | F127: =SUM(Angul:Sundargarh!F127) -> 0 | G127: =SUM(Angul:Sundargarh!G127) -> 0 | H127: =SUM(Angul:Sundargarh!H127) -> 0 | I127: =SUM(Angul:Sundargarh!I127) -> 0 | J127: =SUM(Angul:Sundargarh!J127) -> 0 | M127: 0 | N127: 0 | O127: =SUM(Angul:Sundargarh!O127) -> 0 | P127: =SUM(Angul:Sundargarh!P127) -> 0 | Q127: =SUM(Angul:Sundargarh!Q127) -> 0 | R127: =SUM(Angul:Sundargarh!R127) -> 0 | S127: 3 | T127: =SUM(Angul:Sundargarh!T127) -> 0 | U127: =SUM(Angul:Sundargarh!U127) -> 0 | V127: =SUM(Angul:Sundargarh!V127) -> 0 | W127: =SUM(Angul:Sundargarh!W127) -> 0 | X127: =SUM(Angul:Sundargarh!X127) -> 0 | Y127: =SUM(Angul:Sundargarh!Y127) -> 0 | Z127: =SUM(Angul:Sundargarh!Z127) -> 0 | AA127: =SUM(Angul:Sundargarh!AA127) -> 0 | AB127: 3 | AC127: =SUM(Angul:Sundargarh!AC127) -> 0 | AD127: =SUM(Angul:Sundargarh!AD127) -> 0 | AE127: =SUM(Angul:Sundargarh!AE127) -> 0 | AF127: =SUM(Angul:Sundargarh!AF127) -> 0
A128: (c) | B128: 4 - 5 Full time teachers as per RTE norms @ Rs. 20,000/- per month per teacher | C128: =SUM(Angul:Sundargarh!C128) -> 0 | D128: =SUM(Angul:Sundargarh!D128) -> 0 | E128: =SUM(Angul:Sundargarh!E128) -> 0 | F128: =SUM(Angul:Sundargarh!F128) -> 0 | G128: =SUM(Angul:Sundargarh!G128) -> 0 | H128: =SUM(Angul:Sundargarh!H128) -> 0 | I128: =SUM(Angul:Sundargarh!I128) -> 0 | J128: =SUM(Angul:Sundargarh!J128) -> 0 | M128: 0 | N128: 0 | O128: =SUM(Angul:Sundargarh!O128) -> 0 | P128: =SUM(Angul:Sundargarh!P128) -> 0 | Q128: =SUM(Angul:Sundargarh!Q128) -> 0 | R128: =SUM(Angul:Sundargarh!R128) -> 0 | S128: 9.6 | T128: =SUM(Angul:Sundargarh!T128) -> 0 | U128: =SUM(Angul:Sundargarh!U128) -> 0 | V128: =SUM(Angul:Sundargarh!V128) -> 0 | W128: =SUM(Angul:Sundargarh!W128) -> 0 | X128: =SUM(Angul:Sundargarh!X128) -> 0 | Y128: =SUM(Angul:Sundargarh!Y128) -> 0 | Z128: =SUM(Angul:Sundargarh!Z128) -> 0 | AA128: =SUM(Angul:Sundargarh!AA128) -> 0 | AB128: 9.6 | AC128: =SUM(Angul:Sundargarh!AC128) -> 0 | AD128: =SUM(Angul:Sundargarh!AD128) -> 0 | AE128: =SUM(Angul:Sundargarh!AE128) -> 0 | AF128: =SUM(Angul:Sundargarh!AF128) -> 0
A129: (d) | B129: 2 Urdu Teachers (only for blocks with muslim population above 20% and select urban areas), if required @ Rs. 12,000/- per month per teacher | C129: =SUM(Angul:Sundargarh!C129) -> 0 | D129: =SUM(Angul:Sundargarh!D129) -> 0 | E129: =SUM(Angul:Sundargarh!E129) -> 0 | F129: =SUM(Angul:Sundargarh!F129) -> 0 | G129: =SUM(Angul:Sundargarh!G129) -> 0 | H129: =SUM(Angul:Sundargarh!H129) -> 0 | I129: =SUM(Angul:Sundargarh!I129) -> 0 | J129: =SUM(Angul:Sundargarh!J129) -> 0 | M129: 0 | N129: 0 | O129: =SUM(Angul:Sundargarh!O129) -> 0 | P129: =SUM(Angul:Sundargarh!P129) -> 0 | Q129: =SUM(Angul:Sundargarh!Q129) -> 0 | R129: =SUM(Angul:Sundargarh!R129) -> 0 | S129: 2.88 | T129: =SUM(Angul:Sundargarh!T129) -> 0 | U129: =SUM(Angul:Sundargarh!U129) -> 0 | V129: =SUM(Angul:Sundargarh!V129) -> 0 | W129: =SUM(Angul:Sundargarh!W129) -> 0 | X129: =SUM(Angul:Sundargarh!X129) -> 0 | Y129: =SUM(Angul:Sundargarh!Y129) -> 0 | Z129: =SUM(Angul:Sundargarh!Z129) -> 0 | AA129: =SUM(Angul:Sundargarh!AA129) -> 0 | AB129: 2.88 | AC129: =SUM(Angul:Sundargarh!AC129) -> 0 | AD129: =SUM(Angul:Sundargarh!AD129) -> 0 | AE129: =SUM(Angul:Sundargarh!AE129) -> 0 | AF129: =SUM(Angul:Sundargarh!AF129) -> 0
A130: (e) | B130: 3 part time teachers @ Rs. 5,000/- per month per teacher | C130: =SUM(Angul:Sundargarh!C130) -> 4 | D130: =SUM(Angul:Sundargarh!D130) -> 6 | E130: =SUM(Angul:Sundargarh!E130) -> 0 | F130: =SUM(Angul:Sundargarh!F130) -> 6 | G130: =SUM(Angul:Sundargarh!G130) -> 0 | H130: =SUM(Angul:Sundargarh!H130) -> 3 | I130: =SUM(Angul:Sundargarh!I130) -> 4 | J130: =SUM(Angul:Sundargarh!J130) -> 3 | K130: 1 | L130: 50 | M130: 0 | N130: 3 | O130: =SUM(Angul:Sundargarh!O130) -> 0 | P130: =SUM(Angul:Sundargarh!P130) -> 0 | Q130: =SUM(Angul:Sundargarh!Q130) -> 0 | R130: =SUM(Angul:Sundargarh!R130) -> 0 | S130: 1.5 | T130: =SUM(Angul:Sundargarh!T130) -> 4 | U130: =SUM(Angul:Sundargarh!U130) -> 6 | V130: =SUM(Angul:Sundargarh!V130) -> 4 | W130: =SUM(Angul:Sundargarh!W130) -> 6 | X130: =SUM(Angul:Sundargarh!X130) -> 0 | Y130: =SUM(Angul:Sundargarh!Y130) -> 0 | Z130: =SUM(Angul:Sundargarh!Z130) -> 0 | AA130: =SUM(Angul:Sundargarh!AA130) -> 0 | AB130: 1.5 | AC130: =SUM(Angul:Sundargarh!AC130) -> 4 | AD130: =SUM(Angul:Sundargarh!AD130) -> 6 | AE130: =SUM(Angul:Sundargarh!AE130) -> 4 | AF130: =SUM(Angul:Sundargarh!AF130) -> 6 | AG130: Recommended as proposed
A131: (g) | B131: 1 Full time Accountant @ Rs. 10,000/- per month | C131: =SUM(Angul:Sundargarh!C131) -> 4 | D131: =SUM(Angul:Sundargarh!D131) -> 4.8 | E131: =SUM(Angul:Sundargarh!E131) -> 0 | F131: =SUM(Angul:Sundargarh!F131) -> 4.8 | G131: =SUM(Angul:Sundargarh!G131) -> 0 | H131: =SUM(Angul:Sundargarh!H131) -> 1 | I131: =SUM(Angul:Sundargarh!I131) -> 4 | J131: =SUM(Angul:Sundargarh!J131) -> 1 | K131: 1 | L131: 20.83333333 | M131: 0 | N131: 3.8 | O131: =SUM(Angul:Sundargarh!O131) -> 0 | P131: =SUM(Angul:Sundargarh!P131) -> 0 | Q131: =SUM(Angul:Sundargarh!Q131) -> 0 | R131: =SUM(Angul:Sundargarh!R131) -> 0 | S131: 1.2 | T131: =SUM(Angul:Sundargarh!T131) -> 4 | U131: =SUM(Angul:Sundargarh!U131) -> 4.8 | V131: =SUM(Angul:Sundargarh!V131) -> 4 | W131: =SUM(Angul:Sundargarh!W131) -> 4.8 | X131: =SUM(Angul:Sundargarh!X131) -> 0 | Y131: =SUM(Angul:Sundargarh!Y131) -> 0 | Z131: =SUM(Angul:Sundargarh!Z131) -> 0 | AA131: =SUM(Angul:Sundargarh!AA131) -> 0 | AB131: 1.2 | AC131: =SUM(Angul:Sundargarh!AC131) -> 4 | AD131: =SUM(Angul:Sundargarh!AD131) -> 4.8 | AE131: =SUM(Angul:Sundargarh!AE131) -> 4 | AF131: =SUM(Angul:Sundargarh!AF131) -> 4.8
A132: (h) | B132: 2 Support Staff – (Accountant/ Assistant, Peon, Chowkidar) @ Rs. 5,000/- per month per staff | C132: =SUM(Angul:Sundargarh!C132) -> 4 | D132: =SUM(Angul:Sundargarh!D132) -> 4.8 | E132: =SUM(Angul:Sundargarh!E132) -> 0 | F132: =SUM(Angul:Sundargarh!F132) -> 4.8 | G132: =SUM(Angul:Sundargarh!G132) -> 0 | H132: =SUM(Angul:Sundargarh!H132) -> 1.8 | I132: =SUM(Angul:Sundargarh!I132) -> 4 | J132: =SUM(Angul:Sundargarh!J132) -> 1.8 | K132: 1 | L132: 37.5 | M132: 0 | N132: 3 | O132: =SUM(Angul:Sundargarh!O132) -> 0 | P132: =SUM(Angul:Sundargarh!P132) -> 0 | Q132: =SUM(Angul:Sundargarh!Q132) -> 0 | R132: =SUM(Angul:Sundargarh!R132) -> 0 | S132: 1.2 | T132: =SUM(Angul:Sundargarh!T132) -> 4 | U132: =SUM(Angul:Sundargarh!U132) -> 4.8 | V132: =SUM(Angul:Sundargarh!V132) -> 4 | W132: =SUM(Angul:Sundargarh!W132) -> 4.8 | X132: =SUM(Angul:Sundargarh!X132) -> 0 | Y132: =SUM(Angul:Sundargarh!Y132) -> 0 | Z132: =SUM(Angul:Sundargarh!Z132) -> 0 | AA132: =SUM(Angul:Sundargarh!AA132) -> 0 | AB132: 1.2 | AC132: =SUM(Angul:Sundargarh!AC132) -> 4 | AD132: =SUM(Angul:Sundargarh!AD132) -> 4.8 | AE132: =SUM(Angul:Sundargarh!AE132) -> 4 | AF132: =SUM(Angul:Sundargarh!AF132) -> 4.8
A133: (i) | B133: 1 Head cook @ Rs. 6,000/- per month and upto 2 Asstt. Cooks @ Rs. 4,500/- per month per cook | C133: =SUM(Angul:Sundargarh!C133) -> 4 | D133: =SUM(Angul:Sundargarh!D133) -> 7.2 | E133: =SUM(Angul:Sundargarh!E133) -> 0 | F133: =SUM(Angul:Sundargarh!F133) -> 7.2 | G133: =SUM(Angul:Sundargarh!G133) -> 0 | H133: =SUM(Angul:Sundargarh!H133) -> 3.4 | I133: =SUM(Angul:Sundargarh!I133) -> 4 | J133: =SUM(Angul:Sundargarh!J133) -> 3.4 | K133: 1 | L133: 47.22222222 | M133: 0 | N133: 3.8 | O133: =SUM(Angul:Sundargarh!O133) -> 0 | P133: =SUM(Angul:Sundargarh!P133) -> 0 | Q133: =SUM(Angul:Sundargarh!Q133) -> 0 | R133: =SUM(Angul:Sundargarh!R133) -> 0 | S133: 1.8 | T133: =SUM(Angul:Sundargarh!T133) -> 4 | U133: =SUM(Angul:Sundargarh!U133) -> 7.2 | V133: =SUM(Angul:Sundargarh!V133) -> 4 | W133: =SUM(Angul:Sundargarh!W133) -> 7.2 | X133: =SUM(Angul:Sundargarh!X133) -> 0 | Y133: =SUM(Angul:Sundargarh!Y133) -> 0 | Z133: =SUM(Angul:Sundargarh!Z133) -> 0 | AA133: =SUM(Angul:Sundargarh!AA133) -> 0 | AB133: 1.8 | AC133: =SUM(Angul:Sundargarh!AC133) -> 4 | AD133: =SUM(Angul:Sundargarh!AD133) -> 7.2 | AE133: =SUM(Angul:Sundargarh!AE133) -> 4 | AF133: =SUM(Angul:Sundargarh!AF133) -> 7.2
A134: 3.27 | B134: Specific skill training per child @ Rs.1000/- per annum | C134: =SUM(Angul:Sundargarh!C134) -> 4 | D134: =SUM(Angul:Sundargarh!D134) -> 4 | E134: =SUM(Angul:Sundargarh!E134) -> 0 | F134: =SUM(Angul:Sundargarh!F134) -> 4 | G134: =SUM(Angul:Sundargarh!G134) -> 0 | H134: =SUM(Angul:Sundargarh!H134) -> 4 | I134: =SUM(Angul:Sundargarh!I134) -> 4 | J134: =SUM(Angul:Sundargarh!J134) -> 4 | K134: 1 | L134: 100 | M134: 0 | N134: 0 | O134: =SUM(Angul:Sundargarh!O134) -> 0 | P134: =SUM(Angul:Sundargarh!P134) -> 0 | Q134: =SUM(Angul:Sundargarh!Q134) -> 0 | R134: =SUM(Angul:Sundargarh!R134) -> 0 | S134: 1 | T134: =SUM(Angul:Sundargarh!T134) -> 4 | U134: =SUM(Angul:Sundargarh!U134) -> 4 | V134: =SUM(Angul:Sundargarh!V134) -> 4 | W134: =SUM(Angul:Sundargarh!W134) -> 4 | X134: =SUM(Angul:Sundargarh!X134) -> 0 | Y134: =SUM(Angul:Sundargarh!Y134) -> 0 | Z134: =SUM(Angul:Sundargarh!Z134) -> 0 | AA134: =SUM(Angul:Sundargarh!AA134) -> 0 | AB134: 1 | AC134: =SUM(Angul:Sundargarh!AC134) -> 4 | AD134: =SUM(Angul:Sundargarh!AD134) -> 4 | AE134: =SUM(Angul:Sundargarh!AE134) -> 4 | AF134: =SUM(Angul:Sundargarh!AF134) -> 4
A135: =+A134+0.01 -> 3.28 | B135: Electricity / water charges per child @Rs.1000/- per annum | C135: =SUM(Angul:Sundargarh!C135) -> 4 | D135: =SUM(Angul:Sundargarh!D135) -> 4 | E135: =SUM(Angul:Sundargarh!E135) -> 0 | F135: =SUM(Angul:Sundargarh!F135) -> 4 | G135: =SUM(Angul:Sundargarh!G135) -> 0 | H135: =SUM(Angul:Sundargarh!H135) -> 4 | I135: =SUM(Angul:Sundargarh!I135) -> 4 | J135: =SUM(Angul:Sundargarh!J135) -> 4 | K135: 1 | L135: 100 | M135: 0 | N135: 0 | O135: =SUM(Angul:Sundargarh!O135) -> 0 | P135: =SUM(Angul:Sundargarh!P135) -> 0 | Q135: =SUM(Angul:Sundargarh!Q135) -> 0 | R135: =SUM(Angul:Sundargarh!R135) -> 0 | S135: 1 | T135: =SUM(Angul:Sundargarh!T135) -> 4 | U135: =SUM(Angul:Sundargarh!U135) -> 4 | V135: =SUM(Angul:Sundargarh!V135) -> 4 | W135: =SUM(Angul:Sundargarh!W135) -> 4 | X135: =SUM(Angul:Sundargarh!X135) -> 0 | Y135: =SUM(Angul:Sundargarh!Y135) -> 0 | Z135: =SUM(Angul:Sundargarh!Z135) -> 0 | AA135: =SUM(Angul:Sundargarh!AA135) -> 0 | AB135: 1 | AC135: =SUM(Angul:Sundargarh!AC135) -> 4 | AD135: =SUM(Angul:Sundargarh!AD135) -> 4 | AE135: =SUM(Angul:Sundargarh!AE135) -> 4 | AF135: =SUM(Angul:Sundargarh!AF135) -> 4
A136: 3.29 | B136: Medical care/contingencies @ Rs.1250/- per child per annum | C136: =SUM(Angul:Sundargarh!C136) -> 4 | D136: =SUM(Angul:Sundargarh!D136) -> 5 | E136: =SUM(Angul:Sundargarh!E136) -> 0 | F136: =SUM(Angul:Sundargarh!F136) -> 5 | G136: =SUM(Angul:Sundargarh!G136) -> 0 | H136: =SUM(Angul:Sundargarh!H136) -> 3.5 | I136: =SUM(Angul:Sundargarh!I136) -> 4 | J136: =SUM(Angul:Sundargarh!J136) -> 3.5 | K136: =I136/C136 -> 1 | L136: =J136/F136*100 -> 70 | M136: =C136-I136 -> 0 | N136: =F136-J136 -> 1.5 | O136: =SUM(Angul:Sundargarh!O136) -> 0 | P136: =SUM(Angul:Sundargarh!P136) -> 0 | Q136: =SUM(Angul:Sundargarh!Q136) -> 0 | R136: =SUM(Angul:Sundargarh!R136) -> 0 | S136: 1.25 | T136: =SUM(Angul:Sundargarh!T136) -> 4 | U136: =SUM(Angul:Sundargarh!U136) -> 5 | V136: =SUM(Angul:Sundargarh!V136) -> 4 | W136: =SUM(Angul:Sundargarh!W136) -> 5 | X136: =SUM(Angul:Sundargarh!X136) -> 0 | Y136: =SUM(Angul:Sundargarh!Y136) -> 0 | Z136: =SUM(Angul:Sundargarh!Z136) -> 0 | AA136: =SUM(Angul:Sundargarh!AA136) -> 0 | AB136: 1.25 | AC136: =SUM(Angul:Sundargarh!AC136) -> 4 | AD136: =SUM(Angul:Sundargarh!AD136) -> 5 | AE136: =SUM(Angul:Sundargarh!AE136) -> 4 | AF136: =SUM(Angul:Sundargarh!AF136) -> 5
A137: 3.3 | B137: Maintenance @ Rs.750/- per child per annum | C137: =SUM(Angul:Sundargarh!C137) -> 4 | D137: =SUM(Angul:Sundargarh!D137) -> 3 | E137: =SUM(Angul:Sundargarh!E137) -> 0 | F137: =SUM(Angul:Sundargarh!F137) -> 3 | G137: =SUM(Angul:Sundargarh!G137) -> 0 | H137: =SUM(Angul:Sundargarh!H137) -> 2.5 | I137: =SUM(Angul:Sundargarh!I137) -> 4 | J137: =SUM(Angul:Sundargarh!J137) -> 2.5 | K137: 1 | L137: 83.33333333 | M137: 0 | N137: 0.5 | O137: =SUM(Angul:Sundargarh!O137) -> 0 | P137: =SUM(Angul:Sundargarh!P137) -> 0 | Q137: =SUM(Angul:Sundargarh!Q137) -> 0 | R137: =SUM(Angul:Sundargarh!R137) -> 0 | S137: 0.75 | T137: =SUM(Angul:Sundargarh!T137) -> 4 | U137: =SUM(Angul:Sundargarh!U137) -> 3 | V137: =SUM(Angul:Sundargarh!V137) -> 4 | W137: =SUM(Angul:Sundargarh!W137) -> 3 | X137: =SUM(Angul:Sundargarh!X137) -> 0 | Y137: =SUM(Angul:Sundargarh!Y137) -> 0 | Z137: =SUM(Angul:Sundargarh!Z137) -> 0 | AA137: =SUM(Angul:Sundargarh!AA137) -> 0 | AB137: 0.75 | AC137: =SUM(Angul:Sundargarh!AC137) -> 4 | AD137: =SUM(Angul:Sundargarh!AD137) -> 3 | AE137: =SUM(Angul:Sundargarh!AE137) -> 4 | AF137: =SUM(Angul:Sundargarh!AF137) -> 3
A138: 3.31 | B138: Miscellaneous @ Rs.750/- per child per annum | C138: =SUM(Angul:Sundargarh!C138) -> 4 | D138: =SUM(Angul:Sundargarh!D138) -> 3 | E138: =SUM(Angul:Sundargarh!E138) -> 0 | F138: =SUM(Angul:Sundargarh!F138) -> 3 | G138: =SUM(Angul:Sundargarh!G138) -> 0 | H138: =SUM(Angul:Sundargarh!H138) -> 3 | I138: =SUM(Angul:Sundargarh!I138) -> 4 | J138: =SUM(Angul:Sundargarh!J138) -> 3 | K138: 1 | L138: 100 | M138: 0 | N138: 0 | O138: =SUM(Angul:Sundargarh!O138) -> 0 | P138: =SUM(Angul:Sundargarh!P138) -> 0 | Q138: =SUM(Angul:Sundargarh!Q138) -> 0 | R138: =SUM(Angul:Sundargarh!R138) -> 0 | S138: 0.75 | T138: =SUM(Angul:Sundargarh!T138) -> 4 | U138: =SUM(Angul:Sundargarh!U138) -> 3 | V138: =SUM(Angul:Sundargarh!V138) -> 4 | W138: =SUM(Angul:Sundargarh!W138) -> 3 | X138: =SUM(Angul:Sundargarh!X138) -> 0 | Y138: =SUM(Angul:Sundargarh!Y138) -> 0 | Z138: =SUM(Angul:Sundargarh!Z138) -> 0 | AA138: =SUM(Angul:Sundargarh!AA138) -> 0 | AB138: 0.75 | AC138: =SUM(Angul:Sundargarh!AC138) -> 4 | AD138: =SUM(Angul:Sundargarh!AD138) -> 3 | AE138: =SUM(Angul:Sundargarh!AE138) -> 4 | AF138: =SUM(Angul:Sundargarh!AF138) -> 3
A139: 3.32 | B139: Preparatory camps @ Rs.300/- per child per annum | C139: =SUM(Angul:Sundargarh!C139) -> 0 | D139: =SUM(Angul:Sundargarh!D139) -> 0 | E139: =SUM(Angul:Sundargarh!E139) -> 0 | F139: =SUM(Angul:Sundargarh!F139) -> 0 | G139: =SUM(Angul:Sundargarh!G139) -> 0 | H139: =SUM(Angul:Sundargarh!H139) -> 0 | I139: =SUM(Angul:Sundargarh!I139) -> 0 | J139: =SUM(Angul:Sundargarh!J139) -> 0 | M139: 0 | N139: 0 | O139: =SUM(Angul:Sundargarh!O139) -> 0 | P139: =SUM(Angul:Sundargarh!P139) -> 0 | Q139: =SUM(Angul:Sundargarh!Q139) -> 0 | R139: =SUM(Angul:Sundargarh!R139) -> 0 | S139: 0.3 | T139: =SUM(Angul:Sundargarh!T139) -> 4 | U139: =SUM(Angul:Sundargarh!U139) -> 1.2 | V139: =SUM(Angul:Sundargarh!V139) -> 4 | W139: =SUM(Angul:Sundargarh!W139) -> 1.2 | X139: =SUM(Angul:Sundargarh!X139) -> 0 | Y139: =SUM(Angul:Sundargarh!Y139) -> 0 | Z139: =SUM(Angul:Sundargarh!Z139) -> 0 | AA139: =SUM(Angul:Sundargarh!AA139) -> 0 | AB139: 0.3 | AC139: =SUM(Angul:Sundargarh!AC139) -> 4 | AD139: =SUM(Angul:Sundargarh!AD139) -> 1.2 | AE139: =SUM(Angul:Sundargarh!AE139) -> 4 | AF139: =SUM(Angul:Sundargarh!AF139) -> 1.2
A140: 3.33 | B140: P.T.A / school functions @ Rs.300/- per child per annum | C140: =SUM(Angul:Sundargarh!C140) -> 4 | D140: =SUM(Angul:Sundargarh!D140) -> 0.8 | E140: =SUM(Angul:Sundargarh!E140) -> 0 | F140: =SUM(Angul:Sundargarh!F140) -> 0.8 | G140: =SUM(Angul:Sundargarh!G140) -> 0 | H140: =SUM(Angul:Sundargarh!H140) -> 0.4 | I140: =SUM(Angul:Sundargarh!I140) -> 4 | J140: =SUM(Angul:Sundargarh!J140) -> 0.4 | K140: 1 | L140: 50 | M140: 0 | N140: 0.4 | O140: =SUM(Angul:Sundargarh!O140) -> 0 | P140: =SUM(Angul:Sundargarh!P140) -> 0 | Q140: =SUM(Angul:Sundargarh!Q140) -> 0 | R140: =SUM(Angul:Sundargarh!R140) -> 0 | S140: 0.3 | T140: =SUM(Angul:Sundargarh!T140) -> 4 | U140: =SUM(Angul:Sundargarh!U140) -> 1.2 | V140: =SUM(Angul:Sundargarh!V140) -> 4 | W140: =SUM(Angul:Sundargarh!W140) -> 1.2 | X140: =SUM(Angul:Sundargarh!X140) -> 0 | Y140: =SUM(Angul:Sundargarh!Y140) -> 0 | Z140: =SUM(Angul:Sundargarh!Z140) -> 0 | AA140: =SUM(Angul:Sundargarh!AA140) -> 0 | AB140: 0.3 | AC140: =SUM(Angul:Sundargarh!AC140) -> 4 | AD140: =SUM(Angul:Sundargarh!AD140) -> 1.2 | AE140: =SUM(Angul:Sundargarh!AE140) -> 4 | AF140: =SUM(Angul:Sundargarh!AF140) -> 1.2
A141: 3.34 | B141: Provision of Rent @ Rs.10000 /- per child per annum | C141: =SUM(Angul:Sundargarh!C141) -> 0 | D141: =SUM(Angul:Sundargarh!D141) -> 0 | E141: =SUM(Angul:Sundargarh!E141) -> 0 | F141: =SUM(Angul:Sundargarh!F141) -> 0 | G141: =SUM(Angul:Sundargarh!G141) -> 0 | H141: =SUM(Angul:Sundargarh!H141) -> 0 | I141: =SUM(Angul:Sundargarh!I141) -> 0 | J141: =SUM(Angul:Sundargarh!J141) -> 0 | M141: 0 | N141: 0 | O141: =SUM(Angul:Sundargarh!O141) -> 0 | P141: =SUM(Angul:Sundargarh!P141) -> 0 | Q141: =SUM(Angul:Sundargarh!Q141) -> 0 | R141: =SUM(Angul:Sundargarh!R141) -> 0 | T141: =SUM(Angul:Sundargarh!T141) -> 0 | U141: =SUM(Angul:Sundargarh!U141) -> 0 | V141: =SUM(Angul:Sundargarh!V141) -> 0 | W141: =SUM(Angul:Sundargarh!W141) -> 0 | X141: =SUM(Angul:Sundargarh!X141) -> 0 | Y141: =SUM(Angul:Sundargarh!Y141) -> 0 | Z141: =SUM(Angul:Sundargarh!Z141) -> 0 | AA141: =SUM(Angul:Sundargarh!AA141) -> 0 | AC141: =SUM(Angul:Sundargarh!AC141) -> 0 | AD141: =SUM(Angul:Sundargarh!AD141) -> 0 | AE141: =SUM(Angul:Sundargarh!AE141) -> 0 | AF141: =SUM(Angul:Sundargarh!AF141) -> 0
A142: 3.35 | B142: Capacity Building @ Rs.500/- per child per annum | C142: =SUM(Angul:Sundargarh!C142) -> 4 | D142: =SUM(Angul:Sundargarh!D142) -> 2 | E142: =SUM(Angul:Sundargarh!E142) -> 0 | F142: =SUM(Angul:Sundargarh!F142) -> 2 | G142: =SUM(Angul:Sundargarh!G142) -> 0 | H142: =SUM(Angul:Sundargarh!H142) -> 2 | I142: =SUM(Angul:Sundargarh!I142) -> 4 | J142: =SUM(Angul:Sundargarh!J142) -> 2 | K142: 1 | L142: 100 | M142: 0 | N142: 0 | O142: =SUM(Angul:Sundargarh!O142) -> 0 | P142: =SUM(Angul:Sundargarh!P142) -> 0 | Q142: =SUM(Angul:Sundargarh!Q142) -> 0 | R142: =SUM(Angul:Sundargarh!R142) -> 0 | S142: 0.5 | T142: =SUM(Angul:Sundargarh!T142) -> 4 | U142: =SUM(Angul:Sundargarh!U142) -> 2 | V142: =SUM(Angul:Sundargarh!V142) -> 4 | W142: =SUM(Angul:Sundargarh!W142) -> 2 | X142: =SUM(Angul:Sundargarh!X142) -> 0 | Y142: =SUM(Angul:Sundargarh!Y142) -> 0 | Z142: =SUM(Angul:Sundargarh!Z142) -> 0 | AA142: =SUM(Angul:Sundargarh!AA142) -> 0 | AB142: 0.5 | AC142: =SUM(Angul:Sundargarh!AC142) -> 4 | AD142: =SUM(Angul:Sundargarh!AD142) -> 2 | AE142: =SUM(Angul:Sundargarh!AE142) -> 4 | AF142: =SUM(Angul:Sundargarh!AF142) -> 2 | AG142: Recommended as proposed
A143: 3.36 | B143: Physical / Self Defence training @ Rs. 200/- per child per annum. | C143: =SUM(Angul:Sundargarh!C143) -> 0 | D143: =SUM(Angul:Sundargarh!D143) -> 0 | E143: =SUM(Angul:Sundargarh!E143) -> 0 | F143: =SUM(Angul:Sundargarh!F143) -> 0 | G143: =SUM(Angul:Sundargarh!G143) -> 0 | H143: =SUM(Angul:Sundargarh!H143) -> 0 | I143: =SUM(Angul:Sundargarh!I143) -> 0 | J143: =SUM(Angul:Sundargarh!J143) -> 0 | M143: 0 | N143: 0 | O143: =SUM(Angul:Sundargarh!O143) -> 0 | P143: =SUM(Angul:Sundargarh!P143) -> 0 | Q143: =SUM(Angul:Sundargarh!Q143) -> 0 | R143: =SUM(Angul:Sundargarh!R143) -> 0 | S143: 0.2 | T143: =SUM(Angul:Sundargarh!T143) -> 4 | U143: =SUM(Angul:Sundargarh!U143) -> 0.8 | V143: =SUM(Angul:Sundargarh!V143) -> 4 | W143: =SUM(Angul:Sundargarh!W143) -> 0.8 | X143: =SUM(Angul:Sundargarh!X143) -> 0 | Y143: =SUM(Angul:Sundargarh!Y143) -> 0 | Z143: =SUM(Angul:Sundargarh!Z143) -> 0 | AA143: =SUM(Angul:Sundargarh!AA143) -> 0 | AB143: 0.2 | AC143: =SUM(Angul:Sundargarh!AC143) -> 4 | AD143: =SUM(Angul:Sundargarh!AD143) -> 0.8 | AE143: =SUM(Angul:Sundargarh!AE143) -> 4 | AF143: =SUM(Angul:Sundargarh!AF143) -> 0.8
B144: Sub Total (Recurring) | C144: =SUM(Angul:Sundargarh!C144) -> 60 | D144: =SUM(Angul:Sundargarh!D144) -> 137.4 | E144: =SUM(Angul:Sundargarh!E144) -> 0 | F144: =SUM(Angul:Sundargarh!F144) -> 137.4 | G144: =SUM(Angul:Sundargarh!G144) -> 0 | H144: =SUM(Angul:Sundargarh!H144) -> 76.11855 | I144: =SUM(Angul:Sundargarh!I144) -> 60 | J144: =SUM(Angul:Sundargarh!J144) -> 76.11855 | K144: 1 | L144: 55.39923581 | M144: 0 | N144: 61.28145 | O144: =SUM(Angul:Sundargarh!O144) -> 0 | P144: =SUM(Angul:Sundargarh!P144) -> 0 | Q144: =SUM(Angul:Sundargarh!Q144) -> 0 | R144: =SUM(Angul:Sundargarh!R144) -> 0 | T144: =SUM(Angul:Sundargarh!T144) -> 68 | U144: =SUM(Angul:Sundargarh!U144) -> 139.8 | V144: =SUM(Angul:Sundargarh!V144) -> 68 | W144: =SUM(Angul:Sundargarh!W144) -> 139.8 | X144: =SUM(Angul:Sundargarh!X144) -> 0 | Y144: =SUM(Angul:Sundargarh!Y144) -> 0 | Z144: =SUM(Angul:Sundargarh!Z144) -> 0 | AA144: =SUM(Angul:Sundargarh!AA144) -> 0 | AC144: =SUM(Angul:Sundargarh!AC144) -> 68 | AD144: =SUM(Angul:Sundargarh!AD144) -> 139.8 | AE144: =SUM(Angul:Sundargarh!AE144) -> 68 | AF144: =SUM(Angul:Sundargarh!AF144) -> 139.8
B145: Total (Recurring + Non Recurring) | C145: =SUM(Angul:Sundargarh!C145) -> 64 | D145: =SUM(Angul:Sundargarh!D145) -> 139.65 | E145: =SUM(Angul:Sundargarh!E145) -> 0 | F145: =SUM(Angul:Sundargarh!F145) -> 139.65 | G145: =SUM(Angul:Sundargarh!G145) -> 0 | H145: =SUM(Angul:Sundargarh!H145) -> 77.61855 | I145: =SUM(Angul:Sundargarh!I145) -> 60 | J145: =SUM(Angul:Sundargarh!J145) -> 77.61855 | K145: 0.9375 | L145: 55.58077336 | M145: 4 | N145: 62.03145 | O145: =SUM(Angul:Sundargarh!O145) -> 0 | P145: =SUM(Angul:Sundargarh!P145) -> 0.75 | Q145: =SUM(Angul:Sundargarh!Q145) -> 0 | R145: =SUM(Angul:Sundargarh!R145) -> 0 | T145: =SUM(Angul:Sundargarh!T145) -> 76 | U145: =SUM(Angul:Sundargarh!U145) -> 159.8 | V145: =SUM(Angul:Sundargarh!V145) -> 76 | W145: =SUM(Angul:Sundargarh!W145) -> 160.55 | X145: =SUM(Angul:Sundargarh!X145) -> 0 | Y145: =SUM(Angul:Sundargarh!Y145) -> 0 | Z145: =SUM(Angul:Sundargarh!Z145) -> 0 | AA145: =SUM(Angul:Sundargarh!AA145) -> 0 | AC145: =SUM(Angul:Sundargarh!AC145) -> 68 | AD145: =SUM(Angul:Sundargarh!AD145) -> 139.8 | AE145: =SUM(Angul:Sundargarh!AE145) -> 68 | AF145: =SUM(Angul:Sundargarh!AF145) -> 139.8
B146: Total (A + B) | C146: =SUM(Angul:Sundargarh!C146) -> 260 | D146: =SUM(Angul:Sundargarh!D146) -> 437.05 | E146: =SUM(Angul:Sundargarh!E146) -> 0 | F146: =SUM(Angul:Sundargarh!F146) -> 437.05 | G146: =SUM(Angul:Sundargarh!G146) -> 0 | H146: =SUM(Angul:Sundargarh!H146) -> 142.51006 | I146: =SUM(Angul:Sundargarh!I146) -> 256 | J146: =SUM(Angul:Sundargarh!J146) -> 184.66006 | K146: 0.9846153846 | L146: 42.25147237 | M146: 4 | N146: 252.38994 | O146: =SUM(Angul:Sundargarh!O146) -> 0 | P146: =SUM(Angul:Sundargarh!P146) -> 25.26 | Q146: =SUM(Angul:Sundargarh!Q146) -> 0 | R146: =SUM(Angul:Sundargarh!R146) -> 0 | T146: =SUM(Angul:Sundargarh!T146) -> 288 | U146: =SUM(Angul:Sundargarh!U146) -> 441.7 | V146: =SUM(Angul:Sundargarh!V146) -> 288 | W146: =SUM(Angul:Sundargarh!W146) -> 466.96 | X146: =SUM(Angul:Sundargarh!X146) -> 0 | Y146: =SUM(Angul:Sundargarh!Y146) -> 0 | Z146: =SUM(Angul:Sundargarh!Z146) -> 0 | AA146: =SUM(Angul:Sundargarh!AA146) -> 0 | AC146: =SUM(Angul:Sundargarh!AC146) -> 272 | AD146: =SUM(Angul:Sundargarh!AD146) -> 401.7 | AE146: =SUM(Angul:Sundargarh!AE146) -> 272 | AF146: =SUM(Angul:Sundargarh!AF146) -> 401.7
A147: 4 | B147: Transport/Escort Facility | C147: =SUM(Angul:Sundargarh!C147) -> 0 | D147: =SUM(Angul:Sundargarh!D147) -> 0 | E147: =SUM(Angul:Sundargarh!E147) -> 0 | F147: =SUM(Angul:Sundargarh!F147) -> 0 | G147: =SUM(Angul:Sundargarh!G147) -> 0 | H147: =SUM(Angul:Sundargarh!H147) -> 0 | I147: =SUM(Angul:Sundargarh!I147) -> 0 | J147: =SUM(Angul:Sundargarh!J147) -> 0 | O147: =SUM(Angul:Sundargarh!O147) -> 0 | P147: =SUM(Angul:Sundargarh!P147) -> 0 | Q147: =SUM(Angul:Sundargarh!Q147) -> 0 | R147: =SUM(Angul:Sundargarh!R147) -> 0 | T147: =SUM(Angul:Sundargarh!T147) -> 0 | U147: =SUM(Angul:Sundargarh!U147) -> 0 | V147: =SUM(Angul:Sundargarh!V147) -> 0 | W147: =SUM(Angul:Sundargarh!W147) -> 0 | X147: =SUM(Angul:Sundargarh!X147) -> 0 | Y147: =SUM(Angul:Sundargarh!Y147) -> 0 | Z147: =SUM(Angul:Sundargarh!Z147) -> 0 | AA147: =SUM(Angul:Sundargarh!AA147) -> 0 | AC147: =SUM(Angul:Sundargarh!AC147) -> 0 | AD147: =SUM(Angul:Sundargarh!AD147) -> 0 | AE147: =SUM(Angul:Sundargarh!AE147) -> 0 | AF147: =SUM(Angul:Sundargarh!AF147) -> 0
A148: 4.01 | B148: Children in remote habitation | C148: =SUM(Angul:Sundargarh!C148) -> 5168 | D148: =SUM(Angul:Sundargarh!D148) -> 155.04 | E148: =SUM(Angul:Sundargarh!E148) -> 0 | F148: =SUM(Angul:Sundargarh!F148) -> 155.04 | G148: =SUM(Angul:Sundargarh!G148) -> 175 | H148: =SUM(Angul:Sundargarh!H148) -> 21.65 | I148: =SUM(Angul:Sundargarh!I148) -> 4059 | J148: =SUM(Angul:Sundargarh!J148) -> 88.57 | K148: 0.7854102167 | L148: 57.12719298 | M148: 1109 | N148: 66.47 | O148: =SUM(Angul:Sundargarh!O148) -> 0 | P148: =SUM(Angul:Sundargarh!P148) -> 0 | Q148: =SUM(Angul:Sundargarh!Q148) -> 0 | R148: =SUM(Angul:Sundargarh!R148) -> 0 | S148: 0.03 | T148: =SUM(Angul:Sundargarh!T148) -> 4804 | U148: =SUM(Angul:Sundargarh!U148) -> 144.12 | V148: =SUM(Angul:Sundargarh!V148) -> 4804 | W148: =SUM(Angul:Sundargarh!W148) -> 144.12 | X148: =SUM(Angul:Sundargarh!X148) -> 0 | Y148: =SUM(Angul:Sundargarh!Y148) -> 0 | Z148: =SUM(Angul:Sundargarh!Z148) -> 0 | AA148: =SUM(Angul:Sundargarh!AA148) -> 0 | AB148: 0.03 | AC148: =SUM(Angul:Sundargarh!AC148) -> 4804 | AD148: =SUM(Angul:Sundargarh!AD148) -> 144.12 | AE148: =SUM(Angul:Sundargarh!AE148) -> 4804 | AF148: =SUM(Angul:Sundargarh!AF148) -> 144.12
A149: 4.02 | B149: Urban deprived children/children without adult protection | C149: =SUM(Angul:Sundargarh!C149) -> 0 | D149: =SUM(Angul:Sundargarh!D149) -> 0 | E149: =SUM(Angul:Sundargarh!E149) -> 0 | F149: =SUM(Angul:Sundargarh!F149) -> 0 | G149: =SUM(Angul:Sundargarh!G149) -> 0 | H149: =SUM(Angul:Sundargarh!H149) -> 0 | I149: =SUM(Angul:Sundargarh!I149) -> 0 | J149: =SUM(Angul:Sundargarh!J149) -> 0 | M149: 0 | N149: 0 | O149: =SUM(Angul:Sundargarh!O149) -> 0 | P149: =SUM(Angul:Sundargarh!P149) -> 0 | Q149: =SUM(Angul:Sundargarh!Q149) -> 0 | R149: =SUM(Angul:Sundargarh!R149) -> 0 | S149: 0.03 | T149: =SUM(Angul:Sundargarh!T149) -> 0 | U149: =SUM(Angul:Sundargarh!U149) -> 0 | V149: =SUM(Angul:Sundargarh!V149) -> 0 | W149: =SUM(Angul:Sundargarh!W149) -> 0 | X149: =SUM(Angul:Sundargarh!X149) -> 0 | Y149: =SUM(Angul:Sundargarh!Y149) -> 0 | Z149: =SUM(Angul:Sundargarh!Z149) -> 0 | AA149: =SUM(Angul:Sundargarh!AA149) -> 0 | AC149: =SUM(Angul:Sundargarh!AC149) -> 0 | AD149: =SUM(Angul:Sundargarh!AD149) -> 0 | AE149: =SUM(Angul:Sundargarh!AE149) -> 0 | AF149: =SUM(Angul:Sundargarh!AF149) -> 0
B150: Sub Total | C150: =SUM(Angul:Sundargarh!C150) -> 5168 | D150: =SUM(Angul:Sundargarh!D150) -> 155.04 | E150: =SUM(Angul:Sundargarh!E150) -> 0 | F150: =SUM(Angul:Sundargarh!F150) -> 155.04 | G150: =SUM(Angul:Sundargarh!G150) -> 0 | H150: =SUM(Angul:Sundargarh!H150) -> 21.65 | I150: =SUM(Angul:Sundargarh!I150) -> 4059 | J150: =SUM(Angul:Sundargarh!J150) -> 88.57 | K150: 0.7854102167 | L150: 57.12719298 | M150: 1109 | N150: 66.47 | O150: =SUM(Angul:Sundargarh!O150) -> 0 | P150: =SUM(Angul:Sundargarh!P150) -> 0 | Q150: =SUM(Angul:Sundargarh!Q150) -> 0 | R150: =SUM(Angul:Sundargarh!R150) -> 0 | T150: =SUM(Angul:Sundargarh!T150) -> 4804 | U150: =SUM(Angul:Sundargarh!U150) -> 144.12 | V150: =SUM(Angul:Sundargarh!V150) -> 4804 | W150: =SUM(Angul:Sundargarh!W150) -> 144.12 | X150: =SUM(Angul:Sundargarh!X150) -> 0 | Y150: =SUM(Angul:Sundargarh!Y150) -> 0 | Z150: =SUM(Angul:Sundargarh!Z150) -> 0 | AA150: =SUM(Angul:Sundargarh!AA150) -> 0 | AC150: =SUM(Angul:Sundargarh!AC150) -> 4804 | AD150: =SUM(Angul:Sundargarh!AD150) -> 144.12 | AE150: =SUM(Angul:Sundargarh!AE150) -> 4804 | AF150: =SUM(Angul:Sundargarh!AF150) -> 144.12
A151: 5 | B151: Reimbursement of Fee against 25% admission under Section 12(1)(c) of RTE Act 2009 (Entry Level) subject to upper limit of 20% of AWP&B subject to guidelines issued by MHRD | C151: =SUM(Angul:Sundargarh!C151) -> 1460 | D151: =SUM(Angul:Sundargarh!D151) -> 88.341 | E151: =SUM(Angul:Sundargarh!E151) -> 0 | F151: =SUM(Angul:Sundargarh!F151) -> 88.341 | G151: =SUM(Angul:Sundargarh!G151) -> 1460 | H151: =SUM(Angul:Sundargarh!H151) -> 88.341 | I151: =SUM(Angul:Sundargarh!I151) -> 1460 | J151: =SUM(Angul:Sundargarh!J151) -> 88.341 | K151: 1 | L151: 100 | M151: 0 | N151: 0 | O151: =SUM(Angul:Sundargarh!O151) -> 0 | P151: =SUM(Angul:Sundargarh!P151) -> 0 | Q151: =SUM(Angul:Sundargarh!Q151) -> 0 | R151: =SUM(Angul:Sundargarh!R151) -> 0 | S151: 0.06270821429 | T151: =SUM(Angul:Sundargarh!T151) -> 560 | U151: =SUM(Angul:Sundargarh!U151) -> 35.1166 | V151: =SUM(Angul:Sundargarh!V151) -> 560 | W151: =SUM(Angul:Sundargarh!W151) -> 35.1166 | X151: =SUM(Angul:Sundargarh!X151) -> 0 | Y151: =SUM(Angul:Sundargarh!Y151) -> 0 | Z151: =SUM(Angul:Sundargarh!Z151) -> 0 | AA151: =SUM(Angul:Sundargarh!AA151) -> 0 | AC151: =SUM(Angul:Sundargarh!AC151) -> 560 | AD151: =SUM(Angul:Sundargarh!AD151) -> 35.1166 | AE151: =SUM(Angul:Sundargarh!AE151) -> 560 | AF151: =SUM(Angul:Sundargarh!AF151) -> 35.1166
B152: Sub Total | C152: =SUM(Angul:Sundargarh!C152) -> 1460 | D152: =SUM(Angul:Sundargarh!D152) -> 88.341 | E152: =SUM(Angul:Sundargarh!E152) -> 0 | F152: =SUM(Angul:Sundargarh!F152) -> 88.341 | G152: =SUM(Angul:Sundargarh!G152) -> 1460 | H152: =SUM(Angul:Sundargarh!H152) -> 88.341 | I152: =SUM(Angul:Sundargarh!I152) -> 1460 | J152: =SUM(Angul:Sundargarh!J152) -> 88.341 | K152: 1 | L152: 100 | M152: 0 | N152: 0 | O152: =SUM(Angul:Sundargarh!O152) -> 0 | P152: =SUM(Angul:Sundargarh!P152) -> 0 | Q152: =SUM(Angul:Sundargarh!Q152) -> 0 | R152: =SUM(Angul:Sundargarh!R152) -> 0 | T152: =SUM(Angul:Sundargarh!T152) -> 560 | U152: =SUM(Angul:Sundargarh!U152) -> 35.1166 | V152: =SUM(Angul:Sundargarh!V152) -> 560 | W152: =SUM(Angul:Sundargarh!W152) -> 35.1166 | X152: =SUM(Angul:Sundargarh!X152) -> 0 | Y152: =SUM(Angul:Sundargarh!Y152) -> 0 | Z152: =SUM(Angul:Sundargarh!Z152) -> 0 | AA152: =SUM(Angul:Sundargarh!AA152) -> 0 | AC152: =SUM(Angul:Sundargarh!AC152) -> 560 | AD152: =SUM(Angul:Sundargarh!AD152) -> 35.1166 | AE152: =SUM(Angul:Sundargarh!AE152) -> 560 | AF152: =SUM(Angul:Sundargarh!AF152) -> 35.1166
A153: =+A151+1 -> 6 | B153: Special Training for mainstreaming of out of school children | C153: =SUM(Angul:Sundargarh!C153) -> 0 | D153: =SUM(Angul:Sundargarh!D153) -> 0 | E153: =SUM(Angul:Sundargarh!E153) -> 0 | F153: =SUM(Angul:Sundargarh!F153) -> 0 | G153: =SUM(Angul:Sundargarh!G153) -> 0 | H153: =SUM(Angul:Sundargarh!H153) -> 0 | I153: =SUM(Angul:Sundargarh!I153) -> 0 | J153: =SUM(Angul:Sundargarh!J153) -> 0 | O153: =SUM(Angul:Sundargarh!O153) -> 0 | P153: =SUM(Angul:Sundargarh!P153) -> 0 | Q153: =SUM(Angul:Sundargarh!Q153) -> 0 | R153: =SUM(Angul:Sundargarh!R153) -> 0 | T153: =SUM(Angul:Sundargarh!T153) -> 0 | U153: =SUM(Angul:Sundargarh!U153) -> 0 | V153: =SUM(Angul:Sundargarh!V153) -> 0 | W153: =SUM(Angul:Sundargarh!W153) -> 0 | X153: =SUM(Angul:Sundargarh!X153) -> 0 | Y153: =SUM(Angul:Sundargarh!Y153) -> 0 | Z153: =SUM(Angul:Sundargarh!Z153) -> 0 | AA153: =SUM(Angul:Sundargarh!AA153) -> 0 | AC153: =SUM(Angul:Sundargarh!AC153) -> 0 | AD153: =SUM(Angul:Sundargarh!AD153) -> 0 | AE153: =SUM(Angul:Sundargarh!AE153) -> 0 | AF153: =SUM(Angul:Sundargarh!AF153) -> 0
A154: 6.01 | B154: Residential (Fresh) | C154: =SUM(Angul:Sundargarh!C154) -> 0 | D154: =SUM(Angul:Sundargarh!D154) -> 0 | E154: =SUM(Angul:Sundargarh!E154) -> 0 | F154: =SUM(Angul:Sundargarh!F154) -> 0 | G154: =SUM(Angul:Sundargarh!G154) -> 0 | H154: =SUM(Angul:Sundargarh!H154) -> 0 | I154: =SUM(Angul:Sundargarh!I154) -> 0 | J154: =SUM(Angul:Sundargarh!J154) -> 0 | O154: =SUM(Angul:Sundargarh!O154) -> 0 | P154: =SUM(Angul:Sundargarh!P154) -> 0 | Q154: =SUM(Angul:Sundargarh!Q154) -> 0 | R154: =SUM(Angul:Sundargarh!R154) -> 0 | T154: =SUM(Angul:Sundargarh!T154) -> 0 | U154: =SUM(Angul:Sundargarh!U154) -> 0 | V154: =SUM(Angul:Sundargarh!V154) -> 0 | W154: =SUM(Angul:Sundargarh!W154) -> 0 | X154: =SUM(Angul:Sundargarh!X154) -> 0 | Y154: =SUM(Angul:Sundargarh!Y154) -> 0 | Z154: =SUM(Angul:Sundargarh!Z154) -> 0 | AA154: =SUM(Angul:Sundargarh!AA154) -> 0 | AC154: =SUM(Angul:Sundargarh!AC154) -> 0 | AD154: =SUM(Angul:Sundargarh!AD154) -> 0 | AE154: =SUM(Angul:Sundargarh!AE154) -> 0 | AF154: =SUM(Angul:Sundargarh!AF154) -> 0
B155: (a) 12 months | C155: =SUM(Angul:Sundargarh!C155) -> 1143 | D155: =SUM(Angul:Sundargarh!D155) -> 228.6 | E155: =SUM(Angul:Sundargarh!E155) -> 0 | F155: =SUM(Angul:Sundargarh!F155) -> 228.6 | G155: =SUM(Angul:Sundargarh!G155) -> 0 | H155: =SUM(Angul:Sundargarh!H155) -> 179.26995 | I155: =SUM(Angul:Sundargarh!I155) -> 1143 | J155: =SUM(Angul:Sundargarh!J155) -> 200 | K155: 1 | L155: 87.48906387 | M155: 0 | N155: 28.6 | O155: =SUM(Angul:Sundargarh!O155) -> 0 | P155: =SUM(Angul:Sundargarh!P155) -> 0 | Q155: =SUM(Angul:Sundargarh!Q155) -> 0 | R155: =SUM(Angul:Sundargarh!R155) -> 0 | S155: 0.2 | T155: =SUM(Angul:Sundargarh!T155) -> 0 | U155: =SUM(Angul:Sundargarh!U155) -> 0 | V155: =SUM(Angul:Sundargarh!V155) -> 0 | W155: =SUM(Angul:Sundargarh!W155) -> 0 | X155: =SUM(Angul:Sundargarh!X155) -> 0 | Y155: =SUM(Angul:Sundargarh!Y155) -> 0 | Z155: =SUM(Angul:Sundargarh!Z155) -> 0 | AA155: =SUM(Angul:Sundargarh!AA155) -> 0 | AC155: =SUM(Angul:Sundargarh!AC155) -> 0 | AD155: =SUM(Angul:Sundargarh!AD155) -> 0 | AE155: =SUM(Angul:Sundargarh!AE155) -> 0 | AF155: =SUM(Angul:Sundargarh!AF155) -> 0
B156: (b) 9 months | C156: =SUM(Angul:Sundargarh!C156) -> 0 | D156: =SUM(Angul:Sundargarh!D156) -> 0 | E156: =SUM(Angul:Sundargarh!E156) -> 0 | F156: =SUM(Angul:Sundargarh!F156) -> 0 | G156: =SUM(Angul:Sundargarh!G156) -> 0 | H156: =SUM(Angul:Sundargarh!H156) -> 0 | I156: =SUM(Angul:Sundargarh!I156) -> 0 | J156: =SUM(Angul:Sundargarh!J156) -> 0 | M156: 0 | N156: 0 | O156: =SUM(Angul:Sundargarh!O156) -> 0 | P156: =SUM(Angul:Sundargarh!P156) -> 0 | Q156: =SUM(Angul:Sundargarh!Q156) -> 0 | R156: =SUM(Angul:Sundargarh!R156) -> 0 | S156: =0.2/12*9 -> 0.15 | T156: =SUM(Angul:Sundargarh!T156) -> 504 | U156: =SUM(Angul:Sundargarh!U156) -> 75.6 | V156: =SUM(Angul:Sundargarh!V156) -> 504 | W156: =SUM(Angul:Sundargarh!W156) -> 75.6 | X156: =SUM(Angul:Sundargarh!X156) -> 0 | Y156: =SUM(Angul:Sundargarh!Y156) -> 0 | Z156: =SUM(Angul:Sundargarh!Z156) -> 0 | AA156: =SUM(Angul:Sundargarh!AA156) -> 0 | AB156: =0.2/12*9 -> 0.15 | AC156: =SUM(Angul:Sundargarh!AC156) -> 504 | AD156: =SUM(Angul:Sundargarh!AD156) -> 75.6 | AE156: =SUM(Angul:Sundargarh!AE156) -> 504 | AF156: =SUM(Angul:Sundargarh!AF156) -> 75.6 | AG156: Recommended as proposed
B157: (c) 6 months | C157: =SUM(Angul:Sundargarh!C157) -> 3956 | D157: =SUM(Angul:Sundargarh!D157) -> 395.6 | E157: =SUM(Angul:Sundargarh!E157) -> 0 | F157: =SUM(Angul:Sundargarh!F157) -> 395.6 | G157: =SUM(Angul:Sundargarh!G157) -> 0 | H157: =SUM(Angul:Sundargarh!H157) -> 203.01 | I157: =SUM(Angul:Sundargarh!I157) -> 2713 | J157: =SUM(Angul:Sundargarh!J157) -> 224.91 | K157: 0.685793731 | L157: 56.8528817 | M157: 1243 | N157: 170.69 | O157: =SUM(Angul:Sundargarh!O157) -> 0 | P157: =SUM(Angul:Sundargarh!P157) -> 0 | Q157: =SUM(Angul:Sundargarh!Q157) -> 0 | R157: =SUM(Angul:Sundargarh!R157) -> 0 | S157: =0.2/12*6 -> 0.1 | T157: =SUM(Angul:Sundargarh!T157) -> 3477 | U157: =SUM(Angul:Sundargarh!U157) -> 347.7 | V157: =SUM(Angul:Sundargarh!V157) -> 3477 | W157: =SUM(Angul:Sundargarh!W157) -> 347.7 | X157: =SUM(Angul:Sundargarh!X157) -> 0 | Y157: =SUM(Angul:Sundargarh!Y157) -> 0 | Z157: =SUM(Angul:Sundargarh!Z157) -> 0 | AA157: =SUM(Angul:Sundargarh!AA157) -> 0 | AB157: =0.2/12*6 -> 0.1 | AC157: =SUM(Angul:Sundargarh!AC157) -> 3477 | AD157: =SUM(Angul:Sundargarh!AD157) -> 347.7 | AE157: =SUM(Angul:Sundargarh!AE157) -> 3477 | AF157: =SUM(Angul:Sundargarh!AF157) -> 347.7
B158: (d) 3 months | C158: =SUM(Angul:Sundargarh!C158) -> 0 | D158: =SUM(Angul:Sundargarh!D158) -> 0 | E158: =SUM(Angul:Sundargarh!E158) -> 0 | F158: =SUM(Angul:Sundargarh!F158) -> 0 | G158: =SUM(Angul:Sundargarh!G158) -> 0 | H158: =SUM(Angul:Sundargarh!H158) -> 0 | I158: =SUM(Angul:Sundargarh!I158) -> 0 | J158: =SUM(Angul:Sundargarh!J158) -> 0 | M158: 0 | N158: 0 | O158: =SUM(Angul:Sundargarh!O158) -> 0 | P158: =SUM(Angul:Sundargarh!P158) -> 0 | Q158: =SUM(Angul:Sundargarh!Q158) -> 0 | R158: =SUM(Angul:Sundargarh!R158) -> 0 | S158: =0.2/12*3 -> 0.05 | T158: =SUM(Angul:Sundargarh!T158) -> 0 | U158: =SUM(Angul:Sundargarh!U158) -> 0 | V158: =SUM(Angul:Sundargarh!V158) -> 0 | W158: =SUM(Angul:Sundargarh!W158) -> 0 | X158: =SUM(Angul:Sundargarh!X158) -> 0 | Y158: =SUM(Angul:Sundargarh!Y158) -> 0 | Z158: =SUM(Angul:Sundargarh!Z158) -> 0 | AA158: =SUM(Angul:Sundargarh!AA158) -> 0 | AC158: =SUM(Angul:Sundargarh!AC158) -> 0 | AD158: =SUM(Angul:Sundargarh!AD158) -> 0 | AE158: =SUM(Angul:Sundargarh!AE158) -> 0 | AF158: =SUM(Angul:Sundargarh!AF158) -> 0
B159: Sub Total | C159: =SUM(Angul:Sundargarh!C159) -> 5099 | D159: =SUM(Angul:Sundargarh!D159) -> 624.2 | E159: =SUM(Angul:Sundargarh!E159) -> 0 | F159: =SUM(Angul:Sundargarh!F159) -> 624.2 | G159: =SUM(Angul:Sundargarh!G159) -> 0 | H159: =SUM(Angul:Sundargarh!H159) -> 382.27995 | I159: =SUM(Angul:Sundargarh!I159) -> 3856 | J159: =SUM(Angul:Sundargarh!J159) -> 424.91 | K159: 0.7562267111 | L159: 68.0727331 | M159: 1243 | N159: 199.29 | O159: =SUM(Angul:Sundargarh!O159) -> 0 | P159: =SUM(Angul:Sundargarh!P159) -> 0 | Q159: =SUM(Angul:Sundargarh!Q159) -> 0 | R159: =SUM(Angul:Sundargarh!R159) -> 0 | T159: =SUM(Angul:Sundargarh!T159) -> 3981 | U159: =SUM(Angul:Sundargarh!U159) -> 423.3 | V159: =SUM(Angul:Sundargarh!V159) -> 3981 | W159: =SUM(Angul:Sundargarh!W159) -> 423.3 | X159: =SUM(Angul:Sundargarh!X159) -> 0 | Y159: =SUM(Angul:Sundargarh!Y159) -> 0 | Z159: =SUM(Angul:Sundargarh!Z159) -> 0 | AA159: =SUM(Angul:Sundargarh!AA159) -> 0 | AC159: =SUM(Angul:Sundargarh!AC159) -> 3981 | AD159: =SUM(Angul:Sundargarh!AD159) -> 423.3 | AE159: =SUM(Angul:Sundargarh!AE159) -> 3981 | AF159: =SUM(Angul:Sundargarh!AF159) -> 423.3
A160: =+A154+0.01 -> 6.02 | B160: Residential (Continuing from previous year) | C160: =SUM(Angul:Sundargarh!C160) -> 0 | D160: =SUM(Angul:Sundargarh!D160) -> 0 | E160: =SUM(Angul:Sundargarh!E160) -> 0 | F160: =SUM(Angul:Sundargarh!F160) -> 0 | G160: =SUM(Angul:Sundargarh!G160) -> 0 | H160: =SUM(Angul:Sundargarh!H160) -> 0 | I160: =SUM(Angul:Sundargarh!I160) -> 0 | J160: =SUM(Angul:Sundargarh!J160) -> 0 | O160: =SUM(Angul:Sundargarh!O160) -> 0 | P160: =SUM(Angul:Sundargarh!P160) -> 0 | Q160: =SUM(Angul:Sundargarh!Q160) -> 0 | R160: =SUM(Angul:Sundargarh!R160) -> 0 | T160: =SUM(Angul:Sundargarh!T160) -> 0 | U160: =SUM(Angul:Sundargarh!U160) -> 0 | V160: =SUM(Angul:Sundargarh!V160) -> 0 | W160: =SUM(Angul:Sundargarh!W160) -> 0 | X160: =SUM(Angul:Sundargarh!X160) -> 0 | Y160: =SUM(Angul:Sundargarh!Y160) -> 0 | Z160: =SUM(Angul:Sundargarh!Z160) -> 0 | AA160: =SUM(Angul:Sundargarh!AA160) -> 0 | AC160: =SUM(Angul:Sundargarh!AC160) -> 0 | AD160: =SUM(Angul:Sundargarh!AD160) -> 0 | AE160: =SUM(Angul:Sundargarh!AE160) -> 0 | AF160: =SUM(Angul:Sundargarh!AF160) -> 0
B161: (a) 12 months | C161: =SUM(Angul:Sundargarh!C161) -> 0 | D161: =SUM(Angul:Sundargarh!D161) -> 0 | E161: =SUM(Angul:Sundargarh!E161) -> 0 | F161: =SUM(Angul:Sundargarh!F161) -> 0 | G161: =SUM(Angul:Sundargarh!G161) -> 0 | H161: =SUM(Angul:Sundargarh!H161) -> 0 | I161: =SUM(Angul:Sundargarh!I161) -> 0 | J161: =SUM(Angul:Sundargarh!J161) -> 0 | M161: 0 | N161: 0 | O161: =SUM(Angul:Sundargarh!O161) -> 0 | P161: =SUM(Angul:Sundargarh!P161) -> 0 | Q161: =SUM(Angul:Sundargarh!Q161) -> 0 | R161: =SUM(Angul:Sundargarh!R161) -> 0 | S161: 0.2 | T161: =SUM(Angul:Sundargarh!T161) -> 0 | U161: =SUM(Angul:Sundargarh!U161) -> 0 | V161: =SUM(Angul:Sundargarh!V161) -> 0 | W161: =SUM(Angul:Sundargarh!W161) -> 0 | X161: =SUM(Angul:Sundargarh!X161) -> 0 | Y161: =SUM(Angul:Sundargarh!Y161) -> 0 | Z161: =SUM(Angul:Sundargarh!Z161) -> 0 | AA161: =SUM(Angul:Sundargarh!AA161) -> 0 | AC161: =SUM(Angul:Sundargarh!AC161) -> 0 | AD161: =SUM(Angul:Sundargarh!AD161) -> 0 | AE161: =SUM(Angul:Sundargarh!AE161) -> 0 | AF161: =SUM(Angul:Sundargarh!AF161) -> 0
A162: 0.01 | B162: (b) 9 months | C162: =SUM(Angul:Sundargarh!C162) -> 0 | D162: =SUM(Angul:Sundargarh!D162) -> 0 | E162: =SUM(Angul:Sundargarh!E162) -> 0 | F162: =SUM(Angul:Sundargarh!F162) -> 0 | G162: =SUM(Angul:Sundargarh!G162) -> 0 | H162: =SUM(Angul:Sundargarh!H162) -> 0 | I162: =SUM(Angul:Sundargarh!I162) -> 0 | J162: =SUM(Angul:Sundargarh!J162) -> 0 | M162: 0 | N162: 0 | O162: =SUM(Angul:Sundargarh!O162) -> 0 | P162: =SUM(Angul:Sundargarh!P162) -> 0 | Q162: =SUM(Angul:Sundargarh!Q162) -> 0 | R162: =SUM(Angul:Sundargarh!R162) -> 0 | S162: =0.2/12*9 -> 0.15 | T162: =SUM(Angul:Sundargarh!T162) -> 648 | U162: =SUM(Angul:Sundargarh!U162) -> 97.2 | V162: =SUM(Angul:Sundargarh!V162) -> 648 | W162: =SUM(Angul:Sundargarh!W162) -> 97.2 | X162: =SUM(Angul:Sundargarh!X162) -> 0 | Y162: =SUM(Angul:Sundargarh!Y162) -> 0 | Z162: =SUM(Angul:Sundargarh!Z162) -> 0 | AA162: =SUM(Angul:Sundargarh!AA162) -> 0 | AB162: =0.2/12*9 -> 0.15 | AC162: =SUM(Angul:Sundargarh!AC162) -> 648 | AD162: =SUM(Angul:Sundargarh!AD162) -> 97.2 | AE162: =SUM(Angul:Sundargarh!AE162) -> 648 | AF162: =SUM(Angul:Sundargarh!AF162) -> 97.2 | AG162: Recommended as proposed
B163: (c) 6 months | C163: =SUM(Angul:Sundargarh!C163) -> 645 | D163: =SUM(Angul:Sundargarh!D163) -> 64.5 | E163: =SUM(Angul:Sundargarh!E163) -> 0 | F163: =SUM(Angul:Sundargarh!F163) -> 64.5 | G163: =SUM(Angul:Sundargarh!G163) -> 0 | H163: =SUM(Angul:Sundargarh!H163) -> 20 | I163: =SUM(Angul:Sundargarh!I163) -> 645 | J163: =SUM(Angul:Sundargarh!J163) -> 56 | K163: 1 | L163: 86.82170543 | M163: 0 | N163: 8.5 | O163: =SUM(Angul:Sundargarh!O163) -> 0 | P163: =SUM(Angul:Sundargarh!P163) -> 0 | Q163: =SUM(Angul:Sundargarh!Q163) -> 0 | R163: =SUM(Angul:Sundargarh!R163) -> 0 | S163: =0.2/12*6 -> 0.1 | T163: =SUM(Angul:Sundargarh!T163) -> 76 | U163: =SUM(Angul:Sundargarh!U163) -> 7.6 | V163: =SUM(Angul:Sundargarh!V163) -> 76 | W163: =SUM(Angul:Sundargarh!W163) -> 7.6 | X163: =SUM(Angul:Sundargarh!X163) -> 0 | Y163: =SUM(Angul:Sundargarh!Y163) -> 0 | Z163: =SUM(Angul:Sundargarh!Z163) -> 0 | AA163: =SUM(Angul:Sundargarh!AA163) -> 0 | AB163: =0.2/12*6 -> 0.1 | AC163: =SUM(Angul:Sundargarh!AC163) -> 76 | AD163: =SUM(Angul:Sundargarh!AD163) -> 7.6 | AE163: =SUM(Angul:Sundargarh!AE163) -> 76 | AF163: =SUM(Angul:Sundargarh!AF163) -> 7.6
B164: (d) 3 months | C164: =SUM(Angul:Sundargarh!C164) -> 0 | D164: =SUM(Angul:Sundargarh!D164) -> 0 | E164: =SUM(Angul:Sundargarh!E164) -> 0 | F164: =SUM(Angul:Sundargarh!F164) -> 0 | G164: =SUM(Angul:Sundargarh!G164) -> 0 | H164: =SUM(Angul:Sundargarh!H164) -> 0 | I164: =SUM(Angul:Sundargarh!I164) -> 0 | J164: =SUM(Angul:Sundargarh!J164) -> 0 | M164: 0 | N164: 0 | O164: =SUM(Angul:Sundargarh!O164) -> 0 | P164: =SUM(Angul:Sundargarh!P164) -> 0 | Q164: =SUM(Angul:Sundargarh!Q164) -> 0 | R164: =SUM(Angul:Sundargarh!R164) -> 0 | S164: 0.05 | T164: =SUM(Angul:Sundargarh!T164) -> 0 | U164: =SUM(Angul:Sundargarh!U164) -> 0 | V164: =SUM(Angul:Sundargarh!V164) -> 0 | W164: =SUM(Angul:Sundargarh!W164) -> 0 | X164: =SUM(Angul:Sundargarh!X164) -> 0 | Y164: =SUM(Angul:Sundargarh!Y164) -> 0 | Z164: =SUM(Angul:Sundargarh!Z164) -> 0 | AA164: =SUM(Angul:Sundargarh!AA164) -> 0 | AC164: =SUM(Angul:Sundargarh!AC164) -> 0 | AD164: =SUM(Angul:Sundargarh!AD164) -> 0 | AE164: =SUM(Angul:Sundargarh!AE164) -> 0 | AF164: =SUM(Angul:Sundargarh!AF164) -> 0
B165: Sub Total | C165: =SUM(Angul:Sundargarh!C165) -> 645 | D165: =SUM(Angul:Sundargarh!D165) -> 64.5 | E165: =SUM(Angul:Sundargarh!E165) -> 0 | F165: =SUM(Angul:Sundargarh!F165) -> 64.5 | G165: =SUM(Angul:Sundargarh!G165) -> 0 | H165: =SUM(Angul:Sundargarh!H165) -> 20 | I165: =SUM(Angul:Sundargarh!I165) -> 645 | J165: =SUM(Angul:Sundargarh!J165) -> 56 | K165: 1 | L165: 86.82170543 | M165: 0 | N165: 8.5 | O165: =SUM(Angul:Sundargarh!O165) -> 0 | P165: =SUM(Angul:Sundargarh!P165) -> 0 | Q165: =SUM(Angul:Sundargarh!Q165) -> 0 | R165: =SUM(Angul:Sundargarh!R165) -> 0 | T165: =SUM(Angul:Sundargarh!T165) -> 724 | U165: =SUM(Angul:Sundargarh!U165) -> 104.8 | V165: =SUM(Angul:Sundargarh!V165) -> 724 | W165: =SUM(Angul:Sundargarh!W165) -> 104.8 | X165: =SUM(Angul:Sundargarh!X165) -> 0 | Y165: =SUM(Angul:Sundargarh!Y165) -> 0 | Z165: =SUM(Angul:Sundargarh!Z165) -> 0 | AA165: =SUM(Angul:Sundargarh!AA165) -> 0 | AC165: =SUM(Angul:Sundargarh!AC165) -> 724 | AD165: =SUM(Angul:Sundargarh!AD165) -> 104.8 | AE165: =SUM(Angul:Sundargarh!AE165) -> 724 | AF165: =SUM(Angul:Sundargarh!AF165) -> 104.8
A166: 6.03 | B166: Non-Residential (Fresh) | C166: =SUM(Angul:Sundargarh!C166) -> 0 | D166: =SUM(Angul:Sundargarh!D166) -> 0 | E166: =SUM(Angul:Sundargarh!E166) -> 0 | F166: =SUM(Angul:Sundargarh!F166) -> 0 | G166: =SUM(Angul:Sundargarh!G166) -> 0 | H166: =SUM(Angul:Sundargarh!H166) -> 0 | I166: =SUM(Angul:Sundargarh!I166) -> 0 | J166: =SUM(Angul:Sundargarh!J166) -> 0 | O166: =SUM(Angul:Sundargarh!O166) -> 0 | P166: =SUM(Angul:Sundargarh!P166) -> 0 | Q166: =SUM(Angul:Sundargarh!Q166) -> 0 | R166: =SUM(Angul:Sundargarh!R166) -> 0 | T166: =SUM(Angul:Sundargarh!T166) -> 0 | U166: =SUM(Angul:Sundargarh!U166) -> 0 | V166: =SUM(Angul:Sundargarh!V166) -> 0 | W166: =SUM(Angul:Sundargarh!W166) -> 0 | X166: =SUM(Angul:Sundargarh!X166) -> 0 | Y166: =SUM(Angul:Sundargarh!Y166) -> 0 | Z166: =SUM(Angul:Sundargarh!Z166) -> 0 | AA166: =SUM(Angul:Sundargarh!AA166) -> 0 | AC166: =SUM(Angul:Sundargarh!AC166) -> 0 | AD166: =SUM(Angul:Sundargarh!AD166) -> 0 | AE166: =SUM(Angul:Sundargarh!AE166) -> 0 | AF166: =SUM(Angul:Sundargarh!AF166) -> 0
B167: (a) 12 months | C167: =SUM(Angul:Sundargarh!C167) -> 0 | D167: =SUM(Angul:Sundargarh!D167) -> 0 | E167: =SUM(Angul:Sundargarh!E167) -> 0 | F167: =SUM(Angul:Sundargarh!F167) -> 0 | G167: =SUM(Angul:Sundargarh!G167) -> 0 | H167: =SUM(Angul:Sundargarh!H167) -> 0 | I167: =SUM(Angul:Sundargarh!I167) -> 0 | J167: =SUM(Angul:Sundargarh!J167) -> 0 | M167: 0 | N167: 0 | O167: =SUM(Angul:Sundargarh!O167) -> 0 | P167: =SUM(Angul:Sundargarh!P167) -> 0 | Q167: =SUM(Angul:Sundargarh!Q167) -> 0 | R167: =SUM(Angul:Sundargarh!R167) -> 0 | S167: 0.06 | T167: =SUM(Angul:Sundargarh!T167) -> 0 | U167: =SUM(Angul:Sundargarh!U167) -> 0 | V167: =SUM(Angul:Sundargarh!V167) -> 0 | W167: =SUM(Angul:Sundargarh!W167) -> 0 | X167: =SUM(Angul:Sundargarh!X167) -> 0 | Y167: =SUM(Angul:Sundargarh!Y167) -> 0 | Z167: =SUM(Angul:Sundargarh!Z167) -> 0 | AA167: =SUM(Angul:Sundargarh!AA167) -> 0 | AC167: =SUM(Angul:Sundargarh!AC167) -> 0 | AD167: =SUM(Angul:Sundargarh!AD167) -> 0 | AE167: =SUM(Angul:Sundargarh!AE167) -> 0 | AF167: =SUM(Angul:Sundargarh!AF167) -> 0
B168: (b) 9 months | C168: =SUM(Angul:Sundargarh!C168) -> 0 | D168: =SUM(Angul:Sundargarh!D168) -> 0 | E168: =SUM(Angul:Sundargarh!E168) -> 0 | F168: =SUM(Angul:Sundargarh!F168) -> 0 | G168: =SUM(Angul:Sundargarh!G168) -> 0 | H168: =SUM(Angul:Sundargarh!H168) -> 0 | I168: =SUM(Angul:Sundargarh!I168) -> 0 | J168: =SUM(Angul:Sundargarh!J168) -> 0 | M168: 0 | N168: 0 | O168: =SUM(Angul:Sundargarh!O168) -> 0 | P168: =SUM(Angul:Sundargarh!P168) -> 0 | Q168: =SUM(Angul:Sundargarh!Q168) -> 0 | R168: =SUM(Angul:Sundargarh!R168) -> 0 | S168: =0.06/12*9 -> 0.045 | T168: =SUM(Angul:Sundargarh!T168) -> 0 | U168: =SUM(Angul:Sundargarh!U168) -> 0 | V168: =SUM(Angul:Sundargarh!V168) -> 0 | W168: =SUM(Angul:Sundargarh!W168) -> 0 | X168: =SUM(Angul:Sundargarh!X168) -> 0 | Y168: =SUM(Angul:Sundargarh!Y168) -> 0 | Z168: =SUM(Angul:Sundargarh!Z168) -> 0 | AA168: =SUM(Angul:Sundargarh!AA168) -> 0 | AC168: =SUM(Angul:Sundargarh!AC168) -> 0 | AD168: =SUM(Angul:Sundargarh!AD168) -> 0 | AE168: =SUM(Angul:Sundargarh!AE168) -> 0 | AF168: =SUM(Angul:Sundargarh!AF168) -> 0
B169: (c) 6 months | C169: =SUM(Angul:Sundargarh!C169) -> 2363 | D169: =SUM(Angul:Sundargarh!D169) -> 70.89 | E169: =SUM(Angul:Sundargarh!E169) -> 0 | F169: =SUM(Angul:Sundargarh!F169) -> 70.89 | G169: =SUM(Angul:Sundargarh!G169) -> 75 | H169: =SUM(Angul:Sundargarh!H169) -> 6.05267 | I169: =SUM(Angul:Sundargarh!I169) -> 906 | J169: =SUM(Angul:Sundargarh!J169) -> 19.94867 | K169: 0.3834109183 | L169: 28.14031598 | M169: 1457 | N169: 50.94133 | O169: =SUM(Angul:Sundargarh!O169) -> 0 | P169: =SUM(Angul:Sundargarh!P169) -> 0 | Q169: =SUM(Angul:Sundargarh!Q169) -> 0 | R169: =SUM(Angul:Sundargarh!R169) -> 0 | S169: =0.06/12*6 -> 0.03 | T169: =SUM(Angul:Sundargarh!T169) -> 9003 | U169: =SUM(Angul:Sundargarh!U169) -> 270.09 | V169: =SUM(Angul:Sundargarh!V169) -> 8951 | W169: =SUM(Angul:Sundargarh!W169) -> 270.09 | X169: =SUM(Angul:Sundargarh!X169) -> 0 | Y169: =SUM(Angul:Sundargarh!Y169) -> 0 | Z169: =SUM(Angul:Sundargarh!Z169) -> 0 | AA169: =SUM(Angul:Sundargarh!AA169) -> 0 | AB169: =0.06/12*6 -> 0.03 | AC169: =SUM(Angul:Sundargarh!AC169) -> 9003 | AD169: =SUM(Angul:Sundargarh!AD169) -> 270.09 | AE169: =SUM(Angul:Sundargarh!AE169) -> 9003 | AF169: =SUM(Angul:Sundargarh!AF169) -> 270.09 | AG169: Recommended as proposed
B170: (d) 3 months | C170: =SUM(Angul:Sundargarh!C170) -> 104 | D170: =SUM(Angul:Sundargarh!D170) -> 1.56 | E170: =SUM(Angul:Sundargarh!E170) -> 0 | F170: =SUM(Angul:Sundargarh!F170) -> 1.56 | G170: =SUM(Angul:Sundargarh!G170) -> 0 | H170: =SUM(Angul:Sundargarh!H170) -> 0 | I170: =SUM(Angul:Sundargarh!I170) -> 100 | J170: =SUM(Angul:Sundargarh!J170) -> 1.2 | K170: 0.9615384615 | L170: 76.92307692 | M170: 4 | N170: 0.36 | O170: =SUM(Angul:Sundargarh!O170) -> 0 | P170: =SUM(Angul:Sundargarh!P170) -> 0 | Q170: =SUM(Angul:Sundargarh!Q170) -> 0 | R170: =SUM(Angul:Sundargarh!R170) -> 0 | S170: =0.06/12*3 -> 0.015 | T170: =SUM(Angul:Sundargarh!T170) -> 6315 | U170: =SUM(Angul:Sundargarh!U170) -> 94.725 | V170: =SUM(Angul:Sundargarh!V170) -> 6315 | W170: =SUM(Angul:Sundargarh!W170) -> 94.725 | X170: =SUM(Angul:Sundargarh!X170) -> 0 | Y170: =SUM(Angul:Sundargarh!Y170) -> 0 | Z170: =SUM(Angul:Sundargarh!Z170) -> 0 | AA170: =SUM(Angul:Sundargarh!AA170) -> 0 | AB170: =0.06/12*3 -> 0.015 | AC170: =SUM(Angul:Sundargarh!AC170) -> 6315 | AD170: =SUM(Angul:Sundargarh!AD170) -> 94.725 | AE170: =SUM(Angul:Sundargarh!AE170) -> 6315 | AF170: =SUM(Angul:Sundargarh!AF170) -> 94.725
B171: Sub Total | C171: =SUM(Angul:Sundargarh!C171) -> 2467 | D171: =SUM(Angul:Sundargarh!D171) -> 72.45 | E171: =SUM(Angul:Sundargarh!E171) -> 0 | F171: =SUM(Angul:Sundargarh!F171) -> 72.45 | G171: =SUM(Angul:Sundargarh!G171) -> 0 | H171: =SUM(Angul:Sundargarh!H171) -> 6.05267 | I171: =SUM(Angul:Sundargarh!I171) -> 1006 | J171: =SUM(Angul:Sundargarh!J171) -> 21.14867 | K171: 0.4077827321 | L171: 29.19071084 | M171: 1461 | N171: 51.30133 | O171: =SUM(Angul:Sundargarh!O171) -> 0 | P171: =SUM(Angul:Sundargarh!P171) -> 0 | Q171: =SUM(Angul:Sundargarh!Q171) -> 0 | R171: =SUM(Angul:Sundargarh!R171) -> 0 | T171: =SUM(Angul:Sundargarh!T171) -> 15318 | U171: =SUM(Angul:Sundargarh!U171) -> 364.815 | V171: =SUM(Angul:Sundargarh!V171) -> 15266 | W171: =SUM(Angul:Sundargarh!W171) -> 364.815 | X171: =SUM(Angul:Sundargarh!X171) -> 0 | Y171: =SUM(Angul:Sundargarh!Y171) -> 0 | Z171: =SUM(Angul:Sundargarh!Z171) -> 0 | AA171: =SUM(Angul:Sundargarh!AA171) -> 0 | AC171: =SUM(Angul:Sundargarh!AC171) -> 15318 | AD171: =SUM(Angul:Sundargarh!AD171) -> 364.815 | AE171: =SUM(Angul:Sundargarh!AE171) -> 15318 | AF171: =SUM(Angul:Sundargarh!AF171) -> 364.815
A172: 6.04 | B172: Non-Residential (Continuing from previous year) | C172: =SUM(Angul:Sundargarh!C172) -> 0 | D172: =SUM(Angul:Sundargarh!D172) -> 0 | E172: =SUM(Angul:Sundargarh!E172) -> 0 | F172: =SUM(Angul:Sundargarh!F172) -> 0 | G172: =SUM(Angul:Sundargarh!G172) -> 0 | H172: =SUM(Angul:Sundargarh!H172) -> 0 | I172: =SUM(Angul:Sundargarh!I172) -> 0 | J172: =SUM(Angul:Sundargarh!J172) -> 0 | O172: =SUM(Angul:Sundargarh!O172) -> 0 | P172: =SUM(Angul:Sundargarh!P172) -> 0 | Q172: =SUM(Angul:Sundargarh!Q172) -> 0 | R172: =SUM(Angul:Sundargarh!R172) -> 0 | T172: =SUM(Angul:Sundargarh!T172) -> 0 | U172: =SUM(Angul:Sundargarh!U172) -> 0 | V172: =SUM(Angul:Sundargarh!V172) -> 0 | W172: =SUM(Angul:Sundargarh!W172) -> 0 | X172: =SUM(Angul:Sundargarh!X172) -> 0 | Y172: =SUM(Angul:Sundargarh!Y172) -> 0 | Z172: =SUM(Angul:Sundargarh!Z172) -> 0 | AA172: =SUM(Angul:Sundargarh!AA172) -> 0 | AC172: =SUM(Angul:Sundargarh!AC172) -> 0 | AD172: =SUM(Angul:Sundargarh!AD172) -> 0 | AE172: =SUM(Angul:Sundargarh!AE172) -> 0 | AF172: =SUM(Angul:Sundargarh!AF172) -> 0
B173: (a) 12 months | C173: =SUM(Angul:Sundargarh!C173) -> 0 | D173: =SUM(Angul:Sundargarh!D173) -> 0 | E173: =SUM(Angul:Sundargarh!E173) -> 0 | F173: =SUM(Angul:Sundargarh!F173) -> 0 | G173: =SUM(Angul:Sundargarh!G173) -> 0 | H173: =SUM(Angul:Sundargarh!H173) -> 0 | I173: =SUM(Angul:Sundargarh!I173) -> 0 | J173: =SUM(Angul:Sundargarh!J173) -> 0 | M173: 0 | N173: 0 | O173: =SUM(Angul:Sundargarh!O173) -> 0 | P173: =SUM(Angul:Sundargarh!P173) -> 0 | Q173: =SUM(Angul:Sundargarh!Q173) -> 0 | R173: =SUM(Angul:Sundargarh!R173) -> 0 | S173: =0.06 -> 0.06 | T173: =SUM(Angul:Sundargarh!T173) -> 0 | U173: =SUM(Angul:Sundargarh!U173) -> 0 | V173: =SUM(Angul:Sundargarh!V173) -> 0 | W173: =SUM(Angul:Sundargarh!W173) -> 0 | X173: =SUM(Angul:Sundargarh!X173) -> 0 | Y173: =SUM(Angul:Sundargarh!Y173) -> 0 | Z173: =SUM(Angul:Sundargarh!Z173) -> 0 | AA173: =SUM(Angul:Sundargarh!AA173) -> 0 | AC173: =SUM(Angul:Sundargarh!AC173) -> 0 | AD173: =SUM(Angul:Sundargarh!AD173) -> 0 | AE173: =SUM(Angul:Sundargarh!AE173) -> 0 | AF173: =SUM(Angul:Sundargarh!AF173) -> 0
B174: (b) 9 months | C174: =SUM(Angul:Sundargarh!C174) -> 0 | D174: =SUM(Angul:Sundargarh!D174) -> 0 | E174: =SUM(Angul:Sundargarh!E174) -> 0 | F174: =SUM(Angul:Sundargarh!F174) -> 0 | G174: =SUM(Angul:Sundargarh!G174) -> 0 | H174: =SUM(Angul:Sundargarh!H174) -> 0 | I174: =SUM(Angul:Sundargarh!I174) -> 0 | J174: =SUM(Angul:Sundargarh!J174) -> 0 | M174: 0 | N174: 0 | O174: =SUM(Angul:Sundargarh!O174) -> 0 | P174: =SUM(Angul:Sundargarh!P174) -> 0 | Q174: =SUM(Angul:Sundargarh!Q174) -> 0 | R174: =SUM(Angul:Sundargarh!R174) -> 0 | S174: =0.06/12*9 -> 0.045 | T174: =SUM(Angul:Sundargarh!T174) -> 0 | U174: =SUM(Angul:Sundargarh!U174) -> 0 | V174: =SUM(Angul:Sundargarh!V174) -> 0 | W174: =SUM(Angul:Sundargarh!W174) -> 0 | X174: =SUM(Angul:Sundargarh!X174) -> 0 | Y174: =SUM(Angul:Sundargarh!Y174) -> 0 | Z174: =SUM(Angul:Sundargarh!Z174) -> 0 | AA174: =SUM(Angul:Sundargarh!AA174) -> 0 | AC174: =SUM(Angul:Sundargarh!AC174) -> 0 | AD174: =SUM(Angul:Sundargarh!AD174) -> 0 | AE174: =SUM(Angul:Sundargarh!AE174) -> 0 | AF174: =SUM(Angul:Sundargarh!AF174) -> 0
B175: (c) 6 months | C175: =SUM(Angul:Sundargarh!C175) -> 0 | D175: =SUM(Angul:Sundargarh!D175) -> 0 | E175: =SUM(Angul:Sundargarh!E175) -> 0 | F175: =SUM(Angul:Sundargarh!F175) -> 0 | G175: =SUM(Angul:Sundargarh!G175) -> 0 | H175: =SUM(Angul:Sundargarh!H175) -> 0 | I175: =SUM(Angul:Sundargarh!I175) -> 0 | J175: =SUM(Angul:Sundargarh!J175) -> 0 | M175: 0 | N175: 0 | O175: =SUM(Angul:Sundargarh!O175) -> 0 | P175: =SUM(Angul:Sundargarh!P175) -> 0 | Q175: =SUM(Angul:Sundargarh!Q175) -> 0 | R175: =SUM(Angul:Sundargarh!R175) -> 0 | S175: =0.06/12*6 -> 0.03 | T175: =SUM(Angul:Sundargarh!T175) -> 0 | U175: =SUM(Angul:Sundargarh!U175) -> 0 | V175: =SUM(Angul:Sundargarh!V175) -> 0 | W175: =SUM(Angul:Sundargarh!W175) -> 0 | X175: =SUM(Angul:Sundargarh!X175) -> 0 | Y175: =SUM(Angul:Sundargarh!Y175) -> 0 | Z175: =SUM(Angul:Sundargarh!Z175) -> 0 | AA175: =SUM(Angul:Sundargarh!AA175) -> 0 | AC175: =SUM(Angul:Sundargarh!AC175) -> 0 | AD175: =SUM(Angul:Sundargarh!AD175) -> 0 | AE175: =SUM(Angul:Sundargarh!AE175) -> 0 | AF175: =SUM(Angul:Sundargarh!AF175) -> 0
B176: (d) 3 months | C176: =SUM(Angul:Sundargarh!C176) -> 70 | D176: =SUM(Angul:Sundargarh!D176) -> 1.05 | E176: =SUM(Angul:Sundargarh!E176) -> 0 | F176: =SUM(Angul:Sundargarh!F176) -> 1.05 | G176: =SUM(Angul:Sundargarh!G176) -> 0 | H176: =SUM(Angul:Sundargarh!H176) -> 0 | I176: =SUM(Angul:Sundargarh!I176) -> 0 | J176: =SUM(Angul:Sundargarh!J176) -> 0 | K176: 0 | L176: 0 | M176: 70 | N176: 1.05 | O176: =SUM(Angul:Sundargarh!O176) -> 0 | P176: =SUM(Angul:Sundargarh!P176) -> 0 | Q176: =SUM(Angul:Sundargarh!Q176) -> 0 | R176: =SUM(Angul:Sundargarh!R176) -> 0 | S176: =0.06/12*3 -> 0.015 | T176: =SUM(Angul:Sundargarh!T176) -> 0 | U176: =SUM(Angul:Sundargarh!U176) -> 0 | V176: =SUM(Angul:Sundargarh!V176) -> 0 | W176: =SUM(Angul:Sundargarh!W176) -> 0 | X176: =SUM(Angul:Sundargarh!X176) -> 0 | Y176: =SUM(Angul:Sundargarh!Y176) -> 0 | Z176: =SUM(Angul:Sundargarh!Z176) -> 0 | AA176: =SUM(Angul:Sundargarh!AA176) -> 0 | AC176: =SUM(Angul:Sundargarh!AC176) -> 0 | AD176: =SUM(Angul:Sundargarh!AD176) -> 0 | AE176: =SUM(Angul:Sundargarh!AE176) -> 0 | AF176: =SUM(Angul:Sundargarh!AF176) -> 0
B177: Sub Total | C177: =SUM(Angul:Sundargarh!C177) -> 70 | D177: =SUM(Angul:Sundargarh!D177) -> 1.05 | E177: =SUM(Angul:Sundargarh!E177) -> 0 | F177: =SUM(Angul:Sundargarh!F177) -> 1.05 | G177: =SUM(Angul:Sundargarh!G177) -> 0 | H177: =SUM(Angul:Sundargarh!H177) -> 0 | I177: =SUM(Angul:Sundargarh!I177) -> 0 | J177: =SUM(Angul:Sundargarh!J177) -> 0 | K177: 0 | L177: 0 | M177: 70 | N177: 1.05 | O177: =SUM(Angul:Sundargarh!O177) -> 0 | P177: =SUM(Angul:Sundargarh!P177) -> 0 | Q177: =SUM(Angul:Sundargarh!Q177) -> 0 | R177: =SUM(Angul:Sundargarh!R177) -> 0 | T177: =SUM(Angul:Sundargarh!T177) -> 0 | U177: =SUM(Angul:Sundargarh!U177) -> 0 | V177: =SUM(Angul:Sundargarh!V177) -> 0 | W177: =SUM(Angul:Sundargarh!W177) -> 0 | X177: =SUM(Angul:Sundargarh!X177) -> 0 | Y177: =SUM(Angul:Sundargarh!Y177) -> 0 | Z177: =SUM(Angul:Sundargarh!Z177) -> 0 | AA177: =SUM(Angul:Sundargarh!AA177) -> 0 | AC177: =SUM(Angul:Sundargarh!AC177) -> 0 | AD177: =SUM(Angul:Sundargarh!AD177) -> 0 | AE177: =SUM(Angul:Sundargarh!AE177) -> 0 | AF177: =SUM(Angul:Sundargarh!AF177) -> 0
A178: 6.05 | B178: Madarasa/Maktab | C178: =SUM(Angul:Sundargarh!C178) -> 0 | D178: =SUM(Angul:Sundargarh!D178) -> 0 | E178: =SUM(Angul:Sundargarh!E178) -> 0 | F178: =SUM(Angul:Sundargarh!F178) -> 0 | G178: =SUM(Angul:Sundargarh!G178) -> 0 | H178: =SUM(Angul:Sundargarh!H178) -> 0 | I178: =SUM(Angul:Sundargarh!I178) -> 0 | J178: =SUM(Angul:Sundargarh!J178) -> 0 | O178: =SUM(Angul:Sundargarh!O178) -> 0 | P178: =SUM(Angul:Sundargarh!P178) -> 0 | Q178: =SUM(Angul:Sundargarh!Q178) -> 0 | R178: =SUM(Angul:Sundargarh!R178) -> 0 | T178: =SUM(Angul:Sundargarh!T178) -> 0 | U178: =SUM(Angul:Sundargarh!U178) -> 0 | V178: =SUM(Angul:Sundargarh!V178) -> 0 | W178: =SUM(Angul:Sundargarh!W178) -> 0 | X178: =SUM(Angul:Sundargarh!X178) -> 0 | Y178: =SUM(Angul:Sundargarh!Y178) -> 0 | Z178: =SUM(Angul:Sundargarh!Z178) -> 0 | AA178: =SUM(Angul:Sundargarh!AA178) -> 0 | AC178: =SUM(Angul:Sundargarh!AC178) -> 0 | AD178: =SUM(Angul:Sundargarh!AD178) -> 0 | AE178: =SUM(Angul:Sundargarh!AE178) -> 0 | AF178: =SUM(Angul:Sundargarh!AF178) -> 0
B179: (a) 12 months | C179: =SUM(Angul:Sundargarh!C179) -> 0 | D179: =SUM(Angul:Sundargarh!D179) -> 0 | E179: =SUM(Angul:Sundargarh!E179) -> 0 | F179: =SUM(Angul:Sundargarh!F179) -> 0 | G179: =SUM(Angul:Sundargarh!G179) -> 0 | H179: =SUM(Angul:Sundargarh!H179) -> 0 | I179: =SUM(Angul:Sundargarh!I179) -> 0 | J179: =SUM(Angul:Sundargarh!J179) -> 0 | M179: 0 | N179: 0 | O179: =SUM(Angul:Sundargarh!O179) -> 0 | P179: =SUM(Angul:Sundargarh!P179) -> 0 | Q179: =SUM(Angul:Sundargarh!Q179) -> 0 | R179: =SUM(Angul:Sundargarh!R179) -> 0 | S179: =0.06 -> 0.06 | T179: =SUM(Angul:Sundargarh!T179) -> 0 | U179: =SUM(Angul:Sundargarh!U179) -> 0 | V179: =SUM(Angul:Sundargarh!V179) -> 0 | W179: =SUM(Angul:Sundargarh!W179) -> 0 | X179: =SUM(Angul:Sundargarh!X179) -> 0 | Y179: =SUM(Angul:Sundargarh!Y179) -> 0 | Z179: =SUM(Angul:Sundargarh!Z179) -> 0 | AA179: =SUM(Angul:Sundargarh!AA179) -> 0 | AC179: =SUM(Angul:Sundargarh!AC179) -> 0 | AD179: =SUM(Angul:Sundargarh!AD179) -> 0 | AE179: =SUM(Angul:Sundargarh!AE179) -> 0 | AF179: =SUM(Angul:Sundargarh!AF179) -> 0
B180: (b) 9 months | C180: =SUM(Angul:Sundargarh!C180) -> 0 | D180: =SUM(Angul:Sundargarh!D180) -> 0 | E180: =SUM(Angul:Sundargarh!E180) -> 0 | F180: =SUM(Angul:Sundargarh!F180) -> 0 | G180: =SUM(Angul:Sundargarh!G180) -> 0 | H180: =SUM(Angul:Sundargarh!H180) -> 0 | I180: =SUM(Angul:Sundargarh!I180) -> 0 | J180: =SUM(Angul:Sundargarh!J180) -> 0 | M180: 0 | N180: 0 | O180: =SUM(Angul:Sundargarh!O180) -> 0 | P180: =SUM(Angul:Sundargarh!P180) -> 0 | Q180: =SUM(Angul:Sundargarh!Q180) -> 0 | R180: =SUM(Angul:Sundargarh!R180) -> 0 | S180: =0.06/12*9 -> 0.045 | T180: =SUM(Angul:Sundargarh!T180) -> 0 | U180: =SUM(Angul:Sundargarh!U180) -> 0 | V180: =SUM(Angul:Sundargarh!V180) -> 0 | W180: =SUM(Angul:Sundargarh!W180) -> 0 | X180: =SUM(Angul:Sundargarh!X180) -> 0 | Y180: =SUM(Angul:Sundargarh!Y180) -> 0 | Z180: =SUM(Angul:Sundargarh!Z180) -> 0 | AA180: =SUM(Angul:Sundargarh!AA180) -> 0 | AC180: =SUM(Angul:Sundargarh!AC180) -> 0 | AD180: =SUM(Angul:Sundargarh!AD180) -> 0 | AE180: =SUM(Angul:Sundargarh!AE180) -> 0 | AF180: =SUM(Angul:Sundargarh!AF180) -> 0
B181: (c) 6 months | C181: =SUM(Angul:Sundargarh!C181) -> 0 | D181: =SUM(Angul:Sundargarh!D181) -> 0 | E181: =SUM(Angul:Sundargarh!E181) -> 0 | F181: =SUM(Angul:Sundargarh!F181) -> 0 | G181: =SUM(Angul:Sundargarh!G181) -> 0 | H181: =SUM(Angul:Sundargarh!H181) -> 0 | I181: =SUM(Angul:Sundargarh!I181) -> 0 | J181: =SUM(Angul:Sundargarh!J181) -> 0 | M181: 0 | N181: 0 | O181: =SUM(Angul:Sundargarh!O181) -> 0 | P181: =SUM(Angul:Sundargarh!P181) -> 0 | Q181: =SUM(Angul:Sundargarh!Q181) -> 0 | R181: =SUM(Angul:Sundargarh!R181) -> 0 | S181: =0.06/12*6 -> 0.03 | T181: =SUM(Angul:Sundargarh!T181) -> 0 | U181: =SUM(Angul:Sundargarh!U181) -> 0 | V181: =SUM(Angul:Sundargarh!V181) -> 0 | W181: =SUM(Angul:Sundargarh!W181) -> 0 | X181: =SUM(Angul:Sundargarh!X181) -> 0 | Y181: =SUM(Angul:Sundargarh!Y181) -> 0 | Z181: =SUM(Angul:Sundargarh!Z181) -> 0 | AA181: =SUM(Angul:Sundargarh!AA181) -> 0 | AC181: =SUM(Angul:Sundargarh!AC181) -> 0 | AD181: =SUM(Angul:Sundargarh!AD181) -> 0 | AE181: =SUM(Angul:Sundargarh!AE181) -> 0 | AF181: =SUM(Angul:Sundargarh!AF181) -> 0
B182: (d) 3 months | C182: =SUM(Angul:Sundargarh!C182) -> 0 | D182: =SUM(Angul:Sundargarh!D182) -> 0 | E182: =SUM(Angul:Sundargarh!E182) -> 0 | F182: =SUM(Angul:Sundargarh!F182) -> 0 | G182: =SUM(Angul:Sundargarh!G182) -> 0 | H182: =SUM(Angul:Sundargarh!H182) -> 0 | I182: =SUM(Angul:Sundargarh!I182) -> 0 | J182: =SUM(Angul:Sundargarh!J182) -> 0 | M182: 0 | N182: 0 | O182: =SUM(Angul:Sundargarh!O182) -> 0 | P182: =SUM(Angul:Sundargarh!P182) -> 0 | Q182: =SUM(Angul:Sundargarh!Q182) -> 0 | R182: =SUM(Angul:Sundargarh!R182) -> 0 | S182: =0.06/12*3 -> 0.015 | T182: =SUM(Angul:Sundargarh!T182) -> 0 | U182: =SUM(Angul:Sundargarh!U182) -> 0 | V182: =SUM(Angul:Sundargarh!V182) -> 0 | W182: =SUM(Angul:Sundargarh!W182) -> 0 | X182: =SUM(Angul:Sundargarh!X182) -> 0 | Y182: =SUM(Angul:Sundargarh!Y182) -> 0 | Z182: =SUM(Angul:Sundargarh!Z182) -> 0 | AA182: =SUM(Angul:Sundargarh!AA182) -> 0 | AC182: =SUM(Angul:Sundargarh!AC182) -> 0 | AD182: =SUM(Angul:Sundargarh!AD182) -> 0 | AE182: =SUM(Angul:Sundargarh!AE182) -> 0 | AF182: =SUM(Angul:Sundargarh!AF182) -> 0
B183: Sub Total | C183: =SUM(Angul:Sundargarh!C183) -> 0 | D183: =SUM(Angul:Sundargarh!D183) -> 0 | E183: =SUM(Angul:Sundargarh!E183) -> 0 | F183: =SUM(Angul:Sundargarh!F183) -> 0 | G183: =SUM(Angul:Sundargarh!G183) -> 0 | H183: =SUM(Angul:Sundargarh!H183) -> 0 | I183: =SUM(Angul:Sundargarh!I183) -> 0 | J183: =SUM(Angul:Sundargarh!J183) -> 0 | M183: 0 | N183: 0 | O183: =SUM(Angul:Sundargarh!O183) -> 0 | P183: =SUM(Angul:Sundargarh!P183) -> 0 | Q183: =SUM(Angul:Sundargarh!Q183) -> 0 | R183: =SUM(Angul:Sundargarh!R183) -> 0 | T183: =SUM(Angul:Sundargarh!T183) -> 0 | U183: =SUM(Angul:Sundargarh!U183) -> 0 | V183: =SUM(Angul:Sundargarh!V183) -> 0 | W183: =SUM(Angul:Sundargarh!W183) -> 0 | X183: =SUM(Angul:Sundargarh!X183) -> 0 | Y183: =SUM(Angul:Sundargarh!Y183) -> 0 | Z183: =SUM(Angul:Sundargarh!Z183) -> 0 | AA183: =SUM(Angul:Sundargarh!AA183) -> 0 | AC183: =SUM(Angul:Sundargarh!AC183) -> 0 | AD183: =SUM(Angul:Sundargarh!AD183) -> 0 | AE183: =SUM(Angul:Sundargarh!AE183) -> 0 | AF183: =SUM(Angul:Sundargarh!AF183) -> 0
A184: 6.06 | B184: Seasonal Hostel (Residential) | C184: =SUM(Angul:Sundargarh!C184) -> 0 | D184: =SUM(Angul:Sundargarh!D184) -> 0 | E184: =SUM(Angul:Sundargarh!E184) -> 0 | F184: =SUM(Angul:Sundargarh!F184) -> 0 | G184: =SUM(Angul:Sundargarh!G184) -> 0 | H184: =SUM(Angul:Sundargarh!H184) -> 0 | I184: =SUM(Angul:Sundargarh!I184) -> 0 | J184: =SUM(Angul:Sundargarh!J184) -> 0 | O184: =SUM(Angul:Sundargarh!O184) -> 0 | P184: =SUM(Angul:Sundargarh!P184) -> 0 | Q184: =SUM(Angul:Sundargarh!Q184) -> 0 | R184: =SUM(Angul:Sundargarh!R184) -> 0 | T184: =SUM(Angul:Sundargarh!T184) -> 0 | U184: =SUM(Angul:Sundargarh!U184) -> 0 | V184: =SUM(Angul:Sundargarh!V184) -> 0 | W184: =SUM(Angul:Sundargarh!W184) -> 0 | X184: =SUM(Angul:Sundargarh!X184) -> 0 | Y184: =SUM(Angul:Sundargarh!Y184) -> 0 | Z184: =SUM(Angul:Sundargarh!Z184) -> 0 | AA184: =SUM(Angul:Sundargarh!AA184) -> 0 | AC184: =SUM(Angul:Sundargarh!AC184) -> 0 | AD184: =SUM(Angul:Sundargarh!AD184) -> 0 | AE184: =SUM(Angul:Sundargarh!AE184) -> 0 | AF184: =SUM(Angul:Sundargarh!AF184) -> 0
B185: (a) 12 months | C185: =SUM(Angul:Sundargarh!C185) -> 0 | D185: =SUM(Angul:Sundargarh!D185) -> 0 | E185: =SUM(Angul:Sundargarh!E185) -> 0 | F185: =SUM(Angul:Sundargarh!F185) -> 0 | G185: =SUM(Angul:Sundargarh!G185) -> 0 | H185: =SUM(Angul:Sundargarh!H185) -> 0 | I185: =SUM(Angul:Sundargarh!I185) -> 0 | J185: =SUM(Angul:Sundargarh!J185) -> 0 | M185: 0 | N185: 0 | O185: =SUM(Angul:Sundargarh!O185) -> 0 | P185: =SUM(Angul:Sundargarh!P185) -> 0 | Q185: =SUM(Angul:Sundargarh!Q185) -> 0 | R185: =SUM(Angul:Sundargarh!R185) -> 0 | T185: =SUM(Angul:Sundargarh!T185) -> 0 | U185: =SUM(Angul:Sundargarh!U185) -> 0 | V185: =SUM(Angul:Sundargarh!V185) -> 0 | W185: =SUM(Angul:Sundargarh!W185) -> 0 | X185: =SUM(Angul:Sundargarh!X185) -> 0 | Y185: =SUM(Angul:Sundargarh!Y185) -> 0 | Z185: =SUM(Angul:Sundargarh!Z185) -> 0 | AA185: =SUM(Angul:Sundargarh!AA185) -> 0 | AC185: =SUM(Angul:Sundargarh!AC185) -> 0 | AD185: =SUM(Angul:Sundargarh!AD185) -> 0 | AE185: =SUM(Angul:Sundargarh!AE185) -> 0 | AF185: =SUM(Angul:Sundargarh!AF185) -> 0
B186: (a) 9 months | C186: =SUM(Angul:Sundargarh!C186) -> 383 | D186: =SUM(Angul:Sundargarh!D186) -> 57.45 | E186: =SUM(Angul:Sundargarh!E186) -> 0 | F186: =SUM(Angul:Sundargarh!F186) -> 57.45 | G186: =SUM(Angul:Sundargarh!G186) -> 0 | H186: =SUM(Angul:Sundargarh!H186) -> 10 | I186: =SUM(Angul:Sundargarh!I186) -> 279 | J186: =SUM(Angul:Sundargarh!J186) -> 40 | K186: 0.72845953 | L186: 69.62576153 | M186: 104 | N186: 17.45 | O186: =SUM(Angul:Sundargarh!O186) -> 0 | P186: =SUM(Angul:Sundargarh!P186) -> 0 | Q186: =SUM(Angul:Sundargarh!Q186) -> 0 | R186: =SUM(Angul:Sundargarh!R186) -> 0 | T186: =SUM(Angul:Sundargarh!T186) -> 0 | U186: =SUM(Angul:Sundargarh!U186) -> 0 | V186: =SUM(Angul:Sundargarh!V186) -> 0 | W186: =SUM(Angul:Sundargarh!W186) -> 0 | X186: =SUM(Angul:Sundargarh!X186) -> 0 | Y186: =SUM(Angul:Sundargarh!Y186) -> 0 | Z186: =SUM(Angul:Sundargarh!Z186) -> 0 | AA186: =SUM(Angul:Sundargarh!AA186) -> 0 | AC186: =SUM(Angul:Sundargarh!AC186) -> 0 | AD186: =SUM(Angul:Sundargarh!AD186) -> 0 | AE186: =SUM(Angul:Sundargarh!AE186) -> 0 | AF186: =SUM(Angul:Sundargarh!AF186) -> 0
B187: (a) 6 months | C187: =SUM(Angul:Sundargarh!C187) -> 8362 | D187: =SUM(Angul:Sundargarh!D187) -> 836.2 | E187: =SUM(Angul:Sundargarh!E187) -> 0 | F187: =SUM(Angul:Sundargarh!F187) -> 836.2 | G187: =SUM(Angul:Sundargarh!G187) -> 0 | H187: =SUM(Angul:Sundargarh!H187) -> 96.45806 | I187: =SUM(Angul:Sundargarh!I187) -> 7098 | J187: =SUM(Angul:Sundargarh!J187) -> 425.45806 | K187: 0.8488399904 | L187: 50.87994021 | M187: 1264 | N187: 410.74194 | O187: =SUM(Angul:Sundargarh!O187) -> 0 | P187: =SUM(Angul:Sundargarh!P187) -> 0 | Q187: =SUM(Angul:Sundargarh!Q187) -> 0 | R187: =SUM(Angul:Sundargarh!R187) -> 0 | S187: =0.2/12*6 -> 0.1 | T187: =SUM(Angul:Sundargarh!T187) -> 8737 | U187: =SUM(Angul:Sundargarh!U187) -> 873.7 | V187: =SUM(Angul:Sundargarh!V187) -> 8737 | W187: =SUM(Angul:Sundargarh!W187) -> 873.7 | X187: =SUM(Angul:Sundargarh!X187) -> 0 | Y187: =SUM(Angul:Sundargarh!Y187) -> 0 | Z187: =SUM(Angul:Sundargarh!Z187) -> 0 | AA187: =SUM(Angul:Sundargarh!AA187) -> 0 | AB187: 0.1 | AC187: =SUM(Angul:Sundargarh!AC187) -> 8737 | AD187: =SUM(Angul:Sundargarh!AD187) -> 873.7 | AE187: =SUM(Angul:Sundargarh!AE187) -> 8737 | AF187: =SUM(Angul:Sundargarh!AF187) -> 873.7 | AG187: Recommended as proposed | AH187: =3254-383 -> 2871
B188: (a) 3 months | C188: =SUM(Angul:Sundargarh!C188) -> 5133 | D188: =SUM(Angul:Sundargarh!D188) -> 256.65 | E188: =SUM(Angul:Sundargarh!E188) -> 0 | F188: =SUM(Angul:Sundargarh!F188) -> 256.65 | G188: =SUM(Angul:Sundargarh!G188) -> 0 | H188: =SUM(Angul:Sundargarh!H188) -> 0 | I188: =SUM(Angul:Sundargarh!I188) -> 4933 | J188: =SUM(Angul:Sundargarh!J188) -> 208 | K188: 0.9610364309 | L188: 81.04422365 | M188: 200 | N188: 48.65 | O188: =SUM(Angul:Sundargarh!O188) -> 0 | P188: =SUM(Angul:Sundargarh!P188) -> 0 | Q188: =SUM(Angul:Sundargarh!Q188) -> 0 | R188: =SUM(Angul:Sundargarh!R188) -> 0 | S188: =0.2/12*3 -> 0.05 | T188: =SUM(Angul:Sundargarh!T188) -> 3254 | U188: =SUM(Angul:Sundargarh!U188) -> 162.7 | V188: =SUM(Angul:Sundargarh!V188) -> 3254 | W188: =SUM(Angul:Sundargarh!W188) -> 162.7 | X188: =SUM(Angul:Sundargarh!X188) -> 0 | Y188: =SUM(Angul:Sundargarh!Y188) -> 0 | Z188: =SUM(Angul:Sundargarh!Z188) -> 0 | AA188: =SUM(Angul:Sundargarh!AA188) -> 0 | AB188: 0.05 | AC188: =SUM(Angul:Sundargarh!AC188) -> 3254 | AD188: =SUM(Angul:Sundargarh!AD188) -> 162.7 | AE188: =SUM(Angul:Sundargarh!AE188) -> 3254 | AF188: =SUM(Angul:Sundargarh!AF188) -> 162.7
B189: Sub Total | C189: =SUM(Angul:Sundargarh!C189) -> 13878 | D189: =SUM(Angul:Sundargarh!D189) -> 1150.3 | E189: =SUM(Angul:Sundargarh!E189) -> 0 | F189: =SUM(Angul:Sundargarh!F189) -> 1150.3 | G189: =SUM(Angul:Sundargarh!G189) -> 0 | H189: =SUM(Angul:Sundargarh!H189) -> 106.45806 | I189: =SUM(Angul:Sundargarh!I189) -> 12310 | J189: =SUM(Angul:Sundargarh!J189) -> 673.45806 | K189: 0.8870154201 | L189: 58.54629749 | M189: 1568 | N189: 476.84194 | O189: =SUM(Angul:Sundargarh!O189) -> 0 | P189: =SUM(Angul:Sundargarh!P189) -> 0 | Q189: =SUM(Angul:Sundargarh!Q189) -> 0 | R189: =SUM(Angul:Sundargarh!R189) -> 0 | T189: =SUM(Angul:Sundargarh!T189) -> 11991 | U189: =SUM(Angul:Sundargarh!U189) -> 1036.4 | V189: =SUM(Angul:Sundargarh!V189) -> 11991 | W189: =SUM(Angul:Sundargarh!W189) -> 1036.4 | X189: =SUM(Angul:Sundargarh!X189) -> 0 | Y189: =SUM(Angul:Sundargarh!Y189) -> 0 | Z189: =SUM(Angul:Sundargarh!Z189) -> 0 | AA189: =SUM(Angul:Sundargarh!AA189) -> 0 | AC189: =SUM(Angul:Sundargarh!AC189) -> 11991 | AD189: =SUM(Angul:Sundargarh!AD189) -> 1036.4 | AE189: =SUM(Angul:Sundargarh!AE189) -> 11991 | AF189: =SUM(Angul:Sundargarh!AF189) -> 1036.4
A190: 6.07 | B190: Migration (Non Residential) | C190: =SUM(Angul:Sundargarh!C190) -> 0 | D190: =SUM(Angul:Sundargarh!D190) -> 0 | E190: =SUM(Angul:Sundargarh!E190) -> 0 | F190: =SUM(Angul:Sundargarh!F190) -> 0 | G190: =SUM(Angul:Sundargarh!G190) -> 0 | H190: =SUM(Angul:Sundargarh!H190) -> 0 | I190: =SUM(Angul:Sundargarh!I190) -> 0 | J190: =SUM(Angul:Sundargarh!J190) -> 0 | O190: =SUM(Angul:Sundargarh!O190) -> 0 | P190: =SUM(Angul:Sundargarh!P190) -> 0 | Q190: =SUM(Angul:Sundargarh!Q190) -> 0 | R190: =SUM(Angul:Sundargarh!R190) -> 0 | T190: =SUM(Angul:Sundargarh!T190) -> 0 | U190: =SUM(Angul:Sundargarh!U190) -> 0 | V190: =SUM(Angul:Sundargarh!V190) -> 0 | W190: =SUM(Angul:Sundargarh!W190) -> 0 | X190: =SUM(Angul:Sundargarh!X190) -> 0 | Y190: =SUM(Angul:Sundargarh!Y190) -> 0 | Z190: =SUM(Angul:Sundargarh!Z190) -> 0 | AA190: =SUM(Angul:Sundargarh!AA190) -> 0 | AC190: =SUM(Angul:Sundargarh!AC190) -> 0 | AD190: =SUM(Angul:Sundargarh!AD190) -> 0 | AE190: =SUM(Angul:Sundargarh!AE190) -> 0 | AF190: =SUM(Angul:Sundargarh!AF190) -> 0
B191: (a) 12 months | C191: =SUM(Angul:Sundargarh!C191) -> 0 | D191: =SUM(Angul:Sundargarh!D191) -> 0 | E191: =SUM(Angul:Sundargarh!E191) -> 0 | F191: =SUM(Angul:Sundargarh!F191) -> 0 | G191: =SUM(Angul:Sundargarh!G191) -> 0 | H191: =SUM(Angul:Sundargarh!H191) -> 0 | I191: =SUM(Angul:Sundargarh!I191) -> 0 | J191: =SUM(Angul:Sundargarh!J191) -> 0 | M191: 0 | N191: 0 | O191: =SUM(Angul:Sundargarh!O191) -> 0 | P191: =SUM(Angul:Sundargarh!P191) -> 0 | Q191: =SUM(Angul:Sundargarh!Q191) -> 0 | R191: =SUM(Angul:Sundargarh!R191) -> 0 | S191: =0.06 -> 0.06 | T191: =SUM(Angul:Sundargarh!T191) -> 0 | U191: =SUM(Angul:Sundargarh!U191) -> 0 | V191: =SUM(Angul:Sundargarh!V191) -> 0 | W191: =SUM(Angul:Sundargarh!W191) -> 0 | X191: =SUM(Angul:Sundargarh!X191) -> 0 | Y191: =SUM(Angul:Sundargarh!Y191) -> 0 | Z191: =SUM(Angul:Sundargarh!Z191) -> 0 | AA191: =SUM(Angul:Sundargarh!AA191) -> 0 | AC191: =SUM(Angul:Sundargarh!AC191) -> 0 | AD191: =SUM(Angul:Sundargarh!AD191) -> 0 | AE191: =SUM(Angul:Sundargarh!AE191) -> 0 | AF191: =SUM(Angul:Sundargarh!AF191) -> 0
B192: (b) 9 months | C192: =SUM(Angul:Sundargarh!C192) -> 0 | D192: =SUM(Angul:Sundargarh!D192) -> 0 | E192: =SUM(Angul:Sundargarh!E192) -> 0 | F192: =SUM(Angul:Sundargarh!F192) -> 0 | G192: =SUM(Angul:Sundargarh!G192) -> 0 | H192: =SUM(Angul:Sundargarh!H192) -> 0 | I192: =SUM(Angul:Sundargarh!I192) -> 0 | J192: =SUM(Angul:Sundargarh!J192) -> 0 | M192: 0 | N192: 0 | O192: =SUM(Angul:Sundargarh!O192) -> 0 | P192: =SUM(Angul:Sundargarh!P192) -> 0 | Q192: =SUM(Angul:Sundargarh!Q192) -> 0 | R192: =SUM(Angul:Sundargarh!R192) -> 0 | S192: =0.06/12*9 -> 0.045 | T192: =SUM(Angul:Sundargarh!T192) -> 0 | U192: =SUM(Angul:Sundargarh!U192) -> 0 | V192: =SUM(Angul:Sundargarh!V192) -> 0 | W192: =SUM(Angul:Sundargarh!W192) -> 0 | X192: =SUM(Angul:Sundargarh!X192) -> 0 | Y192: =SUM(Angul:Sundargarh!Y192) -> 0 | Z192: =SUM(Angul:Sundargarh!Z192) -> 0 | AA192: =SUM(Angul:Sundargarh!AA192) -> 0 | AC192: =SUM(Angul:Sundargarh!AC192) -> 0 | AD192: =SUM(Angul:Sundargarh!AD192) -> 0 | AE192: =SUM(Angul:Sundargarh!AE192) -> 0 | AF192: =SUM(Angul:Sundargarh!AF192) -> 0
B193: (c) 6 months | C193: =SUM(Angul:Sundargarh!C193) -> 450 | D193: =SUM(Angul:Sundargarh!D193) -> 13.5 | E193: =SUM(Angul:Sundargarh!E193) -> 0 | F193: =SUM(Angul:Sundargarh!F193) -> 13.5 | G193: =SUM(Angul:Sundargarh!G193) -> 0 | H193: =SUM(Angul:Sundargarh!H193) -> 2.184 | I193: =SUM(Angul:Sundargarh!I193) -> 382 | J193: =SUM(Angul:Sundargarh!J193) -> 7.184 | K193: 0.8488888889 | L193: 53.21481481 | M193: 68 | N193: 6.316 | O193: =SUM(Angul:Sundargarh!O193) -> 0 | P193: =SUM(Angul:Sundargarh!P193) -> 0 | Q193: =SUM(Angul:Sundargarh!Q193) -> 0 | R193: =SUM(Angul:Sundargarh!R193) -> 0 | S193: =0.06/12*6 -> 0.03 | T193: =SUM(Angul:Sundargarh!T193) -> 425 | U193: =SUM(Angul:Sundargarh!U193) -> 12.75 | V193: =SUM(Angul:Sundargarh!V193) -> 425 | W193: =SUM(Angul:Sundargarh!W193) -> 12.75 | X193: =SUM(Angul:Sundargarh!X193) -> 0 | Y193: =SUM(Angul:Sundargarh!Y193) -> 0 | Z193: =SUM(Angul:Sundargarh!Z193) -> 0 | AA193: =SUM(Angul:Sundargarh!AA193) -> 0 | AB193: =0.06/12*6 -> 0.03 | AC193: =SUM(Angul:Sundargarh!AC193) -> 425 | AD193: =SUM(Angul:Sundargarh!AD193) -> 12.75 | AE193: =SUM(Angul:Sundargarh!AE193) -> 425 | AF193: =SUM(Angul:Sundargarh!AF193) -> 12.75 | AG193: Recommended as proposed
B194: (d) 3 months | C194: =SUM(Angul:Sundargarh!C194) -> 0 | D194: =SUM(Angul:Sundargarh!D194) -> 0 | E194: =SUM(Angul:Sundargarh!E194) -> 0 | F194: =SUM(Angul:Sundargarh!F194) -> 0 | G194: =SUM(Angul:Sundargarh!G194) -> 0 | H194: =SUM(Angul:Sundargarh!H194) -> 0 | I194: =SUM(Angul:Sundargarh!I194) -> 0 | J194: =SUM(Angul:Sundargarh!J194) -> 0 | M194: 0 | N194: 0 | O194: =SUM(Angul:Sundargarh!O194) -> 0 | P194: =SUM(Angul:Sundargarh!P194) -> 0 | Q194: =SUM(Angul:Sundargarh!Q194) -> 0 | R194: =SUM(Angul:Sundargarh!R194) -> 0 | S194: =0.06/12*3 -> 0.015 | T194: =SUM(Angul:Sundargarh!T194) -> 0 | U194: =SUM(Angul:Sundargarh!U194) -> 0 | V194: =SUM(Angul:Sundargarh!V194) -> 0 | W194: =SUM(Angul:Sundargarh!W194) -> 0 | X194: =SUM(Angul:Sundargarh!X194) -> 0 | Y194: =SUM(Angul:Sundargarh!Y194) -> 0 | Z194: =SUM(Angul:Sundargarh!Z194) -> 0 | AA194: =SUM(Angul:Sundargarh!AA194) -> 0 | AC194: =SUM(Angul:Sundargarh!AC194) -> 0 | AD194: =SUM(Angul:Sundargarh!AD194) -> 0 | AE194: =SUM(Angul:Sundargarh!AE194) -> 0 | AF194: =SUM(Angul:Sundargarh!AF194) -> 0
B195: Sub Total | C195: =SUM(Angul:Sundargarh!C195) -> 450 | D195: =SUM(Angul:Sundargarh!D195) -> 13.5 | E195: =SUM(Angul:Sundargarh!E195) -> 0 | F195: =SUM(Angul:Sundargarh!F195) -> 13.5 | G195: =SUM(Angul:Sundargarh!G195) -> 0 | H195: =SUM(Angul:Sundargarh!H195) -> 2.184 | I195: =SUM(Angul:Sundargarh!I195) -> 382 | J195: =SUM(Angul:Sundargarh!J195) -> 7.184 | K195: 0.8488888889 | L195: 53.21481481 | M195: 68 | N195: 6.316 | O195: =SUM(Angul:Sundargarh!O195) -> 0 | P195: =SUM(Angul:Sundargarh!P195) -> 0 | Q195: =SUM(Angul:Sundargarh!Q195) -> 0 | R195: =SUM(Angul:Sundargarh!R195) -> 0 | T195: =SUM(Angul:Sundargarh!T195) -> 425 | U195: =SUM(Angul:Sundargarh!U195) -> 12.75 | V195: =SUM(Angul:Sundargarh!V195) -> 425 | W195: =SUM(Angul:Sundargarh!W195) -> 12.75 | X195: =SUM(Angul:Sundargarh!X195) -> 0 | Y195: =SUM(Angul:Sundargarh!Y195) -> 0 | Z195: =SUM(Angul:Sundargarh!Z195) -> 0 | AA195: =SUM(Angul:Sundargarh!AA195) -> 0 | AC195: =SUM(Angul:Sundargarh!AC195) -> 425 | AD195: =SUM(Angul:Sundargarh!AD195) -> 12.75 | AE195: =SUM(Angul:Sundargarh!AE195) -> 425 | AF195: =SUM(Angul:Sundargarh!AF195) -> 12.75
B196: Total | C196: =SUM(Angul:Sundargarh!C196) -> 22609 | D196: =SUM(Angul:Sundargarh!D196) -> 1926 | E196: =SUM(Angul:Sundargarh!E196) -> 0 | F196: =SUM(Angul:Sundargarh!F196) -> 1926 | G196: =SUM(Angul:Sundargarh!G196) -> 0 | H196: =SUM(Angul:Sundargarh!H196) -> 516.97468 | I196: =SUM(Angul:Sundargarh!I196) -> 18199 | J196: =SUM(Angul:Sundargarh!J196) -> 1182.70073 | K196: 0.8049449334 | L196: 61.40709917 | M196: 4410 | N196: 743.29927 | O196: =SUM(Angul:Sundargarh!O196) -> 0 | P196: =SUM(Angul:Sundargarh!P196) -> 0 | Q196: =SUM(Angul:Sundargarh!Q196) -> 0 | R196: =SUM(Angul:Sundargarh!R196) -> 0 | T196: =SUM(Angul:Sundargarh!T196) -> 32439 | U196: =SUM(Angul:Sundargarh!U196) -> 1942.065 | V196: =SUM(Angul:Sundargarh!V196) -> 32387 | W196: =SUM(Angul:Sundargarh!W196) -> 1942.065 | X196: =SUM(Angul:Sundargarh!X196) -> 0 | Y196: =SUM(Angul:Sundargarh!Y196) -> 0 | Z196: =SUM(Angul:Sundargarh!Z196) -> 0 | AA196: =SUM(Angul:Sundargarh!AA196) -> 0 | AC196: =SUM(Angul:Sundargarh!AC196) -> 32439 | AD196: =SUM(Angul:Sundargarh!AD196) -> 1942.065 | AE196: =SUM(Angul:Sundargarh!AE196) -> 32439 | AF196: =SUM(Angul:Sundargarh!AF196) -> 1942.065
A197: II | B197: RETENTION | C197: =SUM(Angul:Sundargarh!C197) -> 0 | D197: =SUM(Angul:Sundargarh!D197) -> 0 | E197: =SUM(Angul:Sundargarh!E197) -> 0 | F197: =SUM(Angul:Sundargarh!F197) -> 0 | G197: =SUM(Angul:Sundargarh!G197) -> 0 | H197: =SUM(Angul:Sundargarh!H197) -> 0 | I197: =SUM(Angul:Sundargarh!I197) -> 0 | J197: =SUM(Angul:Sundargarh!J197) -> 0 | O197: =SUM(Angul:Sundargarh!O197) -> 0 | P197: =SUM(Angul:Sundargarh!P197) -> 0 | Q197: =SUM(Angul:Sundargarh!Q197) -> 0 | R197: =SUM(Angul:Sundargarh!R197) -> 0 | T197: =SUM(Angul:Sundargarh!T197) -> 0 | U197: =SUM(Angul:Sundargarh!U197) -> 0 | V197: =SUM(Angul:Sundargarh!V197) -> 0 | W197: =SUM(Angul:Sundargarh!W197) -> 0 | X197: =SUM(Angul:Sundargarh!X197) -> 0 | Y197: =SUM(Angul:Sundargarh!Y197) -> 0 | Z197: =SUM(Angul:Sundargarh!Z197) -> 0 | AA197: =SUM(Angul:Sundargarh!AA197) -> 0 | AC197: =SUM(Angul:Sundargarh!AC197) -> 0 | AD197: =SUM(Angul:Sundargarh!AD197) -> 0 | AE197: =SUM(Angul:Sundargarh!AE197) -> 0 | AF197: =SUM(Angul:Sundargarh!AF197) -> 0
A198: 7 | B198: Free Text Books | C198: =SUM(Angul:Sundargarh!C198) -> 0 | D198: =SUM(Angul:Sundargarh!D198) -> 0 | E198: =SUM(Angul:Sundargarh!E198) -> 0 | F198: =SUM(Angul:Sundargarh!F198) -> 0 | G198: =SUM(Angul:Sundargarh!G198) -> 0 | H198: =SUM(Angul:Sundargarh!H198) -> 0 | I198: =SUM(Angul:Sundargarh!I198) -> 0 | J198: =SUM(Angul:Sundargarh!J198) -> 0 | O198: =SUM(Angul:Sundargarh!O198) -> 0 | P198: =SUM(Angul:Sundargarh!P198) -> 0 | Q198: =SUM(Angul:Sundargarh!Q198) -> 0 | R198: =SUM(Angul:Sundargarh!R198) -> 0 | T198: =SUM(Angul:Sundargarh!T198) -> 0 | U198: =SUM(Angul:Sundargarh!U198) -> 0 | V198: =SUM(Angul:Sundargarh!V198) -> 0 | W198: =SUM(Angul:Sundargarh!W198) -> 0 | X198: =SUM(Angul:Sundargarh!X198) -> 0 | Y198: =SUM(Angul:Sundargarh!Y198) -> 0 | Z198: =SUM(Angul:Sundargarh!Z198) -> 0 | AA198: =SUM(Angul:Sundargarh!AA198) -> 0 | AC198: =SUM(Angul:Sundargarh!AC198) -> 0 | AD198: =SUM(Angul:Sundargarh!AD198) -> 0 | AE198: =SUM(Angul:Sundargarh!AE198) -> 0 | AF198: =SUM(Angul:Sundargarh!AF198) -> 0
A199: 7.01 | B199: Free Text Books (P) | C199: =SUM(Angul:Sundargarh!C199) -> 0 | D199: =SUM(Angul:Sundargarh!D199) -> 0 | E199: =SUM(Angul:Sundargarh!E199) -> 0 | F199: =SUM(Angul:Sundargarh!F199) -> 0 | G199: =SUM(Angul:Sundargarh!G199) -> 0 | H199: =SUM(Angul:Sundargarh!H199) -> 0 | I199: =SUM(Angul:Sundargarh!I199) -> 0 | J199: =SUM(Angul:Sundargarh!J199) -> 0 | O199: =SUM(Angul:Sundargarh!O199) -> 0 | P199: =SUM(Angul:Sundargarh!P199) -> 0 | Q199: =SUM(Angul:Sundargarh!Q199) -> 0 | R199: =SUM(Angul:Sundargarh!R199) -> 0 | T199: =SUM(Angul:Sundargarh!T199) -> 0 | U199: =SUM(Angul:Sundargarh!U199) -> 0 | V199: =SUM(Angul:Sundargarh!V199) -> 0 | W199: =SUM(Angul:Sundargarh!W199) -> 0 | X199: =SUM(Angul:Sundargarh!X199) -> 0 | Y199: =SUM(Angul:Sundargarh!Y199) -> 0 | Z199: =SUM(Angul:Sundargarh!Z199) -> 0 | AA199: =SUM(Angul:Sundargarh!AA199) -> 0 | AC199: =SUM(Angul:Sundargarh!AC199) -> 0 | AD199: =SUM(Angul:Sundargarh!AD199) -> 0 | AE199: =SUM(Angul:Sundargarh!AE199) -> 0 | AF199: =SUM(Angul:Sundargarh!AF199) -> 0
B200: (a) Class I & II | C200: =SUM(Angul:Sundargarh!C200) -> 1018723 | D200: =SUM(Angul:Sundargarh!D200) -> 1528.0845 | E200: =SUM(Angul:Sundargarh!E200) -> 0 | F200: =SUM(Angul:Sundargarh!F200) -> 1528.0845 | G200: =SUM(Angul:Sundargarh!G200) -> 1018723 | H200: =SUM(Angul:Sundargarh!H200) -> 318.64687 | I200: =SUM(Angul:Sundargarh!I200) -> 1018723 | J200: =SUM(Angul:Sundargarh!J200) -> 1528.0845 | K200: =I200/C200 -> 1 | L200: =J200/F200*100 -> 100 | M200: =C200-I200 -> 0 | N200: =F200-J200 -> 0 | O200: =SUM(Angul:Sundargarh!O200) -> 0 | P200: =SUM(Angul:Sundargarh!P200) -> 0 | Q200: =SUM(Angul:Sundargarh!Q200) -> 0 | R200: =SUM(Angul:Sundargarh!R200) -> 0 | S200: 0.0015 | T200: =SUM(Angul:Sundargarh!T200) -> 972326 | U200: =SUM(Angul:Sundargarh!U200) -> 1458.489 | V200: =SUM(Angul:Sundargarh!V200) -> 972326 | W200: =SUM(Angul:Sundargarh!W200) -> 1458.489 | X200: =SUM(Angul:Sundargarh!X200) -> 0 | Y200: =SUM(Angul:Sundargarh!Y200) -> 0 | Z200: =SUM(Angul:Sundargarh!Z200) -> 0 | AA200: =SUM(Angul:Sundargarh!AA200) -> 0 | AB200: 0.0015 | AC200: =SUM(Angul:Sundargarh!AC200) -> 972326 | AD200: =SUM(Angul:Sundargarh!AD200) -> 1458.489 | AE200: =SUM(Angul:Sundargarh!AE200) -> 972326 | AF200: =SUM(Angul:Sundargarh!AF200) -> 1458.489 | AG200: Recommended as proposed
... 323 more rows

Sheet Angul
A1: Costing sheet for AWP & B 2017-18
A2: Name of the district:Angul
R3: ( Rs in lakhs)
A4: S.No. | B4: Activity | C4: Sanction | G4: Achievement ( as on 31st Dec, 2016) | I4: Anticipated Acheivement ( as on 31st March , 2017) | M4: Savings | O4: Proposal for 2017-18 | X4: Outlay Recommendation for 2017-18
O5: Spill Over | Q5: Deferred laibility of 2016-17 | S5: Fresh | V5: Total | X5: Spill Over | Z5: Deferred laibility of 2014-15 | AB5: Fresh | AE5: Total
C6: Phy. | D6: Fin | E6: Spill over ( In Lakhs) | F6: Fin | G6: Phy. | H6: Fin | I6: Phy. | J6: Fin | K6: Phy. (%) | L6: Fin. (%) | M6: Phy. | N6: Fin. | O6: Phy. | P6: Fin. | Q6: Phy. | R6: Fin. | S6: Unit Cost | T6: Phy. | U6: Fin. | V6: Phy. | W6: Fin. | X6: Phy. | Y6: Fin. | Z6: Phy. | AA6: Fin. | AB6: Unit Cost | AC6: Phy. | AD6: Fin. | AE6: Phy. | AF6: Fin.
A7: I | B7: ACCESS | F7: =D7+E7 -> 0 | K7: =I7/C7*100 ->  | L7: =J7/F7*100 ->  | M7: =C7-I7 -> 0 | N7: =F7-J7 -> 0
B8: SSA | F8: =D8+E8 -> 0 | K8: =I8/C8*100 ->  | L8: =J8/F8*100 ->  | M8: =C8-I8 -> 0 | N8: =F8-J8 -> 0
A9: 1 | B9: Opening of New Schools | F9: 0 | M9: 0 | N9: 0
A10: 1.01 | B10: New Primary School | C10: 0 | D10: 0 | F10: 0 | M10: 0 | N10: 0 | AE10: =AC10 -> 0
A11: 1.02 | B11: Upgradation of PS to UPS | C11: 0 | D11: 0 | F11: 0 | M11: 0 | N11: 0 | AE11: =AC11 -> 0
A12: 1.03 | B12: Composite Schools | C12: 0 | D12: 0 | F12: 0 | M12: 0 | N12: 0 | AE12: 0
A13: 1.04 | B13: Residential schools for specific category of children | C13: 0 | D13: 0 | F13: 0 | M13: 0 | N13: 0 | AE13: 0
A14: 1.05 | B14: Residential Hostel | C14: 0 | D14: 0 | F14: 0 | G14: 0 | I14: 0 | M14: 0 | N14: 0 | AE14: 0
A15: 1.06 | B15: Integration of Class V with primary schools | C15: 0 | D15: 0 | F15: 0 | M15: 0 | N15: 0 | AE15: 0
A16: 1.07 | B16: Integration of Class VIII with upper primary schools | C16: 0 | D16: 0 | F16: 0 | M16: 0 | N16: 0 | AE16: 0
A17: 2 | B17: Residential Schools for specific category of children | F17: 0 | M17: 0 | N17: 0
B18: 50 children | F18: 0 | M18: 0 | N18: 0
B19: Non-recurring (one time grant) | F19: 0 | M19: 0 | N19: 0
A20: 2.01 | B20: Furniture/ Equipment (including kitchen) | C20: 0 | D20: 0 | F20: 0 | M20: 0 | N20: 0 | S20: 2 | AD20: =AB20*AC20 -> 0 | AE20: =AC20 -> 0 | AF20: =Y20+AA20+AD20 -> 0
A21: 2.02 | B21: TLM and equipment including library books | C21: 0 | D21: 0 | F21: 0 | M21: 0 | N21: 0 | S21: 3 | AD21: =AB21*AC21 -> 0 | AE21: =AC21 -> 0 | AF21: =Y21+AA21+AD21 -> 0
A22: 2.03 | B22: Bedding (new) | C22: 0 | D22: 0 | F22: 0 | M22: 0 | N22: 0 | S22: 0.375 | AD22: 0 | AE22: 0 | AF22: 0
A23: 2.04 | B23: Replacement of bedding (once in 3 years) | C23: 0 | D23: 0 | F23: 0 | M23: 0 | N23: 0 | AD23: 0 | AE23: 0 | AF23: 0
B24: Sub Total (Non Recurring) | C24: =SUM(C20:C23) -> 0 | D24: =SUM(D20:D23) -> 0 | E24: =SUM(E20:E23) -> 0 | F24: =SUM(F20:F23) -> 0 | I24: =SUM(I20:I23) -> 0 | J24: =SUM(J20:J23) -> 0 | M24: 0 | N24: 0 | O24: =SUM(O20:O23) -> 0 | P24: =SUM(P20:P23) -> 0 | Q24: =SUM(Q20:Q23) -> 0 | R24: =SUM(R20:R23) -> 0 | T24: =SUM(T20:T23) -> 0 | U24: 0 | V24: 0 | W24: 0 | X24: 0 | Y24: 0 | Z24: 0 | AA24: 0 | AC24: =SUM(AC20:AC23) -> 0 | AD24: =SUM(AD20:AD23) -> 0 | AE24: =SUM(AE20:AE23) -> 0 | AF24: =SUM(AF20:AF23) -> 0
B25: Recurring (50 children) | F25: 0 | M25: 0 | N25: 0
A26: 2.05 | B26: Maintenance per child Per month @ Rs.1500/- | C26: 0 | D26: 0 | F26: 0 | M26: 0 | N26: 0 | S26: 9 | AD26: =AB26*AC26 -> 0 | AE26: =AC26 -> 0 | AF26: =Y26+AA26+AD26 -> 0
A27: 2.06 | B27: Stipend per child per month @ Rs.100/- | C27: 0 | D27: 0 | F27: 0 | M27: 0 | N27: 0 | S27: 0.6 | AD27: 0 | AE27: 0 | AF27: 0
A28: 2.07 | B28: Supplementary TLM, Stationery and other educational material @Rs.1000/- per child per annum | C28: 0 | D28: 0 | F28: 0 | M28: 0 | N28: 0 | S28: 0.5 | AD28: 0 | AE28: 0 | AF28: 0
A29: 2.08 | B29: Salaries | C29: 0 | D29: 0 | F29: 0 | M29: 0 | N29: 0 | AD29: 0 | AE29: 0 | AF29: 0
A30: (a) | B30: 1 Warden @ Rs.25000/- per month | C30: 0 | D30: 0 | F30: 0 | M30: 0 | N30: 0 | S30: 3 | AD30: 0 | AE30: 0 | AF30: 0
A31: (b) | B31: 4 Fulltime teachers as per RTE Norms @ Rs. 20,000/- per month per teacher | C31: 0 | D31: 0 | F31: 0 | M31: 0 | N31: 0 | S31: 9.6 | AD31: 0 | AE31: 0 | AF31: 0
A32: (c) | B32: 2 Urdu Teachers (only for Blocks with muslim population above 20% and select urban areas) @ Rs.12,000/- per month per teacher. | C32: 0 | D32: 0 | F32: 0 | M32: 0 | N32: 0 | S32: 2.88 | AD32: 0 | AE32: 0 | AF32: 0
A33: (d) | B33: 3 Part time teachers @ Rs.5,000/- per month per teacher | C33: 0 | D33: 0 | F33: 0 | M33: 0 | N33: 0 | S33: 1.5 | AD33: 0 | AE33: 0 | AF33: 0
A34: (e) | B34: 1 Full time Accountant @ Rs. 10,000/- per month | C34: 0 | D34: 0 | F34: 0 | M34: 0 | N34: 0 | S34: 1.2 | AD34: 0 | AE34: 0 | AF34: 0
A35: (f) | B35: 2 Support staff - (Accountant/Assistant, Peon, Chowkidar) @ Rs. 5,000/- per month per staff | C35: 0 | D35: 0 | F35: 0 | M35: 0 | N35: 0 | S35: 1.2 | AD35: 0 | AE35: 0 | AF35: 0
A36: (g) | B36: 1 Head Cook @ Rs. 6,000/- per month and upto 2 Asstt. Cooks @ Rs. 4,500/- per month per cook | C36: 0 | D36: 0 | F36: 0 | M36: 0 | N36: 0 | S36: 1.8 | AD36: 0 | AE36: 0 | AF36: 0
A37: 2.09 | B37: Specific Skill training @ Rs.1000/- per annum per child | C37: 0 | D37: 0 | F37: 0 | M37: 0 | N37: 0 | S37: 0.5 | AD37: 0 | AE37: 0 | AF37: 0
A38: 2.1 | B38: Electricity / water charges @ Rs. 1000/- per annum per child | C38: 0 | D38: 0 | F38: 0 | M38: 0 | N38: 0 | S38: 0.5 | AD38: 0 | AE38: 0 | AF38: 0
A39: =+A38+0.01 -> 2.11 | B39: Medical care/contingencies @ Rs.1250/- per annum per child | C39: 0 | D39: 0 | F39: 0 | M39: 0 | N39: 0 | S39: 0.625 | AD39: 0 | AE39: 0 | AF39: 0
A40: =+A39+0.01 -> 2.12 | B40: Maintenance @ Rs. 750/- per child per annum | C40: 0 | D40: 0 | F40: 0 | M40: 0 | N40: 0 | S40: 0.375 | AD40: 0 | AE40: 0 | AF40: 0
A41: 2.13 | B41: Miscellaneous @ Rs. 750/- per child per annum | C41: 0 | D41: 0 | F41: 0 | M41: 0 | N41: 0 | S41: 0.375 | AD41: 0 | AE41: 0 | AF41: 0
A42: 2.14 | B42: Preparatory camps @ Rs. 300/- per child per annum | C42: 0 | D42: 0 | F42: 0 | M42: 0 | N42: 0 | S42: 0.15 | AD42: 0 | AE42: 0 | AF42: 0
A43: 2.15 | B43: P.T.A / school functions @ Rs. 300/- per child per annum | C43: 0 | D43: 0 | F43: 0 | M43: 0 | N43: 0 | S43: 0.15 | AD43: 0 | AE43: 0 | AF43: 0
A44: 2.16 | B44: Provision of Rent @ Rs. 10,000/- per child per annum | C44: 0 | D44: 0 | F44: 0 | M44: 0 | N44: 0 | AD44: 0 | AE44: 0 | AF44: 0
A45: 2.17 | B45: Capacity Building @ Rs. 500/- per child per annum | C45: 0 | D45: 0 | F45: 0 | M45: 0 | N45: 0 | S45: 0.25 | AD45: 0 | AE45: 0 | AF45: 0
A46: 2.18 | B46: Physical / Self Defence Training @ Rs.200/- per child per annum | C46: 0 | D46: 0 | F46: 0 | M46: 0 | N46: 0 | S46: 0.1 | AD46: 0 | AE46: 0 | AF46: 0
B47: Sub Total (Recurring) | C47: =SUM(C26:C46) -> 0 | D47: =SUM(D26:D46) -> 0 | E47: =SUM(E26:E46) -> 0 | F47: =SUM(F26:F46) -> 0 | I47: =SUM(I26:I46) -> 0 | J47: =SUM(J26:J46) -> 0 | M47: 0 | N47: 0 | O47: =SUM(O26:O46) -> 0 | P47: =SUM(P26:P46) -> 0 | Q47: =SUM(Q26:Q46) -> 0 | R47: =SUM(R26:R46) -> 0 | T47: =SUM(T26:T46) -> 0 | U47: 0 | V47: 0 | W47: 0 | X47: 0 | Y47: 0 | Z47: 0 | AA47: 0 | AC47: =SUM(AC26:AC46) -> 0 | AD47: =SUM(AD26:AD46) -> 0 | AE47: =SUM(AE26:AE46) -> 0 | AF47: =SUM(AF26:AF46) -> 0
B48: Total (Non Recurring + Recurring) | C48: =C24+C47 -> 0 | D48: =D24+D47 -> 0 | E48: =E24+E47 -> 0 | F48: =F24+F47 -> 0 | I48: =I24+I47 -> 0 | J48: =J24+J47 -> 0 | M48: 0 | N48: 0 | O48: =O24+O47 -> 0 | P48: =P24+P47 -> 0 | Q48: =Q24+Q47 -> 0 | R48: =R24+R47 -> 0 | T48: =T24+T47 -> 0 | U48: 0 | V48: 0 | W48: 0 | X48: 0 | Y48: 0 | Z48: 0 | AA48: 0 | AC48: =AC24+AC47 -> 0 | AD48: =AD24+AD47 -> 0 | AE48: =AE24+AE47 -> 0 | AF48: =AF24+AF47 -> 0
B49: 100 children | F49: 0 | M49: 0 | N49: 0
B50: Non-recurring (one time grant) | F50: 0 | M50: 0 | N50: 0
A51: 2.19 | B51: Furniture / Equipment (including kitchen equipment) | C51: 0 | D51: 0 | F51: 0 | M51: 0 | N51: 0 | S51: 3 | AD51: =AB51*AC51 -> 0 | AE51: =AC51 -> 0 | AF51: =Y51+AA51+AD51 -> 0
A52: =+A51+0.01 -> 2.2 | B52: TLM and equipment including library books (New) | C52: 0 | D52: 0 | F52: 0 | M52: 0 | N52: 0 | S52: 3.5 | AD52: 0 | AE52: 0 | AF52: 0
A53: =+A52+0.01 -> 2.21 | B53: Bedding (New) | C53: 0 | D53: 0 | F53: 0 | M53: 0 | N53: 0 | S53: 0.75 | AD53: 0 | AE53: 0 | AF53: 0
A54: =+A53+0.01 -> 2.22 | B54: Replacement of bedding (once in 3 years) | C54: 0 | D54: 0 | F54: 0 | M54: 0 | N54: 0 | AD54: 0 | AE54: 0 | AF54: 0
B55: Sub Total Non-recurring | C55: =SUM(C51:C54) -> 0 | D55: =SUM(D51:D54) -> 0 | E55: =SUM(E51:E54) -> 0 | F55: 0 | G55: 0 | H55: 0 | I55: 0 | J55: 0 | M55: 0 | N55: 0 | O55: =SUM(O51:O54) -> 0 | P55: =SUM(P51:P54) -> 0 | Q55: =SUM(Q51:Q54) -> 0 | R55: =SUM(R51:R54) -> 0 | T55: =SUM(T51:T54) -> 0 | U55: 0 | V55: 0 | W55: 0 | X55: 0 | Y55: 0 | Z55: 0 | AA55: 0 | AC55: =SUM(AC51:AC54) -> 0 | AD55: =SUM(AD51:AD54) -> 0 | AE55: =SUM(AE51:AE54) -> 0 | AF55: =SUM(AF51:AF54) -> 0
B56: Recurring | C56: 0 | D56: 0 | F56: 0 | M56: 0 | N56: 0
A57: 2.23 | B57: Maintenance per child per month @ Rs. 1500/- | C57: 0 | D57: 0 | F57: 0 | M57: 0 | N57: 0 | S57: 18 | AD57: =AB57*AC57 -> 0 | AE57: =AC57 -> 0 | AF57: =Y57+AA57+AD57 -> 0
A58: =+A57+0.01 -> 2.24 | B58: Stipend per child per month @ Rs.100/- | C58: 0 | D58: 0 | F58: 0 | M58: 0 | N58: 0 | S58: 1.2 | AD58: 0 | AE58: 0 | AF58: 0
A59: 2.25 | B59: Supplementary TLM, Stationery and other educational material per child @1000/- per annum | C59: 0 | D59: 0 | F59: 0 | M59: 0 | N59: 0 | S59: 1 | AD59: 0 | AE59: 0 | AF59: 0
A60: 2.26 | B60: Salaries | C60: 0 | D60: 0 | F60: 0 | M60: 0 | N60: 0 | AD60: 0 | AE60: 0 | AF60: 0
A61: (a) | B61: 1 Warden @ Rs. 25,000/- per month | C61: 0 | D61: 0 | F61: 0 | M61: 0 | N61: 0 | S61: 3 | AD61: 0 | AE61: 0 | AF61: 0
A62: (c) | B62: 4 - 5 Full time teachers as per RTE norms @ Rs. 20,000/- per month per teacher | C62: 0 | D62: 0 | F62: 0 | M62: 0 | N62: 0 | S62: 9.6 | AD62: 0 | AE62: 0 | AF62: 0
A63: (d) | B63: 2 Urdu Teachers (only for blocks with muslim population above 20% and select urban areas), if required @ Rs. 12,000/- per month per teacher | C63: 0 | D63: 0 | F63: 0 | M63: 0 | N63: 0 | S63: 2.88 | AD63: 0 | AE63: 0 | AF63: 0
A64: (e) | B64: 3 part time teachers @ Rs. 5,000/- per month per teacher | C64: 0 | D64: 0 | F64: 0 | M64: 0 | N64: 0 | S64: 1.5 | AD64: 0 | AE64: 0 | AF64: 0
A65: (f) | B65: 1 Full time Accountant @ Rs. 10,000/- per month | C65: 0 | D65: 0 | F65: 0 | M65: 0 | N65: 0 | S65: 1.2 | AD65: 0 | AE65: 0 | AF65: 0
A66: (g) | B66: 2 Support Staff – (Accountant/ Assistant, Peon, Chowkidar) @ Rs. 5,000/- per month per staff | C66: 0 | D66: 0 | F66: 0 | M66: 0 | N66: 0 | S66: 1.2 | AD66: 0 | AE66: 0 | AF66: 0
A67: (h) | B67: 1 Head cook @ Rs. 6,000/- per month and upto 2 Asstt. Cooks @ Rs. 4,500/- per month per cook | C67: 0 | D67: 0 | F67: 0 | M67: 0 | N67: 0 | S67: 1.8 | AD67: 0 | AE67: 0 | AF67: 0
A68: 2.26h | B68: 1 head teacher @ Rs. 25,000/- per month in case the enrollment exceeds 100 | AD68: 0 | AE68: 0 | AF68: 0
A69: 2.27 | B69: Specific skill training per child @ Rs.1000/- per annum | C69: 0 | D69: 0 | F69: 0 | M69: 0 | N69: 0 | S69: 1 | AD69: 0 | AE69: 0 | AF69: 0
A70: 2.28 | B70: Electricity / water charges per child @Rs.1000/- per annum | C70: 0 | D70: 0 | F70: 0 | M70: 0 | N70: 0 | S70: 1 | AD70: 0 | AE70: 0 | AF70: 0
A71: 2.29 | B71: Medical care/contingencies @ Rs.1250/- per child per annum | C71: 0 | D71: 0 | F71: 0 | M71: 0 | N71: 0 | S71: 1.25 | AD71: 0 | AE71: 0 | AF71: 0
A72: 2.3 | B72: Maintenance @ Rs.750/- per child per annum | C72: 0 | D72: 0 | F72: =D72+E72 -> 0 | K72: =I72/C72*100 ->  | L72: =J72/F72*100 ->  | M72: =C72-I72 -> 0 | N72: =F72-J72 -> 0 | S72: 0.75 | AD72: 0 | AE72: 0 | AF72: 0
A73: 2.31 | B73: Miscellaneous @ Rs.750/- per child per annum | C73: 0 | D73: 0 | F73: 0 | M73: 0 | N73: 0 | S73: 0.75 | AD73: 0 | AE73: 0 | AF73: 0
A74: 2.32 | B74: Preparatory camps @ Rs.200/- per child per annum | C74: 0 | D74: 0 | F74: 0 | M74: 0 | N74: 0 | S74: 0.2 | AD74: 0 | AE74: 0 | AF74: 0
A75: 2.33 | B75: P.T.A / school functions @ Rs.200/- per child per annum | C75: 0 | D75: 0 | F75: 0 | M75: 0 | N75: 0 | S75: 0.2 | AD75: 0 | AE75: 0 | AF75: 0
A76: 2.34 | B76: Provision of Rent @ Rs. 6000/- per child per annum | C76: 0 | D76: 0 | F76: 0 | M76: 0 | N76: 0 | AD76: 0 | AE76: 0 | AF76: 0
A77: 2.35 | B77: Capacity Building @ Rs.500/- per child per annum | C77: 0 | D77: 0 | F77: 0 | M77: 0 | N77: 0 | S77: 0.5 | AD77: 0 | AE77: 0 | AF77: 0
A78: 2.36 | B78: Physical / Self Defence training @ Rs. 200/- per child per annum. | C78: 0 | D78: 0 | F78: 0 | M78: 0 | N78: 0 | S78: 0.2 | AD78: 0 | AE78: 0 | AF78: 0
B79: Sub Total (Recurring) | C79: =SUM(C57:C78) -> 0 | D79: =SUM(D57:D78) -> 0 | E79: =SUM(E57:E78) -> 0 | F79: =SUM(F57:F78) -> 0 | I79: =SUM(I57:I78) -> 0 | J79: =SUM(J57:J78) -> 0 | M79: 0 | N79: 0 | O79: =SUM(O57:O78) -> 0 | P79: =SUM(P57:P78) -> 0 | Q79: =SUM(Q57:Q78) -> 0 | R79: =SUM(R57:R78) -> 0 | T79: =SUM(T57:T78) -> 0 | U79: 0 | V79: 0 | W79: 0 | X79: 0 | Y79: 0 | Z79: 0 | AA79: 0 | AC79: =SUM(AC57:AC78) -> 0 | AD79: =SUM(AD57:AD78) -> 0 | AE79: =SUM(AE57:AE78) -> 0 | AF79: =SUM(AF57:AF78) -> 0
B80: Total (Recurring + Non Recurring) | C80: =C55+C79 -> 0 | D80: =D55+D79 -> 0 | E80: =E55+E79 -> 0 | F80: =F55+F79 -> 0 | I80: =I55+I79 -> 0 | J80: =J55+J79 -> 0 | M80: 0 | N80: 0 | O80: =O55+O79 -> 0 | P80: =P55+P79 -> 0 | Q80: =Q55+Q79 -> 0 | R80: =R55+R79 -> 0 | T80: =T55+T79 -> 0 | U80: 0 | V80: 0 | W80: 0 | X80: 0 | Y80: 0 | Z80: 0 | AA80: 0 | AC80: =AC55+AC79 -> 0 | AD80: =AD55+AD79 -> 0 | AE80: =AE55+AE79 -> 0 | AF80: =AF55+AF79 -> 0
B81: Total (50 + 100 children) | C81: =C48+C80 -> 0 | D81: =D48+D80 -> 0 | E81: =E48+E80 -> 0 | F81: =F48+F80 -> 0 | I81: =I48+I80 -> 0 | J81: =J48+J80 -> 0 | M81: 0 | N81: 0 | O81: =O48+O80 -> 0 | P81: =P48+P80 -> 0 | Q81: =Q48+Q80 -> 0 | R81: =R48+R80 -> 0 | T81: =T48+T80 -> 0 | U81: 0 | V81: 0 | W81: 0 | X81: 0 | Y81: 0 | Z81: 0 | AA81: 0 | AC81: =AC48+AC80 -> 0 | AD81: =AD48+AD80 -> 0 | AE81: =AE48+AE80 -> 0 | AF81: =AF48+AF80 -> 0
A82: 3 | B82: Residential Hostel for specific category of children | M82: 0 | N82: 0
A83: (A) | B83: 50 children | M83: 0 | N83: 0
B84: Non-recurring (one time grant) | M84: 0 | N84: 0
A85: 3.01 | B85: Furniture/ Equipment (including kitchen) | C85: 0 | D85: 0 | F85: 0 | G85: 0 | I85: 0 | M85: 0 | N85: 0 | P85: =F85-J85 -> 0 | S85: 2 | U85: =S85*T85 -> 0 | V85: =O85+Q85+T85 -> 0 | W85: =P85+R85+U85 -> 0 | AD85: =AB85*AC85 -> 0 | AE85: =AC85 -> 0 | AF85: =Y85+AA85+AD85 -> 0
A86: =+A85+0.01 -> 3.02 | B86: TLM and equipment including library books | C86: 0 | D86: 0 | F86: 0 | G86: 0 | I86: 0 | M86: 0 | N86: 0 | P86: =F86-J86 -> 0 | S86: 3 | U86: 0 | V86: 0 | W86: =P86+R86+U86 -> 0 | AD86: 0 | AE86: 0 | AF86: 0
A87: =+A86+0.01 -> 3.03 | B87: Bedding (new) | C87: 0 | D87: 0 | F87: 0 | G87: 0 | I87: 0 | M87: 0 | N87: 0 | P87: =F87-J87 -> 0 | S87: 0.375 | U87: 0 | V87: 0 | W87: 0 | AD87: =AB87*AC87 -> 0 | AE87: =AC87 -> 0 | AF87: =Y87+AA87+AD87 -> 0
A88: =+A87+0.01 -> 3.04 | B88: Replacement of bedding (once in 3 years) | C88: 0 | D88: 0 | F88: 0 | G88: 0 | I88: 0 | M88: 0 | N88: 0 | P88: =F88-J88 -> 0 | S88: 0.375 | U88: 0 | V88: 0 | W88: 0 | AD88: 0 | AE88: 0 | AF88: 0
B89: Sub Total (Non Recurring) | C89: =SUM(C85:C88) -> 0 | D89: =SUM(D85:D88) -> 0 | E89: =SUM(E85:E88) -> 0 | F89: =SUM(F85:F88) -> 0 | G89: 0 | H89: =SUM(H85:H88) -> 0 | I89: =SUM(I85:I88) -> 0 | J89: =SUM(J85:J88) -> 0 | M89: 0 | N89: 0 | O89: =SUM(O85:O88) -> 0 | P89: =SUM(P85:P88) -> 0 | Q89: =SUM(Q85:Q88) -> 0 | R89: =SUM(R85:R88) -> 0 | T89: =SUM(T85:T88) -> 0 | U89: 0 | V89: 0 | W89: 0 | X89: 0 | Y89: 0 | Z89: 0 | AA89: 0 | AC89: =SUM(AC85:AC88) -> 0 | AD89: =SUM(AD85:AD88) -> 0 | AE89: =SUM(AE85:AE88) -> 0 | AF89: =SUM(AF85:AF88) -> 0
B90: Recurring (50 children) | F90: 0 | M90: 0 | N90: 0
A91: 3.05 | B91: Maintenance per child Per month @ Rs.1500/- | C91: 0 | D91: 0 | F91: 0 | G91: 0 | I91: 0 | M91: 0 | N91: 0 | S91: 9 | U91: 0 | V91: =O91+Q91+T91 -> 0 | W91: =P91+R91+U91 -> 0 | AB91: 9 | AC91: 0 | AD91: =AB91*AC91 -> 0 | AE91: =AC91 -> 0 | AF91: =Y91+AA91+AD91 -> 0
A92: =+A91+0.01 -> 3.06 | B92: Stipend per child per month @ Rs.100/- | C92: 0 | D92: 0 | F92: 0 | G92: 0 | I92: 0 | M92: 0 | N92: 0 | S92: 0.6 | U92: 0 | V92: 0 | W92: 0 | AB92: 0.6 | AC92: 0 | AD92: 0 | AE92: 0 | AF92: 0
A93: =+A92+0.01 -> 3.07 | B93: Supplementary TLM, Stationery and other educational material @Rs.1000/- per child per annum | C93: 0 | D93: 0 | F93: 0 | G93: 0 | I93: 0 | M93: 0 | N93: 0 | S93: 0.5 | U93: 0 | V93: 0 | W93: 0 | AB93: 0.5 | AC93: 0 | AD93: 0 | AE93: 0 | AF93: 0
A94: 3.08 | B94: Salaries | C94: 0 | D94: 0 | F94: 0 | G94: 0 | I94: 0 | M94: 0 | N94: 0 | S94: =S91 -> 9 | U94: 0 | V94: 0 | W94: 0 | AB94: 9 | AC94: 0 | AD94: 0 | AE94: 0 | AF94: 0
A95: (a) | B95: 1 Warden @ Rs.25000/- per month | C95: 0 | D95: 0 | F95: 0 | G95: 0 | I95: 0 | M95: 0 | N95: 0 | S95: 3 | U95: 0 | V95: 0 | W95: 0 | AB95: 3 | AC95: 0 | AD95: 0 | AE95: 0 | AF95: 0
A96: (b) | B96: 4 Fulltime teachers as per RTE Norms @ Rs. 20,000/- per month per teacher | C96: 0 | D96: 0 | F96: 0 | G96: 0 | I96: 0 | M96: 0 | N96: 0 | S96: 9.6 | U96: 0 | V96: 0 | W96: 0 | AB96: 9.6 | AC96: 0 | AD96: 0 | AE96: 0 | AF96: 0
A97: (c) | B97: 2 Urdu Teachers (only for Blocks with muslim population above 20% and select urban areas) @ Rs.12,000/- per month per teacher. | C97: 0 | D97: 0 | F97: 0 | G97: 0 | I97: 0 | M97: 0 | N97: 0 | S97: 2.88 | U97: 0 | V97: 0 | W97: 0 | AB97: 2.88 | AC97: 0 | AD97: 0 | AE97: 0 | AF97: 0
A98: (d) | B98: 3 Part time teachers @ Rs.5,000/- per month per teacher | C98: 0 | D98: 0 | F98: 0 | G98: 0 | I98: 0 | M98: 0 | N98: 0 | S98: 1.5 | U98: 0 | V98: 0 | W98: 0 | AB98: 1.5 | AC98: 0 | AD98: 0 | AE98: 0 | AF98: 0
A99: (e) | B99: 1 Full time Accountant @ Rs. 10,000/- per month | C99: 0 | D99: 0 | F99: 0 | G99: 0 | I99: 0 | M99: 0 | N99: 0 | S99: 1.2 | U99: 0 | V99: 0 | W99: 0 | AB99: 1.2 | AC99: 0 | AD99: 0 | AE99: 0 | AF99: 0
A100: (f) | B100: 2 Support staff - (Accountant/Assistant, Peon, Chowkidar) @ Rs. 5,000/- per month per staff | C100: 0 | D100: 0 | F100: 0 | G100: 0 | I100: 0 | M100: 0 | N100: 0 | S100: 1.2 | U100: 0 | V100: 0 | W100: 0 | AB100: 1.2 | AC100: 0 | AD100: 0 | AE100: 0 | AF100: 0
A101: (g) | B101: 1 Head Cook @ Rs. 6,000/- per month and upto 2 Asstt. Cooks @ Rs. 4,500/- per month per cook | C101: 0 | D101: 0 | F101: 0 | G101: 0 | I101: 0 | M101: 0 | N101: 0 | S101: 1.8 | U101: 0 | V101: 0 | W101: 0 | AB101: 1.8 | AC101: 0 | AD101: 0 | AE101: 0 | AF101: 0
A102: 3.09 | B102: Specific Skill training @ Rs.1000/- per annum per child | C102: 0 | D102: 0 | F102: 0 | G102: 0 | I102: 0 | M102: 0 | N102: 0 | S102: 0.5 | U102: 0 | V102: 0 | W102: 0 | AB102: 0.5 | AC102: 0 | AD102: 0 | AE102: 0 | AF102: 0
A103: =+A102+0.01 -> 3.1 | B103: Electricity / water charges @ Rs. 1000/- per annum per child | C103: 0 | D103: 0 | F103: 0 | G103: 0 | I103: 0 | M103: 0 | N103: 0 | S103: 0.5 | U103: 0 | V103: 0 | W103: 0 | AB103: 0.5 | AC103: 0 | AD103: 0 | AE103: 0 | AF103: 0
A104: 3.11 | B104: Medical care/contingencies @ Rs.1250/- per annum per child | C104: 0 | D104: 0 | F104: 0 | G104: 0 | I104: 0 | M104: 0 | N104: 0 | S104: 0.625 | U104: 0 | V104: 0 | W104: 0 | AB104: 0.625 | AC104: 0 | AD104: 0 | AE104: 0 | AF104: 0
A105: 3.12 | B105: Maintenance @ Rs. 750/- per child per annum | C105: 0 | D105: 0 | F105: 0 | G105: 0 | I105: 0 | M105: 0 | N105: 0 | S105: 0.375 | U105: 0 | V105: 0 | W105: 0 | AB105: 0.375 | AC105: 0 | AD105: 0 | AE105: 0 | AF105: 0
A106: 3.13 | B106: Miscellaneous @ Rs. 750/- per child per annum | C106: 0 | D106: 0 | F106: 0 | G106: 0 | I106: 0 | M106: 0 | N106: 0 | S106: 0.375 | U106: 0 | V106: 0 | W106: 0 | AB106: 0.375 | AC106: 0 | AD106: 0 | AE106: 0 | AF106: 0
A107: 3.14 | B107: Preparatory camps @ Rs. 300/- per child per annum | C107: 0 | D107: 0 | F107: 0 | G107: 0 | I107: 0 | M107: 0 | N107: 0 | S107: 0.15 | T107: 0 | U107: 0 | V107: 0 | W107: 0 | AB107: 0.15 | AC107: 0 | AD107: 0 | AE107: 0 | AF107: 0
A108: 3.15 | B108: P.T.A / school functions @ Rs. 300/- per child per annum | C108: 0 | D108: 0 | F108: 0 | G108: 0 | I108: 0 | M108: 0 | N108: 0 | S108: 0.15 | T108: 0 | U108: 0 | V108: 0 | W108: 0 | AB108: 0.15 | AC108: 0 | AD108: 0 | AE108: 0 | AF108: 0
A109: 3.16 | B109: Provision of Rent @ Rs. 10,000/- per child per annum | C109: 0 | D109: 0 | F109: 0 | G109: 0 | I109: 0 | M109: 0 | N109: 0 | S109: 0.1 | U109: 0 | V109: 0 | W109: 0 | AB109: 0.1 | AC109: 0 | AD109: 0 | AE109: 0 | AF109: 0
A110: 3.17 | B110: Capacity Building @ Rs. 500/- per child per annum | C110: 0 | D110: 0 | F110: 0 | G110: 0 | I110: 0 | M110: 0 | N110: 0 | S110: 0.25 | U110: 0 | V110: 0 | W110: 0 | AB110: 0.25 | AC110: 0 | AD110: 0 | AE110: 0 | AF110: 0
A111: 3.18 | B111: Physical / Self Defence Training @ Rs.200/- per child per annum | C111: 0 | D111: 0 | F111: 0 | G111: 0 | I111: 0 | M111: 0 | N111: 0 | S111: 0.1 | T111: 0 | U111: 0 | V111: 0 | W111: 0 | AB111: 0.1 | AC111: 0 | AD111: 0 | AE111: 0 | AF111: 0
B112: Sub Total (Recurring) | C112: =SUM(C91:C111) -> 0 | D112: =SUM(D91:D111) -> 0 | E112: =SUM(E91:E111) -> 0 | F112: 0 | G112: 0 | H112: 0 | I112: 0 | J112: 0 | M112: 0 | N112: 0 | O112: =SUM(O91:O111) -> 0 | P112: =SUM(P91:P111) -> 0 | Q112: =SUM(Q91:Q111) -> 0 | R112: =SUM(R91:R111) -> 0 | T112: =SUM(T91:T111) -> 0 | U112: 0 | V112: 0 | W112: 0 | X112: 0 | Y112: 0 | Z112: 0 | AA112: 0 | AC112: =SUM(AC91:AC111) -> 0 | AD112: =SUM(AD91:AD111) -> 0 | AE112: =SUM(AE91:AE111) -> 0 | AF112: =SUM(AF91:AF111) -> 0
B113: Total (Non Recurring + Recurring) | C113: =C89+C112 -> 0 | D113: =D89+D112 -> 0 | E113: =E89+E112 -> 0 | F113: 0 | G113: 0 | H113: 0 | I113: 0 | J113: 0 | M113: 0 | N113: 0 | O113: =O89+O112 -> 0 | P113: =P89+P112 -> 0 | Q113: =Q89+Q112 -> 0 | R113: =R89+R112 -> 0 | T113: =T89+T112 -> 0 | U113: 0 | V113: 0 | W113: 0 | X113: 0 | Y113: 0 | Z113: 0 | AA113: 0 | AC113: =AC89+AC112 -> 0 | AD113: =AD89+AD112 -> 0 | AE113: =AE89+AE112 -> 0 | AF113: =AF89+AF112 -> 0
A114: (B) | B114: 100 Children
B115: Non-recurring (one time grant)
A116: 3.19 | B116: Furniture / Equipment (including kitchen equipment) | C116: 0 | D116: 0 | F116: 0 | M116: 0 | N116: 0 | P116: =F116-J116 -> 0 | S116: 3 | U116: 0 | V116: =O116+Q116+T116 -> 0 | W116: 0 | AD116: =AB116*AC116 -> 0 | AE116: =AC116 -> 0 | AF116: =Y116+AA116+AD116 -> 0
A117: =+A116+0.01 -> 3.2 | B117: TLM and equipment including library books (New) | C117: 0 | D117: 0 | F117: 0 | M117: 0 | N117: 0 | P117: =F117-J117 -> 0 | S117: 3.5 | U117: 0 | V117: 0 | W117: 0 | AD117: 0 | AE117: 0 | AF117: 0
A118: 3.21 | B118: Bedding (New) | C118: 0 | D118: 0 | F118: 0 | M118: 0 | N118: 0 | P118: =F118-J118 -> 0 | U118: 0 | V118: 0 | W118: 0 | AD118: 0 | AE118: 0 | AF118: 0
A119: =+A118+0.01 -> 3.22 | B119: Replacement of bedding (once in 3 years) | C119: 0 | D119: 0 | F119: 0 | M119: 0 | N119: 0 | P119: =F119-J119 -> 0 | U119: 0 | V119: 0 | W119: 0 | AD119: 0 | AE119: 0 | AF119: 0
B120: Sub Total Non-recurring | C120: =SUM(C116:C119) -> 0 | D120: =SUM(D116:D119) -> 0 | E120: =SUM(E116:E119) -> 0 | F120: =SUM(F116:F119) -> 0 | H120: =SUM(H116:H119) -> 0 | I120: =SUM(I116:I119) -> 0 | J120: =SUM(J116:J119) -> 0 | M120: 0 | N120: 0 | O120: =SUM(O116:O119) -> 0 | P120: =SUM(P116:P119) -> 0 | Q120: =SUM(Q116:Q119) -> 0 | R120: =SUM(R116:R119) -> 0 | T120: =SUM(T116:T119) -> 0 | U120: 0 | V120: 0 | W120: 0 | X120: 0 | Y120: 0 | Z120: 0 | AA120: 0 | AC120: =SUM(AC116:AC119) -> 0 | AD120: =SUM(AD116:AD119) -> 0 | AE120: =SUM(AE116:AE119) -> 0 | AF120: =SUM(AF116:AF119) -> 0
B121: Recurring | C121: 0 | D121: 0 | F121: 0 | M121: 0 | N121: 0
A122: 3..23 | B122: Maintenance per child per month @ Rs. 1500/- | C122: 0 | D122: 0 | F122: 0 | M122: 0 | N122: 0 | S122: 18 | U122: 0 | V122: =O122+Q122+T122 -> 0 | W122: =P122+R122+U122 -> 0 | AB122: 18 | AC122: 0 | AD122: =AB122*AC122 -> 0 | AE122: =AC122 -> 0 | AF122: =Y122+AA122+AD122 -> 0
A123: 3.24 | B123: Stipend per child per month @ Rs.100/- | C123: 0 | D123: 0 | F123: 0 | M123: 0 | N123: 0 | S123: 1.2 | U123: 0 | V123: 0 | W123: 0 | AB123: 1.2 | AC123: 0 | AD123: 0 | AE123: 0 | AF123: 0
A124: =+A123+0.01 -> 3.25 | B124: Supplementary TLM, Stationery and other educational material per child @1000/- per annum | C124: 0 | D124: 0 | F124: 0 | M124: 0 | N124: 0 | S124: 1 | U124: 0 | V124: 0 | W124: 0 | AB124: 1 | AC124: 0 | AD124: 0 | AE124: 0 | AF124: 0
A125: 3.26 | B125: Salaries | C125: 0 | D125: 0 | F125: 0 | M125: 0 | N125: 0 | U125: 0 | V125: 0 | W125: 0 | AC125: 0 | AD125: 0 | AE125: 0 | AF125: 0
A126: (a) | B126: 1 Warden @ Rs. 25,000/- per month | C126: 0 | D126: 0 | F126: 0 | M126: 0 | N126: 0 | S126: 3 | U126: 0 | V126: 0 | W126: 0 | AB126: 3 | AC126: 0 | AD126: 0 | AE126: 0 | AF126: 0
A127: (b) | B127: 1 head teacher @ Rs. 25,000/- per month in case the enrollment exceeds 100 | C127: 0 | D127: 0 | F127: 0 | M127: 0 | N127: 0 | S127: 3 | U127: 0 | V127: 0 | W127: 0 | AB127: 3 | AC127: 0 | AD127: 0 | AE127: 0 | AF127: 0
A128: (c) | B128: 4 - 5 Full time teachers as per RTE norms @ Rs. 20,000/- per month per teacher | C128: 0 | D128: 0 | F128: 0 | M128: 0 | N128: 0 | S128: 9.6 | U128: 0 | V128: 0 | W128: 0 | AB128: 9.6 | AC128: 0 | AD128: 0 | AE128: 0 | AF128: 0
A129: (d) | B129: 2 Urdu Teachers (only for blocks with muslim population above 20% and select urban areas), if required @ Rs. 12,000/- per month per teacher | C129: 0 | D129: 0 | F129: 0 | M129: 0 | N129: 0 | S129: 2.88 | U129: 0 | V129: 0 | W129: 0 | AB129: 2.88 | AC129: 0 | AD129: 0 | AE129: 0 | AF129: 0
A130: (e) | B130: 3 part time teachers @ Rs. 5,000/- per month per teacher | C130: 0 | D130: 0 | F130: 0 | M130: 0 | N130: 0 | S130: 1.5 | U130: 0 | V130: 0 | W130: 0 | AB130: 1.5 | AC130: 0 | AD130: 0 | AE130: 0 | AF130: 0
A131: (g) | B131: 1 Full time Accountant @ Rs. 10,000/- per month | C131: 0 | D131: 0 | F131: 0 | M131: 0 | N131: 0 | S131: 1.2 | U131: 0 | V131: 0 | W131: 0 | AB131: 1.2 | AC131: 0 | AD131: 0 | AE131: 0 | AF131: 0
A132: (h) | B132: 2 Support Staff – (Accountant/ Assistant, Peon, Chowkidar) @ Rs. 5,000/- per month per staff | C132: 0 | D132: 0 | F132: 0 | M132: 0 | N132: 0 | S132: 1.2 | U132: 0 | V132: 0 | W132: 0 | AB132: 1.2 | AC132: 0 | AD132: 0 | AE132: 0 | AF132: 0
A133: (i) | B133: 1 Head cook @ Rs. 6,000/- per month and upto 2 Asstt. Cooks @ Rs. 4,500/- per month per cook | C133: 0 | D133: 0 | F133: 0 | M133: 0 | N133: 0 | S133: 1.8 | U133: 0 | V133: 0 | W133: 0 | AB133: 1.8 | AC133: 0 | AD133: 0 | AE133: 0 | AF133: 0
A134: 3.27 | B134: Specific skill training per child @ Rs.1000/- per annum | C134: 0 | D134: 0 | F134: 0 | M134: 0 | N134: 0 | S134: 1 | U134: 0 | V134: 0 | W134: 0 | AB134: 1 | AC134: 0 | AD134: 0 | AE134: 0 | AF134: 0
A135: =+A134+0.01 -> 3.28 | B135: Electricity / water charges per child @Rs.1000/- per annum | C135: 0 | D135: 0 | F135: 0 | M135: 0 | N135: 0 | S135: 1 | U135: 0 | V135: 0 | W135: 0 | AB135: 1 | AC135: 0 | AD135: 0 | AE135: 0 | AF135: 0
A136: 3.29 | B136: Medical care/contingencies @ Rs.1250/- per child per annum | C136: 0 | D136: 0 | F136: =D136+E136 -> 0 | K136: =I136/C136*100 ->  | L136: =J136/F136*100 ->  | M136: =C136-I136 -> 0 | N136: =F136-J136 -> 0 | S136: 1.25 | U136: 0 | V136: 0 | W136: 0 | AB136: 1.25 | AC136: 0 | AD136: 0 | AE136: 0 | AF136: 0
A137: 3.3 | B137: Maintenance @ Rs.750/- per child per annum | C137: 0 | D137: 0 | F137: 0 | M137: 0 | N137: 0 | S137: 0.75 | U137: 0 | V137: 0 | W137: 0 | AB137: 0.75 | AC137: 0 | AD137: 0 | AE137: 0 | AF137: 0
A138: 3.31 | B138: Miscellaneous @ Rs.750/- per child per annum | C138: 0 | D138: 0 | F138: 0 | M138: 0 | N138: 0 | S138: 0.75 | U138: 0 | V138: 0 | W138: 0 | AB138: 0.75 | AC138: 0 | AD138: 0 | AE138: 0 | AF138: 0
A139: 3.32 | B139: Preparatory camps @ Rs.300/- per child per annum | C139: 0 | D139: 0 | F139: 0 | M139: 0 | N139: 0 | S139: 0.2 | T139: 0 | U139: 0 | V139: 0 | W139: 0 | AB139: 0.2 | AC139: 0 | AD139: 0 | AE139: 0 | AF139: 0
A140: 3.33 | B140: P.T.A / school functions @ Rs.200/- per child per annum | C140: 0 | D140: 0 | F140: 0 | M140: 0 | N140: 0 | S140: 0.2 | U140: =S140*T140 -> 0 | V140: 0 | W140: 0 | AB140: 0.2 | AC140: 0 | AD140: 0 | AE140: 0 | AF140: 0
A141: 3.34 | B141: Provision of Rent @ Rs. 6000/- per child per annum | C141: 0 | D141: 0 | F141: 0 | M141: 0 | N141: 0 | U141: 0 | V141: 0 | W141: 0 | AC141: 0 | AD141: 0 | AE141: 0 | AF141: 0
A142: 3.35 | B142: Capacity Building @ Rs.500/- per child per annum | C142: 0 | D142: 0 | F142: 0 | M142: 0 | N142: 0 | S142: 0.5 | U142: 0 | V142: 0 | W142: 0 | AB142: 0.5 | AC142: 0 | AD142: 0 | AE142: 0 | AF142: 0
A143: 3.36 | B143: Physical / Self Defence training @ Rs. 200/- per child per annum. | C143: 0 | D143: 0 | F143: 0 | M143: 0 | N143: 0 | S143: 0.2 | T143: 0 | U143: 0 | V143: 0 | W143: 0 | AB143: 0.2 | AC143: 0 | AD143: 0 | AE143: 0 | AF143: 0
B144: Sub Total (Recurring) | C144: =SUM(C122:C143) -> 0 | D144: =SUM(D122:D143) -> 0 | E144: =SUM(E122:E143) -> 0 | F144: =SUM(F122:F143) -> 0 | H144: =SUM(H122:H143) -> 0 | I144: =SUM(I122:I143) -> 0 | J144: =SUM(J122:J143) -> 0 | M144: 0 | N144: 0 | O144: =SUM(O122:O143) -> 0 | P144: =SUM(P122:P143) -> 0 | Q144: =SUM(Q122:Q143) -> 0 | R144: =SUM(R122:R143) -> 0 | T144: =SUM(T122:T143) -> 0 | U144: 0 | V144: 0 | W144: 0 | X144: 0 | Y144: 0 | Z144: 0 | AA144: 0 | AC144: =SUM(AC122:AC143) -> 0 | AD144: =SUM(AD122:AD143) -> 0 | AE144: =SUM(AE122:AE143) -> 0 | AF144: =SUM(AF122:AF143) -> 0
B145: Total (Recurring + Non Recurring) | C145: =C120+C144 -> 0 | D145: =D120+D144 -> 0 | E145: =E120+E144 -> 0 | F145: =F120+F144 -> 0 | H145: =H144+H120 -> 0 | I145: =I120+I144 -> 0 | J145: =J120+J144 -> 0 | M145: 0 | N145: 0 | O145: =O120+O144 -> 0 | P145: =P120+P144 -> 0 | Q145: =Q120+Q144 -> 0 | R145: =R120+R144 -> 0 | T145: =T120+T144 -> 0 | U145: 0 | V145: 0 | W145: 0 | X145: 0 | Y145: 0 | Z145: 0 | AA145: 0 | AC145: =AC120+AC144 -> 0 | AD145: =AD120+AD144 -> 0 | AE145: =AE120+AE144 -> 0 | AF145: =AF120+AF144 -> 0
B146: Total (A + B) | C146: =C113+C145 -> 0 | D146: =D113+D145 -> 0 | E146: =E113+E145 -> 0 | F146: =F113+F145 -> 0 | H146: =H145+H113 -> 0 | I146: =I113+I145 -> 0 | J146: =J113+J145 -> 0 | M146: 0 | N146: 0 | O146: =O113+O145 -> 0 | P146: =P113+P145 -> 0 | Q146: =Q113+Q145 -> 0 | R146: =R113+R145 -> 0 | T146: =T113+T145 -> 0 | U146: 0 | V146: 0 | W146: 0 | X146: 0 | Y146: 0 | Z146: 0 | AA146: 0 | AC146: =AC113+AC145 -> 0 | AD146: =AD113+AD145 -> 0 | AE146: =AE113+AE145 -> 0 | AF146: =AF113+AF145 -> 0
A147: 4 | B147: Transport/Escort Facility | F147: 0 | M147: 0 | N147: 0
A148: 4.01 | B148: Children in remote habitation | C148: 231 | D148: 6.93 | F148: 6.93 | G148: 175 | H148: 4.08 | I148: 175 | J148: 4.08 | K148: 75.75757576 | L148: 58.87445887 | M148: 56 | N148: 2.85 | S148: 0.03 | T148: 134 | U148: 4.02 | V148: =O148+Q148+T148 -> 134 | W148: 4.02 | AB148: 0.03 | AC148: 134 | AD148: =AB148*AC148 -> 4.02 | AE148: =AC148 -> 134 | AF148: =Y148+AA148+AD148 -> 4.02
A149: 4.02 | B149: Urban deprived children/children without adult protection | C149: 0 | D149: 0 | F149: 0 | M149: 0 | N149: 0 | S149: 0.03 | U149: 0 | V149: 0 | W149: 0 | AD149: 0 | AE149: 0 | AF149: 0
B150: Sub Total | C150: =SUM(C148:C149) -> 231 | D150: =SUM(D148:D149) -> 6.93 | E150: =SUM(E148:E149) -> 0 | F150: =SUM(F148:F149) -> 6.93 | H150: =SUM(H148:H149) -> 4.08 | I150: =SUM(I148:I149) -> 175 | J150: =SUM(J148:J149) -> 4.08 | K150: 75.75757576 | L150: 58.87445887 | M150: 56 | N150: 2.85 | O150: =SUM(O148:O149) -> 0 | P150: =SUM(P148:P149) -> 0 | Q150: =SUM(Q148:Q149) -> 0 | R150: =SUM(R148:R149) -> 0 | T150: =SUM(T148:T149) -> 134 | U150: 4.02 | V150: 134 | W150: 4.02 | X150: 0 | Y150: 0 | Z150: 0 | AA150: 0 | AC150: =SUM(AC148:AC149) -> 134 | AD150: =SUM(AD148:AD149) -> 4.02 | AE150: =SUM(AE148:AE149) -> 134 | AF150: =SUM(AF148:AF149) -> 4.02
A151: 5 | B151: Reimbursement of Fee against 25% admission under Section 12(1)(c) of RTE Act 2009 (Entry Level) subject to upper limit of 20% of AWP&B subject to guidelines issued by MHRD | C151: 0 | D151: 0 | F151: 0 | G151: 0 | H151: 0 | I151: 0 | J151: 0 | M151: 0 | N151: 0 | U151: 0 | V151: 0 | W151: 0 | AD151: 0 | AE151: =AC151 -> 0 | AF151: =Y151+AA151+AD151 -> 0
B152: Sub Total | C152: =C151 -> 0 | D152: =D151 -> 0 | E152: =E151 -> 0 | F152: 0 | G152: 0 | H152: 0 | I152: 0 | J152: 0 | M152: 0 | N152: 0 | O152: =O151 -> 0 | P152: =P151 -> 0 | Q152: =Q151 -> 0 | R152: =R151 -> 0 | T152: =T151 -> 0 | U152: 0 | V152: 0 | W152: 0 | X152: 0 | Y152: 0 | Z152: 0 | AA152: 0 | AC152: =AC151 -> 0 | AD152: =AD151 -> 0 | AE152: =AE151 -> 0 | AF152: =AF151 -> 0
A153: =+A151+1 -> 6 | B153: Special Training for mainstreaming of out of school children | F153: 0 | M153: 0 | N153: 0
A154: 6.01 | B154: Residential (Fresh) | F154: 0 | M154: 0 | N154: 0
B155: (a) 12 months | C155: 0 | D155: 0 | F155: 0 | M155: 0 | N155: 0 | S155: 0.2 | U155: 0 | V155: =O155+Q155+T155 -> 0 | W155: 0 | AB155: 0.2 | AD155: =AB155*AC155 -> 0 | AE155: =AC155 -> 0 | AF155: =Y155+AA155+AD155 -> 0
B156: (b) 9 months | C156: 0 | D156: 0 | F156: 0 | M156: 0 | N156: 0 | S156: =0.2/12*9 -> 0.15 | U156: 0 | V156: 0 | W156: 0 | AB156: 0.15 | AD156: 0 | AE156: 0 | AF156: 0
B157: (c) 6 months | C157: 0 | D157: 0 | F157: 0 | M157: 0 | N157: 0 | S157: =0.2/12*6 -> 0.1 | U157: 0 | V157: 0 | W157: 0 | AB157: 0.1 | AD157: 0 | AE157: 0 | AF157: 0
B158: (d) 3 months | C158: 0 | D158: 0 | F158: 0 | M158: 0 | N158: 0 | S158: =0.2/12*3 -> 0.05 | U158: 0 | V158: 0 | W158: 0 | AB158: 0.05 | AD158: 0 | AE158: 0 | AF158: 0
B159: Sub Total | C159: =SUM(C155:C158) -> 0 | D159: =SUM(D155:D158) -> 0 | E159: =SUM(E155:E158) -> 0 | F159: =SUM(F155:F158) -> 0 | H159: =SUM(H154:H158) -> 0 | I159: =SUM(I155:I158) -> 0 | J159: =SUM(J155:J158) -> 0 | M159: 0 | N159: 0 | O159: =SUM(O155:O158) -> 0 | P159: =SUM(P155:P158) -> 0 | Q159: =SUM(Q155:Q158) -> 0 | R159: =SUM(R155:R158) -> 0 | T159: =SUM(T155:T158) -> 0 | U159: 0 | V159: 0 | W159: 0 | X159: 0 | Y159: 0 | Z159: 0 | AA159: 0 | AC159: =SUM(AC155:AC158) -> 0 | AD159: =SUM(AD155:AD158) -> 0 | AE159: =SUM(AE155:AE158) -> 0 | AF159: =SUM(AF155:AF158) -> 0
A160: =+A154+0.01 -> 6.02 | B160: Residential (Continuing from previous year) | F160: 0 | M160: 0 | N160: 0
B161: (a) 12 months | C161: 0 | D161: 0 | F161: 0 | M161: 0 | N161: 0 | S161: 0.2 | U161: 0 | V161: =O161+Q161+T161 -> 0 | W161: 0 | AB161: 0.2 | AD161: =AB161*AC161 -> 0 | AE161: =AC161 -> 0 | AF161: =Y161+AA161+AD161 -> 0
B162: (b) 9 months | C162: 0 | D162: 0 | F162: 0 | M162: 0 | N162: 0 | S162: =0.2/12*9 -> 0.15 | U162: 0 | V162: 0 | W162: 0 | AB162: 0.15 | AD162: 0 | AE162: 0 | AF162: 0
B163: (c) 6 months | C163: 0 | D163: 0 | F163: 0 | M163: 0 | N163: 0 | S163: =0.2/12*6 -> 0.1 | U163: 0 | V163: 0 | W163: 0 | AB163: 0.1 | AD163: 0 | AE163: 0 | AF163: 0
B164: (d) 3 months | C164: 0 | D164: 0 | F164: 0 | M164: 0 | N164: 0 | S164: 0.05 | U164: 0 | V164: 0 | W164: 0 | AB164: 0.05 | AD164: 0 | AE164: 0 | AF164: 0
B165: Sub Total | C165: =SUM(C161:C164) -> 0 | D165: =SUM(D161:D164) -> 0 | E165: =SUM(E161:E164) -> 0 | F165: =SUM(F161:F164) -> 0 | H165: =SUM(H161:H164) -> 0 | I165: =SUM(I161:I164) -> 0 | J165: =SUM(J161:J164) -> 0 | M165: 0 | N165: 0 | O165: =SUM(O161:O164) -> 0 | P165: =SUM(P161:P164) -> 0 | Q165: =SUM(Q161:Q164) -> 0 | R165: =SUM(R161:R164) -> 0 | T165: =SUM(T161:T164) -> 0 | U165: 0 | V165: 0 | W165: 0 | X165: 0 | Y165: 0 | Z165: 0 | AA165: 0 | AC165: =SUM(AC161:AC164) -> 0 | AD165: =SUM(AD161:AD164) -> 0 | AE165: =SUM(AE161:AE164) -> 0 | AF165: =SUM(AF161:AF164) -> 0
A166: 6.03 | B166: Non-Residential (Fresh)
B167: (a) 12 months | C167: 0 | D167: 0 | F167: 0 | M167: 0 | N167: 0 | S167: 0.06 | U167: 0 | V167: =O167+Q167+T167 -> 0 | W167: 0 | AB167: 0.06 | AD167: =AB167*AC167 -> 0 | AE167: =AC167 -> 0 | AF167: =Y167+AA167+AD167 -> 0
B168: (b) 9 months | C168: 0 | D168: 0 | F168: 0 | M168: 0 | N168: 0 | S168: =0.06/12*9 -> 0.045 | U168: 0 | V168: 0 | W168: 0 | AB168: 0.045 | AD168: 0 | AE168: 0 | AF168: 0
B169: (c) 6 months | C169: 8 | D169: 0.24 | F169: 0.24 | H169: 0.11 | I169: 8 | J169: 0.15 | K169: 100 | L169: 62.5 | M169: 0 | N169: 0.09 | S169: =0.06/12*6 -> 0.03 | U169: 0 | V169: 0 | W169: 0 | AB169: 0.03 | AD169: 0 | AE169: 0 | AF169: 0
B170: (d) 3 months | C170: 0 | D170: 0 | F170: 0 | M170: 0 | N170: 0 | S170: =0.06/12*3 -> 0.015 | T170: 897 | U170: 13.455 | V170: 897 | W170: 13.455 | AB170: 0.015 | AC170: 897 | AD170: 13.455 | AE170: 897 | AF170: 13.455
B171: Sub Total | C171: =SUM(C167:C170) -> 8 | D171: =SUM(D167:D170) -> 0.24 | E171: =SUM(E167:E170) -> 0 | F171: =SUM(F167:F170) -> 0.24 | H171: =SUM(H167:H170) -> 0.11 | I171: =SUM(I167:I170) -> 8 | J171: =SUM(J167:J170) -> 0.15 | K171: 100 | L171: 62.5 | M171: 0 | N171: 0.09 | O171: =SUM(O167:O170) -> 0 | P171: =SUM(P167:P170) -> 0 | Q171: =SUM(Q167:Q170) -> 0 | R171: =SUM(R167:R170) -> 0 | T171: =SUM(T167:T170) -> 897 | U171: 13.455 | V171: 897 | W171: 13.455 | X171: 0 | Y171: 0 | Z171: 0 | AA171: 0 | AC171: =SUM(AC167:AC170) -> 897 | AD171: =SUM(AD167:AD170) -> 13.455 | AE171: =SUM(AE167:AE170) -> 897 | AF171: =SUM(AF167:AF170) -> 13.455
A172: 6.04 | B172: Non-Residential (Continuing from previous year) | F172: 0 | M172: 0 | N172: 0
B173: (a) 12 months | C173: 0 | D173: 0 | F173: 0 | M173: 0 | N173: 0 | S173: =0.06 -> 0.06 | U173: 0 | V173: =O173+Q173+T173 -> 0 | W173: 0 | AD173: =AB173*AC173 -> 0 | AE173: =AC173 -> 0 | AF173: =Y173+AA173+AD173 -> 0
B174: (b) 9 months | C174: 0 | D174: 0 | F174: 0 | M174: 0 | N174: 0 | S174: =0.06/12*9 -> 0.045 | U174: 0 | V174: 0 | W174: 0 | AD174: 0 | AE174: 0 | AF174: 0
B175: (c) 6 months | C175: 0 | D175: 0 | F175: 0 | M175: 0 | N175: 0 | S175: =0.06/12*6 -> 0.03 | U175: 0 | V175: 0 | W175: 0 | AD175: 0 | AE175: 0 | AF175: 0
B176: (d) 3 months | C176: 0 | D176: 0 | F176: 0 | M176: 0 | N176: 0 | S176: =0.06/12*3 -> 0.015 | U176: 0 | V176: 0 | W176: 0 | AD176: 0 | AE176: 0 | AF176: 0
B177: Sub Total | C177: =SUM(C173:C176) -> 0 | D177: =SUM(D173:D176) -> 0 | E177: =SUM(E173:E176) -> 0 | F177: =SUM(F173:F176) -> 0 | H177: =SUM(H173:H176) -> 0 | I177: =SUM(I173:I176) -> 0 | J177: =SUM(J173:J176) -> 0 | M177: 0 | N177: 0 | O177: =SUM(O173:O176) -> 0 | P177: =SUM(P173:P176) -> 0 | Q177: =SUM(Q173:Q176) -> 0 | R177: =SUM(R173:R176) -> 0 | T177: =SUM(T173:T176) -> 0 | U177: 0 | V177: 0 | W177: 0 | X177: 0 | Y177: 0 | Z177: 0 | AA177: 0 | AC177: =SUM(AC173:AC176) -> 0 | AD177: =SUM(AD173:AD176) -> 0 | AE177: =SUM(AE173:AE176) -> 0 | AF177: =SUM(AF173:AF176) -> 0
A178: 6.05 | B178: Madarasa/Maktab | F178: 0 | M178: 0 | N178: 0 | V178: =O178+Q178+T178 -> 0
B179: (a) 12 months | C179: 0 | D179: 0 | F179: 0 | M179: 0 | N179: 0 | S179: =0.06 -> 0.06 | U179: 0 | V179: =O179+Q179+T179 -> 0 | W179: =P179+R179+U179 -> 0 | AD179: =AB179*AC179 -> 0 | AE179: =AC179 -> 0 | AF179: =Y179+AA179+AD179 -> 0
B180: (b) 9 months | C180: 0 | D180: 0 | F180: 0 | M180: 0 | N180: 0 | S180: =0.06/12*9 -> 0.045 | U180: 0 | V180: =O180+Q180+T180 -> 0 | W180: =P180+R180+U180 -> 0 | AD180: 0 | AE180: 0 | AF180: 0
B181: (c) 6 months | C181: 0 | D181: 0 | F181: 0 | M181: 0 | N181: 0 | S181: =0.06/12*6 -> 0.03 | U181: 0 | V181: =O181+Q181+T181 -> 0 | W181: =P181+R181+U181 -> 0 | AD181: 0 | AE181: 0 | AF181: 0
B182: (d) 3 months | C182: 0 | D182: 0 | F182: 0 | M182: 0 | N182: 0 | S182: =0.06/12*3 -> 0.015 | U182: 0 | V182: =O182+Q182+T182 -> 0 | W182: =P182+R182+U182 -> 0 | AD182: 0 | AE182: 0 | AF182: 0
B183: Sub Total | C183: =SUM(C179:C182) -> 0 | D183: =SUM(D179:D182) -> 0 | E183: =SUM(E179:E182) -> 0 | F183: 0 | G183: 0 | H183: 0 | I183: 0 | J183: 0 | M183: 0 | N183: 0 | O183: =SUM(O179:O182) -> 0 | P183: =SUM(P179:P182) -> 0 | Q183: =SUM(Q179:Q182) -> 0 | R183: =SUM(R179:R182) -> 0 | T183: =SUM(T179:T182) -> 0 | U183: 0 | V183: 0 | W183: 0 | X183: 0 | Y183: 0 | Z183: 0 | AA183: 0 | AC183: =SUM(AC179:AC182) -> 0 | AD183: =SUM(AD179:AD182) -> 0 | AE183: =SUM(AE179:AE182) -> 0 | AF183: =SUM(AF179:AF182) -> 0
A184: 6.06 | B184: Seasonal Hostel (Residential) | F184: 0 | M184: 0 | N184: 0
B185: (a) 12 months | C185: 0 | D185: 0 | F185: 0 | M185: 0 | N185: 0 | S185: 0.2 | U185: 0 | V185: =O185+Q185+T185 -> 0 | W185: 0 | AD185: =AB185*AC185 -> 0 | AE185: =AC185 -> 0 | AF185: =Y185+AA185+AD185 -> 0
B186: (a) 9 months | C186: 0 | D186: 0 | F186: 0 | M186: 0 | N186: 0 | S186: =0.2/12*9 -> 0.15 | U186: 0 | V186: 0 | W186: 0 | AD186: 0 | AE186: 0 | AF186: 0
B187: (a) 6 months | C187: 0 | D187: 0 | F187: 0 | M187: 0 | N187: 0 | S187: =0.2/12*6 -> 0.1 | U187: 0 | V187: 0 | W187: 0 | AD187: 0 | AE187: 0 | AF187: 0
B188: (a) 3 months | C188: 0 | D188: 0 | F188: 0 | M188: 0 | N188: 0 | S188: =0.2/12*3 -> 0.05 | U188: 0 | V188: 0 | W188: 0 | AD188: 0 | AE188: 0 | AF188: 0
B189: Sub Total | C189: =SUM(C185:C188) -> 0 | D189: =SUM(D185:D188) -> 0 | E189: =SUM(E185:E188) -> 0 | F189: =SUM(F185:F188) -> 0 | H189: =SUM(H185:H188) -> 0 | I189: =SUM(I185:I188) -> 0 | J189: =SUM(J185:J188) -> 0 | M189: 0 | N189: 0 | O189: =SUM(O185:O188) -> 0 | P189: =SUM(P185:P188) -> 0 | Q189: =SUM(Q185:Q188) -> 0 | R189: =SUM(R185:R188) -> 0 | T189: =SUM(T185:T188) -> 0 | U189: 0 | V189: 0 | W189: 0 | X189: 0 | Y189: 0 | Z189: =SUM(Z185:Z188) -> 0 | AA189: =SUM(AA185:AA188) -> 0 | AC189: =SUM(AC185:AC188) -> 0 | AD189: =SUM(AD185:AD188) -> 0 | AE189: =SUM(AE185:AE188) -> 0 | AF189: =SUM(AF185:AF188) -> 0
A190: 6.07 | B190: Migration (Non Residential) | F190: 0 | M190: 0 | N190: 0
B191: (a) 12 months | C191: 0 | D191: 0 | F191: 0 | M191: 0 | N191: 0 | S191: =0.06 -> 0.06 | U191: 0 | V191: =O191+Q191+T191 -> 0 | W191: 0 | AD191: =AB191*AC191 -> 0 | AE191: =AC191 -> 0 | AF191: =Y191+AA191+AD191 -> 0
B192: (b) 9 months | C192: 0 | D192: 0 | F192: 0 | M192: 0 | N192: 0 | S192: =0.06/12*9 -> 0.045 | U192: 0 | V192: 0 | W192: 0 | AD192: 0 | AE192: 0 | AF192: 0
B193: (c) 6 months | C193: 0 | D193: 0 | F193: 0 | M193: 0 | N193: 0 | S193: =0.06/12*6 -> 0.03 | U193: 0 | V193: 0 | W193: 0 | AB193: 0.03 | AD193: 0 | AE193: 0 | AF193: 0
B194: (d) 3 months | C194: 0 | D194: 0 | F194: 0 | M194: 0 | N194: 0 | S194: =0.06/12*3 -> 0.015 | U194: 0 | V194: 0 | W194: 0 | AD194: 0 | AE194: 0 | AF194: 0
B195: Sub Total | C195: =SUM(C191:C194) -> 0 | D195: =SUM(D191:D194) -> 0 | E195: =SUM(E191:E194) -> 0 | F195: =SUM(F191:F194) -> 0 | H195: =SUM(H191:H194) -> 0 | I195: =SUM(I191:I194) -> 0 | J195: =SUM(J191:J194) -> 0 | M195: 0 | N195: 0 | O195: =SUM(O191:O194) -> 0 | P195: =SUM(P191:P194) -> 0 | Q195: =SUM(Q191:Q194) -> 0 | R195: =SUM(R191:R194) -> 0 | T195: =SUM(T191:T194) -> 0 | U195: 0 | V195: 0 | W195: 0 | X195: 0 | Y195: 0 | Z195: 0 | AA195: 0 | AC195: =SUM(AC191:AC194) -> 0 | AD195: =SUM(AD191:AD194) -> 0 | AE195: =SUM(AE191:AE194) -> 0 | AF195: =SUM(AF191:AF194) -> 0
B196: Total | C196: =SUM(C159+C165+C171+C177+C183+C189+C195) -> 8 | D196: 0.24 | E196: 0 | F196: 0.24 | G196: 0 | H196: 0.11 | I196: 8 | J196: 0.15 | K196: 100 | L196: 62.5 | M196: =SUM(M159+M165+M171+M177+M183+M189+M195) -> 0 | N196: 0.09 | O196: 0 | P196: 0 | Q196: 0 | R196: 0 | T196: =SUM(T159+T165+T171+T177+T183+T189+T195) -> 897 | U196: 13.455 | V196: 897 | W196: 13.455 | X196: 0 | Y196: 0 | Z196: 0 | AA196: 0 | AC196: =SUM(AC159+AC165+AC171+AC177+AC183+AC189+AC195) -> 897 | AD196: =SUM(AD159+AD165+AD171+AD177+AD183+AD189+AD195) -> 13.455 | AE196: =SUM(AE159+AE165+AE171+AE177+AE183+AE189+AE195) -> 897 | AF196: =SUM(AF159+AF165+AF171+AF177+AF183+AF189+AF195) -> 13.455
A197: II | B197: RETENTION | F197: 0 | M197: 0 | N197: 0
A198: 7 | B198: Free Text Books | F198: 0 | M198: 0 | N198: 0
A199: 7.01 | B199: Free Text Books (P) | F199: 0 | M199: 0 | N199: 0
B200: (a) Class I & II | C200: 26489 | D200: 39.7335 | F200: =D200+E200 -> 39.7335 | G200: 26489 | H200: =39.73-0.42 -> 39.31 | I200: 26489 | J200: 39.7335 | K200: =I200/C200*100 -> 100 | L200: =J200/F200*100 -> 100 | M200: =C200-I200 -> 0 | N200: =F200-J200 -> 0 | S200: 0.0015 | T200: 25602 | U200: 38.403 | V200: =O200+Q200+T200 -> 25602 | W200: =P200+R200+U200 -> 38.403 | AB200: 0.0015 | AC200: 25602 | AD200: =AB200*AC200 -> 38.403 | AE200: =AC200 -> 25602 | AF200: =Y200+AA200+AD200 -> 38.403
... 323 more rows

Sheet Balasore
A1: Costing sheet for AWP & B 2017-18
A2: Name of the district:Balasore
R3: ( Rs in lakhs)
A4: S.No. | B4: Activity | C4: Sanction | G4: Achievement ( as on 31st Dec, 2016) | I4: Anticipated Acheivement ( as on 31st March , 2017) | M4: Savings | O4: Proposal for 2017-18 | X4: Outlay Recommendation for 2017-18
O5: Spill Over | Q5: Deferred laibility of 2016-17 | S5: Fresh | V5: Total | X5: Spill Over | Z5: Deferred laibility of 2014-15 | AB5: Fresh | AE5: Total
C6: Phy. | D6: Fin | E6: Spill over ( In Lakhs) | F6: Fin | G6: Phy. | H6: Fin | I6: Phy. | J6: Fin | K6: Phy. (%) | L6: Fin. (%) | M6: Phy. | N6: Fin. | O6: Phy. | P6: Fin. | Q6: Phy. | R6: Fin. | S6: Unit Cost | T6: Phy. | U6: Fin. | V6: Phy. | W6: Fin. | X6: Phy. | Y6: Fin. | Z6: Phy. | AA6: Fin. | AB6: Unit Cost | AC6: Phy. | AD6: Fin. | AE6: Phy. | AF6: Fin.
A7: I | B7: ACCESS | K7: =I7/C7*100 ->  | L7: =J7/F7*100 ->  | M7: =C7-I7 -> 0 | N7: =F7-J7 -> 0
B8: SSA | K8: =I8/C8*100 ->  | L8: =J8/F8*100 ->  | M8: =C8-I8 -> 0 | N8: =F8-J8 -> 0
A9: 1 | B9: Opening of New Schools | M9: 0 | N9: 0
A10: 1.01 | B10: New Primary School | C10: 0 | D10: 0 | F10: =D10+E10 -> 0 | M10: 0 | N10: 0 | AE10: =AC10 -> 0
A11: 1.02 | B11: Upgradation of PS to UPS | C11: 0 | D11: 0 | F11: =D11+E11 -> 0 | M11: 0 | N11: 0 | AE11: =AC11 -> 0
A12: 1.03 | B12: Composite Schools | C12: 0 | D12: 0 | F12: 0 | M12: 0 | N12: 0 | AE12: 0
A13: 1.04 | B13: Residential schools for specific category of children | C13: 0 | D13: 0 | F13: 0 | M13: 0 | N13: 0 | AE13: 0
A14: 1.05 | B14: Residential Hostel | C14: 0 | D14: 0 | F14: 0 | G14: 0 | I14: 0 | M14: 0 | N14: 0 | AE14: 0
A15: 1.06 | B15: Integration of Class V with primary schools | C15: 0 | D15: 0 | F15: 0 | M15: 0 | N15: 0 | AE15: 0
A16: 1.07 | B16: Integration of Class VIII with upper primary schools | C16: 0 | D16: 0 | F16: 0 | M16: 0 | N16: 0 | AE16: 0
A17: 2 | B17: Residential Schools for specific category of children | F17: 0 | M17: 0 | N17: 0
B18: 50 children | F18: 0 | M18: 0 | N18: 0
B19: Non-recurring (one time grant) | F19: 0 | M19: 0 | N19: 0
A20: 2.01 | B20: Furniture/ Equipment (including kitchen) | C20: 0 | D20: 0 | F20: 0 | M20: 0 | N20: 0 | S20: 2 | AD20: =AB20*AC20 -> 0 | AE20: =AC20 -> 0 | AF20: =Y20+AA20+AD20 -> 0
A21: 2.02 | B21: TLM and equipment including library books | C21: 0 | D21: 0 | F21: 0 | M21: 0 | N21: 0 | S21: 3 | AD21: =AB21*AC21 -> 0 | AE21: =AC21 -> 0 | AF21: =Y21+AA21+AD21 -> 0
A22: 2.03 | B22: Bedding (new) | C22: 0 | D22: 0 | F22: 0 | M22: 0 | N22: 0 | S22: 0.375 | AD22: 0 | AE22: 0 | AF22: 0
A23: 2.04 | B23: Replacement of bedding (once in 3 years) | C23: 0 | D23: 0 | F23: 0 | M23: 0 | N23: 0 | AD23: 0 | AE23: 0 | AF23: 0
B24: Sub Total (Non Recurring) | C24: =SUM(C20:C23) -> 0 | D24: =SUM(D20:D23) -> 0 | E24: =SUM(E20:E23) -> 0 | F24: =SUM(F20:F23) -> 0 | I24: =SUM(I20:I23) -> 0 | J24: =SUM(J20:J23) -> 0 | M24: 0 | N24: 0 | O24: =SUM(O20:O23) -> 0 | P24: =SUM(P20:P23) -> 0 | Q24: =SUM(Q20:Q23) -> 0 | R24: =SUM(R20:R23) -> 0 | T24: =SUM(T20:T23) -> 0 | U24: 0 | V24: 0 | W24: 0 | X24: 0 | Y24: 0 | Z24: 0 | AA24: 0 | AC24: =SUM(AC20:AC23) -> 0 | AD24: =SUM(AD20:AD23) -> 0 | AE24: =SUM(AE20:AE23) -> 0 | AF24: =SUM(AF20:AF23) -> 0
B25: Recurring (50 children) | F25: 0 | M25: 0 | N25: 0
A26: 2.05 | B26: Maintenance per child Per month @ Rs.1500/- | C26: 0 | D26: 0 | F26: 0 | M26: 0 | N26: 0 | S26: 9 | AD26: =AB26*AC26 -> 0 | AE26: =AC26 -> 0 | AF26: =Y26+AA26+AD26 -> 0
A27: 2.06 | B27: Stipend per child per month @ Rs.100/- | C27: 0 | D27: 0 | F27: 0 | M27: 0 | N27: 0 | S27: 0.6 | AD27: 0 | AE27: 0 | AF27: 0
A28: 2.07 | B28: Supplementary TLM, Stationery and other educational material @Rs.1000/- per child per annum | C28: 0 | D28: 0 | F28: 0 | M28: 0 | N28: 0 | S28: 0.5 | AD28: 0 | AE28: 0 | AF28: 0
A29: 2.08 | B29: Salaries | C29: 0 | D29: 0 | F29: 0 | M29: 0 | N29: 0 | AD29: 0 | AE29: 0 | AF29: 0
A30: (a) | B30: 1 Warden @ Rs.25000/- per month | C30: 0 | D30: 0 | F30: 0 | M30: 0 | N30: 0 | S30: 3 | AD30: 0 | AE30: 0 | AF30: 0
A31: (b) | B31: 4 Fulltime teachers as per RTE Norms @ Rs. 20,000/- per month per teacher | C31: 0 | D31: 0 | F31: 0 | M31: 0 | N31: 0 | S31: 9.6 | AD31: 0 | AE31: 0 | AF31: 0
A32: (c) | B32: 2 Urdu Teachers (only for Blocks with muslim population above 20% and select urban areas) @ Rs.12,000/- per month per teacher. | C32: 0 | D32: 0 | F32: 0 | M32: 0 | N32: 0 | S32: 2.88 | AD32: 0 | AE32: 0 | AF32: 0
A33: (d) | B33: 3 Part time teachers @ Rs.5,000/- per month per teacher | C33: 0 | D33: 0 | F33: 0 | M33: 0 | N33: 0 | S33: 1.5 | AD33: 0 | AE33: 0 | AF33: 0
A34: (e) | B34: 1 Full time Accountant @ Rs. 10,000/- per month | C34: 0 | D34: 0 | F34: 0 | M34: 0 | N34: 0 | S34: 1.2 | AD34: 0 | AE34: 0 | AF34: 0
A35: (f) | B35: 2 Support staff - (Accountant/Assistant, Peon, Chowkidar) @ Rs. 5,000/- per month per staff | C35: 0 | D35: 0 | F35: 0 | M35: 0 | N35: 0 | S35: 1.2 | AD35: 0 | AE35: 0 | AF35: 0
A36: (g) | B36: 1 Head Cook @ Rs. 6,000/- per month and upto 2 Asstt. Cooks @ Rs. 4,500/- per month per cook | C36: 0 | D36: 0 | F36: 0 | M36: 0 | N36: 0 | S36: 1.8 | AD36: 0 | AE36: 0 | AF36: 0
A37: 2.09 | B37: Specific Skill training @ Rs.1000/- per annum per child | C37: 0 | D37: 0 | F37: 0 | M37: 0 | N37: 0 | S37: 0.5 | AD37: 0 | AE37: 0 | AF37: 0
A38: 2.1 | B38: Electricity / water charges @ Rs. 1000/- per annum per child | C38: 0 | D38: 0 | F38: 0 | M38: 0 | N38: 0 | S38: 0.5 | AD38: 0 | AE38: 0 | AF38: 0
A39: =+A38+0.01 -> 2.11 | B39: Medical care/contingencies @ Rs.1250/- per annum per child | C39: 0 | D39: 0 | F39: 0 | M39: 0 | N39: 0 | S39: 0.625 | AD39: 0 | AE39: 0 | AF39: 0
A40: =+A39+0.01 -> 2.12 | B40: Maintenance @ Rs. 750/- per child per annum | C40: 0 | D40: 0 | F40: 0 | M40: 0 | N40: 0 | S40: 0.375 | AD40: 0 | AE40: 0 | AF40: 0
A41: 2.13 | B41: Miscellaneous @ Rs. 750/- per child per annum | C41: 0 | D41: 0 | F41: 0 | M41: 0 | N41: 0 | S41: 0.375 | AD41: 0 | AE41: 0 | AF41: 0
A42: 2.14 | B42: Preparatory camps @ Rs. 300/- per child per annum | C42: 0 | D42: 0 | F42: 0 | M42: 0 | N42: 0 | S42: 0.15 | AD42: 0 | AE42: 0 | AF42: 0
A43: 2.15 | B43: P.T.A / school functions @ Rs. 300/- per child per annum | C43: 0 | D43: 0 | F43: 0 | M43: 0 | N43: 0 | S43: 0.15 | AD43: 0 | AE43: 0 | AF43: 0
A44: 2.16 | B44: Provision of Rent @ Rs. 10,000/- per child per annum | C44: 0 | D44: 0 | F44: 0 | M44: 0 | N44: 0 | AD44: 0 | AE44: 0 | AF44: 0
